Workbook

Sheet FMIS+eServices
A1: FMIS & e-Services data set | H1: Q1 > Does the Finance Ministry/Dept have a web site or portal dedicated to publish Public Finance (PF) information? | L1: Q2 > Is there a web site / doc on FMIS solution? | N1: Q3 > What is the source of information for publishing PF information? | U1: Q4 > Is the PF information meaningful to citizens or budget entities? | Y1: Q5 > Is the data str/list of BC/CoA published? | AA1: Q6 > Annual budget plans | AD1: Q7 > Medium-Term Expenditure Framework | AH1: Q8 > Investment plans | AK1: Q9 > Budget execution results | AO1: Q10 > External audit of budget | AR1: Q11 > What is the level of detail of the public expenditure / revenue information published online | BD1: Q12 > Is there an Open Gov/Data web site? | BF1: Q13 > FMIS support for Sub-Natl Gov (SNG) | BH1: Q14 > Harmonized acct for all levels (incl SNG) | BJ1: Q15 > Are there other government web sites reporing budget results/performance? | BP1: Q16 > Is there a web site on Access to Info / Std? | BR1: Q17 > PFM regulations published? | BT1: Q18 > Compliance with intl reporting std? | BV1: Q19 > Are there a feedback / monitoring options? | BY1: Q20 > What languages are used to publish PF data? | CD1: FMIS solutions | CP1: PEFA Performance Indicators | DC1: PEFA Averages | DE1: Other indicators | DI1: UN e-Gov 2014 Indices | DO1: UN e-Gov 2012 Indices | DT1: Region | DU1: Other Categories | DY1: Open Source Policies adopted by the governments (2010) | EJ1: Verified by Gov officials | EK1: Results: FMIS & OBD Practice Groups | EN1: Extension >>> | EP1: e-Services | ER1: Aid Mgmt Systems | ET1: WDR 2016 > > > | EV1: e-Government | EW1: e-Gov Online Services | FC1: e-Gov Institution | FG1: Treasury Single Account | FQ1: Tax Administration | GA1: Customs Administration | GO1: e-Filing | GS1: e-Payment | GV1: Digital Signature | GY1: Public Employment | HC1: HRMIS | HK1: Payroll System | HT1: e-Procurement | HZ1: Public Debt | IH1: Integrated PFM e-Services
A2: # | B2: Flag | C2: Economy | D2: Level | E2: Population | F2: GNI | G2: GNIPC | H2: Q1.1 MoF URL | I2: Q1.2 Org Name | J2: Q1.3 | K2: Q1.4 PF Data URL | L2: Q2.1 | M2: Q2.2 FMIS URL | N2: Q3.1 | O2: Q3.2 Dynamic Q | P2: Q3.3 | Q2: Q3.4 Open Data | R2: Q3.5 | S2: Q3.6 | T2: Q3.7 Reliability | U2: Q4.1 | V2: Q4.2 | W2: Q4.3 | X2: Q4.4 Ctz Budget | Y2: Q5.1 | Z2: Q5.2 BC/CoA | AA2: Q6.1 | AB2: Q6.2 | AC2: Q6.3 | AD2: Q7.1 | AE2: Q7.2 | AF2: Q7.3 | AG2: Q7.4 | AH2: Q8.1 | AI2: Q8.2 | AJ2: Q8.3 | AK2: Q9.1 | AL2: Q9.2 | AM2: Q9.3 | AN2: Q9.4 | AO2: Q10.1 | AP2: Q10.2 | AQ2: Q10.3 | AR2: Q11.1 | AS2: Q11.2 | AT2: Q11.3 | AU2: Q11.4 | AV2: Q11.5 | AW2: Q11.6 | AX2: Q11.7 | AY2: Q11.8 | AZ2: Q11.9 | BA2: Q11.10 | BB2: Q11.11 | BC2: Q11.12 Other | BD2: Q12.1 | BE2: Q12.2 Open Gov/Open Data | BF2: Q13.1 | BG2: Q13.2 FMIS SNG | BH2: Q14.1 | BI2: Q14.2 Acct SNG | BJ2: Q15.1 | BK2: Q15.2 Stats URL | BL2: Q15.3 Stats Org | BM2: Q15.4 CB URL | BN2: Q15.5 Cent Bank | BO2: Q15.6 Other URL | BP2: Q16.1 | BQ2: Q16.2 ATI | BR2: Q17.1 | BS2: Q17.2 PFM Reg | BT2: Q18.1 | BU2: Q18.2 Other Rep | BV2: Q19.1 | BW2: Q19.2 | BX2: Q19.3 Feedback | BY2: Q20.1 | BZ2: Q20.2 | CA2: Q20.3 | CB2: Q20.4 | CC2: Q20.5 | CD2: FMIS / TS | CE2: FMIS | CF2: Tpl | CG2: Func | CH2: Status | CI2: Op Yr | CJ2: Scope | CK2: Type | CL2: ASW | CM2: ASW Solution | CN2: Arch | CO2: F_Comb | CP2: PEFA Yr | CQ2: Stat | CR2: Rep | CS2: PI-5 | CT2: PI-6 | CU2: PI-10 | CV2: PI-12 | CW2: PI-22 | CX2: PI-23 | CY2: PI-24 | CZ2: PI-25 | DA2: PI-26 | DB2: D-2 | DC2: Avg10 | DD2: Avg | DE2: OBI_12 | DF2: OBI_10 | DG2: OGP | DH2: MTEF | DI2: eGov14 | DJ2: eGov | DK2: ePart | DL2: eOS | DM2: eTI | DN2: eHC | DO2: eGov12 | DP2: eGov | DQ2: eOS | DR2: eTC | DS2: eHC | DT2: Region | DU2: Zone | DV2: OECD | DW2: APEC | DX2: Fragile | DY2: Economies | DZ2: OSS Gov | EA2: R | EB2: A | EC2: P | ED2: M | EE2: OSS Loc | EF2: R | EG2: A | EH2: P | EI2: M | EJ2: Verif date | EK2: Tot Pts | EL2: Score | EM2: Group | EO2: # | EP2: Economy | EQ2: Code | ER2: AMP | ES2: DAD | ET2: e-Government | EU2: eSrv | EV2: e-Services | EW2: eOSI | EX2: Stg-1 | EY2: Stg-2 | EZ2: Stg-3 | FA2: Stg-4 | FB2: Tot | FC2: e-Gov Org URL | FD2: e-Gov Yr | FE2: e-Gov Entity | FF2: eG Org | FG2: Treasury website | FH2: Tre Yr | FI2: TSA website | FJ2: TSA Yr | FK2: TSA Type | FL2: TSA Scope | FM2: Duration | FN2: TSA Benefits | FO2: TSA Savings | FP2: Sav Yr | FQ2: Tax Adm URL | FR2: Tax Yr | FS2: TMIS Abbr | FT2: TMIS Name | FU2: TMIS | FV2: TMIS Soln | FW2: Tax System URL | FX2: TMIS Yr | FY2: TMIS Sta | FZ2: Tax Srv | GA2: Customs URL | GB2: Cust Yr | GC2: WCO Acc | GD2: Acc Sta | GE2: Customs Abbr | GF2: Customs Name | GG2: CMIS | GH2: CMIS Soln | GI2: Customs Sys URL | GJ2: CMIS Yr | GK2: Cust Sta | GL2: Cust Srv | GM2: e-Sub | GN2: SW | GO2: e-Filing URL | GP2: eFil Yr | GQ2: eFil Srv | GR2: eFiling | GS2: ePayment | GT2: ePay Yr | GU2: ePay Srv | GV2: Digital Sign URL | GW2: Dsign Yr | GX2: Dsign Sta | GY2: Public Emp | GZ2: PE Scope | HA2: Pub Emp URL | HB2: PE Yr | HC2: HRMIS Abbr | HD2: HRMIS System | HE2: HRM | HF2: HRMIS Soln | HG2: HRMIS URL | HH2: HRM Yr | HI2: HRM Sta | HJ2: HRM Srv | HK2: Payroll Abbr | HL2: Payroll System | HM2: Payr | HN2: Payr Soln | HO2: Payroll URL | HP2: Payr Yr | HQ2: Payr Sta | HR2: Payr Srv | HS2: PI-19 | HT2: eProc System | HU2: eProcurement | HV2: ePrc Yr | HW2: ePrc Sta | HX2: ePr Srv | HY2: Contr Monitoring | HZ2: Debt Org / URL | IA2: DMS | IB2: DMS Soln | IC2: DMS URL | ID2: DMS Yr | IE2: DMS Sta | IF2: DM Inst | IG2: DM OpSt | IH2: Tot Pts | II2: Score | IJ2: Group | IK2: Level | IL2: Region
A3: 1 | C3: Afghanistan | D3: LIC | E3: 35320.445 | F3: 16589.62033 | G3: 470 | H3: http://www.mof.gov.af | I3: Afghanistan Ministry of Finance | J3: 2 | K3: http://www.budgetmof.gov.af | L3: 2 | M3: http://mof.gov.af/en/page/1149 | N3: 1 | O3: - | P3: 1 | Q3: http://www.budgetmof.gov.af/index.php?option=com_content&view=article&id=49&Itemid=76&lang=en | R3: 0 | S3: 0 | T3: http://www.budgetmof.gov.af/index.php?option=com_content&view=article&id=49&Itemid=76&lang=en | U3: 1 | V3: 1 | W3: 1 | X3: http://www.budgetmof.gov.af/index.php?option=com_content&view=article&id=86&Itemid=126&lang=en | Y3: 1 | Z3: http://www.budgetmof.gov.af/index.php?option=com_content&view=article&id=107&Itemid=99&lang=en | AA3: 1 | AB3: 1 | AC3: 2005 | AD3: 1 | AE3: 0 | AF3: 3 | AG3: 2010 | AH3: 0 | AJ3: - | AK3: 1 | AL3: 2 | AM3: 1 | AN3: 2005 | AO3: 0 | AQ3: - | AR3: 1 | AS3: 1 | AT3: 1 | AU3: 0 | AV3: 0 | AW3: 1 | AX3: 1 | AY3: 0 | AZ3: 1 | BA3: 1 | BB3: 0 | BC3: - | BD3: 0 | BE3: - | BF3: 1 | BG3: http://www.budgetmof.gov.af/index.php?option=com_content&view=article&id=126%3A-what-is-the-afghanistan-financial-management-information-system-afmis&catid=58%3Aict-issues&Itemid=44&lang=en | BH3: 1 | BI3: http://www.budgetmof.gov.af/index.php?option=com_content&view=article&id=107&Itemid=99&lang=en | BJ3: 3 | BK3: http://www.cso.gov.af | BL3: Central Statistics Office | BM3: http://www.centralbank.gov.af | BN3: Bank of Afghanistan | BO3: http://www.treasury.gov.af | BP3: 0 | BQ3: - | BR3: 1 | BS3: http://www.treasury.gov.af/index_files/Page1081.htm | BT3: 2 | BU3: National laws and regulations | BV3: 1 | BW3: 3 | BX3: - | BY3: per | BZ3: eng | CA3: - | CB3: - | CC3: 0 | CD3: AFMIS | CE3: Afghanistan Financial Management Information System | CF3: C | CG3: T | CH3: 3 | CI3: 2011 | CJ3: C+L | CK3: 4 | CL3: 2 | CM3: FreeBalance | CN3: CS | CO3: =IF(CH3=0,0,IF(CG3="T",1,2)+IF(FK3>1,1,0)) -> 2 | CP3: Aug 2013 | CQ3: Public | CR3: 3 | CS3: C | CT3: C | CU3: B | CV3: C+ | CW3: B | CX3: C | CY3: C+ | CZ3: C+ | DA3: C+ | DB3: D+ | DC3: 2.35 | DD3: 2.55 | DE3: 59 | DF3: 21 | DH3: 1 | DI3: 173 | DJ3: 0.19003 | DK3: 0.13725 | DL3: 0.1811 | DM3: 0.14722 | DN3: 0.2418 | DO3: 184 | DP3: 0.1701 | DQ3: 0.2353 | DR3: 0.0573 | DS3: 0.2178 | DT3: SAR | DX3: F | DY3: =C3 -> Afghanistan | DZ3: =SUM(EA3:ED3) -> 0 | EE3: =SUM(EF3:EI3) -> 0 | EK3: =J3+L3+N3+P3+R3+S3+U3+V3+W3+Y3+AA3+AB3+AD3+AE3+AH3+AI3+AK3+AM3+AO3+AP3 -> 15 | EL3: =EK3/26*100 -> 57.69230769 | EM3: =IF(EL3<25,"D",IF(EL3<50,"C",IF(EL3<75,"B","A"))) -> B | EO3: 1 | EP3: Afghanistan | EQ3: AFG | ES3: DAD | ET3: http://president.gov.af/ps | EU3: 0 | EV3: http://mcit.gov.af/en/page/7081 | EW3: 0.1811 | EX3: 38 | EY3: 23 | EZ3: 5 | FA3: 18 | FB3: 20 | FG3: http://www.treasury.gov.af/ | FH3: 2002 | FI3: http://www.treasury.gov.af/?page_id=1480 | FJ3: 2006 | FK3: 2 | FL3: 4 | FM3: 48 | FN3: http://www.treasury.gov.af/?page_id=1913 | FO3: - | FP3: - | FQ3: http://www.ard.gov.af | FR3: 1965 | FS3: SIGTAS | FT3: Standard Integrated Government Tax System | FU3: 2 | FV3: SIGTAS | FW3: http://www.ard.gov.af/index.php/sigtas-is-coming | FX3: 2012 | FY3: 3 | FZ3: 2 | GA3: http://www.customs.mof.gov.af | GB3: 2004 | GC3: 2004 | GD3: 4 | GE3: ASYCUDA World | GF3: Automated SYstem for CUstoms DAta | GG3: 2 | GH3: ASYCUDA W | GI3: http://customs.mof.gov.af/en/news/20983 | GJ3: 2005 | GK3: 3 | GL3: 2 | GM3: 0 | GN3: 0 | GO3: - | GP3: - | GQ3: 1 | GR3: 0 | GS3: - | GT3: - | GU3: 0 | GV3: - | GW3: - | GX3: 0 | GY3: 388056 | GZ3: 2 | HA3: http://cso.gov.af/Content/files/Government%20Civil%20Service%20Employees.pdf | HB3: 2013 | HC3: HRMIS | HD3: Human Resources Management Information System | HE3: 2 | HF3: COTS | HG3: http://www.csmd.gov.af/index.php/human-resource-management-information-system-hrmis-directorate | HH3: 2012 | HI3: 3 | HJ3: 1 | HK3: AFMIS | HL3: Afghanistan Financial Management Information System | HM3: 2 | HN3: FreeBalance | HO3: http://www.treasury.gov.af/?page_id=1913 | HP3: - | HQ3: 2 | HR3: 1 | HS3: B+ | HT3: PMIS | HU3: http://www.ppu.gov.af | HV3: 2010 | HW3: 3 | HX3: 1 | HY3: http://ards.gov.af | HZ3: The Afghanistan Ministry of Finance | IH3: =N3+CO3+FZ3+GL3+GQ3+HJ3+HR3+HX3 -> 11 | II3: =IH3/22*100 -> 50 | IJ3: =IF(II3<25,"D",IF(II3<50,"C",IF(II3<75,"B","A"))) -> B | IK3: LIC | IL3: SAR
A4: 2 | C4: Albania | D4: LMIC | E4: 3215.988 | F4: 12787.50499 | G4: 3980 | H4: http://www.minfin.gov.al | I4: Ministry of Finance of the Republic of Albania | J4: 2 | K4: http://www.minfin.gov.al/minfin/Buxheti_1265_1.php | L4: 1 | M4: http://www.minfin.gov.al/minfin/Sistemi_AMoFTS_1377_1.php | N4: 1 | O4: - | P4: 1 | Q4: http://www.minfin.gov.al/minfin/Buxheti_2012_1821_1.php | R4: 0 | S4: 0 | T4: http://www.minfin.gov.al/minfin/Sistemi_AMoFTS_1377_1.php | U4: 1 | V4: 1 | W4: 0 | X4: - | Y4: 1 | Z4: http://www.minfin.gov.al/minfin/Thesari_1269_1.php | AA4: 1 | AB4: 1 | AC4: 2003 | AD4: 1 | AE4: 1 | AF4: 3 | AG4: 2002 | AH4: 0 | AJ4: - | AK4: 1 | AL4: 2 | AM4: 1 | AN4: 2002 | AO4: 1 | AP4: 1 | AQ4: 2009 | AR4: 1 | AS4: 1 | AT4: 1 | AU4: 0 | AV4: 0 | AW4: 1 | AX4: 1 | AY4: 1 | AZ4: 1 | BA4: 1 | BB4: 0 | BC4: - | BD4: 1 | BE4: http://open.data.al | BF4: 0 | BG4: - | BH4: 1 | BI4: http://www.minfin.gov.al/minfin/GFS_ne_Vite_1597_1.php | BJ4: 1 | BK4: http://www.instat.gov.al | BL4: Institute of Statistics | BM4: http://www.bankofalbania.org | BN4: Bank of Albania | BO4: - | BP4: 1 | BQ4: http://www.minfin.gov.al/minfin/Kushtet_e_perdorimit_156_1.php | BR4: 1 | BS4: http://www.minfin.gov.al/minfin/Legjislacioni_5_1.php | BT4: 2 | BU4: National budget rules | BV4: 1 | BW4: 3 | BX4: Social media tools: Facebook, Twitter, Youtube | BY4: alb | BZ4: eng | CA4: - | CB4: - | CC4: 0 | CD4: AMoFTS | CE4: Albania Ministry of Finance Treasury System | CF4: C | CG4: T | CH4: 3 | CI4: 2010 | CJ4: C+L | CK4: 1 | CL4: 2 | CM4: Oracle | CN4: Web | CO4: =IF(CH4=0,0,IF(CG4="T",1,2)+IF(FK4>1,1,0)) -> 2 | CP4: Jan 2012 | CQ4: Public | CR4: 2 | CS4: A | CT4: B | CU4: B | CV4: C+ | CW4: A | CX4: C | CY4: C+ | CZ4: A | DA4: C+ | DB4: D+ | DC4: 2.9 | DD4: 2.948275862 | DE4: 47 | DF4: 33 | DG4: 1 | DH4: 2 | DI4: 84 | DJ4: 0.50455 | DK4: 0.52941 | DL4: 0.44881 | DM4: 0.3548 | DN4: 0.71 | DO4: 86 | DP4: 0.5161 | DQ4: 0.4248 | DR4: 0.337 | DS4: 0.7863 | DT4: ECA | DY4: Albania | DZ4: 0 | EE4: 0 | EJ4: 2013-05-02 | EK4: 16 | EL4: 61.53846154 | EM4: B | EO4: 2 | EP4: Albania | EQ4: ALB | ET4: http://www.e-albania.al | EU4: 2 | EV4: http://www.e-albania.al/Pages/eServicesList.aspx#.U_x8D4HER8E | EW4: 0.4488 | EX4: 88 | EY4: 27 | EZ4: 21 | FA4: 44 | FB4: 42 | FG4: http://www.minfin.gov.al | FH4: 1991 | FI4: http://www.oecd.org/officialdocuments/publicdisplaydocumentpdf/?cote=GOV/PGC/SBO(2013)3/PROV&doclanguage=en | FJ4: 2010 | FK4: 2 | FL4: 4 | FM4: - | FN4: - | FO4: - | FP4: - | FQ4: http://www.tatime.gov.al | FR4: 1992 | FS4: ITS | FT4: Integrated Tax System | FU4: 1 | FV4: LDSW | FW4: http://www.chemonics.com/OurWork/OurProjects/Documents/Albania%20MCATA%20final%20report-English.pdf | FX4: 2007 | FY4: 3 | FZ4: 2 | GA4: http://www.dogana.gov.al | GB4: 1992 | GC4: 1992 | GD4: 4 | GE4: ASYCUDA World | GF4: Automated SYstem for CUstoms DAta | GG4: 2 | GH4: ASYCUDA W | GI4: http://www.dogana.gov.al/node/212 | GJ4: 2008 | GK4: 3 | GL4: 2 | GM4: 1 | GN4: 0 | GO4: http://www.tatime.gov.al/sq-al/Sherbimet/eSherbimet/Pages/default.aspx | GP4: 2007 | GQ4: 3 | GR4: 1 | GS4: - | GT4: - | GU4: 0 | GV4: http://www.akce.gov.al | GW4: 2008 | GX4: 2 | GY4: 129212 | GZ4: 1 | HA4: http://www.instat.gov.al/en/themes/labour-market.aspx | HB4: 2013 | HC4: HRMIS | HD4: Human Resources Management Information System | HE4: 1 | HF4: LDSW | HG4: http://ec.europa.eu/enlargement/pdf/key_documents/2011/package/al_rapport_2011_en.pdf | HH4: - | HI4: 2 | HJ4: 2 | HK4: HRMIS | HL4: Human Rresource Management Information System | HM4: 1 | HN4: LDSW | HO4: http://idbr3.com/Albania_HRMIS_Report.pdf | HP4: - | HQ4: 2 | HR4: 2 | HS4: B+ | HT4: PPA | HU4: https://www.app.gov.al | HV4: 2008 | HW4: 3 | HX4: 2 | HY4: https://www.app.gov.al/ep/Latest_Awarded.aspx | HZ4: Ministry of Finance of Republic of Albania | IA4: 2 | IB4: DMFAS 5.3 | ID4: 1998 | IE4: 3 | IF4: MoF | IG4: 4FT | IH4: 16 | II4: 72.72727273 | IJ4: B | IK4: LMIC | IL4: ECA
A5: 3 | C5: Algeria | D5: UMIC | E5: 35980.193 | F5: 160814.0542 | G5: 4470 | H5: http://www.mf.gov.dz | I5: Ministère des Finances | J5: 1 | K5: http://www.mf.gov.dz/rubriques/58/Publications-et-Rapports.html | L5: 1 | M5: http://www-wds.worldbank.org/external/default/WDSContentServer/WDSP/IB/2010/01/13/000334955_20100113020615/Rendered/PDF/ICR113000P06491C0disclosed011111101.pdf | N5: 1 | O5: - | P5: 0 | Q5: - | R5: 1 | S5: 0 | T5: http://www.mf.gov.dz/article_pdf/upl-afdca3db442ba9b939e38a972bfba213.pdf | U5: 1 | V5: 1 | W5: 0 | X5: - | Y5: 0 | Z5: - | AA5: 1 | AB5: 1 | AC5: 2001 | AD5: 0 | AF5: - | AG5: - | AH5: 0 | AJ5: - | AK5: 1 | AL5: 4 | AM5: 0 | AN5: 2009 | AO5: 0 | AQ5: - | AR5: 1 | AS5: 1 | AT5: 0 | AU5: 0 | AV5: 0 | AW5: 0 | AX5: 0 | AY5: 0 | AZ5: 0 | BA5: 0 | BB5: 0 | BC5: - | BD5: 0 | BE5: - | BF5: 0 | BG5: - | BH5: 0 | BI5: - | BJ5: 0 | BK5: http://www.ons.dz | BL5: National Office of Statistiques | BM5: http://www.bank-of-algeria.dz | BN5: Bank of Algeria | BO5: - | BP5: 0 | BQ5: - | BR5: 0 | BS5: - | BT5: 2 | BV5: 0 | BW5: 3 | BX5: - | BY5: fre | BZ5: ara | CA5: - | CB5: - | CC5: 0 | CD5: IBMIS | CE5: Integrated Budget Management Information System | CF5: C | CG5: F | CH5: 3 | CI5: 2010 | CJ5: C | CK5: 5 | CL5: 1 | CM5: LDSW > Oracle | CN5: Web | CO5: 3 | CP5: Jul 2010 | CQ5: Final | CR5: 1 | CS5: X | CT5: X | CU5: X | CV5: X | CW5: X | CX5: X | CY5: X | CZ5: X | DA5: X | DB5: X | DC5: 2.333333333 | DD5: 2.615384615 | DE5: 13 | DF5: 1 | DH5: 2 | DI5: 136 | DJ5: 0.31064 | DK5: 0.07843 | DL5: 0.07874 | DM5: 0.19885 | DN5: 0.6543 | DO5: 132 | DP5: 0.3608 | DQ5: 0.2549 | DR5: 0.1812 | DS5: 0.6463 | DT5: MNA | DY5: Algeria | DZ5: 0 | EE5: 0 | EK5: 9 | EL5: 34.61538462 | EM5: C | EO5: 3 | EP5: Algeria | EQ5: DZA | ET5: http://www.mptic.dz/fr/?-e-Algerie-2013- | EU5: 0 | EV5: http://www.elmouwatin.dz | EW5: 0.0787 | EX5: 16 | EY5: 18 | EZ5: 2 | FA5: 9 | FB5: 11 | FG5: http://www.mf.gov.dz/article/43/Tr%C3%A9sor/190/Pr%C3%A9sentation-de-la-DGT.html | FH5: 1962 | FI5: http://www.mf.gov.dz/article/301/R%C3%A9alisations/281/La-modernisation-des-syst%C3%A8mes-de-paiement-:-une-r%C3%A9forme-exemplaire-port%C3%A9e-par-un-projet-structurant--.html | FJ5: 2007 | FK5: 2 | FL5: 4 | FM5: - | FN5: - | FO5: - | FP5: - | FQ5: http://www.mfdgi.gov.dz | FR5: 1958 | FS5: TRM | FT5: Tax and Revenue Management | FU5: 2 | FV5: SAP | FW5: https://www.jibayatic.dz | FX5: 2012 | FY5: 3 | FZ5: 2 | GA5: http://www.douane.gov.dz | GB5: 1963 | GC5: 1966 | GD5: 0 | GE5: SIGAD | GF5: Système d’Information et de Gestion Automatisée des Douanes | GG5: 1 | GH5: LDSW | GI5: http://www.douane.gov.dz/pdf/Brochures/sigadfr.pdf | GJ5: 2004 | GK5: 3 | GL5: 2 | GM5: 0 | GN5: 0 | GO5: http://www.dge.gov.dz/ | GP5: 2013 | GQ5: 2 | GR5: 0 | GS5: - | GT5: - | GU5: 0 | GV5: http://www.mptic.dz/fr/?e-Algerie-2013,13 | GW5: 2005 | GX5: 1 | GY5: 1851400 | GZ5: =IFERROR(VLOOKUP($C5,'PS Employment'!$B$2:$N$107,13,FALSE),"0") -> 0 | HA5: http://unpan1.un.org/intradoc/groups/public/documents/un/unpan023248.pdf | HB5: 2004 | HC5: SIRH | HD5: Système d’Information des Ressources Humaines de l’administration publique | HE5: 1 | HF5: LDSW | HG5: http://www.dgfp.gov.dz/fr/grh.asp | HH5: - | HI5: 2 | HJ5: 2 | HK5: SIRH | HL5: Système d’Information des Ressources Humaines de l’administration publique | HM5: 1 | HN5: LDSW | HO5: http://www.dgfp.gov.dz/fr/grh.asp | HP5: - | HQ5: 2 | HR5: 2 | HS5: X | HT5: - | HU5: http://www.mincommerce.gov.dz/?mincom=textmarpub | HV5: - | HW5: 1 | HX5: 0 | HY5: - | IA5: 2 | IB5: DMFAS 5.3 | ID5: 2005 | IE5: 3 | IF5: CB | IG5: 4 | IH5: 14 | II5: 63.63636364 | IJ5: B | IK5: UMIC | IL5: MNA
A6: 4 | C6: Andorra | D6: HIC | E6: 86.165 | F6: 3712 | G6: 43080.13695 | H6: http://www.finances.ad | I6: Ministeri de Finances, Andorra | J6: 2 | K6: http://www.finances.ad/pressupostos-del-govern-d-andorra | L6: 1 | M6: http://www.finances.ad/index.php?option=com_content&view=article&id=19&Itemid=26 | N6: 1 | O6: - | P6: 0 | Q6: - | R6: 0 | S6: 0 | T6: - | U6: 1 | V6: 1 | W6: 1 | X6: http://www.tramits.ad/index.php?option=com_content&view=category&id=42&Itemid=69 | Y6: 1 | Z6: http://www.finances.ad/images/Pressupostos/Pressupost_2008/00-Index/Indgral.htm | AA6: 1 | AB6: 0 | AC6: 2008 | AD6: 0 | AF6: - | AG6: - | AH6: 0 | AJ6: - | AK6: 1 | AL6: 4 | AM6: 0 | AN6: 2007 | AO6: 0 | AQ6: - | AR6: 1 | AS6: 1 | AT6: 0 | AU6: 0 | AV6: 0 | AW6: 1 | AX6: 1 | AY6: 0 | AZ6: 1 | BA6: 1 | BB6: 0 | BC6: - | BD6: 0 | BE6: - | BF6: 0 | BG6: - | BH6: 0 | BI6: - | BJ6: 0 | BK6: http://www.estadistica.ad | BL6: Department of Studies and Statistics | BM6: http://www.inaf.ad | BN6: Institut Nacional Andorrà de Finances | BO6: - | BP6: 1 | BQ6: http://www.finances.ad/index.php?option=com_content&view=article&id=1&Itemid=2 | BR6: 1 | BS6: http://www.finances.ad/index.php?option=com_content&view=article&id=16&Itemid=22 | BT6: 0 | BU6: National laws and regulations | BV6: 0 | BW6: 3 | BX6: - | BY6: cat | BZ6: - | CA6: - | CB6: - | CC6: - | CD6: FMIS | CE6: Financial Management Information System | CF6: C | CG6: F | CH6: 3 | CI6: 2005 | CJ6: C | CK6: 1 | CL6: 1 | CM6: LDSW | CN6: Web | CO6: 2 | CP6: - | CQ6: - | CR6: - | CS6: - | CT6: - | CU6: - | CV6: - | CW6: - | CX6: - | CY6: - | CZ6: - | DA6: - | DB6: - | DC6: - | DD6: - | DE6: - | DF6: - | DH6: - | DI6: 43 | DJ6: 0.6426 | DK6: 0.43137 | DL6: 0.43307 | DM6: 0.76706 | DN6: 0.7277 | DO6: 58 | DP6: 0.6172 | DQ6: 0.3137 | DR6: 0.7315 | DS6: 0.8063 | DU6: EUR | DY6: Andorra | DZ6: 0 | EE6: 0 | EK6: 10 | EL6: 38.46153846 | EM6: C | EO6: 4 | EP6: Andorra | EQ6: AND | ET6: http://www.govern.ad | EU6: 2 | EV6: http://www.tramits.ad | EW6: 0.4331 | EX6: 78 | EY6: 57 | EZ6: 9 | FA6: 24 | FB6: 41 | FG6: http://www.finances.ad/ | FH6: 1993 | FI6: - | FJ6: - | FK6: 0 | FL6: - | FM6: - | FN6: - | FO6: - | FP6: - | FQ6: http://www.impostos.ad | FR6: 1993 | FS6: Oficina Virtual | FT6: Online Tax Payments | FU6: 2 | FV6: COTS | FW6: http://isi.govern.ad | FX6: 2006 | FY6: 3 | FZ6: 2 | GA6: http://www.duana.ad | GB6: 1993 | GC6: 1998 | GD6: 0 | GE6: - | GF6: - | GG6: 0 | GH6: - | GI6: - | GJ6: - | GK6: 0 | GL6: 1 | GM6: - | GN6: - | GO6: http://isi.govern.ad/cgi-bin/lansaweb?webapp=TBWEB0001+webrtn=Start+ml=LANSA:XHTML+part=H3X+lang=CAT+field(RELOAD)=N | GP6: 2006 | GQ6: 3 | GR6: 0 | GS6: http://www.policia.ad/sancionsWeb/pages/main.jsf | GT6: - | GU6: 1 | GV6: http://www.govern.ad/component/k2/item/4149-comen%C3%A7a-el-proc%C3%A9s-d%E2%80%99implantaci%C3%B3-de-la-signatura-digital/4149-comen%C3%A7a-el-proc%C3%A9s-d%E2%80%99implantaci%C3%B3-de-la-signatura-digital | GW6: 2009 | GX6: 1 | GY6: 1850 | GZ6: 2 | HA6: http://pdfs.wke.es/1/4/2/1/pd0000011421.pdf | HB6: 2005 | HC6: SGRH | HD6: Sistemas de Gestión de Recursos Humanos | HE6: 2 | HF6: COTS | HG6: http://edirectivos.dev.nuatt.es/articulos/1000000140-innovacion-y-modernizacion-en-la-funcion-publica-del-gobierno-de-andorra | HH6: 2005 | HI6: 3 | HJ6: 2 | HK6: SGRH | HL6: Sistemas de Gestión de Recursos Humanos | HM6: 2 | HN6: COTS | HO6: http://edirectivos.dev.nuatt.es/articulos/1000000140-innovacion-y-modernizacion-en-la-funcion-publica-del-gobierno-de-andorra | HP6: 2005 | HQ6: 3 | HR6: 2 | HS6: - | HT6: - | HU6: https://www.poctefa.eu/arbol/index.jsp?id=9ef49d86-b1e4-4585-aa37-1494dbd4ceb1&ord=1 | HV6: - | HW6: 0 | HX6: 0 | HY6: - | IH6: 13 | II6: 59.09090909 | IJ6: B | IK6: HIC
A7: 5 | C7: Angola | D7: LMIC | E7: 19618.432 | F7: 75216.45095 | G7: 3830 | H7: http://www.minfin.gv.ao | I7: Ministério das Finanças | J7: 2 | K7: http://www.minfin.gv.ao/docs/dspPublications.htm | L7: 1 | M7: http://www-wds.worldbank.org/external/default/WDSContentServer/WDSP/IB/2005/03/10/000090341_20050310101310/Rendered/PDF/290360AO.pdf | N7: 1 | O7: - | P7: 0 | Q7: - | R7: 1 | S7: 1 | T7: http://www.minfin.gv.ao/docs/dspRelExecOGE.htm | U7: 1 | V7: 1 | W7: 0 | X7: - | Y7: 1 | Z7: http://www.minfin.gv.ao/docs/dspPlanContEstd.htm | AA7: 1 | AB7: 0 | AC7: 2006 | AD7: 0 | AF7: - | AG7: - | AH7: 1 | AI7: 0 | AJ7: 2008 | AK7: 1 | AL7: 4 | AM7: 0 | AN7: 2006 | AO7: 0 | AQ7: - | AR7: 1 | AS7: 1 | AT7: 1 | AU7: 0 | AV7: 0 | AW7: 1 | AX7: 1 | AY7: 1 | AZ7: 1 | BA7: 0 | BB7: 0 | BC7: - | BD7: 0 | BE7: - | BF7: 0 | BG7: - | BH7: 1 | BI7: http://www.minfin.gv.ao/docs/dspPlanContEstd.htm | BJ7: 0 | BK7: http://www.ine-ao.com | BL7: Instituto Nacional de Estatistica (Angola) | BM7: http://www.bna.ao | BN7: National Bank of Angola | BO7: - | BP7: 0 | BQ7: - | BR7: 1 | BS7: http://www.minfin.gv.ao/docs/dspGenLeg.htm | BT7: 0 | BU7: - | BV7: 0 | BW7: 3 | BX7: - | BY7: por | BZ7: - | CA7: - | CB7: - | CC7: - | CD7: SIGFE | CE7: Sistema Integrado de Gestiio das Finanqas do Estado | CF7: C | CG7: T | CH7: 3 | CI7: 2004 | CJ7: C | CK7: 1 | CL7: 1 | CM7: LDSW > Oracle | CN7: Web | CO7: 2 | CP7: - | CQ7: - | CR7: - | CS7: - | CT7: - | CU7: - | CV7: - | CW7: - | CX7: - | CY7: - | CZ7: - | DA7: - | DB7: - | DC7: - | DD7: - | DE7: 28 | DF7: 26 | DH7: 0 | DI7: 140 | DJ7: 0.29703 | DK7: 0.23529 | DL7: 0.29921 | DM7: 0.09778 | DN7: 0.4941 | DO7: 142 | DP7: 0.3203 | DQ7: 0.3333 | DR7: 0.0892 | DS7: 0.5383 | DT7: AFR | DX7: prev | DY7: Angola | DZ7: 0 | EE7: 0 | EK7: 12 | EL7: 46.15384615 | EM7: C | EO7: 5 | EP7: Angola | EQ7: AGO | ET7: http://www.governo.gov.ao | EU7: 1 | EV7: http://www.cidadao.gov.ao | EW7: 0.2992 | EX7: 59 | EY7: 50 | EZ7: 0 | FA7: 12 | FB7: 29 | FG7: http://www.minfin.gv.ao/docs/dspLegTreasPub.htm | FH7: 1975 | FI7: http://www.tcontas.ao/portal/page/portal/Tribunal%20de%20Contas%20de%20Angola/Decretos/SIGFE.pdf | FJ7: 2001 | FK7: 2 | FL7: 4 | FM7: - | FN7: - | FO7: - | FP7: - | FQ7: http://www.minfin.gv.ao/docs/dspDirecNacioImpoEC.htm | FR7: 1998 | FS7: SIT | FT7: Sistema Informático Tributário | FU7: 1 | FV7: LDSW ? | FW7: http://www.pert.minfin.gv.ao/_relatorio/RelatorioAnual2012.pdf | FX7: 2012 | FY7: 2 | FZ7: 2 | GA7: http://www.alfandegas.gv.ao | GB7: 1975 | GC7: 1990 | GD7: 0 | GE7: SIADU | GF7: Sistema Integrado Aduaneiro / Trade Information Management System | GG7: 2 | GH7: TIMS | GI7: http://www.alfandegas.gv.ao/SiaduLogin.aspx | GJ7: 2011 | GK7: 3 | GL7: 2 | GM7: 1 | GN7: 0 | GO7: - | GP7: - | GQ7: 1 | GR7: 0 | GS7: - | GT7: - | GU7: 0 | GV7: - | GW7: - | GX7: 0 | GY7: 500000 | GZ7: 2 | HA7: http://www.ituc-csi.org/IMG/pdf/Country_Report_No2-Angola_EN.pdf | HB7: 2007 | HC7: SIGFE | HD7: Sistema Integrado de Gestiio das Finanqas do Estado | HE7: 1 | HF7: LDSW | HG7: http://www-wds.worldbank.org/external/default/WDSContentServer/WDSP/IB/2005/03/10/000090341_20050310101310/Rendered/PDF/290360AO.pdf | HH7: 2004 | HI7: 3 | HJ7: 2 | HK7: SIGFE | HL7: Sistema Integrado de Gestiio das Finanqas do Estado | HM7: 1 | HN7: LDSW | HO7: http://www-wds.worldbank.org/external/default/WDSContentServer/WDSP/IB/2005/03/10/000090341_20050310101310/Rendered/PDF/290360AO.pdf | HP7: 2004 | HQ7: 3 | HR7: 2 | HS7: - | HT7: Procurement Portal | HU7: http://www.contratacaopublica.minfin.gv.ao/portalgcp/faces/wcnav_defaultSelection;jsessionid=t5gyJ3TM8p2wbGcyy1LpyRFg21mz00TGD2h1h4P2FvJLy22T7Kml!1519047247?_afrLoop=198043935692070&_afrWindowMode=0&_afrWindowId=null#%40%3F_afrWindowId%3Dnull%26_afrLoop%3D198043935692070%26_afrWindowMode%3D0%26_adf.ctrl-state%3D1bqkikih77_4 | HV7: 2014 | HW7: 2 | HX7: 1 | HY7: - | HZ7: Angolan National Bank | IA7: 2 | IB7: DMFAS 5.3 | ID7: 1999 | IE7: 3 | IF7: MoF | IG7: 4 | IH7: 13 | II7: 59.09090909 | IJ7: B | IK7: LMIC | IL7: AFR
A8: 6 | C8: Antigua and Barbuda | D8: UMIC | E8: 89.612 | F8: 1070.373731 | G8: 11940 | H8: http://www.antigua.gov.ag | I8: Ministry of Finance, Economy and Public Administration | J8: 1 | K8: http://www.antigua.gov.ag/article_details.php?id=64&category=42 | L8: 2 | M8: http://www.ab.gov.ag/article_details.php?id=1509&category=38 | N8: 1 | O8: - | P8: 0 | Q8: - | R8: 0 | S8: 0 | T8: - | U8: 1 | V8: 1 | W8: 0 | X8: - | Y8: 0 | Z8: - | AA8: 1 | AB8: 1 | AC8: 2011 | AD8: 0 | AF8: - | AG8: - | AH8: 0 | AJ8: - | AK8: 1 | AL8: 4 | AM8: 1 | AN8: 2009 | AO8: 0 | AQ8: - | AR8: 1 | AS8: 0 | AT8: 0 | AU8: 1 | AV8: 0 | AW8: 1 | AX8: 1 | AY8: 0 | AZ8: 0 | BA8: 0 | BB8: 0 | BC8: - | BD8: 0 | BE8: - | BF8: 0 | BG8: - | BH8: 0 | BI8: - | BJ8: 0 | BK8: http://ab.gov.ag/article_details.php?id=65 | BL8: Statistics and Reports | BM8: http://www.eccb-centralbank.org | BN8: East Caribbean Central Bank | BO8: - | BP8: 1 | BQ8: http://www.antigua.gov.ag/article_details.php?id=201&category=55 | BR8: 0 | BS8: - | BT8: 0 | BU8: - | BV8: 0 | BW8: 3 | BX8: Contact information for other ministries. Social media tools: Facebook, Twitter, Youtube | BY8: eng | BZ8: - | CA8: - | CB8: - | CC8: - | CD8: IFMS | CE8: Integrated Financial Management System | CF8: C | CG8: F | CH8: 3 | CI8: 2012 | CJ8: C | CK8: 1 | CL8: 2 | CM8: FreeBalance | CN8: Web | CO8: 3 | CP8: Feb 2014 | CQ8: Final | CR8: 1 | CS8: X | CT8: X | CU8: X | CV8: X | CW8: X | CX8: X | CY8: X | CZ8: X | DA8: X | DB8: X | DC8: 1.4 | DD8: 1.533333333 | DE8: - | DF8: - | DH8: 0 | DI8: 60 | DJ8: 0.59266 | DK8: 0.5098 | DL8: 0.41732 | DM8: 0.59378 | DN8: 0.7669 | DO8: 49 | DP8: 0.6345 | DQ8: 0.3072 | DR8: 0.7192 | DS8: 0.877 | DT8: LCR | DY8: Antigua and Barbuda | DZ8: 0 | EE8: 0 | EK8: 10 | EL8: 38.46153846 | EM8: C | EO8: 6 | EP8: Antigua and Barbuda | EQ8: ATG | ET8: http://www.ab.gov.ag | EU8: 1 | EV8: http://www.forms.gov.ag | EW8: 0.4173 | EX8: 78 | EY8: 41 | EZ8: 16 | FA8: 29 | FB8: 39 | FG8: http://www.antigua.gov.ag | FH8: 1981 | FI8: http://www.laws.gov.ag/acts/chapters/cap-168.pdf | FJ8: 1981 | FK8: 2 | FL8: 4 | FM8: - | FN8: - | FO8: - | FP8: - | FQ8: http://antiguabarbuda.gov.ag | FR8: 1977 | FS8: SIGTAS | FT8: Standard Integrated Government Tax System | FU8: 2 | FV8: SIGTAS | FW8: http://unpan1.un.org/intradoc/groups/public/documents/tasf/unpan023699.pdf | FX8: 2002 | FY8: 3 | FZ8: 2 | GA8: http://www.customs.gov.ag | GB8: 1993 | GC8: - | GD8: 0 | GE8: ASYCUDA World | GF8: Automated SYstem for CUstoms DAta | GG8: 2 | GH8: ASYCUDA W | GI8: http://www.customs.gov.ag/index.php/case_software/asycuda | GJ8: 2007 | GK8: 3 | GL8: 2 | GM8: 0 | GN8: 0 | GO8: - | GP8: - | GQ8: 1 | GR8: 0 | GS8: - | GT8: - | GU8: 0 | GV8: http://unpan1.un.org/intradoc/groups/public/documents/tasf/unpan024799.pdf | GW8: 2006 | GX8: 1 | GY8: =IFERROR(VLOOKUP($C8,'PS Employment'!$B$2:$N$107,12,FALSE)*1000,"-") -> 11019 | GZ8: 2 | HA8: http://laborsta.ilo.org/STP/guest | HB8: 2008 | HC8: HCA | HD8: Human Capital Accountability | HE8: 2 | HF8: FreeBalance | HG8: http://www.ab.gov.ag/article_details.php?id=1509&category=38 | HH8: - | HI8: 2 | HJ8: 2 | HK8: HCA | HL8: Human Capital Accountability | HM8: 2 | HN8: FreeBalance | HO8: http://www.ab.gov.ag/article_details.php?id=1509&category=38 | HP8: - | HQ8: 2 | HR8: 2 | HS8: X | HT8: - | HU8: http://laws.gov.ag/bills/a2011-1.pdf | HV8: - | HW8: 0 | HX8: 0 | HY8: - | IA8: 2 | IB8: CS-DRMS | ID8: 1988 | IE8: 3 | IF8: MoF | IH8: 13 | II8: 59.09090909 | IJ8: B | IK8: UMIC | IL8: LCR
A9: 7 | C9: Argentina | D9: UMIC | E9: 40764.561 | F9: 397095.8335 | G9: 9740 | H9: http://www.mecon.gov.ar | I9: Ministerio de Economía y Finanzas Públicas | J9: 2 | K9: http://contenidos.mecon.gov.ar/informacion/ | L9: 2 | M9: http://administracionfinanciera.mecon.gov.ar | N9: 3 | O9: http://sitiodelciudadano.mecon.gov.ar/sici/ejecucion_presupuestaria.html | P9: 1 | Q9: http://www.mecon.gov.ar/peconomica/basehome/serie_gasto.html | R9: 1 | S9: 1 | T9: http://www.mecon.gov.ar/onp/html/ejectexto/bole_trim_dosuno.html?var1=boletrimdosnueve | U9: 2 | V9: 1 | W9: 1 | X9: http://sitiodelciudadano.mecon.gov.ar/sici/#4 | Y9: 1 | Z9: http://www.mecon.gov.ar/onp/html/presutexto/ley2012/leydosdoce.html | AA9: 1 | AB9: 1 | AC9: 2001 | AD9: 1 | AE9: 1 | AF9: 3 | AG9: 2003 | AH9: 1 | AI9: 1 | AJ9: 2004 | AK9: 1 | AL9: 3 | AM9: 1 | AN9: 1994 | AO9: 1 | AP9: 1 | AQ9: 1996 | AR9: 1 | AS9: 1 | AT9: 1 | AU9: 1 | AV9: 0 | AW9: 1 | AX9: 1 | AY9: 1 | AZ9: 1 | BA9: 1 | BB9: 1 | BC9: http://www.mecon.gov.ar/onp/html/# | BD9: 1 | BE9: http://www.argentina.gob.ar | BF9: 2 | BG9: http://administracionfinanciera.mecon.gov.ar./ | BH9: 1 | BI9: http://www.mecon.gov.ar/onp/html/manuales/clasificador03.pdf | BJ9: 3 | BK9: http://www.indec.mecon.ar | BL9: National Institute of Statistics and Censuses | BM9: http://www.bcra.gov.ar | BN9: Central Bank of Argentina | BO9: http://www.mecon.gov.ar/cfrf/ | BP9: 1 | BQ9: http://contenidos.mecon.gov.ar/direccion-de-informacion-ciudadana-y-seguimiento-parlamentario/ | BR9: 1 | BS9: http://contenidos.mecon.gov.ar/ministerio-de-economia-y-finanzas-publicas/ | BT9: 2 | BU9: - | BV9: 1 | BW9: 3 | BX9: - | BY9: spa | BZ9: - | CA9: - | CB9: - | CC9: - | CD9: SIDIF | CE9: Sistema Integrado de Información Financiera | CF9: C | CG9: F | CH9: 3 | CI9: 2006 | CJ9: C+L | CK9: 2 | CL9: 1 | CM9: LDSW > Oracle | CN9: CS | CO9: 3 | CP9: - | CQ9: - | CR9: - | CS9: - | CT9: - | CU9: - | CV9: - | CW9: - | CX9: - | CY9: - | CZ9: - | DA9: - | DB9: - | DC9: - | DD9: - | DE9: 50 | DF9: 56 | DG9: 1 | DH9: 2 | DI9: 46 | DJ9: 0.63059 | DK9: 0.54901 | DL9: 0.55118 | DM9: 0.48347 | DN9: 0.8571 | DO9: 56 | DP9: 0.6228 | DQ9: 0.5294 | DR9: 0.4352 | DS9: 0.9038 | DT9: LCR | DY9: Argentina | DZ9: 6 | EA9: 1 | EB9: 1 | ED9: 4 | EE9: 10 | EF9: 1 | EH9: 1 | EI9: 8 | EJ9: 2013-04-29 | EK9: 25 | EL9: 96.15384615 | EM9: A | EO9: 7 | EP9: Argentina | EQ9: ARG | ET9: http://www.presidencia.gov.ar | EU9: 2 | EV9: http://www.argentina.gob.ar | EW9: 0.5512 | EX9: 91 | EY9: 66 | EZ9: 26 | FA9: 24 | FB9: 50 | FG9: http://www.tgn.mecon.gov.ar/tgn/ | FH9: 1946 | FI9: http://forotgn.mecon.gov.ar/normativa/tematico/cut/cut.html | FJ9: 1995 | FK9: 3 | FL9: 3 | FM9: - | FN9: https://eprov.mecon.gov.ar/eprov/login | FO9: - | FP9: - | FQ9: http://www.afip.gob.ar | FR9: 1997 | FS9: SIGMA | FT9: Sistema Integral de Gestión | FU9: 1 | FV9: LDSW | FW9: http://www.afip.gob.ar/Aplicativos | FX9: 2007 | FY9: 3 | FZ9: 3 | GA9: http://www.afip.gob.ar | GB9: 1997 | GC9: 1968 | GD9: 3 | GE9: SIM | GF9: Sistema Informático María | GG9: 1 | GH9: LDSW | GI9: http://www.afip.gob.ar/Aplicativos/kitMaria/ | GJ9: 2006 | GK9: 3 | GL9: 3 | GM9: 1 | GN9: 1 | GO9: https://www.afip.gob.ar/claveFiscal/#PF | GP9: 1999 | GQ9: 3 | GR9: 1 | GS9: - | GT9: - | GU9: 0 | GV9: http://www.afip.gov.ar/firmaDigital/#caracFD | GW9: 2013 | GX9: 3 | GY9: =IFERROR(VLOOKUP($C9,'PS Employment'!$B$2:$N$107,12,FALSE)*1000,"-") -> 1631152 | GZ9: 2 | HA9: http://www.cippec.org/documents/10179/51827/117+DT+PyGG+Empleo+publico+2013.pdf/f3cb4e4b-0a4f-4f7f-b66e-c5849ea05118 | HB9: 2006 | HC9: SIGRHU | HD9: Sistema Integrado de Recursos Humanos | HE9: 1 | HF9: LDSW | HG9: http://pmcg.minplan.gov.ar/html/sistemas/sigrhu.php | HH9: - | HI9: 2 | HJ9: 2 | HK9: PS | HL9: PeopleSoft Global Payroll System | HM9: 2 | HN9: Oracle | HO9: http://www.oracle.com/lad/corporate/press/press-release-ladmay22-09-334645-esa.html | HP9: 2009 | HQ9: 3 | HR9: 2 | HS9: - | HT9: Argentina Compra | HU9: https://www.argentinacompra.gov.ar | HV9: 1994 | HW9: 3 | HX9: 2 | HY9: https://www.argentinacompra.gov.ar/prod/onc/sitio/Paginas/Contenido/FrontEnd/index2.asp | HZ9: Ministry of Economy and Public Finances | IA9: 2 | IB9: DMFAS 6.0 | ID9: 1993 | IE9: 3 | IF9: MoF | IG9: 4F | IH9: 21 | II9: 95.45454545 | IJ9: A | IK9: UMIC | IL9: LCR
A10: 8 | C10: Armenia | D10: LMIC | E10: 3100.236 | F10: 10408.62593 | G10: 3360 | H10: http://www.minfin.am | I10: Republic of Armenia Ministry of Finance and Economy | J10: 2 | K10: http://www.minfin.am/main.php?lang=1&mode=budget&iseng=1&isarm=1 | L10: 1 | M10: https://www.yumpu.com/en/document/view/15734776/gfims-inception-report/1 | N10: 1 | O10: - | P10: 1 | Q10: http://www.minfin.am/main.php?lang=1&mode=poakrep&iseng=1&isarm=1 | R10: 0 | S10: 0 | T10: - | U10: 1 | V10: 1 | W10: 2 | X10: https://www.e-gov.am/interactive-budget/ | Y10: 0 | Z10: - | AA10: 1 | AB10: 1 | AC10: 2003 | AD10: 1 | AE10: 1 | AF10: 3 | AG10: 2003 | AH10: 0 | AJ10: - | AK10: 1 | AL10: 4 | AM10: 1 | AN10: 2007 | AO10: 1 | AP10: 0 | AQ10: 2009 | AR10: 1 | AS10: 1 | AT10: 0 | AU10: 0 | AV10: 0 | AW10: 1 | AX10: 1 | AY10: 0 | AZ10: 1 | BA10: 0 | BB10: 0 | BC10: - | BD10: 1 | BE10: https://www.e-gov.am | BF10: 0 | BG10: - | BH10: 0 | BI10: - | BJ10: 3 | BK10: http://www.armstat.am | BL10: National Statistical Service | BM10: http://www.cba.am | BN10: Central Bank of Armenia | BO10: http://programmebudgeting.am/ | BP10: 0 | BQ10: - | BR10: 1 | BS10: http://www.minfin.am/main.php?lang=1&mode=charter&id=37&iseng=1&isarm=1 | BT10: 0 | BU10: Internal budget reporting rules and guidelines | BV10: 0 | BW10: 3 | BX10: - | BY10: arm | BZ10: eng | CA10: - | CB10: - | CC10: 0 | CD10: TS | CE10: Treasury System | CF10: C | CG10: T | CH10: 3 | CI10: 2006 | CJ10: C+L | CK10: 1 | CL10: 1 | CM10: LDSW | CN10: Web | CO10: 2 | CP10: Oct 2008 | CQ10: Public | CR10: 1 | CS10: A | CT10: A | CU10: A | CV10: B | CW10: A | CX10: C | CY10: C+ | CZ10: D+ | DA10: D+ | DB10: A | DC10: 3.05 | DD10: 3.032258065 | DE10: - | DF10: - | DG10: 1 | DH10: 3 | DI10: 61 | DJ10: 0.58969 | DK10: 0.52941 | DL10: 0.61417 | DM10: 0.3889 | DN10: 0.766 | DO10: 94 | DP10: 0.4997 | DQ10: 0.3268 | DR10: 0.3217 | DS10: 0.8505 | DT10: ECA | DY10: Armenia | DZ10: 0 | EE10: 0 | EJ10: 2013-05-07 | EK10: 16 | EL10: 61.53846154 | EM10: B | EO10: 8 | EP10: Armenia | EQ10: ARM | ES10: DAD | ET10: http://www.gov.am | EU10: 2 | EV10: https://www.e-gov.am | EW10: 0.6142 | EX10: 94 | EY10: 61 | EZ10: 33 | FA10: 41 | FB10: 56 | FG10: http://www.minfin.am/index.php?cat=10&lang=1 | FH10: 1996 | FI10: http://www.pefa.org/en/assessment/am-may14-pfmpr-public-en | FJ10: 2002 | FK10: 2 | FL10: 4 | FM10: - | FN10: - | FO10: - | FP10: - | FQ10: http://www.taxservice.am | FR10: 1991 | FS10: Taxpayer 3 | FT10: Integrated Tax System | FU10: 2 | FV10: COTS | FW10: http://imagebank.worldbank.org/servlet/WDSContentServer/IW3P/IB/2012/06/15/000386194_20120615021424/Rendered/PDF/667100PAD0P1110Official0Use0Only090.pdf | FX10: 2009 | FY10: 2 | FZ10: 2 | GA10: http://www.customs.am | GB10: 1992 | GC10: 1992 | GD10: 2 | GE10: TWM | GF10: Trade World Manager | GG10: 2 | GH10: COTS | GI10: http://www.webbfontaine.com/projects_armenia.php | GJ10: 2011 | GK10: 3 | GL10: 2 | GM10: 1 | GN10: 1 | GO10: http://www.taxservice.am/Content.aspx?itn=OSOnlineReportingSystem | GP10: 2010 | GQ10: 2 | GR10: 1 | GS10: https://www.e-payments.am/en/ | GT10: 2012 | GU10: 2 | GV10: http://www.ekeng.am/?page_id=69 | GW10: 2012 | GX10: 3 | GY10: 239300 | GZ10: 2 | HA10: http://armstat.am/file/article/trud_13_6.pdf | HB10: 2012 | HC10: HRMIS | HD10: Human Resources Management Information System | HE10: 1 | HF10: LDSW | HG10: http://www.csc.am/en/aboutus | HH10: 2010 | HI10: 3 | HJ10: 2 | HK10: PS | HL10: Payroll System | HM10: 1 | HN10: LDSW | HO10: http://pefa.org/en/assessment/am-may14-pfmpr-public-en | HP10: 2010 | HQ10: 3 | HR10: 2 | HS10: B | HT10: ARMEPS | HU10: http://www.procurement.am | HV10: 2012 | HW10: 3 | HX10: 2 | HY10: http://gnumner.am/am/category/30/1.html | IA10: 2 | IB10: DMFAS 6.0 | ID10: 2011 | IE10: 3 | IF10: MoF | IG10: 4 | IH10: 15 | II10: 68.18181818 | IJ10: B | IK10: LMIC | IL10: ECA
A11: 9 | C11: Australia | D11: HIC | E11: 22620.6 | F11: 1111433.6 | G11: 49130 | H11: http://www.finance.gov.au | I11: Australia Department of Finance and Deregulation | J11: 2 | K11: http://www.budget.gov.au/ | L11: 2 | M11: http://www.finance.gov.au/cbms/CBMS_redevelopment.html | N11: 1 | O11: - | P11: 1 | Q11: http://www.comlaw.gov.au/Details/C2011B00068/Download | R11: 0 | S11: 0 | T11: - | U11: 2 | V11: 1 | W11: 0 | X11: - | Y11: 1 | Z11: http://www.abs.gov.au/AUSSTATS/abs@.nsf/DetailsPage/5514.02005?OpenDocument | AA11: 1 | AB11: 1 | AC11: 1996 | AD11: 1 | AE11: 1 | AF11: 4 | AG11: 1996 | AH11: 1 | AI11: 1 | AJ11: 1996 | AK11: 1 | AL11: 4 | AM11: 1 | AN11: 1998 | AO11: 1 | AP11: 1 | AQ11: 2001 | AR11: 1 | AS11: 1 | AT11: 1 | AU11: 1 | AV11: 1 | AW11: 1 | AX11: 1 | AY11: 1 | AZ11: 1 | BA11: 0 | BB11: 1 | BC11: https://www.tenders.gov.au/ | BD11: 1 | BE11: http://data.australia.gov.au | BF11: 0 | BG11: - | BH11: 1 | BI11: http://www.finance.gov.au/publications/finance-ministers-orders/docs/2011-12-PRIMA-Forms-FMA-and-CAC.pdf | BJ11: 1 | BK11: http://www.abs.gov.au | BL11: Australian Bureau of Statistics | BM11: http://www.rba.gov.au | BN11: Reserve Bank of Australia | BO11: - | BP11: 1 | BQ11: http://www.finance.gov.au/contact-us.html | BR11: 1 | BS11: http://www.finance.gov.au/policy-legislation.html | BT11: 2 | BU11: - | BV11: 0 | BW11: 3 | BX11: - | BY11: eng | BZ11: - | CA11: - | CB11: - | CC11: - | CD11: CBMS | CE11: Central Budget Management System | CF11: D | CG11: F | CH11: 3 | CI11: 1997 | CJ11: C+L | CK11: 1 | CL11: 2 | CM11: SAP | CN11: Web | CO11: 3 | CP11: - | CQ11: - | CR11: - | CS11: - | CT11: - | CU11: - | CV11: - | CW11: - | CX11: - | CY11: - | CZ11: - | DA11: - | DB11: - | DC11: - | DD11: - | DE11: - | DF11: - | DG11: 0 | DH11: 3 | DI11: 2 | DJ11: 0.91034 | DK11: 0.94117 | DL11: 0.92913 | DM11: 0.80405 | DN11: 0.9978 | DO11: 12 | DP11: 0.839 | DQ11: 0.8627 | DR11: 0.6543 | DS11: 1 | DU11: PAC | DV11: OECD | DW11: APEC | DY11: Australia | DZ11: 4 | EA11: 1 | EB11: 2 | EC11: 1 | EE11: 8 | EF11: 1 | EG11: 2 | EH11: 5 | EK11: 20 | EL11: 76.92307692 | EM11: A | EO11: 9 | EP11: Australia | EQ11: AUS | ET11: http://australia.gov.au | EU11: 2 | EV11: https://my.gov.au/mygov | EW11: 0.9291 | EX11: 100 | EY11: 75 | EZ11: 88 | FA11: 65 | FB11: 82 | FG11: http://www.treasury.gov.au/ | FH11: 1901 | FI11: http://www.comlaw.gov.au/Details/C2011C00328 | FJ11: 1997 | FK11: 2 | FL11: 4 | FM11: - | FN11: - | FO11: - | FP11: - | FQ11: https://www.ato.gov.au | FR11: 1910 | FS11: e-Tax | FT11: e-Tax and other portals | FU11: 2 | FV11: SAP | FW11: https://www.ato.gov.au/General/Online-services | FX11: 2002 | FY11: 3 | FZ11: 3 | GA11: http://www.customs.gov.au | GB11: 1901 | GC11: 1961 | GD11: 2 | GE11: ICS | GF11: Integrated Cargo System | GG11: 2 | GH11: COTS | GI11: http://www.customs.gov.au/webdata/resources/files/boozallenhamilton_icsreport.pdf | GJ11: 2005 | GK11: 3 | GL11: 3 | GM11: 1 | GN11: 1 | GO11: https://www.ato.gov.au/ | GP11: 1990 | GQ11: 3 | GR11: 1 | GS11: https://frupayonline.nt.gov.au/ | GT11: - | GU11: 1 | GV11: http://www.finance.gov.au/policy-guides-procurement/gatekeeper-public-key-infrastructure/ | GW11: 2007 | GX11: 3 | GY11: 1891300 | GZ11: 2 | HA11: www.abs.gov.au/ausstats/abs@.nsf/mf/6248.0.55.002/ | HB11: 2012 | HC11: HRMIS | HD11: Human Resources Management Information System | HE11: 2 | HF11: Aurion (37) + SAP (17) + PeopleSoft & Other (17) | HG11: http://www.finance.gov.au/files/2012/04/Review-of-the-Australian-Governments-Use-of-Information-and-Communication-Technology.pdf | HH11: 2006 | HI11: 3 | HJ11: 1 | HK11: HRMIS | HL11: Human Rresource Management Information System | HM11: 2 | HN11: Aurion (37) + SAP (17) + PeopleSoft & Other (17) | HO11: http://www.anao.gov.au/~/media/Files/Better%20Practice%20Guides/2012%202013/ANAO_BPG_HRMIS.pdf | HP11: 2006 | HQ11: 3 | HR11: 1 | HS11: - | HT11: AusTender | HU11: https://www.tenders.gov.au | HV11: 2003 | HW11: 3 | HX11: 2 | HY11: https://www.tenders.gov.au/?event=public.CN.search | HZ11: The Australian Office of Financial Management | IH11: 17 | II11: 77.27272727 | IJ11: A | IK11: HIC
A12: 10 | C12: Austria | D12: HIC | E12: 8419 | F12: 405729.9867 | G12: 48190 | H12: http://www.bmf.gv.at | I12: Federal Ministry of Finance | J12: 2 | K12: https://www.bmf.gv.at/budget/_start.htm | L12: 1 | M12: http://english.bmf.gv.at/budget/theaustrianfederalb_523/_start.htm | N12: 1 | O12: - | P12: 1 | Q12: https://www.bmf.gv.at/Budget/Budgetsimberblick/Sonstiges/Budgetsimberblick/Budgetentwurf2013/berblick/TabellenDownload/_start.htm | R12: 0 | S12: 0 | T12: - | U12: 2 | V12: 1 | W12: 0 | X12: - | Y12: 1 | Z12: http://www.rechnungshof.gv.at/berichte/bundesrechnungsabschluss.html | AA12: 1 | AB12: 1 | AC12: 2003 | AD12: 1 | AE12: 1 | AF12: 5 | AG12: 2009 | AH12: 0 | AJ12: - | AK12: 1 | AL12: 4 | AM12: 1 | AN12: 2002 | AO12: 0 | AQ12: - | AR12: 1 | AS12: 1 | AT12: 0 | AU12: 1 | AV12: 0 | AW12: 1 | AX12: 0 | AY12: 1 | AZ12: 0 | BA12: 0 | BB12: 1 | BC12: http://www.peppol.eu/ | BD12: 1 | BE12: http://data.gv.at | BF12: 0 | BG12: - | BH12: 1 | BI12: https://www.bmf.gv.at/BUDGET/budgets/2012/Beilagen/_start_beilagen.htm | BJ12: 1 | BK12: http://www.statistik.at | BL12: Statistics Austria | BM12: http://www.oenb.at | BN12: Austrian National Bank | BO12: https://finanzonline.bmf.gv.at/fon/ | BP12: 1 | BQ12: http://english.bmf.gv.at/Allgemeines/Impressum/_start.htm | BR12: 1 | BS12: http://english.bmf.gv.at/Ministry/TheTasksoftheFedera_62/DGBudgetPublicFinances/_start.htm | BT12: 0 | BU12: - | BV12: 0 | BW12: 3 | BX12: - | BY12: ger | BZ12: eng | CA12: - | CB12: - | CC12: 0 | CD12: BAS | CE12: Budget and Accounting System | CF12: C | CG12: T | CH12: 3 | CI12: 2013 | CJ12: C+L | CK12: 1 | CL12: 2 | CM12: SAP | CN12: Web | CO12: 2 | CP12: - | CQ12: - | CR12: - | CS12: - | CT12: - | CU12: - | CV12: - | CW12: - | CX12: - | CY12: - | CZ12: - | DA12: - | DB12: - | DC12: - | DD12: - | DE12: - | DF12: - | DH12: 3 | DI12: 20 | DJ12: 0.79124 | DK12: 0.62745 | DL12: 0.74803 | DM12: 0.75972 | DN12: 0.866 | DO12: 21 | DP12: 0.784 | DQ12: 0.7451 | DR12: 0.6977 | DS12: 0.9091 | DU12: EU | DV12: OECD | DY12: Austria | DZ12: 2 | EB12: 2 | EE12: 1 | EH12: 1 | EK12: 15 | EL12: 57.69230769 | EM12: B | EO12: 10 | EP12: Austria | EQ12: AUT | ET12: http://www.austria.gv.at | EU12: 2 | EV12: https://www.usp.gv.at/Portal.Node/usp/public/content/online_verfahren/48573.html | EW12: 0.748 | EX12: 100 | EY12: 75 | EZ12: 51 | FA12: 44 | FB12: 67 | FG12: http://www.oebfa.at/ | FH12: 1993 | FI12: http://www.ris.bka.gv.at/GeltendeFassung.wxe?Abfrage=Bundesnormen&Gesetzesnummer=20006355 | FJ12: 2009 | FK12: 2 | FL12: 4 | FM12: - | FN12: - | FO12: - | FP12: - | FQ12: https://www.bmf.gv.at | FR12: 1945 | FS12: e-Tax | FT12: FinanceOnline | FU12: 1 | FV12: LDSW | FW12: https://finanzonline.bmf.gv.at | FX12: 2003 | FY12: 3 | FZ12: 3 | GA12: http://www.bmf.gv.at | GB12: 1945 | GC12: 1953 | GD12: 0 | GE12: E-Zoll | GF12: Electronic Customs Portal | GG12: 2 | GH12: COTS | GI12: https://www.bmf.gv.at/zoll/e-zoll/e-zoll.html | GJ12: 2005 | GK12: 3 | GL12: 3 | GM12: 1 | GN12: 1 | GO12: https://finanzonline.bmf.gv.at/fon/ | GP12: 2003 | GQ12: 3 | GR12: 1 | GS12: http://www.digitales.oesterreich.gv.at/site/6519/default.aspx | GT12: 2007 | GU12: 2 | GV12: http://www.digitales.oesterreich.gv.at/site/6520/default.aspx | GW12: 2005 | GX12: 3 | GY12: 379690 | GZ12: 2 | HA12: www.statistik.at/web_en/publications_services/statistiches_jahrbuch/index.html | HB12: 2014 | HC12: IHRMS | HD12: Integrated Human Resource Management System | HE12: 2 | HF12: SAP | HG12: http://www.bka.gv.at/DocView.axd?CobId=44697 | HH12: 2006 | HI12: 3 | HJ12: 1 | HK12: IHRMS | HL12: Integrated Human Resource Management System | HM12: 2 | HN12: SAP | HO12: http://www.bka.gv.at/DocView.axd?CobId=44697 | HP12: 2006 | HQ12: 3 | HR12: 1 | HS12: - | HT12: Federal Procurement Portal | HU12: http://www.bbg.gv.at | HV12: 2002 | HW12: 3 | HX12: 2 | HY12: http://www.bbg.gv.at/kunden/produkte-vertraege/vertragsliste | HZ12: Austrian Federal Financing Agency | IH12: 16 | II12: 72.72727273 | IJ12: B | IK12: HIC
A13: 11 | C13: Azerbaijan | D13: UMIC | E13: 9168 | F13: 48519.70327 | G13: 5290 | H13: http://www.maliyye.gov.az | I13: Ministry of Finance of the Republic of Azerbaijan | J13: 1 | K13: http://www.maliyye.gov.az/node/954 | L13: 1 | M13: http://www.maliyye.gov.az/en/node/886 | N13: 1 | O13: - | P13: 0 | Q13: - | R13: 0 | S13: 0 | T13: - | U13: 1 | V13: 1 | W13: 0 | X13: - | Y13: 1 | Z13: http://www.maliyye.gov.az/en/node/931 | AA13: 1 | AB13: 1 | AC13: 2000 | AD13: 0 | AF13: - | AG13: - | AH13: 0 | AJ13: - | AK13: 1 | AL13: 4 | AM13: 0 | AN13: 2000 | AO13: 0 | AQ13: - | AR13: 1 | AS13: 1 | AT13: 0 | AU13: 0 | AV13: 0 | AW13: 1 | AX13: 0 | AY13: 0 | AZ13: 0 | BA13: 0 | BB13: 0 | BC13: - | BD13: 0 | BE13: - | BF13: 0 | BG13: - | BH13: 1 | BI13: http://www.maliyye.gov.az/en/node/931 | BJ13: 0 | BK13: http://www.azstat.org | BL13: Azerbaijan State Statistical Committee | BM13: http://www.cbar.az | BN13: Central Bank of Azerbaijan Republic | BO13: - | BP13: 1 | BQ13: http://opendata.az/?page_id=32&lang=en | BR13: 1 | BS13: http://www.maliyye.gov.az/en/node/18 | BT13: 0 | BU13: National accounting standards | BV13: 0 | BW13: 3 | BX13: - | BY13: aze | BZ13: eng | CA13: - | CB13: - | CC13: 0 | CD13: TMIS | CE13: Treasury Information Management System | CF13: C | CG13: T | CH13: 3 | CI13: 2012 | CJ13: C+L | CK13: 1 | CL13: 2 | CM13: SAP | CN13: Web | CO13: 2 | CP13: Jan 2008 | CQ13: Final | CR13: 1 | CS13: X | CT13: X | CU13: X | CV13: X | CW13: X | CX13: X | CY13: X | CZ13: X | DA13: X | DB13: X | DC13: 2.1 | DD13: 2.633333333 | DE13: 42 | DF13: 43 | DG13: 1 | DH13: 0 | DI13: 68 | DJ13: 0.5472 | DK13: 0.43137 | DL13: 0.43307 | DM13: 0.46049 | DN13: 0.748 | DO13: 96 | DP13: 0.4984 | DQ13: 0.366 | DR13: 0.3033 | DS13: 0.8259 | DT13: ECA | DY13: Azerbaijan | DZ13: 0 | EE13: 0 | EJ13: 2013-04-03 | EK13: 9 | EL13: 34.61538462 | EM13: C | EO13: 11 | EP13: Azerbaijan | EQ13: AZE | ET13: http://www.president.az | EU13: 2 | EV13: https://www.e-gov.az | EW13: 0.4331 | EX13: 81 | EY13: 36 | EZ13: 28 | FA13: 24 | FB13: 41 | FG13: http://www.maliyye.gov.az/en/node/1058 | FH13: 2009 | FI13: http://www.ach.gov.az/?/en/content/347/ | FJ13: 1998 | FK13: 3 | FL13: 4 | FM13: - | FN13: - | FO13: - | FP13: - | FQ13: http://www.taxes.gov.az | FR13: 2000 | FS13: AVIS-2 | FT13: Avtomatlaşdırılmış Vergi İnformasiya Sistemi (AVIS) / Automated Tax Information System | FU13: 2 | FV13: Oracle | FW13: http://www.taxes.gov.az/uploads/neshrler/vergiyegirishderslik.pdf | FX13: 2006 | FY13: 3 | FZ13: 2 | GA13: http://www.customs.gov.az | GB13: 1992 | GC13: 1992 | GD13: 3 | GE13: AZ Single Window | GF13: Single Automated Management System of Customs Service | GG13: 2 | GH13: COTS | GI13: http://customs.gov.az/az/sw.html | GJ13: 2009 | GK13: 3 | GL13: 2 | GM13: 1 | GN13: 1 | GO13: https://www.e-taxes.gov.az/ | GP13: 2006 | GQ13: 3 | GR13: 1 | GS13: https://payment.gpp.az/WEBAPUS/Dispatcher | GT13: 2012 | GU13: 2 | GV13: http://www.e-imza.az/e-signer.php?tp=certuse&ide=26&lang=az | GW13: 2011 | GX13: 3 | GY13: =IFERROR(VLOOKUP($C13,'PS Employment'!$B$2:$N$107,12,FALSE)*1000,"-") -> 859500 | GZ13: 2 | HA13: http://laborsta.ilo.org/STP/guest | HB13: 2010 | HC13: CSR | HD13: Civl Service Registry + Candidates + Online Applications + Other locally developed SW | HE13: 1 | HF13: LDSW | HG13: http://www.csc.gov.az/aze/index.php?option=com_content&view=article&id=2117%3Akomissiyann-2008-ci-il-rzind-faliyyti-bard-hesabat-&catid=90%3Akomissiyann-faliyyti-bard-illik-hesabatlar-&Itemid=89&lang=en | HH13: 2008 | HI13: 3 | HJ13: 2 | HK13: TMIS | HL13: Treasury Information Management System | HM13: 2 | HN13: SAP | HO13: http://www.maliyye.gov.az/en/node/886 | HP13: 2012 | HQ13: 3 | HR13: 2 | HS13: X | HT13: State Procurement Agency Website | HU13: http://www.tender.gov.az | HV13: 2010 | HW13: 3 | HX13: 1 | HY13: http://tender.gov.az/new/index.php?inc=reestr | IH13: 15 | II13: 68.18181818 | IJ13: B | IK13: UMIC | IL13: ECA
A14: 12 | C14: Bahamas | D14: HIC | E14: 347.176 | F14: 7778 | G14: 22403.62237 | H14: http://www.bahamas.gov.bs/finance | I14: Ministry of Finance of The Bahamas | J14: 2 | K14: http://www.bahamas.gov.bs/wps/portal/public/NB/Communication/!ut/p/b1/vZTLcpswFIafpQ_gIImbWYIFGGOEzc3AhsHGdsDcUgPCPH3JNDNtM9N000RaafQffTrfaMTETMjEdTrk17TLmzotX9exkLC6be1X3NJaCpwEDOgRA6s7VpfQHIjmAPjLkMHPeqBbsjzX67y9BIYvejuZR0BfAebAhOtoUnBjUFU-JO09qwKpfdm5xmZsCPfc9G17MtNM7cFyAKC2YxIWBqW2zG_ZSg97LAFPOI64pNot10LKl93x3Gv1M0kTnbtIUIs2JE8w4ctHNe5XeTn68BnjRXrG2c5InMBXmmz94j6EHMLWFx_xCcZ2Q1KdTXxY54ZUkgGVrgKv37699ftBQ__wdWDiP5UAAaLXE7ZKsJEgcNFb4AOlZN1UZyaaY-JvN9nK_IyyZy2mBpHPMx4TAi5xi0drTLfJKSbHJF40unhPIT4gSxU94qkP0mXkXqwgVAEgnjxaPkCWqFIvO-6ywPEVeYXvezd-D7SR99rbCgqmzwOXA58NfOfahF8NZL9UqY7BpwPfPZod-u_ADRPnx-qJnqon8MSLgOOWSOAlJHJLiWOCIuJEzBlUM4JkcljIdjfiYrnKq6600tAHpjuU8qBd0ALf-MHLRhHbbkEtb71WR2U_DWWj1JlP91o3DU1smhGVG-RujotCKbfKPUmtxOWQc9VAL152fHvH1Wl7y4J116a9PFVqx_YwC6gF6bHW9EcYK_JCTUbWOLdF0WqEV1WSp_s-pE4TxPGmHwverK-iPlDT_H47jndug4YgumgoS5E8_xFt5Q9bwVmSy69pzRs_ALZ5AFQ!/dl4/d5/L2dBISEvZ0FBIS9nQSEh/ | L14: 1 | M14: http://www.docstoc.com/docs/111076420/THE-BAHAMAS | N14: 1 | O14: - | P14: 0 | Q14: - | R14: 0 | S14: 0 | T14: - | U14: 2 | V14: 1 | W14: 0 | X14: - | Y14: 0 | Z14: - | AA14: 1 | AB14: 1 | AC14: 2001 | AD14: 0 | AF14: - | AG14: - | AH14: 0 | AJ14: - | AK14: 1 | AL14: 4 | AM14: 1 | AN14: 2001 | AO14: 0 | AQ14: - | AR14: 1 | AS14: 1 | AT14: 0 | AU14: 1 | AV14: 1 | AW14: 1 | AX14: 1 | AY14: 0 | AZ14: 1 | BA14: 0 | BB14: 0 | BC14: - | BD14: 0 | BE14: - | BF14: 0 | BG14: - | BH14: 0 | BI14: - | BJ14: 0 | BK14: http://statistics.bahamas.gov.bs | BL14: The Department of Statistics | BM14: http://centralbankbahamas.com | BN14: Central Bank of The Bahamas | BO14: - | BP14: 0 | BQ14: - | BR14: 1 | BS14: http://www.bahamas.gov.bs/wps/portal/public/ | BT14: 0 | BU14: - | BV14: 0 | BW14: 1 | BX14: - | BY14: eng | BZ14: - | CA14: - | CB14: - | CC14: - | CD14: TFMS | CE14: Treasury Financial Management System | CF14: C | CG14: T | CH14: 3 | CI14: 2001 | CJ14: C | CK14: 1 | CL14: 1 | CM14: LDSW | CN14: Web | CO14: 2 | CP14: Mar 2011 | CQ14: Final | CR14: 1 | CS14: X | CT14: X | CU14: X | CV14: X | CW14: X | CX14: X | CY14: X | CZ14: X | DA14: X | DB14: X | DC14: 1.9375 | DD14: 1.846153846 | DE14: - | DF14: - | DH14: - | DI14: 92 | DJ14: 0.49 | DK14: 0.19607 | DL14: 0.33858 | DM14: 0.41758 | DN14: 0.7138 | DO14: 65 | DP14: 0.5793 | DQ14: 0.4706 | DR14: 0.4554 | DS14: 0.812 | DT14: LCR | DY14: Bahamas | DZ14: 0 | EE14: 0 | EK14: 11 | EL14: 42.30769231 | EM14: C | EO14: 12 | EP14: Bahamas | EQ14: BHS | ET14: http://www.bahamas.gov.bs | EU14: 2 | EV14: https://www.bahamas.gov.bs | EW14: 0.3386 | EX14: 53 | EY14: 34 | EZ14: 14 | FA14: 35 | FB14: 33 | FG14: http://www.bahamas.gov.bs/finance | FH14: 1914 | FI14: http://www.bahamas.gov.bs/wps/wcm/connect/93187cd8-e19b-42c0-9982-25576cc43fff/Chap+9+Finance.pdf?MOD=AJPERES | FJ14: 1978 | FK14: 2 | FL14: 4 | FM14: - | FN14: - | FO14: - | FP14: - | FQ14: http://www.bahamas.gov.bs | FR14: 1914 | FS14: ITAIS | FT14: Integrated Tax Administration Information System | FU14: 2 | FV14: Data Torque | FW14: https://www.bahamas.gov.bs/wps/myportal/public/PayTax | FX14: 2011 | FY14: 3 | FZ14: 2 | GA14: http://www.bahamas.gov.bs/customs | GB14: 1914 | GC14: 1974 | GD14: 0 | GE14: CAS | GF14: Customs Automated System | GG14: 2 | GH14: COTS | GI14: http://www.iadb.org/en/projects/project-description-title,1303.html?id=BH-L1016 | GJ14: 1989 | GK14: 3 | GL14: 2 | GM14: 0 | GN14: 0 | GO14: http://www.bahamas.gov.bs/wps/portal/public/gov/government/services/!ut/p/b1/vVbbsqI6EP2W_QGOIeH6iIJcJNzD7YVC8YoIIory9QfnnFMz25k9ex5mTKqoonp1rfTq7nTGyTgaJ8fsuttk7a46ZofHf8KmCChYFGkeKwxggUZsQ7Q5FfImNQ7HkRrfjOkGb2UxvNLn7HCaY7ftj0o_jeOFt1TWnOPhZmUndniq1D1Pa6vrmecjxBaV4TP86Waf6um8vTknI8JMIaqstwXyjLRqHgSJFO4czagtq3Fsawd6xKwut8sNT_eqH17TgowMpo77OJEMc746ZWux3gnb5Y7MNgqRBH12j1sBIf6yXAfuEFA8BAQ-WCJ4H69FTwSgUZJAa7xM8QH3n_8vAF_9FQs708HMs_TD7JuaJNtIEeCzP2ApOAjKGZNAFyjgwd_0_xjw3t8W5YfZMh3KoKwJeuZ_n1CLBr_p_zHg03pJniEW_1DAt0UGAmUKngE_kegr4Fc5_NUprDn8BDCoEA8A7juAITJDmBZjoPmMgoQZ--MI0Km3v9daX_TuvnconxQU3i87ACgd90Zg-jL024zyxPAODnNMzj3uyd2Xlp0pqDifuWTCjxq2F9_engkt6D_yOqXYOWGAN5zoLxM-pWFOvZoQvVRSRQJ_nfCpaGz4xwn1cbJblF-6ZfkFfGE4QNM8ZBkBcjQv0ONgPzTN9Kx1st0FBrqAC8yvbrbRskKYcnLoKWWxMQS9JWm6ItYxB9xtkxykTQyn1uQ-3RxV83CYX1laE8MkBdpsZtLiAhReyshS7qi9UPX5rk0UMXLaEK5uDG8nYlU2Xdv0zTJjJ35ZtXAIpsZX4xLBJovPgpxMbYErDJLRA-DiTqS4LAz_fMrsc1WgeJsfpP68j3h1Zp7xrgQKF93r66irnTt5G5tqVa7-l_qDa8j9UWrQUVhSelMKAZAB8OTeNcnB8PKBZO_qYB8iLANoknaO94l2Fnw7DwatxakN67T-jBC9mJADryZkX034aknNPy_pu_6ECEGKB5AZvhQNHv0ZA0569OfwcHIafIAZqlmpFL0Yw77IboyennWHRTega2Q2ca653CSttMmDyNSH_qTaZlPvpXimSZBW8Oy-i0xHwg17x0YhU67unSxD2ARSMNHuIySIXDnSSXUUroxTh73lbde6xPspW8CyPCxrOxF8sk4EjjGRebS3RFVxY13dmxduR5GeAmUU8TdzdxgFxx8uOz8Ag5hAdD3KAbz7s4F1xz7ucdHdAEc6s-hDkxR3zwwpLFM66AnEZKubhLEwuWH8TcwUxQb8ZEIC5m8Tvh9YYIpeTOj9eUnf1SfiKQEKALAMy1ICzY8D4_GwP-NOejzsd3ewX0QXL9cvu0tVNUs5nc3URUvzVbRAWxz369SGe1iy4sZAyFxwd6WsFFUqA5mb6MiZIdIaiSJJpDr0xEZ0Rykj8eJydtrx8SILOzmLCr9OrpLSbc_uwlxobLO9WSUz7_NQddh6pforqriwQu7OH_OvLq_zxzJYV3Z56ruNtg3zbV_N9b8bi2__ADitGrM!/dl4/d5/L2dBISEvZ0FBIS9nQSEh/ | GP14: 2011 | GQ14: 2 | GR14: 0 | GS14: http://www.bahamas.gov.bs/wps/portal/public/gov/government/eServices/eservices/eservices/!ut/p/b1/vZDbjqJAEIafxQdwaA5yuES7FVq6m4McbwjoqKAgAovK06-bnWSvxrnZWJVUUslf-er_uYSLuKTOhuKQ9cWlzs5_9kROxRUjzkJSiWrrCJj8hlGHt3g2F5-C-CkA35QO_t6DFdH15_1qBmRg-ral24ohsLXAh | GT14: - | GU14: 1 | GV14: http://unpan1.un.org/intradoc/groups/public/documents/caricad/unpan008407.pdf | GW14: 2003 | GX14: 1 | GY14: =IFERROR(VLOOKUP($C14,'PS Employment'!$B$2:$N$107,12,FALSE)*1000,"-") -> 35435 | GZ14: 2 | HA14: http://laborsta.ilo.org/STP/guest | HB14: 2008 | HC14: HRM | HD14: J.D. Edwards Human Resource System | HE14: 2 | HF14: Oracle | HG14: http://www.bahamas.gov.bs | HH14: 2009 | HI14: 3 | HJ14: 2 | HK14: HRM | HL14: J.D. Edwards Human Resource System | HM14: 2 | HN14: Oracle | HO14: http://www.bahamas.gov.bs | HP14: 2009 | HQ14: 3 | HR14: 2 | HS14: X | HT14: - | HU14: http://www.bahamas.gov.bs | HV14: - | HW14: 1 | HX14: 0 | HY14: - | IA14: 2 | IB14: CS-DRMS | ID14: 1992 | IE14: 3 | IF14: MoF | IH14: 13 | II14: 59.09090909 | IJ14: B | IK14: HIC | IL14: LCR
A15: 13 | C15: Bahrain | D15: HIC | E15: 1323.535 | F15: 22950 | G15: 17339.92679 | H15: http://www.mof.gov.bh | I15: Ministry of Finance - Kingdom of Bahrain | J15: 2 | K15: http://www.mof.gov.bh/Categorylist.asp?cType=budget | L15: 2 | M15: http://www.mof.gov.bh/Categorylist.asp?cType=fmis | N15: 1 | O15: - | P15: 0 | Q15: - | R15: 0 | S15: 0 | T15: - | U15: 1 | V15: 1 | W15: 0 | X15: - | Y15: 1 | Z15: http://www.mof.gov.bh/Categorylist.asp?cType=fmanual | AA15: 1 | AB15: 1 | AC15: 2003 | AD15: 1 | AE15: 1 | AF15: 5 | AG15: 1990 | AH15: 0 | AJ15: - | AK15: 1 | AL15: 4 | AM15: 1 | AN15: 2003 | AO15: 0 | AQ15: - | AR15: 1 | AS15: 1 | AT15: 0 | AU15: 0 | AV15: 0 | AW15: 1 | AX15: 1 | AY15: 0 | AZ15: 1 | BA15: 0 | BB15: 1 | BC15: http://www.tenderboard.gov.bh/ | BD15: 1 | BE15: http://www.bahrain.bh/wps/portal/data | BF15: 0 | BG15: - | BH15: 0 | BI15: - | BJ15: 0 | BK15: http://www.cio.gov.bh | BL15: Central Informatics Organization | BM15: http://www.bma.gov.bh | BN15: Central Bank of Bahrain | BO15: - | BP15: 0 | BQ15: - | BR15: 1 | BS15: http://www.mof.gov.bh/CategoryListImage.asp?cType=organ | BT15: 0 | BU15: National accounting standards | BV15: 0 | BW15: 3 | BX15: - | BY15: ara | BZ15: eng | CA15: - | CB15: - | CC15: 0 | CD15: CFS | CE15: Central Financial System | CF15: C | CG15: T | CH15: 3 | CI15: 2006 | CJ15: C | CK15: 1 | CL15: 2 | CM15: Oracle | CN15: Web | CO15: 1 | CP15: - | CQ15: - | CR15: - | CS15: - | CT15: - | CU15: - | CV15: - | CW15: - | CX15: - | CY15: - | CZ15: - | DA15: - | DB15: - | DC15: - | DD15: - | DE15: - | DF15: - | DH15: 1 | DI15: 18 | DJ15: 0.80885 | DK15: 0.82352 | DL15: 0.937 | DM15: 0.7055 | DN15: 0.784 | DO15: 36 | DP15: 0.6946 | DQ15: 0.8627 | DR15: 0.4183 | DS15: 0.8028 | DT15: MNA | DY15: Bahrain | DZ15: 1 | EC15: 1 | EE15: 0 | EK15: 14 | EL15: 53.84615385 | EM15: B | EO15: 13 | EP15: Bahrain | EQ15: BHR | ET15: http://www.bahrain.bh | EU15: 2 | EV15: http://oservices.bahrain.bh | EW15: 0.937 | EX15: 94 | EY15: 80 | EZ15: 84 | FA15: 74 | FB15: 82 | FG15: https://www.mof.gov.bh/topiclist.asp?ctype=organ&id=31&from=organ | FH15: 1997 | FI15: http://www.mof.gov.bh/arb/showdatafile.asp?rid=1257 | FJ15: - | FK15: 0 | FL15: - | FM15: - | FN15: - | FO15: - | FP15: - | FQ15: - | FR15: - | FS15: - | FT15: - | FU15: 0 | FV15: - | FW15: - | FX15: - | FY15: 0 | FZ15: 0 | GA15: http://www.customs.gov.bh | GB15: 1970 | GC15: 2001 | GD15: 0 | GE15: TWM > OFOQ | GF15: Trade World Manager | GG15: 2 | GH15: COTS | GI15: http://www.bahraincustoms.gov.bh/page.php?SID=WTBkR2JscFVNRFJQUTFwMFVGUlpiV015TURsT2Vtczk%253D | GJ15: 2012 | GK15: 3 | GL15: 2 | GM15: 1 | GN15: 0 | GO15: - | GP15: - | GQ15: 0 | GR15: 0 | GS15: http://www.bahrain.bh/wps/portal/!ut/p/a1/jZHLDoIwEEW_hQVbOhYl1V19gBIbjYpiNwYNVhKgBlB-34JxoRG0u2nOyZ0H4shHPA3ukQiKSKZBXNXcOkwXYHUwwe5i0qNAyZaNnXEXgFkK2CsAGh6FD39tk9p3hn3bBMd8-ZiNOrMudoExZZHhar6xRwAE_5nf4KuAv_yWBn_4O8RrpG2CVqCKeALNO3QRF7E81vfY0_RoEoF4Fp7DLMyMW6a-L0VxzQc66FCWpSGkFHFonGSiwzflIvMC-e8kuiae5_kQLZMdyammPQDWGuYs/dl5/d5/L2dJQSEvUUt3QS80SmlFL1o2X0hPMDYxMjgySk9TRjgwQThWTUdCOUYzMEcz/ | GT15: 2007 | GU15: 2 | GV15: https://www.ekey.bh/bnaf-usermgmt/pages/?loc=en | GW15: 2012 | GX15: 3 | GY15: 56000 | GZ15: 1 | HA15: http://unpan1.un.org/intradoc/groups/public/documents/un/unpan023174.pdf | HB15: 2004 | HC15: HRPS | HD15: Human Resource and Payroll Systems | HE15: 2 | HF15: COTS | HG15: https://www.csb.gov.bh | HH15: 2006 | HI15: 3 | HJ15: 1 | HK15: PIPS | HL15: Payroll Interface and Payments System | HM15: 2 | HN15: Oracle | HO15: http://www.mof.gov.bh/topiclist.asp?ctype=fmis&id=847 | HP15: 2006 | HQ15: 3 | HR15: 2 | HS15: - | HT15: Tender Board website | HU15: http://www.tenderboard.gov.bh | HV15: 2003 | HW15: 3 | HX15: 2 | HY15: http://www.tenderboard.gov.bh | IH15: 9 | II15: 40.90909091 | IJ15: C | IK15: HIC | IL15: MNA
A16: 14 | C16: Bangladesh | D16: LIC | E16: 150493.658 | F16: 117761.9537 | G16: 780 | H16: http://www.mof.gov.bd | I16: Bangladesh Ministry of Finance | J16: 2 | K16: http://www.mof.gov.bd/en/index.php?option=com_content&view=article&id=184&Itemid=1 | L16: 1 | M16: http://www.mof.gov.bd/en/budget/11_12/digital_bd/digital_bangladesh_en.pdf | N16: 1 | O16: http://www.mof.gov.bd/en/index.php?option=com_content&view=article&id=68&Itemid=1 | P16: 0 | Q16: - | R16: 0 | S16: 0 | T16: - | U16: 2 | V16: 1 | W16: 1 | X16: http://www.mof.gov.bd/en/budget/booklet/booklet_en.pdf | Y16: 1 | Z16: http://www.mof.gov.bd/en/index.php?option=com_content&view=article&id=80&Itemid=1&phpMyAdmin=XRGktGpDJ7v31TJLuZ5xtAQmRx9 | AA16: 1 | AB16: 1 | AC16: 2007 | AD16: 1 | AE16: 1 | AF16: 5 | AG16: 2011 | AH16: 1 | AI16: 1 | AJ16: 2011 | AK16: 1 | AL16: 4 | AM16: 1 | AN16: 2007 | AO16: 0 | AQ16: - | AR16: 1 | AS16: 1 | AT16: 0 | AU16: 1 | AV16: 1 | AW16: 1 | AX16: 1 | AY16: 1 | AZ16: 1 | BA16: 0 | BB16: 0 | BC16: - | BD16: 0 | BE16: - | BF16: 0 | BG16: - | BH16: 0 | BI16: - | BJ16: 0 | BK16: http://www.bbs.gov.bd | BL16: Bangladesh Bureau of Statistics | BM16: http://www.bangladesh-bank.org | BN16: Bangladesh Bank | BO16: - | BP16: 0 | BQ16: - | BR16: 1 | BS16: http://www.mof.gov.bd/en/index.php?option=com_content&view=article&id=48&Itemid=1 | BT16: 2 | BU16: GFS 1986 | BV16: 1 | BW16: 3 | BX16: - | BY16: ben | BZ16: eng | CA16: - | CB16: - | CC16: 1 | CD16: iBAS | CE16: Integrated Budget and Accounting System | CF16: C | CG16: T | CH16: 3 | CI16: 2006 | CJ16: C+L | CK16: 1 | CL16: 1 | CM16: LDSW | CN16: Web | CO16: 2 | CP16: Dec 2010 | CQ16: Public | CR16: 2 | CS16: B | CT16: B | CU16: B | CV16: B | CW16: B | CX16: D | CY16: C+ | CZ16: D+ | DA16: D+ | DB16: B | DC16: 2.45 | DD16: 2.116666667 | DE16: 58 | DF16: 48 | DH16: 1 | DI16: 148 | DJ16: 0.27572 | DK16: 0.39215 | DL16: 0.34645 | DM16: 0.09414 | DN16: 0.3866 | DO16: 150 | DP16: 0.2991 | DQ16: 0.4444 | DR16: 0.0641 | DS16: 0.3889 | DT16: SAR | DY16: Bangladesh | DZ16: 0 | EE16: 0 | EJ16: 2013-05-05 | EK16: 17 | EL16: 65.38461538 | EM16: B | EO16: 14 | EP16: Bangladesh | EQ16: BGD | ET16: http://www.bangladesh.gov.bd | EU16: 2 | EV16: http://www.bangladesh.gov.bd/?q=bn/e-services | EW16: 0.3465 | EX16: 75 | EY16: 34 | EZ16: 14 | FA16: 18 | FB16: 33 | FG16: http://www.mof.gov.bd | FH16: 1971 | FI16: http://www.pefa.org/en/assessment/bd-dec10-pfmpr-public-en | FJ16: 2008 | FK16: 2 | FL16: 2 | FM16: - | FN16: - | FO16: - | FP16: - | FQ16: http://www.nbr-bd.org | FR16: 1972 | FS16: IVMS | FT16: Integrated VAT Management System | FU16: 1 | FV16: LDSW ? | FW16: http://www.worldbank.org/projects/P129770?lang=en | FX16: - | FY16: 2 | FZ16: 2 | GA16: http://www.nbr-bd.org | GB16: 1972 | GC16: 1978 | GD16: 4 | GE16: ASYCUDA++ | GF16: Automated SYstem for CUstoms DAta | GG16: 2 | GH16: ASYCUDA ++ | GI16: http://www.asycuda.org/pdf%20docs/bg_en_update.pdf | GJ16: 1994 | GK16: 3 | GL16: 2 | GM16: 1 | GN16: 0 | GO16: - | GP16: - | GQ16: 0 | GR16: 0 | GS16: http://www.nbrepayment.org/ | GT16: 2012 | GU16: 1 | GV16: http://www.cca.gov.bd/ | GW16: 2009 | GX16: 2 | GY16: =IFERROR(VLOOKUP($C16,'PS Employment'!$B$2:$N$107,12,FALSE)*1000,"-") -> 2127000 | GZ16: 2 | HA16: http://laborsta.ilo.org/STP/guest | HB16: 2005 | HC16: HRMIS | HD16: Human Resources Management Information System | HE16: 1 | HF16: LDSW | HG16: http://www-wds.worldbank.org/external/default/WDSContentServer/WDSP/IB/2010/05/25/000334955_20100525030054/Rendered/INDEX/535490PAD0P090101Official0Use0Only1.txt | HH16: - | HI16: 3 | HJ16: 1 | HK16: HRMIS | HL16: Human Rresource Management Information System | HM16: 1 | HN16: LDSW | HO16: http://www.pefa.org/en/assessment/bd-dec10-pfmpr-public-en | HP16: - | HQ16: 3 | HR16: 1 | HS16: B | HT16: National e-Government Procurement Portal | HU16: http://www.eprocure.gov.bd | HV16: 2011 | HW16: 3 | HX16: 2 | HY16: http://www.eprocure.gov.bd/resources/common/SearchNOA.jsp | IA16: 2 | IB16: DMFAS 6.0 | ID16: 1992 | IE16: 3 | IF16: MoF | IG16: 4T | IH16: 11 | II16: 50 | IJ16: B | IK16: LIC | IL16: SAR
A17: 15 | C17: Barbados | D17: HIC | E17: 273.925 | F17: 3685 | G17: 13452.58739 | H17: http://www.gov.bb/bigportal/gov/index.php?method=detail&cat=min&rnum=351&np=3 | I17: Barbados Ministry of Finance and Economic Affairs | J17: 1 | K17: http://www.economicaffairs.gov.bb | L17: 2 | M17: http://treasury.gov.bb/?q=content/about-us | N17: 0 | O17: - | P17: 0 | Q17: - | R17: 1 | S17: 1 | T17: - | U17: 0 | V17: 0 | W17: 0 | X17: - | Y17: 0 | Z17: - | AA17: 1 | AB17: 0 | AC17: 2009 | AD17: 0 | AF17: - | AG17: - | AH17: 0 | AJ17: - | AK17: 1 | AL17: 4 | AM17: 1 | AN17: 2009 | AO17: 0 | AQ17: - | AR17: 1 | AS17: 1 | AT17: 0 | AU17: 1 | AV17: 1 | AW17: 1 | AX17: 1 | AY17: 0 | AZ17: 1 | BA17: 0 | BB17: 0 | BC17: - | BD17: 0 | BE17: - | BF17: 0 | BG17: - | BH17: 0 | BI17: - | BJ17: 2 | BK17: http://www.barstats.gov.bb | BL17: Barbados Statistical Services | BM17: http://www.centralbank.org.bb | BN17: Central Bank of Barbados | BO17: http://www.barbadosparliament.com/ | BP17: 0 | BQ17: - | BR17: 0 | BS17: - | BT17: 0 | BU17: - | BV17: 0 | BW17: 1 | BX17: - | BY17: eng | BZ17: - | CA17: - | CB17: - | CC17: - | CD17: FMIS | CE17: Financial Management Information System | CF17: C | CG17: F | CH17: 3 | CI17: 1999 | CJ17: C | CK17: 1 | CL17: 2 | CM17: SmartStream | CN17: Web | CO17: 3 | CP17: Jul 2010 | CQ17: Final | CR17: 2 | CS17: X | CT17: X | CU17: X | CV17: X | CW17: X | CX17: X | CY17: X | CZ17: X | DA17: X | DB17: X | DC17: 3.166666667 | DD17: 2.788461538 | DE17: - | DF17: - | DH17: 1 | DI17: 59 | DJ17: 0.5933 | DK17: 0.09803 | DL17: 0.22047 | DM17: 0.67295 | DN17: 0.8865 | DO17: 44 | DP17: 0.6566 | DQ17: 0.3725 | DR17: 0.674 | DS17: 0.9232 | DT17: LCR | DY17: Barbados | DZ17: 0 | EE17: 0 | EJ17: 2013-05-03 | EK17: 8 | EL17: 30.76923077 | EM17: C | EO17: 15 | EP17: Barbados | EQ17: BRB | ET17: http://www.gov.bb | EU17: 0 | EV17: http://www.gov.bb | EW17: 0.2205 | EX17: 41 | EY17: 20 | EZ17: 12 | FA17: 24 | FB17: 23 | FG17: http://www.treasury.gov.bb/ | FH17: 1966 | FI17: http://www.treasury.gov.bb/sites/default/files/Financial%20Management%20and%20Audit%20Act.pdf | FJ17: 2007 | FK17: 2 | FL17: 4 | FM17: - | FN17: - | FO17: - | FP17: - | FQ17: http://www.barbados.gov.bb/ird | FR17: 1997 | FS17: CIAT | FT17: Tax Management System | FU17: 2 | FV17: COTS | FW17: http://www.barbados.gov.bb/ird/Tao/index.html | FX17: 2006 | FY17: 3 | FZ17: 2 | GA17: http://www.customs.gov.bb | GB17: 1997 | GC17: 1999 | GD17: 4 | GE17: ASYCUDA World | GF17: Automated SYstem for CUstoms DAta | GG17: 2 | GH17: ASYCUDA W | GI17: http://www.customs.gov.bb/downloads/Downloads.php | GJ17: 2007 | GK17: 3 | GL17: 2 | GM17: 1 | GN17: 0 | GO17: https://etax.ird.gov.bb/eTaxIrd/Login.aspx | GP17: 2007 | GQ17: 2 | GR17: 0 | GS17: https://www.ezpay.gov.bb/ | GT17: 2012 | GU17: 2 | GV17: http://www.commerce.gov.bb/Legislation/Documents/CAP%20308B.PDF | GW17: 2001 | GX17: 1 | GY17: 18000 | GZ17: 1 | HA17: http://unpan1.un.org/intradoc/groups/public/documents/un/unpan023192.pdf | HB17: 2004 | HC17: SmartStream | HD17: Human Resources Management Information System | HE17: 2 | HF17: SmartStream | HG17: http://unpan1.un.org/intradoc/groups/public/documents/caricad/unpan030902.pdf | HH17: 1999 | HI17: 3 | HJ17: 2 | HK17: SmartStream | HL17: Human Resources Management Information System | HM17: 2 | HN17: SmartStream | HO17: http://www.reform.gov.bb/page/public%20sector%20reform%20in%20barbados.pdf | HP17: 1999 | HQ17: 3 | HR17: 2 | HS17: X | HT17: - | HU17: http://www.iadb.org/en/projects/project-description-title,1303.html?id=ba-l1004 | HV17: - | HW17: 1 | HX17: 0 | HY17: - | HZ17: Central Bank | IA17: 2 | IB17: CS-DRMS | ID17: 1992 | IE17: 3 | IF17: MoF | IH17: 13 | II17: 59.09090909 | IJ17: B | IK17: HIC | IL17: LCR
A18: 16 | C18: Belarus | D18: UMIC | E18: 9473 | F18: 55236.12576 | G18: 5830 | H18: http://www.minfin.gov.by | I18: Ministry for Finance of Belarus | J18: 2 | K18: http://www.minfin.gov.by/rmenu/execution/month-info/ | L18: 1 | M18: http://siteresources.worldbank.org/BELARUSEXTN/Resources/PEFA_Belarus_april_2009_english.pdf | N18: 1 | O18: - | P18: 0 | Q18: - | R18: 0 | S18: 0 | T18: - | U18: 2 | V18: 1 | W18: 0 | X18: - | Y18: 0 | Z18: - | AA18: 0 | AC18: - | AD18: 0 | AF18: - | AG18: - | AH18: 0 | AJ18: - | AK18: 1 | AL18: 2 | AM18: 1 | AN18: 2005 | AO18: 0 | AQ18: - | AR18: 1 | AS18: 1 | AT18: 1 | AU18: 0 | AV18: 1 | AW18: 1 | AX18: 1 | AY18: 1 | AZ18: 1 | BA18: 0 | BB18: 0 | BC18: - | BD18: 0 | BE18: - | BF18: 0 | BG18: - | BH18: 1 | BI18: http://www.minfin.gov.by/rmenu/gfs/general/ | BJ18: 0 | BK18: http://www.belstat.gov.by | BL18: Belarus Ministry of Statistics and Analysis | BM18: http://www.nbrb.by | BN18: National Bank of the Republic of Belarus | BO18: - | BP18: 0 | BQ18: - | BR18: 1 | BS18: http://www.minfin.gov.by/ministerstvo/structure/ | BT18: 2 | BU18: - | BV18: 0 | BW18: 3 | BX18: - | BY18: rus | BZ18: - | CA18: - | CB18: - | CC18: - | CD18: TS | CE18: Treasury System | CF18: C | CG18: T | CH18: 3 | CI18: 2002 | CJ18: C+L | CK18: 1 | CL18: 1 | CM18: LDSW | CN18: Web | CO18: 2 | CP18: Apr 2009 | CQ18: Public | CR18: 1 | CS18: A | CT18: A | CU18: C | CV18: D+ | CW18: A | CX18: B | CY18: B+ | CZ18: C+ | DA18: D+ | DB18: NU | DC18: 2.888888889 | DD18: 3.089285714 | DE18: - | DF18: - | DH18: 0 | DI18: 55 | DJ18: 0.60529 | DK18: 0.35294 | DL18: 0.32283 | DM18: 0.60691 | DN18: 0.8861 | DO18: 61 | DP18: 0.609 | DQ18: 0.4118 | DR18: 0.5033 | DS18: 0.912 | DT18: ECA | DY18: Belarus | DZ18: 0 | EE18: 0 | EK18: 9 | EL18: 34.61538462 | EM18: C | EO18: 16 | EP18: Belarus | EQ18: BLR | ET18: http://www.president.gov.by | EU18: 2 | EV18: https://www.portal.gov.by | EW18: 0.3228 | EX18: 81 | EY18: 16 | EZ18: 14 | FA18: 26 | FB18: 31 | FG18: http://www.nbrb.by/ | FH18: 1993 | FI18: http://siteresources.worldbank.org/BELARUSEXTN/Resources/PEFA_Belarus_april_2009_english.pdf | FJ18: 1993 | FK18: 2 | FL18: 4 | FM18: - | FN18: - | FO18: - | FP18: - | FQ18: http://www.nalog.gov.by | FR18: 1990 | FS18: Single Window | FT18: e-Tax and other portals | FU18: 2 | FV18: COTS | FW18: http://www.nalog.gov.by/ru/el-service | FX18: 2009 | FY18: 3 | FZ18: 2 | GA18: http://www.customs.gov.by | GB18: 1991 | GC18: 1993 | GD18: 0 | GE18: NASED | GF18: National Automated System of Electronic Declaration | GG18: 2 | GH18: COTS | GI18: http://gtk.gov.by/ru/eldeclaration_new/informacija_o_NASED | GJ18: 2008 | GK18: 3 | GL18: 2 | GM18: 1 | GN18: 0 | GO18: http://www.portal.nalog.gov.by/web/nalog/home | GP18: 2009 | GQ18: 3 | GR18: 1 | GS18: http://www.portal.gov.by | GT18: 2009 | GU18: 2 | GV18: http://www.nces.by/ | GW18: 2012 | GX18: 3 | GY18: =IFERROR(VLOOKUP($C18,'PS Employment'!$B$2:$N$107,12,FALSE)*1000,"-") -> 2261700 | GZ18: 2 | HA18: http://laborsta.ilo.org/STP/guest | HB18: 2007 | HC18: HRMIS | HD18: Human Resources Management Information System | HE18: 1 | HF18: LDSW | HG18: http://www.pefa.org/en/assessment/jun14-pfmpr-public-en | HH18: - | HI18: 3 | HJ18: 1 | HK18: PS | HL18: Ministry Payroll Systems | HM18: 1 | HN18: LDSW | HO18: http://www.pefa.org/en/assessment/jun14-pfmpr-public-en | HP18: 2003 | HQ18: 3 | HR18: 1 | HS18: C | HT18: Procurement Portal | HU18: http://www.goszakupki.by | HV18: 2012 | HW18: 3 | HX18: 2 | HY18: http://www.goszakupki.by/search/auctions | IA18: 2 | IB18: DMFAS | ID18: 1994 | IE18: 0 | IF18: MoF | IG18: 0 | IH18: 14 | II18: 63.63636364 | IJ18: B | IK18: UMIC | IL18: ECA
A19: 17 | C19: Belgium | D19: HIC | E19: 11008 | F19: 506234.9731 | G19: 45990 | H19: http://www.treasury.fgov.be | I19: Belgian Administration of the Treasury | J19: 2 | K19: http://www.begroting.be/portal/page/portal/INTERNET_pagegroup/INTERNET_home/TAB149685 | L19: 1 | M19: http://www.begroting.be/portal/page/portal/INTERNET_pagegroup/INTERNET_fedcom | N19: 1 | O19: http://www.begroting.be/portal/page/portal/INTERNET_pagegroup/INTERNET_ontvangst | P19: 0 | Q19: - | R19: 0 | S19: 0 | T19: - | U19: 2 | V19: 1 | W19: 0 | X19: - | Y19: 1 | Z19: http://www.begroting.be/portal/page/portal/INTERNET_pagegroup/INTERNET_hergroepering | AA19: 1 | AB19: 1 | AC19: 2007 | AD19: 1 | AE19: 1 | AF19: 4 | AG19: 2006 | AH19: 0 | AJ19: - | AK19: 1 | AL19: 4 | AM19: 1 | AN19: 2007 | AO19: 1 | AP19: 1 | AQ19: 2007 | AR19: 1 | AS19: 1 | AT19: 1 | AU19: 1 | AV19: 1 | AW19: 1 | AX19: 1 | AY19: 1 | AZ19: 1 | BA19: 1 | BB19: 0 | BC19: - | BD19: 1 | BE19: http://data.gov.be | BF19: 0 | BG19: - | BH19: 1 | BI19: http://www.begroting.be/portal/page/portal/INTERNET_pagegroup/INTERNET_algemenegegevensbank | BJ19: 2 | BK19: http://statbel.fgov.be | BL19: Belgium National Institute of Statistics | BM19: http://www.bnb.be | BN19: National Bank of Belgium | BO19: http://ccff02.minfin.fgov.be/KMWeb/ | BP19: 1 | BQ19: http://www.freedominfo.org/wp-content/uploads/documents/global_survey2006.pdf | BR19: 1 | BS19: http://www.begroting.be/portal/page/portal/INTERNET_pagegroup/INTERNET_voorschriften/TAB149685 | BT19: 2 | BU19: - | BV19: 0 | BW19: 3 | BX19: - | BY19: dut | BZ19: fre | CA19: eng | CB19: - | CC19: 0 | CD19: FEDCOM | CE19: Federal Public Budget and Management Control | CF19: C | CG19: T | CH19: 3 | CI19: 2009 | CJ19: C+L | CK19: 1 | CL19: 2 | CM19: SAP | CN19: Web | CO19: 2 | CP19: - | CQ19: - | CR19: - | CS19: - | CT19: - | CU19: - | CV19: - | CW19: - | CX19: - | CY19: - | CZ19: - | DA19: - | DB19: - | DC19: - | DD19: - | DE19: - | DF19: - | DH19: 1 | DI19: 25 | DJ19: 0.75638 | DK19: 0.62745 | DL19: 0.67716 | DM19: 0.6988 | DN19: 0.8932 | DO19: 24 | DP19: 0.7718 | DQ19: 0.6471 | DR19: 0.742 | DS19: 0.9264 | DU19: EU | DV19: OECD | DY19: Belgium | DZ19: 5 | EA19: 1 | EB19: 1 | EC19: 2 | ED19: 1 | EE19: 2 | EI19: 2 | EK19: 16 | EL19: 61.53846154 | EM19: B | EO19: 17 | EP19: Belgium | EQ19: BEL | ET19: http://www.belgium.be | EU19: 2 | EV19: http://my.belgium.be/login.html?locale=nl | EW19: 0.6772 | EX19: 94 | EY19: 64 | EZ19: 42 | FA19: 50 | FB19: 61 | FG19: http://treasury.fgov.be | FH19: 1970 | FI19: http://www.nbb.be/pub/01_00_00_00_00/01_01_00_00_00/01_01_07_00_00.htm?l=en | FJ19: 1988 | FK19: 3 | FL19: 4 | FM19: - | FN19: - | FO19: - | FP19: - | FQ19: http://financien.belgium.be/nl/E-services | FR19: 2002 | FS19: Single Window | FT19: MyMinFin, Tax on web | FU19: 2 | FV19: COTS | FW19: http://financien.belgium.be/nl/E-services | FX19: 2002 | FY19: 3 | FZ19: 2 | GA19: http://www.fiscus.fgov.be | GB19: 1922 | GC19: 1952 | GD19: 3 | GE19: PLDA | GF19: Paperless Douanes et Accises | GG19: 2 | GH19: COTS | GI19: http://plda.fgov.be/fr/bienvenue | GJ19: 2006 | GK19: 3 | GL19: 2 | GM19: 1 | GN19: 0 | GO19: http://financien.belgium.be/nl/E-services/ | GP19: 2003 | GQ19: 3 | GR19: 1 | GS19: http://www.fedict.belgium.be/en/online_applications/interactieplatformen/detailfiches/epayment.jsp?referer=tcm:464-125178-64 | GT19: 2011 | GU19: 2 | GV19: http://code.google.com/p/eid-dss/ | GW19: 2007 | GX19: 3 | GY19: =IFERROR(VLOOKUP($C19,'PS Employment'!$B$2:$N$107,12,FALSE)*1000,"-") -> 840700 | GZ19: 2 | HA19: http://laborsta.ilo.org/STP/guest | HB19: 2010 | HC19: DeBOHRA | HD19: Data Base Oracle for Human Resources Administration | HE19: 2 | HF19: Oracle | HG19: http://ceur-ws.org/Vol-570/570-complete.pdf | HH19: 2008 | HI19: 3 | HJ19: 2 | HK19: DeBOHRA | HL19: Data Base Oracle for Human Resources Administration | HM19: 2 | HN19: Oracle | HO19: http://ceur-ws.org/Vol-570/570-complete.pdf | HP19: 2008 | HQ19: 3 | HR19: 2 | HS19: - | HT19: Public Procurement Portal | HU19: http://www.publicprocurement.be | HV19: 2011 | HW19: 3 | HX19: 2 | HY19: https://enot.publicprocurement.be | HZ19: Belgium Federal Public Debt Agency | IH19: 16 | II19: 72.72727273 | IJ19: B | IK19: HIC
A20: 18 | C20: Belize | D20: LMIC | E20: 356.6 | F20: 1322.393931 | G20: 3710 | H20: http://www.mof.gov.bz | I20: Ministry of Finance of Belize | J20: 1 | K20: http://www.belize.gov.bz/index.php/approved-budget-2014-2015 | L20: 1 | M20: http://sifbelize.org/LinkClick.aspx?fileticket=WJ4Ue5aFZSc%3D&tabid=74 | N20: 0 | O20: - | P20: 0 | Q20: - | R20: 0 | S20: 0 | T20: - | U20: 1 | V20: 1 | W20: 0 | X20: - | Y20: 0 | Z20: http://www.mof.gov.bz/dms20uc/dm_browse.asp?pid=84 | AA20: 1 | AB20: 1 | AC20: 2001 | AD20: 0 | AF20: - | AG20: - | AH20: 0 | AJ20: - | AK20: 1 | AL20: 4 | AM20: 0 | AN20: 2012 | AO20: 0 | AQ20: - | AR20: 1 | AS20: 0 | AT20: 0 | AU20: 0 | AV20: 0 | AW20: 1 | AX20: 1 | AY20: 0 | AZ20: 0 | BA20: 0 | BB20: 0 | BC20: - | BD20: 1 | BE20: http://www.belize.gov.bz | BF20: 0 | BG20: - | BH20: 0 | BI20: - | BJ20: 0 | BK20: http://statisticsbelize.org.bz | BL20: Statistical Institute of Belize | BM20: http://www.centralbank.org.bz | BN20: Central Bank of Belize | BO20: - | BP20: 0 | BQ20: - | BR20: 1 | BS20: http://www.mof.gov.bz/aboutus.asp | BT20: 0 | BU20: - | BV20: 0 | BW20: 3 | BX20: Option for subscription to Ministry of Finance Newsletter | BY20: eng | BZ20: - | CA20: - | CB20: - | CC20: - | CD20: FS | CE20: Financial System | CF20: C | CG20: F | CH20: 3 | CI20: 1999 | CJ20: C | CK20: 1 | CL20: 2 | CM20: SmartStream | CN20: Web | CO20: 3 | CP20: Jan 2009 | CQ20: Final | CR20: 1 | CS20: X | CT20: X | CU20: X | CV20: X | CW20: X | CX20: X | CY20: X | CZ20: X | DA20: X | DB20: X | DC20: 1.55 | DD20: 1.774193548 | DE20: - | DF20: - | DH20: 0 | DI20: 120 | DJ20: 0.37738 | DK20: 0.29411 | DL20: 0.37795 | DM20: 0.15295 | DN20: 0.6012 | DO20: 124 | DP20: 0.3923 | DQ20: 0.3987 | DR20: 0.1627 | DS20: 0.6155 | DT20: LCR | DY20: Belize | DZ20: 0 | EE20: 0 | EJ20: 2013-05-06 | EK20: 7 | EL20: 26.92307692 | EM20: C | EO20: 18 | EP20: Belize | EQ20: BLZ | ET20: http://www.belize.gov.bz | EU20: 1 | EV20: http://www.reporter.bz/business/cito-working-towards-e-government | EW20: 0.378 | EX20: 66 | EY20: 50 | EZ20: 16 | FA20: 15 | FB20: 36 | FG20: http://www.mof.gov.bz | FH20: 1981 | FI20: http://www.cito.gov.bz/GICS.htm | FJ20: 1999 | FK20: 3 | FL20: 4 | FM20: - | FN20: - | FO20: - | FP20: - | FQ20: http://www.incometaxbelize.gov.bz | FR20: 1924 | FS20: SIGTAS | FT20: Standard Integrated Government Tax System | FU20: 2 | FV20: SIGTAS | FW20: http://siteresources.worldbank.org/EXTSEMCAR/Resources/SEMCAR_Second_Year_Progress_Report.pdf?resourceurlname=SEMCAR_Second_Year_Progress_Report.pdf | FX20: 2002 | FY20: 3 | FZ20: 2 | GA20: http://www.customs.gov.bz | GB20: 1955 | GC20: 2008 | GD20: 4 | GE20: ASYCUDA World | GF20: Automated SYstem for CUstoms DAta | GG20: 2 | GH20: ASYCUDA W | GI20: http://www.customs.gov.bz/asycuda.html | GJ20: 1993 | GK20: 3 | GL20: 2 | GM20: 1 | GN20: 1 | GO20: http://www.gst.gov.bz/press/may10_07.html | GP20: 2007 | GQ20: 3 | GR20: 1 | GS20: - | GT20: - | GU20: 0 | GV20: http://www.wipo.int/wipolex/en/text.jsp?file_id=209489 | GW20: 2003 | GX20: 1 | GY20: 15600 | GZ20: 1 | HA20: http://idbdocs.iadb.org/wsdocs/getdocument.aspx?docnum=38061144 | HB20: 2011 | HC20: HRMIS | HD20: Human Resources Management Information System | HE20: 2 | HF20: SmartStream | HG20: http://idbdocs.iadb.org/wsdocs/getdocument.aspx?docnum=831589 | HH20: 2005 | HI20: 3 | HJ20: 2 | HK20: FS | HL20: Financial System | HM20: 2 | HN20: SmartStream | HO20: http://idbdocs.iadb.org/wsdocs/getdocument.aspx?docnum=831589 | HP20: 2005 | HQ20: 3 | HR20: 2 | HS20: X | HT20: - | HU20: http://www.oas.org/juridico/english/blz_workshop.pdf | HV20: - | HW20: 0 | HX20: 0 | HY20: - | IA20: 2 | IB20: CS-DRMS | ID20: 1987 | IE20: 3 | IF20: MoF | IH20: 14 | II20: 63.63636364 | IJ20: B | IK20: LMIC | IL20: LCR
A21: 19 | C21: Benin | D21: LIC | E21: 9099.922 | F21: 7119.567797 | G21: 780 | H21: http://www.finances.bj | I21: Benin Ministry of Economy and Finances | J21: 0 | K21: - | L21: 2 | M21: http://www.sndi.ci/index.php/component/content/article/35-infosndi/78-sigfip.html | N21: 0 | O21: - | P21: 0 | Q21: - | R21: 0 | S21: 0 | T21: - | U21: 1 | V21: 0 | W21: 1 | X21: http://www.finances.bj/IMG/pdf/budget_des_citoyens_relatif_au_budget_adopte_2014.pdf | Y21: 1 | Z21: http://www.finances.bj/spip.php?article1169 | AA21: 0 | AC21: - | AD21: 0 | AF21: - | AG21: - | AH21: 0 | AJ21: - | AK21: 0 | AN21: - | AO21: 0 | AQ21: - | AR21: 0 | AS21: 0 | AT21: 0 | AU21: 0 | AV21: 0 | AW21: 0 | AX21: 0 | AY21: 0 | AZ21: 0 | BA21: 0 | BB21: 0 | BC21: - | BD21: 0 | BE21: - | BF21: 0 | BG21: - | BH21: 0 | BI21: - | BJ21: 0 | BK21: http://insae-bj.org | BL21: Institut national de la statistique et de l'analyse économique French (INSAE) | BM21: http://www.bceao.int | BN21: Central Bank of West African States (BCEAO) | BO21: - | BP21: 0 | BQ21: - | BR21: 0 | BS21: - | BT21: 0 | BU21: - | BV21: 0 | BW21: 1 | BX21: - | BY21: fre | BZ21: - | CA21: - | CB21: - | CC21: - | CD21: ASTER/SIGFIP | CE21: Application des Services du Trésor en Réseau / Système Intégré de Gestion des Finances Publiques | CF21: C | CG21: T | CH21: 3 | CI21: 2004 | CJ21: C | CK21: 1 | CL21: 1 | CM21: LDSW > Oracle | CN21: CS | CO21: 1 | CP21: Sep 2007 | CQ21: Public | CR21: 1 | CS21: C | CT21: C | CU21: C | CV21: B+ | CW21: C | CX21: D | CY21: C | CZ21: D+ | DA21: D | DB21: D+ | DC21: 1.85 | DD21: 1.967741935 | DE21: 1 | DF21: - | DH21: 2 | DI21: 180 | DJ21: 0.1685 | DK21: 0.17647 | DL21: 0.11023 | DM21: 0.11964 | DN21: 0.2756 | DO21: 179 | DP21: 0.2064 | DQ21: 0.1961 | DR21: 0.1118 | DS21: 0.3113 | DT21: AFR | DY21: Benin | DZ21: 1 | EB21: 1 | EE21: 0 | EK21: 5 | EL21: 19.23076923 | EM21: D | EO21: 19 | EP21: Benin | EQ21: BEN | ET21: http://www.gouv.bj | EU21: 0 | EV21: http://www.gouv.bj/demarches-administratives | EW21: 0.1102 | EX21: 47 | EY21: 7 | EZ21: 2 | FA21: 6 | FB21: 14 | FG21: http://www.finances.bj/spip.php?article430 | FH21: 1990 | FI21: http://afritacouest.org/images/23coEng.pdf | FJ21: - | FK21: 0 | FL21: - | FM21: - | FN21: - | FO21: - | FP21: - | FQ21: http://www.impots.finances.gouv.bj/accueil | FR21: 1967 | FS21: - | FT21: Forms and information | FU21: 0 | FV21: - | FW21: - | FX21: - | FY21: 0 | FZ21: 1 | GA21: http://www.douanes-benin.net | GB21: 1993 | GC21: 1998 | GD21: 4 | GE21: ASYCUDA++ | GF21: Automated SYstem for CUstoms DAta | GG21: 2 | GH21: ASYCUDA ++ | GI21: http://unctad.org/en/PublicationsLibrary/dtlasycuda2011d1_en.pdf | GJ21: 2003 | GK21: 3 | GL21: 2 | GM21: 1 | GN21: 1 | GO21: - | GP21: - | GQ21: 1 | GR21: 0 | GS21: - | GT21: - | GU21: 0 | GV21: - | GW21: - | GX21: 0 | GY21: 63000 | GZ21: 1 | HA21: http://unpan1.un.org/intradoc/groups/public/documents/un/unpan023250.pdf | HB21: 2005 | HC21: SIGFAE | HD21: Integrated Management System Officials and Civil Servants | HE21: 1 | HF21: LDSW | HG21: https://www.fonctionpublique.egouv.ci/?fp=personnel_pension | HH21: - | HI21: 2 | HJ21: 2 | HK21: PS | HL21: Payroll System | HM21: 1 | HN21: LDSW | HO21: http://www.pefa.org/en/assessment/bj-sep07-pfmpr-public-en | HP21: - | HQ21: 3 | HR21: 1 | HS21: B | HT21: SIGMAP | HU21: http://www.armp.bj/index.php/13-reformes/42-systeme-actuel-des-marches-publics | HV21: - | HW21: 1 | HX21: 0 | HY21: - | IA21: 2 | IB21: CS-DRMS | ID21: 1995 | IE21: 3 | IF21: CAA | IH21: 8 | II21: 36.36363636 | IJ21: C | IK21: LIC | IL21: AFR
A22: 20 | C22: Bhutan | D22: LMIC | E22: 738.267 | F22: 1569.44954 | G22: 2130 | H22: http://www.mof.gov.bt | I22: Bhutan Ministry of Finance | J22: 2 | K22: http://www.mof.gov.bt/index.php?deptid=17&id=27 | L22: 2 | M22: http://www.myrbpems.bt | N22: 1 | O22: - | P22: 0 | Q22: - | R22: 0 | S22: 0 | T22: - | U22: 2 | V22: 1 | W22: 0 | X22: - | Y22: 1 | Z22: http://www.mof.gov.bt/index.php?deptid=13&id=79 | AA22: 1 | AB22: 1 | AC22: 1993 | AD22: 1 | AE22: 1 | AF22: 3 | AG22: 2007 | AH22: 0 | AJ22: - | AK22: 1 | AL22: 4 | AM22: 1 | AN22: 1993 | AO22: 0 | AQ22: - | AR22: 1 | AS22: 1 | AT22: 1 | AU22: 0 | AV22: 0 | AW22: 1 | AX22: 1 | AY22: 1 | AZ22: 1 | BA22: 0 | BB22: 0 | BC22: - | BD22: 0 | BE22: - | BF22: 0 | BG22: - | BH22: 1 | BI22: http://www.mof.gov.bt/downloads/BudgetReportFY2008-09.pdf | BJ22: 0 | BK22: http://www.nsb.gov.bt | BL22: Bhutan National Statistics Bureau | BM22: http://www.rma.org.bt | BN22: Royal Monetary Authority of Bhutan | BO22: - | BP22: 0 | BQ22: - | BR22: 1 | BS22: http://www.mof.gov.bt/index.php?deptid=11&id=53 | BT22: 0 | BU22: - | BV22: 0 | BW22: 1 | BX22: - | BY22: eng | BZ22: - | CA22: - | CB22: - | CC22: - | CD22: PEMS | CE22: Public Expenditure Management System | CF22: C | CG22: F | CH22: 3 | CI22: 2008 | CJ22: C+L | CK22: 1 | CL22: 1 | CM22: LDSW | CN22: Web | CO22: 3 | CP22: Jun 2010 | CQ22: Public | CR22: 1 | CS22: B | CT22: A | CU22: B | CV22: B+ | CW22: B | CX22: A | CY22: D+ | CZ22: C+ | DA22: B+ | DB22: D+ | DC22: 2.95 | DD22: 2.966666667 | DE22: - | DF22: - | DH22: 1 | DI22: 143 | DJ22: 0.28285 | DK22: 0.35294 | DL22: 0.24409 | DM22: 0.17546 | DN22: 0.429 | DO22: 152 | DP22: 0.2942 | DQ22: 0.3529 | DR22: 0.1143 | DS22: 0.4153 | DT22: SAR | DY22: Bhutan | DZ22: 0 | EE22: 0 | EK22: 15 | EL22: 57.69230769 | EM22: B | EO22: 20 | EP22: Bhutan | EQ22: BTN | ET22: http://www.bhutan.gov.bt | EU22: 1 | EV22: http://www.bhutan.gov.bt | EW22: 0.2441 | EX22: 69 | EY22: 23 | EZ22: 2 | FA22: 15 | FB22: 25 | FG22: http://www.mof.gov.bt/content/pageContent.php?id=25 | FH22: 1961 | FI22: http://www.mof.gov.bt/publication/files/pub3un3519iz.pdf | FJ22: 2008 | FK22: 2 | FL22: 4 | FM22: - | FN22: - | FO22: - | FP22: - | FQ22: http://www.mof.gov.bt | FR22: 2001 | FS22: RAMIS | FT22: Revenue Administration and Management Information System | FU22: 2 | FV22: PACE | FW22: http://www.mof.gov.bt/wp-content/uploads/2014/07/nr2011-2012.pdf | FX22: 2013 | FY22: 3 | FZ22: 2 | GA22: http://www.mof.gov.bt | GB22: 2000 | GC22: 2002 | GD22: 0 | GE22: BACS | GF22: Bhutan Automated Customs System | GG22: 1 | GH22: LDSW | GI22: http://www.mof.gov.bt/wp-content/uploads/2014/07/yong2008.pdf | GJ22: 2004 | GK22: 3 | GL22: 2 | GM22: 0 | GN22: 0 | GO22: http://www.mof.gov.bt/pit/ | GP22: 2009 | GQ22: 2 | GR22: 0 | GS22: - | GT22: - | GU22: 0 | GV22: http://www.bicma.gov.bt/ACT/English.pdf | GW22: 2006 | GX22: 1 | GY22: 13200 | GZ22: 1 | HA22: http://unpan1.un.org/intradoc/groups/public/documents/un/unpan023230.pdf | HB22: 2005 | HC22: CSIS | HD22: Civil service information system | HE22: 1 | HF22: LDSW | HG22: http://csis.rcsc.gov.bt/RCSC/WebUI/Default.aspx | HH22: 2010 | HI22: 3 | HJ22: 2 | HK22: PEMS | HL22: Public Expenditure Management System | HM22: 1 | HN22: LDSW | HO22: http://www.mof.gov.bt/wp-content/uploads/2014/07/PEMSEnhancement10012014.pdf | HP22: 2014 | HQ22: 3 | HR22: 2 | HS22: C | HT22: - | HU22: http://www.pppd.gov.bt | HV22: - | HW22: 1 | HX22: 0 | HY22: - | IA22: 2 | IB22: CS-DRMS | ID22: 2006 | IE22: 3 | IF22: MoF | IH22: 14 | II22: 63.63636364 | IJ22: B | IK22: LMIC | IL22: SAR
A23: 21 | C23: Bolivia | D23: LMIC | E23: 10088.108 | F23: 20421.5836 | G23: 2020 | H23: http://www.economiayfinanzas.gob.bo | I23: Ministerio de Economía y Finanzas Públicas | J23: 2 | K23: http://www.economiayfinanzas.gob.bo/index.php?opcion=com_indicadores&ver=indicadores&idc=585 | L23: 2 | M23: http://www.sigma.gob.bo/php/index.php | N23: 2 | O23: http://vmpc.economiayfinanzas.gob.bo/financiera0.asp | P23: 1 | Q23: http://www.economiayfinanzas.gob.bo/index.php?opcion=com_indicadores&ver=indicadores&idc=582 | R23: 1 | S23: 1 | T23: http://medios.economiayfinanzas.gob.bo/MH/documentos/ppto2011/index.htm | U23: 2 | V23: 1 | W23: 0 | X23: - | Y23: 1 | Z23: http://vmpc.economiayfinanzas.gob.bo/modelos_c.asp | AA23: 1 | AB23: 1 | AC23: 2001 | AD23: 0 | AF23: - | AG23: - | AH23: 0 | AJ23: - | AK23: 1 | AL23: 4 | AM23: 1 | AN23: 2001 | AO23: 1 | AP23: 1 | AQ23: 2001 | AR23: 1 | AS23: 1 | AT23: 1 | AU23: 0 | AV23: 0 | AW23: 1 | AX23: 1 | AY23: 1 | AZ23: 1 | BA23: 1 | BB23: 0 | BC23: - | BD23: 0 | BE23: - | BF23: 2 | BG23: http://www.sigma.gob.bo/pgn/sfpm2011/index.htm?&id_item=527 | BH23: 1 | BI23: http://www.economiayfinanzas.gob.bo/index.php?opcion=com_contenido&ver=contenido&id=2094&id_item=625&id_item=489 | BJ23: 1 | BK23: http://www.ine.gob.bo | BL23: National Institute of Statistics | BM23: http://www.bcb.gob.bo | BN23: Central Bank of Bolivia | BO23: - | BP23: 1 | BQ23: http://www.economiayfinanzas.gob.bo/index.php?opcion=com_contenido&ver=contenido&id=834&id_item=464 | BR23: 1 | BS23: http://www.economiayfinanzas.gob.bo/institucion/estorgpdf.php?sw=0 | BT23: 0 | BU23: National laws and regulations | BV23: 1 | BW23: 3 | BX23: - | BY23: spa | BZ23: eng | CA23: - | CB23: - | CC23: 0 | CD23: SIGMA | CE23: Sistema Integrado de Gestión y Modernización Administrativa | CF23: C | CG23: F | CH23: 3 | CI23: 2003 | CJ23: C+L | CK23: 1 | CL23: 1 | CM23: LDSW > Oracle | CN23: Web | CO23: 3 | CP23: Oct 2009 | CQ23: Public | CR23: 2 | CS23: A | CT23: C | CU23: B | CV23: C | CW23: B | CX23: D | CY23: C+ | CZ23: D+ | DA23: D+ | DB23: C | DC23: 2.25 | DD23: 2.517241379 | DE23: 12 | DF23: 13 | DH23: 0 | DI23: 103 | DJ23: 0.45617 | DK23: 0.41176 | DL23: 0.3937 | DM23: 0.23242 | DN23: 0.7424 | DO23: 106 | DP23: 0.4658 | DQ23: 0.4118 | DR23: 0.1786 | DS23: 0.8072 | DT23: LCR | DY23: Bolivia | DZ23: 1 | EC23: 1 | EE23: 0 | EK23: 19 | EL23: 73.07692308 | EM23: B | EO23: 21 | EP23: Bolivia | EQ23: BOL | ET23: http://www.bolivia.gob.bo | EU23: 2 | EV23: http://www.adsib.gob.bo/adsibnueva | EW23: 0.3937 | EX23: 69 | EY23: 39 | EZ23: 16 | FA23: 32 | FB23: 37 | FG23: http://www.economiayfinanzas.gob.bo/index.php?id_portal=VTCP | FH23: 1993 | FI23: http://www.economiayfinanzas.gob.bo/index.php?opcion=com_contenido&ver=contenido&id=1620&seccion=315&categoria=458 | FJ23: 2000 | FK23: 3 | FL23: 4 | FM23: - | FN23: - | FO23: - | FP23: - | FQ23: http://www.impuestos.gob.bo | FR23: 2000 | FS23: e-Tax | FT23: Virtual Office | FU23: 2 | FV23: COTS | FW23: http://ov.impuestos.gob.bo/Login.aspx | FX23: 2010 | FY23: 3 | FZ23: 2 | GA23: http://www.aduana.gob.bo | GB23: 1990 | GC23: 1997 | GD23: 4 | GE23: ASYCUDA++ | GF23: Automated SYstem for CUstoms DAta | GG23: 2 | GH23: ASYCUDA ++ | GI23: http://www.sidunea.aduana.gob.bo/ | GJ23: 2004 | GK23: 3 | GL23: 2 | GM23: 1 | GN23: 0 | GO23: http://ov.impuestos.gob.bo/Login.aspx | GP23: 2010 | GQ23: 2 | GR23: 0 | GS23: - | GT23: - | GU23: 0 | GV23: http://www.redipd.org/documentacion/legislacion/common/legislacion/Bolivia/proyecto_ley_080_2007.pdf | GW23: 2007 | GX23: 1 | GY23: 245000 | GZ23: 1 | HA23: http://www.pefa.org/en/assessment/bo-oct09-pfmpr-public-en | HB23: 2008 | HC23: SIGMA | HD23: Sistema Integrado de Gestión y Modernización Administrativa | HE23: 1 | HF23: LDSW | HG23: https://www.pefa.org/en/assessment/bo-oct09-pfmpr-public-en | HH23: 2003 | HI23: 3 | HJ23: 2 | HK23: SIGMA | HL23: Sistema Integrado de Gestión y Modernización Administrativa | HM23: 1 | HN23: LDSW | HO23: http://www.sigma.gob.bo/php/index.php | HP23: 2003 | HQ23: 3 | HR23: 2 | HS23: B | HT23: SICOES | HU23: http://www.sicoes.gob.bo | HV23: 2003 | HW23: 3 | HX23: 1 | HY23: https://www.sicoes.gob.bo/general/frames.php?direccion=../incumplimiento/pacno.php | IA23: 2 | IB23: DMFAS 5.3 | ID23: 1993 | IE23: 3 | IF23: MoF | IG23: 4T | IH23: 16 | II23: 72.72727273 | IJ23: B | IK23: LMIC | IL23: LCR
A24: 22 | C24: Bosnia and Herzegovina | D24: UMIC | E24: 3752.228 | F24: 17950.88176 | G24: 4780 | H24: http://www.fmf.gov.ba | I24: Bosnia and Herzegovina Ministry of Finance | J24: 2 | K24: http://www.fmf.gov.ba/ | L24: 1 | M24: http://www.fiscalreform.net/pdfs/bosnia_treasury_and_payment_bureaus.pdf | N24: 1 | O24: - | P24: 0 | Q24: - | R24: 0 | S24: 0 | T24: - | U24: 1 | V24: 1 | W24: 0 | X24: - | Y24: 1 | Z24: http://www.fmf.gov.ba/zakoni/2010/bosanski/pravilnici/Pravilnik%20o%20kontnom%20okviru,sadrzaju%20konta%20i%20primjeni%20kontnog%20okvira%20za%20banke%20i%20druge%20financijske%20organizacije.pdf | AA24: 1 | AB24: 1 | AC24: 2000 | AD24: 1 | AE24: 1 | AF24: 3 | AG24: 2008 | AH24: 0 | AJ24: - | AK24: 1 | AL24: 4 | AM24: 0 | AN24: 2006 | AO24: 1 | AP24: 0 | AQ24: 2011 | AR24: 1 | AS24: 1 | AT24: 0 | AU24: 0 | AV24: 0 | AW24: 1 | AX24: 1 | AY24: 1 | AZ24: 1 | BA24: 0 | BB24: 0 | BC24: - | BD24: 0 | BE24: - | BF24: 0 | BG24: - | BH24: 0 | BI24: - | BJ24: 0 | BK24: http://www.bhas.ba | BL24: Bosnia and Herzegovina Agency for Statistics | BM24: http://www.cbbh.ba | BN24: Central Bank of Bosnia and Herzegovina | BO24: - | BP24: 0 | BQ24: - | BR24: 1 | BS24: http://www.fmf.gov.ba/publikacije/Unutarnje_ustrojstvo.pdf | BT24: 0 | BU24: National laws and regulations | BV24: 0 | BW24: 2 | BX24: - | BY24: hrv | BZ24: bos | CA24: eng | CB24: - | CC24: 0 | CD24: FMIS | CE24: Financial Management Information System | CF24: D | CG24: F | CH24: 3 | CI24: 2004 | CJ24: C+L | CK24: 1 | CL24: 2 | CM24: Oracle | CN24: Web | CO24: 3 | CP24: Nov 2013 | CQ24: Draft | CR24: - | CS24: - | CT24: - | CU24: - | CV24: - | CW24: - | CX24: - | CY24: - | CZ24: - | DA24: - | DB24: - | DC24: - | DD24: - | DE24: 50 | DF24: 44 | DH24: 2 | DI24: 97 | DJ24: 0.47069 | DK24: 0.23529 | DL24: 0.28346 | DM24: 0.3998 | DN24: 0.7288 | DO24: 79 | DP24: 0.5328 | DQ24: 0.3725 | DR24: 0.3917 | DS24: 0.8341 | DT24: ECA | DX24: F | DY24: Bosnia and Herzegovina | DZ24: 0 | EE24: 0 | EK24: 13 | EL24: 50 | EM24: B | EO24: 22 | EP24: Bosnia and Herzegovina | EQ24: BIH | ET24: http://www.fbihvlada.gov.ba | EU24: 0 | EV24: http://www.esrpska.com | EW24: 0.2835 | EX24: 56 | EY24: 41 | EZ24: 7 | FA24: 12 | FB24: 28 | FG24: http://www.vijeceministara.gov.ba/ministarstva/finansije_i_trezor/default.aspx?id=108&langTag=en-US | FH24: 1995 | FI24: http://www.mft.gov.ba/bos/images/stories/ministarstvo/STRATEGIJA_PIFC_konacno_22012010_EN.pdf | FJ24: 2004 | FK24: 3 | FL24: 4 | FM24: - | FN24: - | FO24: - | FP24: - | FQ24: http://www.pufbih.ba | FR24: 2003 | FS24: ALICE | FT24: A Logical Integrated Computerized Environment | FU24: 1 | FV24: LDSW ? | FW24: http://www.uino.gov.ba/en/IT_sektor/ALICE.html | FX24: 2005 | FY24: 3 | FZ24: 2 | GA24: http://www.uino.gov.ba | GB24: 2003 | GC24: 2008 | GD24: 4 | GE24: ASYCUDA++ | GF24: Automated SYstem for CUstoms DAta | GG24: 2 | GH24: ASYCUDA ++ | GI24: http://www.uino.gov.ba/en/IT_sektor/Asycuda.html | GJ24: 2003 | GK24: 3 | GL24: 2 | GM24: 1 | GN24: 1 | GO24: http://81.93.76.226/SiteCir/Ppo.aspx | GP24: 2012 | GQ24: 2 | GR24: 1 | GS24: - | GT24: - | GU24: 0 | GV24: - | GW24: - | GX24: 0 | GY24: 210700 | GZ24: 2 | HA24: http://unpan1.un.org/intradoc/groups/public/documents/un/unpan023209.pdf | HB24: 2003 | HC24: HRMIS | HD24: HRM Information System | HE24: 2 | HF24: COTS | HG24: http://www.adsfbih.gov.ba/index.php?lang=ba&sel=165 | HH24: - | HI24: 2 | HJ24: 2 | HK24: FMIS | HL24: Financial Management Information System | HM24: 2 | HN24: Oracle | HO24: http://www.pefa.org/en/assessment/ba-bih-may14-pfmpr-public-en | HP24: 2004 | HQ24: 3 | HR24: 2 | HS24: - | HT24: Go-Procure | HU24: http://javnenabavke.ba | HV24: 2011 | HW24: 3 | HX24: 1 | HY24: http://javnenabavke.ba | HZ24: Federal Ministry of Finance | IH24: 15 | II24: 68.18181818 | IJ24: B | IK24: UMIC | IL24: ECA
A25: 23 | C25: Botswana | D25: UMIC | E25: 2030.738 | F25: 15175.77745 | G25: 7470 | H25: http://www.finance.gov.bw | I25: Botswana - Ministry of Finance and Development Planning | J25: 2 | K25: http://www.finance.gov.bw/index.php?option=com_content1&parent_id=334&id=336 | L25: 1 | M25: http://www.oag.org.bw/wp-content/uploads/2008/11/GovernmentAccountingandBudgetingSystem%20_GABS_%202007.pdf | N25: 1 | O25: - | P25: 0 | Q25: - | R25: 0 | S25: 0 | T25: - | U25: 1 | V25: 1 | W25: 0 | Y25: 0 | Z25: - | AA25: 0 | AC25: - | AD25: 0 | AF25: - | AG25: - | AH25: 0 | AJ25: - | AK25: 1 | AL25: 4 | AM25: 0 | AN25: 2005 | AO25: 1 | AP25: 1 | AQ25: 2002 | AR25: 1 | AS25: 1 | AT25: 0 | AU25: 0 | AV25: 0 | AW25: 1 | AX25: 1 | AY25: 0 | AZ25: 0 | BA25: 0 | BB25: 0 | BC25: - | BD25: 0 | BE25: - | BF25: 0 | BG25: - | BH25: 0 | BI25: - | BJ25: 0 | BK25: http://www.cso.gov.bw | BL25: Botswana Central Statistics Office | BM25: http://www.bankofbotswana.bw | BN25: Bank of Botswana | BO25: - | BP25: 0 | BQ25: - | BR25: 0 | BS25: - | BT25: 0 | BU25: - | BV25: 0 | BW25: 3 | BX25: - | BY25: eng | BZ25: - | CA25: - | CB25: - | CC25: - | CD25: GABS | CE25: Government Accounting and Budgeting System | CF25: C | CG25: F | CH25: 3 | CI25: 2004 | CJ25: C+L | CK25: 1 | CL25: 2 | CM25: Oracle | CN25: Web | CO25: 2 | CP25: Aug 2013 | CQ25: Public | CR25: 2 | CS25: C | CT25: A | CU25: B | CV25: D+ | CW25: C | CX25: A | CY25: A | CZ25: C+ | DA25: C+ | DB25: D | DC25: 2.65 | DD25: 2.62 | DE25: 50 | DF25: 51 | DH25: 1 | DI25: 112 | DJ25: 0.41984 | DK25: 0.31372 | DL25: 0.30708 | DM25: 0.29694 | DN25: 0.6555 | DO25: 121 | DP25: 0.4186 | DQ25: 0.3595 | DR25: 0.1873 | DS25: 0.7091 | DT25: AFR | DY25: Botswana | DZ25: 0 | EE25: 0 | EJ25: 2013-05-06 | EK25: 9 | EL25: 34.61538462 | EM25: C | EO25: 23 | EP25: Botswana | EQ25: BWA | ET25: http://www.gov.bw | EU25: 1 | EV25: http://www.gov.bw | EW25: 0.3071 | EX25: 72 | EY25: 36 | EZ25: 5 | FA25: 15 | FB25: 30 | FG25: http://www.finance.gov.bw/index.php?option=com_content1&parent_id=184&pparent=187&cat_id=304&id=318 | FH25: 2009 | FI25: http://ec.europa.eu/europeaid/what/economic-support/public-finance/documents/botswana_pefa_report_2009_en.pdf | FJ25: - | FK25: 0 | FL25: - | FM25: - | FN25: - | FO25: - | FP25: - | FQ25: www.burs.org.bw | FR25: 2004 | FS25: TMS | FT25: Tax Management System | FU25: 2 | FV25: COTS | FW25: http://www.burs.org.bw/?option=com_content&view=article&id=48&Itemid=161 | FX25: 2011 | FY25: 3 | FZ25: 2 | GA25: http://www.burs.org.bw | GB25: 2004 | GC25: 1978 | GD25: 4 | GE25: ASYCUDA++ | GF25: Automated SYstem for CUstoms DAta | GG25: 2 | GH25: ASYCUDA ++ | GI25: http://www.burs.org.bw/index.php?option=com_content&view=article&id=95&Itemid=243 | GJ25: 2002 | GK25: 3 | GL25: 2 | GM25: 1 | GN25: 0 | GO25: http://www.burs.org.bw/ | GP25: 2014 | GQ25: 3 | GR25: 0 | GS25: - | GT25: - | GU25: 0 | GV25: http://article.wn.com/view/2014/04/10/ELECTRONIC_COMMUNICATIONS_AND_TRANSACTIONS_BILL_PASSES_Gover/ | GW25: 2014 | GX25: 1 | GY25: =IFERROR(VLOOKUP($C25,'PS Employment'!$B$2:$N$107,12,FALSE)*1000,"-") -> 146952 | GZ25: 2 | HA25: http://laborsta.ilo.org/STP/guest | HB25: 2010 | HC25: HCMS | HD25: Oracle Human Capital Management System | HE25: 2 | HF25: Oracle | HG25: http://www.dcdmconsulting.com/?q=node/252 | HH25: 2014 | HI25: 3 | HJ25: 2 | HK25: GPPP | HL25: Government Payroll, Passages and Pensions | HM25: 2 | HN25: Oracle | HO25: http://www.pefa.org/en/assessment/bw-aug13-pfmpr-public-en | HP25: 2005 | HQ25: 3 | HR25: 2 | HS25: B+ | HT25: IPMS | HU25: http://www.ppadb.co.bw | HV25: 2013 | HW25: 3 | HX25: 1 | HY25: http://ipms.ppadb.co.bw/login | IA25: 2 | IB25: CS-DRMS | ID25: 1986 | IE25: 3 | IF25: MoF | IH25: 15 | II25: 68.18181818 | IJ25: B | IK25: UMIC | IL25: AFR
A26: 24 | C26: Brazil | D26: UMIC | E26: 196655.014 | F26: 2107744.967 | G26: 10720 | H26: http://www.fazenda.gov.br | I26: Ministry of Finance of Brazil | J26: 2 | K26: http://www.stn.fazenda.gov.br | L26: 2 | M26: https://www.tesouro.fazenda.gov.br/pt/siafi | N26: 3 | O26: https://www.tesouro.fazenda.gov.br/index.php?option=com_content&view=article&layout=subhome&id=234&Itemid=436&lang=pt | P26: 1 | Q26: https://www.tesouro.fazenda.gov.br/pt/servicos/series-historicas | R26: 1 | S26: 1 | T26: http://consulta.tesouro.fazenda.gov.br/cofin_novosite/dotacao_vs_desp_param.asp | U26: 2 | V26: 1 | W26: 2 | X26: http://www.portaldatransparencia.gov.br/ | Y26: 1 | Z26: http://www.stn.fazenda.gov.br/contabilidade_governamental/plano_contas.asp | AA26: 1 | AB26: 1 | AC26: 1980 | AD26: 1 | AE26: 1 | AF26: 3 | AG26: 2003 | AH26: 1 | AI26: 1 | AJ26: 2003 | AK26: 1 | AL26: 2 | AM26: 1 | AN26: 1980 | AO26: 1 | AP26: 1 | AQ26: 2004 | AR26: 1 | AS26: 1 | AT26: 1 | AU26: 0 | AV26: 1 | AW26: 1 | AX26: 1 | AY26: 1 | AZ26: 1 | BA26: 1 | BB26: 1 | BC26: http://www.portaldatransparencia.gov.br/ | BD26: 1 | BE26: http://dados.gov.br | BF26: 2 | BG26: http://manualsiafi.tesouro.fazenda.gov.br/150000 | BH26: 1 | BI26: http://www.fazenda.gov.br/ | BJ26: 3 | BK26: http://www.ibge.gov.br/english/default.php | BL26: Brazilian Institute of Geography and Statistics (IBGE) | BM26: http://www.bcb.gov.br | BN26: Central Bank of Brazil | BO26: http://www.bcb.gov.br/?INDECO; http://www.stn.fazenda.gov.br/hp/resultado.asp | BP26: 1 | BQ26: http://www.fazenda.gov.br/acessoainformacao/ | BR26: 1 | BS26: http://www.fazenda.gov.br/ | BT26: 2 | BU26: National laws and regulations | BV26: 1 | BW26: 3 | BX26: Youtube, Twitter | BY26: por | BZ26: eng | CA26: - | CB26: - | CC26: 0 | CD26: SIAFI + SIOP | CE26: Sistema Integrado de Administração Financeira do Governo Federal | CF26: C | CG26: F | CH26: 3 | CI26: 1987 | CJ26: C+L | CK26: 1 | CL26: 1 | CM26: LDSW + OSS | CN26: Web | CO26: 3 | CP26: Dec 2009 | CQ26: Public | CR26: 1 | CS26: A | CT26: A | CU26: A | CV26: B | CW26: A | CX26: A | CY26: A | CZ26: C+ | DA26: C+ | DB26: NU | DC26: 3.555555556 | DD26: 3.517857143 | DE26: 73 | DF26: 71 | DG26: 1 | DH26: 1 | DI26: 57 | DJ26: 0.60082 | DK26: 0.70588 | DL26: 0.59842 | DM26: 0.46681 | DN26: 0.7372 | DO26: 59 | DP26: 0.6167 | DQ26: 0.6732 | DR26: 0.3568 | DS26: 0.8203 | DT26: LCR | DY26: Brazil | DZ26: 9 | EA26: 4 | EB26: 1 | EC26: 2 | ED26: 2 | EE26: 11 | EF26: 2 | EH26: 8 | EI26: 1 | EK26: 26 | EL26: 100 | EM26: A | EO26: 24 | EP26: Brazil | EQ26: BRA | ET26: http://www.brazil.gov.br | EU26: 2 | EV26: http://www.servicos.gov.br | EW26: 0.5984 | EX26: 100 | EY26: 68 | EZ26: 28 | FA26: 26 | FB26: 54 | FG26: http://www.tesouro.fazenda.gov.br/ | FH26: 1986 | FI26: http://www.tesouro.fazenda.gov.br/web/stn/sobre-o-tesouro-nacional | FJ26: 1988 | FK26: 3 | FL26: 4 | FM26: - | FN26: - | FO26: - | FP26: - | FQ26: http://www.receita.fazenda.gov.br | FR26: 2007 | FS26: SIEF | FT26: Sistema Integrado de Informações Econômico Fiscais, Receitanet, and more | FU26: 1 | FV26: LDSW | FW26: https://www.serpro.gov.br/conteudo-solucoes/produtos/fazenda-publica | FX26: 1997 | FY26: 3 | FZ26: 3 | GA26: http://www.receita.fazenda.gov.br | GB26: 2007 | GC26: 1981 | GD26: 3 | GE26: SISCOMEX | GF26: Foreign Trade Integrated System | GG26: 2 | GH26: COTS | GI26: http://portalsiscomex.gov.br | GJ26: 1993 | GK26: 3 | GL26: 3 | GM26: 1 | GN26: 1 | GO26: http://www.receita.fazenda.gov.br/aplicacoes/atbhe/tus/default.aspx?/p/1/a/10 | GP26: 1997 | GQ26: 3 | GR26: 1 | GS26: http://www.receita.fazenda.gov.br/aplicacoes/atbhe/tus/default.aspx?/p/1/a/10 | GT26: - | GU26: 1 | GV26: http://www.iti.gov.br/certificacao-digital/beneficios | GW26: 2001 | GX26: 3 | GY26: =IFERROR(VLOOKUP($C26,'PS Employment'!$B$2:$N$107,12,FALSE)*1000,"-") -> 11474008 | GZ26: 2 | HA26: http://laborsta.ilo.org/STP/guest | HB26: 2009 | HC26: SIAPE | HD26: Integrated Human Resources Management System | HE26: 1 | HF26: LDSW | HG26: https://www.pefa.org/en/assessment/br-dec09-pfmpr-public-en | HH26: 1990 | HI26: 3 | HJ26: 1 | HK26: SIAFI | HL26: Integrated System of Financial Administration of the Federal Government | HM26: 1 | HN26: LDSW | HO26: http://www.stn.fazenda.gov.br/siafi | HP26: 1987 | HQ26: 3 | HR26: 1 | HS26: B+ | HT26: Compras Net | HU26: http://www.comprasgovernamentais.gov.br | HV26: 2001 | HW26: 3 | HX26: 2 | HY26: http://www.comprasgovernamentais.gov.br | HZ26: Brazilian National Treasury Secretariat | IA26: 1 | IB26: LDSW | IH26: 19 | II26: 86.36363636 | IJ26: A | IK26: UMIC | IL26: LCR
A27: 25 | C27: Brunei Darussalam | D27: HIC | E27: 405.938 | F27: 16360 | G27: 40301.72095 | H27: http://www.mof.gov.bn | I27: Ministry of Finance | J27: 0 | K27: - | L27: 2 | M27: http://www.mof.gov.bn/index.php/departments/treasury | N27: 0 | O27: - | P27: 0 | Q27: - | R27: 0 | S27: 0 | T27: - | U27: 0 | V27: 0 | W27: 0 | X27: - | Y27: 0 | Z27: - | AA27: 0 | AC27: - | AD27: 0 | AF27: - | AG27: - | AH27: 0 | AJ27: - | AK27: 0 | AN27: - | AO27: 0 | AQ27: - | AR27: 0 | AS27: 0 | AT27: 0 | AU27: 0 | AV27: 0 | AW27: 0 | AX27: 0 | AY27: 0 | AZ27: 0 | BA27: 0 | BB27: 0 | BC27: - | BD27: 0 | BE27: - | BF27: 0 | BG27: - | BH27: 0 | BI27: - | BJ27: 0 | BK27: http://www.depd.gov.bn/dept_dos.html | BL27: Dept of Econ Planning and Dev - Dept of Statistics | BM27: http://www.mof.gov.bn/English/BCMB/Pages/default.aspx | BN27: Brunei Currency and Monetary Board | BO27: - | BP27: 0 | BQ27: - | BR27: 1 | BS27: http://www.mof.gov.bn/English/Administration/AboutUs/OrganisationalStructure/Pages/default.aspx | BT27: 0 | BU27: - | BV27: 0 | BW27: 0 | BX27: - | BY27: eng | BZ27: - | CA27: - | CB27: - | CC27: - | CD27: TAFIS | CE27: Treasury Accounting and Financial Information System | CF27: C | CG27: T | CH27: 3 | CI27: 2002 | CJ27: C | CK27: 1 | CL27: 1 | CM27: LDSW > Oracle | CN27: Web | CO27: 2 | CP27: - | CQ27: - | CR27: - | CS27: - | CT27: - | CU27: - | CV27: - | CW27: - | CX27: - | CY27: - | CZ27: - | DA27: - | DB27: - | DC27: - | DD27: - | DE27: - | DF27: - | DH27: - | DI27: 86 | DJ27: 0.50424 | DK27: 0.05882 | DL27: 0.3622 | DM27: 0.36898 | DN27: 0.7815 | DO27: 54 | DP27: 0.625 | DQ27: 0.5948 | DR27: 0.455 | DS27: 0.8253 | DU27: PAC | DW27: APEC | DY27: Brunei Darussalam | DZ27: 0 | EE27: 0 | EK27: 2 | EL27: 7.692307692 | EM27: D | EO27: 25 | EP27: Brunei Darussalam | EQ27: BRN | ET27: http://www.gov.bn | EU27: 1 | EV27: http://www.brunei.gov.bn | EW27: 0.3622 | EX27: 34 | EY27: 39 | EZ27: 28 | FA27: 38 | FB27: 35 | FG27: http://www.mof.gov.bn/index.php/treasury-background | FH27: 1984 | FI27: http://www.mof.gov.bn/attachments/article/93/pembayaran%20notes%20-%20mei%202009v1.pdf | FJ27: 2009 | FK27: 2 | FL27: 3 | FM27: - | FN27: - | FO27: - | FP27: - | FQ27: http://www.mof.gov.bn/index.php/divisions/revenue | FR27: 1950 | FS27: STARS | FT27: System of Tax Administration and Revenue Services. | FU27: 2 | FV27: COTS | FW27: http://www.stars.gov.bn | FX27: 2012 | FY27: 3 | FZ27: 2 | GA27: http://www.customs.gov.bn | GB27: 1906 | GC27: 1996 | GD27: 0 | GE27: E- Customs + NSW | GF27: Electronic Customs Portal + National Single Window | GG27: 1 | GH27: LDSW | GI27: https://ecustoms.mof.gov.bn/SignIn.aspx | GJ27: 2007 | GK27: 3 | GL27: 2 | GM27: 1 | GN27: 0 | GO27: https://www.stars.gov.bn/eServices/Public/Login.aspx | GP27: 2012 | GQ27: 3 | GR27: 0 | GS27: - | GT27: - | GU27: 0 | GV27: http://unpan1.un.org/intradoc/groups/public/documents/apcity/unpan006031.pdf | GW27: 2000 | GX27: 1 | GY27: 47419 | GZ27: 1 | HA27: http://www.oecd.org/site/seao/Brunei%20Darussalam.pdf | HB27: 2010 | HC27: HRMIS | HD27: Human Resource Management Information system | HE27: 2 | HF27: COTS | HG27: http://www.bruneiresources.com/pdf/accsm12_brunei_technicalpaper.pdf | HH27: 2002 | HI27: 3 | HJ27: 2 | HK27: TAFIS | HL27: Treasury Accounting and Financial Information System | HM27: 1 | HN27: LDSW | HO27: http://www.mof.gov.bn/index.php/departments/treasury | HP27: 2002 | HQ27: 3 | HR27: 2 | HS27: - | HT27: - | HU27: http://www.mof.gov.bn/index.php/general-information-state-tender-board | HV27: - | HW27: 0 | HX27: 0 | HY27: - | IH27: 13 | II27: 59.09090909 | IJ27: B | IK27: HIC
A28: 26 | C28: Bulgaria | D28: UMIC | E28: 7476 | F28: 48818.7426 | G28: 6530 | H28: http://www.minfin.bg | I28: Ministry of Finance of the Republic of Bulgaria | J28: 2 | K28: http://www.minfin.bg/bg/page/4 | L28: 2 | M28: http://www.minfin.bg/en/documents/?cat=1&vid=-1&dq=FMIS | N28: 1 | O28: - | P28: 1 | Q28: http://www.minfin.bg/bg/statistics/7 | R28: 0 | S28: 0 | T28: - | U28: 1 | V28: 1 | W28: 0 | X28: - | Y28: 0 | Z28: - | AA28: 1 | AB28: 1 | AC28: 1997 | AD28: 1 | AE28: 1 | AF28: 3 | AG28: 2007 | AH28: 0 | AJ28: - | AK28: 1 | AL28: 2 | AM28: 1 | AN28: 2002 | AO28: 0 | AQ28: - | AR28: 1 | AS28: 1 | AT28: 0 | AU28: 0 | AV28: 0 | AW28: 1 | AX28: 1 | AY28: 1 | AZ28: 0 | BA28: 0 | BB28: 0 | BC28: - | BD28: 1 | BE28: http://parliament.yurukov.net/index_en.html | BF28: 0 | BG28: - | BH28: 1 | BI28: http://www.minfin.bg/bg/statistics/11 | BJ28: 1 | BK28: http://www.nsi.bg | BL28: Bulgaria National Statistical Institute | BM28: http://www.bnb.bg | BN28: Bulgarian National Bank | BO28: - | BP28: 0 | BQ28: - | BR28: 0 | BS28: - | BT28: 2 | BU28: National laws and regulations | BV28: 0 | BW28: 3 | BX28: There is a provision for reporting corruption alerts | BY28: bul | BZ28: eng | CA28: - | CB28: - | CC28: 0 | CD28: FMIS | CE28: Financial Management Information System | CF28: C | CG28: T | CH28: 3 | CI28: 2009 | CJ28: C | CK28: 1 | CL28: 1 | CM28: LDSW | CN28: Web | CO28: 2 | CP28: - | CQ28: - | CR28: - | CS28: - | CT28: - | CU28: - | CV28: - | CW28: - | CX28: - | CY28: - | CZ28: - | DA28: - | DB28: - | DC28: - | DD28: - | DE28: 65 | DF28: 56 | DG28: 1 | DH28: 3 | DI28: 73 | DJ28: 0.54209 | DK28: 0.2549 | DL28: 0.23622 | DM28: 0.59406 | DN28: 0.796 | DO28: 60 | DP28: 0.6132 | DQ28: 0.4902 | DR28: 0.5006 | DS28: 0.8486 | DT28: ECA | DU28: EU | DY28: Bulgaria | DZ28: 3 | EA28: 2 | ED28: 1 | EE28: 0 | EK28: 14 | EL28: 53.84615385 | EM28: B | EO28: 26 | EP28: Bulgaria | EQ28: BGR | ET28: http://www.government.bg | EU28: 1 | EV28: http://www.egov.bg | EW28: 0.2362 | EX28: 59 | EY28: 30 | EZ28: 0 | FA28: 15 | FB28: 24 | FG28: http://www.minfin.bg/en/page/58 | FH28: 1879 | FI28: http://www.minfin.bg/en/page/26 | FJ28: 2001 | FK28: 3 | FL28: 4 | FM28: - | FN28: - | FO28: - | FP28: - | FQ28: http://www.nap.bg | FR28: 1991 | FS28: RMS | FT28: Revenue Management System | FU28: 2 | FV28: COTS ? | FW28: http://documents.worldbank.org/curated/en/2009/12/11691797/bulgaria-revenue-administration-reform-project | FX28: 2008 | FY28: 3 | FZ28: 2 | GA28: http://www.customs.bg | GB28: 1879 | GC28: 1973 | GD28: 3 | GE28: BICIS | GF28: Bulgarian Integrated Customs Information System | GG28: 2 | GH28: COTS | GI28: https://ecustoms.bg/eportal/ | GJ28: 2003 | GK28: 3 | GL28: 2 | GM28: 1 | GN28: 1 | GO28: https://inetdec.nra.bg/index.html | GP28: 2008 | GQ28: 3 | GR28: 1 | GS28: https://pay.egov.bg/main/en/ | GT28: 2009 | GU28: 2 | GV28: http://www.mvr.bg/en/CSCA/default.htm | GW28: 2013 | GX28: 3 | GY28: =IFERROR(VLOOKUP($C28,'PS Employment'!$B$2:$N$107,12,FALSE)*1000,"-") -> 603200 | GZ28: 2 | HA28: http://laborsta.ilo.org/STP/guest | HB28: 2009 | HC28: HeRMeS | HD28: Integrated information system for human resources management | HE28: 1 | HF28: LDSW | HG28: http://www.technologica.com/en/projects | HH28: 2006 | HI28: 3 | HJ28: 2 | HK28: HeRMeS | HL28: Integrated information system for human resources management | HM28: 1 | HN28: LDSW | HO28: http://www.technologica.com/en/projects | HP28: 2006 | HQ28: 3 | HR28: 2 | HS28: - | HT28: Public Procurement Portal | HU28: http://www.aop.bg | HV28: 2014 | HW28: 2 | HX28: 1 | HY28: - | HZ28: Ministry of Finance | IH28: 15 | II28: 68.18181818 | IJ28: B | IK28: UMIC | IL28: ECA
A29: 27 | C29: Burkina Faso | D29: LIC | E29: 16967.845 | F29: 9695.861999 | G29: 570 | H29: http://www.finances.gov.bf | I29: Burkina Faso - Ministère de l'économie et des finances | J29: 2 | K29: http://www.dgb.gov.bf/documents.php | L29: 2 | M29: http://www.tresor.bf/spip.php?page=articleS&id_article=29 | N29: 1 | O29: - | P29: 0 | Q29: - | R29: 0 | S29: 0 | T29: - | U29: 1 | V29: 1 | W29: 0 | X29: - | Y29: 1 | Z29: http://www.finances.gov.bf/IMG/pdf/Budget_Entier.pdf | AA29: 1 | AB29: 0 | AC29: 2009 | AD29: 1 | AE29: 0 | AF29: 3 | AG29: 2011 | AH29: 0 | AJ29: - | AK29: 1 | AL29: 4 | AM29: 0 | AN29: 2009 | AO29: 0 | AQ29: - | AR29: 1 | AS29: 1 | AT29: 0 | AU29: 0 | AV29: 0 | AW29: 1 | AX29: 1 | AY29: 0 | AZ29: 0 | BA29: 1 | BB29: 0 | BC29: - | BD29: 1 | BE29: http://data.gov.bf | BF29: 2 | BG29: http://www.tresor.bf/pages/infor_collectivites.htm | BH29: 1 | BI29: http://www.finances.gov.bf/IMG/pdf/Budget_Entier.pdf | BJ29: 2 | BK29: http://www.insd.bf | BL29: Institut national de la statistique et de la démographie (INSD) | BM29: http://www.bceao.int | BN29: Central Bank of West African States (BCEAO) | BO29: http://www.tresor.bf | BP29: 0 | BQ29: - | BR29: 1 | BS29: http://www.finances.gov.bf/spip.php?article7 | BT29: 2 | BU29: - | BV29: 1 | BW29: 3 | BX29: There is webmail access to the Ministry of Finance website | BY29: fre | BZ29: - | CA29: - | CB29: - | CC29: - | CD29: CID | CE29: Circuit Informatisé de la Dépense / Integrated Expenditure System | CF29: C | CG29: T | CH29: 3 | CI29: 2000 | CJ29: C | CK29: 1 | CL29: 2 | CM29: Oracle | CN29: CS | CO29: 2 | CP29: Jun 2010 | CQ29: Public | CR29: 2 | CS29: A | CT29: A | CU29: C | CV29: B+ | CW29: C+ | CX29: D | CY29: A | CZ29: B+ | DA29: D+ | DB29: C+ | DC29: 2.85 | DD29: 2.790322581 | DE29: 23 | DF29: 5 | DH29: 3 | DI29: 178 | DJ29: 0.18043 | DK29: 0.13725 | DL29: 0.29921 | DM29: 0.08423 | DN29: 0.1578 | DO29: 185 | DP29: 0.1578 | DQ29: 0.2941 | DR29: 0.0454 | DS29: 0.1338 | DT29: AFR | DY29: Burkina Faso | DZ29: 0 | EE29: 0 | EK29: 11 | EL29: 42.30769231 | EM29: C | EO29: 27 | EP29: Burkina Faso | EQ29: BFA | ER29: 2008 | ET29: http://www.gouvernement.gov.bf | EU29: 0 | EV29: - | EW29: 0.2992 | EX29: 38 | EY29: 41 | EZ29: 9 | FA29: 32 | FB29: 29 | FG29: http://www.tresor.bf/ | FH29: 1960 | FI29: http://www.tresor.bf/spip.php?page=articleS&id_article=75 | FJ29: 2003 | FK29: 3 | FL29: 3 | FM29: 72...312 | FN29: - | FO29: - | FP29: - | FQ29: http://www.finances.gov.bf | FR29: 1993 | FS29: SINTAX | FT29: Revenue Management System | FU29: 2 | FV29: COTS ? | FW29: http://www.dgi.gov.bf/dgi/page2_3b.php | FX29: 2005 | FY29: 3 | FZ29: 2 | GA29: http://www.douanes.bf | GB29: 1960 | GC29: 1966 | GD29: 4 | GE29: ASYCUDA++ | GF29: Automated SYstem for CUstoms DAta | GG29: 2 | GH29: ASYCUDA ++ | GI29: http://www.douanes.bf/index.php/en/dedouanement-informatise/le-sydonia | GJ29: 1991 | GK29: 3 | GL29: 2 | GM29: 1 | GN29: 0 | GO29: - | GP29: - | GQ29: 0 | GR29: 0 | GS29: - | GT29: - | GU29: 0 | GV29: http://www.arce.bf/spip.php?article169 | GW29: 2011 | GX29: 2 | GY29: =IFERROR(VLOOKUP($C29,'PS Employment'!$B$2:$N$107,12,FALSE)*1000,"-") -> 76762 | GZ29: 2 | HA29: http://laborsta.ilo.org/STP/guest | HB29: 2007 | HC29: SIGASPE | HD29: The Integrated Administrator and Staff Employee of the State System | HE29: 1 | HF29: LDSW | HG29: http://www.aib.bf/m-201-la-decongestion-des-actes-de-gestion-pour-un-traitement-des-dossiers-avec-celerite.html | HH29: 2006 | HI29: 3 | HJ29: 2 | HK29: SIGASPE | HL29: The Integrated Administrator and Staff Employee of the State System | HM29: 1 | HN29: LDSW | HO29: http://www.aib.bf/m-201-la-decongestion-des-actes-de-gestion-pour-un-traitement-des-dossiers-avec-celerite.html | HP29: 2006 | HQ29: 3 | HR29: 2 | HS29: B | HT29: SIMP | HU29: http://www.dgmp.gov.bf | HV29: 2008 | HW29: 3 | HX29: 1 | HY29: http://www.dcmp.bf/SiteDcmp/statistiques-marches-publics/statistiques-des-marches.jsp | IA29: 2 | IB29: DMFAS 5.3 | ID29: 1997 | IE29: 3 | IF29: MoF | IG29: 4F | IH29: 12 | II29: 54.54545455 | IJ29: B | IK29: LIC | IL29: AFR
A30: 28 | C30: Burundi | D30: LIC | E30: 8575.172 | F30: 2158.128195 | G30: 250 | H30: http://www.finances.gov.bi | I30: Ministère des Finances et de la Planification du Développement Economique | J30: 2 | K30: http://www.finances.gov.bi/index.php?option=com_content&view=category&layout=blog&id=82&Itemid=134 | L30: 2 | M30: http://www.page.bi/spip.php?article35 | N30: 1 | O30: - | P30: 0 | Q30: - | R30: 0 | S30: 0 | T30: - | U30: 0 | V30: 0 | W30: 0 | X30: - | Y30: 0 | Z30: - | AA30: 0 | AC30: - | AD30: 0 | AF30: - | AG30: - | AH30: 0 | AJ30: - | AK30: 0 | AN30: - | AO30: 0 | AQ30: - | AR30: 0 | AS30: 0 | AT30: 0 | AU30: 0 | AV30: 0 | AW30: 0 | AX30: 0 | AY30: 0 | AZ30: 0 | BA30: 0 | BB30: 0 | BC30: - | BD30: 0 | BE30: - | BF30: 0 | BG30: - | BH30: 0 | BI30: - | BJ30: 0 | BK30: http://burundistats.org | BL30: Institut de Statistiques et Des Etudes Economiques du Burundi | BM30: http://www.brb-bi.net | BN30: Bank of the Republic of Burundi | BO30: - | BP30: 0 | BQ30: - | BR30: 0 | BS30: - | BT30: 0 | BU30: - | BV30: 0 | BW30: 0 | BX30: - | BY30: fre | BZ30: - | CA30: - | CB30: - | CC30: - | CD30: SIGEFI | CE30: Système Intégré de Gestion des Finances / Integrated Public Financial Management System | CF30: C | CG30: T | CH30: 3 | CI30: 2004 | CJ30: C | CK30: 1 | CL30: 1 | CM30: LDSW > MS SQL | CN30: Web | CO30: 2 | CP30: Mar 2012 | CQ30: Public | CR30: 2 | CS30: A | CT30: B | CU30: B | CV30: C+ | CW30: A | CX30: C | CY30: C+ | CZ30: B+ | DA30: D+ | DB30: D+ | DC30: 2.75 | DD30: 2.413793103 | DE30: - | DF30: - | DH30: 1 | DI30: 172 | DJ30: 0.19278 | DK30: 0.05882 | DL30: 0.01574 | DM30: 0.02332 | DN30: 0.5393 | DO30: 173 | DP30: 0.2288 | DQ30: 0.1503 | DR30: 0.0173 | DS30: 0.5188 | DT30: AFR | DX30: F | DY30: Burundi | DZ30: 0 | EE30: 0 | EK30: 5 | EL30: 19.23076923 | EM30: D | EO30: 28 | EP30: Burundi | EQ30: BDI | ET30: http://www.burundi-gov.bi | EU30: 0 | EV30: - | EW30: 0.0157 | EX30: 19 | EY30: 7 | EZ30: 0 | FA30: 0 | FB30: 6 | FG30: http://www.finances.gov.bi/ | FH30: 1997 | FI30: http://www-wds.worldbank.org/external/default/WDSContentServer/WDSP/IB/2012/10/01/000350881_20121001113803/Rendered/PDF/723340CAS0P1280Official0Use0Only090.pdf | FJ30: 2011 | FK30: 3 | FL30: 4 | FM30: - | FN30: - | FO30: - | FP30: - | FQ30: http://www.obr.bi | FR30: 2009 | FS30: SIGTAS | FT30: Standard Integrated Government Tax System | FU30: 2 | FV30: SIGTAS | FW30: http://www.obr.bi/index.php/publications/actualites/202-formation-des-contribuables-sur-la-procedure-de-declaration-de-la-tva-par-sigtas | FX30: 2002 | FY30: 3 | FZ30: 2 | GA30: http://www.obr.bi | GB30: 2009 | GC30: 1964 | GD30: 4 | GE30: ASYCUDA World | GF30: Automated SYstem for CUstoms DAta | GG30: 2 | GH30: ASYCUDA W | GI30: http://unctad.org/en/PublicationsLibrary/dtlasycuda2011d1_en.pdf | GJ30: 1992 | GK30: 3 | GL30: 2 | GM30: 1 | GN30: 0 | GO30: - | GP30: - | GQ30: 1 | GR30: 0 | GS30: - | GT30: - | GU30: 0 | GV30: - | GW30: - | GX30: 0 | GY30: 80000 | GZ30: 1 | HA30: http://www.arib.info/index.php?option=com_content&task=view&id=7000 | HB30: 2013 | HC30: HRMIS | HD30: Human Resources Management Information System | HE30: 1 | HF30: LDSW > OS | HG30: http://www-wds.worldbank.org/external/default/WDSContentServer/WDSP/IB/2013/11/07/000350881_20131107090154/Rendered/INDEX/822490PGD0P144010Box379865B00OUO090.txt | HH30: 2013 | HI30: 3 | HJ30: 2 | HK30: HRMIS | HL30: Human Rresource Management Information System | HM30: 1 | HN30: LDSW > OS | HO30: http://documents.worldbank.org/curated/en/2011/11/15495967/burundi-fifth-economic-reform-support-grant-program | HP30: 2013 | HQ30: 3 | HR30: 2 | HS30: C+ | HT30: PMIS | HU30: http://www.armp.bi | HV30: - | HW30: 1 | HX30: 0 | HY30: - | IA30: 2 | IB30: DMFAS 6.0 | ID30: 1987 | IE30: 3 | IF30: MoF | IG30: 4 | IH30: 12 | II30: 54.54545455 | IJ30: B | IK30: LIC | IL30: AFR
A31: 29 | C31: Cambodia | D31: LIC | E31: 14305.183 | F31: 11673.47778 | G31: 820 | H31: http://www.mef.gov.kh | I31: Ministry of Economy and Finance of Cambodia | J31: 1 | K31: http://www.mef.gov.kh/tofe.html | L31: 2 | M31: http://fmis.mef.gov.kh/contents/uploads/2014/05/FMIS-Newsletter-001-English.pdf | N31: 1 | O31: - | P31: 0 | Q31: - | R31: 0 | S31: 0 | T31: - | U31: 0 | V31: 0 | W31: 0 | X31: - | Y31: 1 | Z31: http://www.mef.gov.kh/budget.html | AA31: 1 | AB31: 0 | AC31: 2010 | AD31: 1 | AE31: 0 | AF31: 4 | AG31: 2010 | AH31: 0 | AJ31: - | AK31: 1 | AL31: 2 | AM31: 1 | AN31: 2009 | AO31: 0 | AQ31: - | AR31: 0 | AS31: 0 | AT31: 0 | AU31: 0 | AV31: 0 | AW31: 0 | AX31: 0 | AY31: 0 | AZ31: 0 | BA31: 0 | BB31: 0 | BC31: - | BD31: 1 | BE31: http://www.opendevelopmentcambodia.net | BF31: 1 | BG31: http://fmis.mef.gov.kh/fmis-project/fmis-project-plan.html | BH31: 0 | BI31: - | BJ31: 2 | BK31: http://www.nis.gov.kh | BL31: Cambodia National Institute of Statistics | BM31: http://www.nbc.org.kh | BN31: National Bank of Cambodia | BO31: http://www.treasury.gov.kh | BP31: 0 | BQ31: - | BR31: 1 | BS31: http://www.mef.gov.kh/about-ministry.html | BT31: 2 | BU31: - | BV31: 0 | BW31: 2 | BX31: - | BY31: khm | BZ31: eng | CA31: - | CB31: - | CC31: 0 | CD31: FMIS | CE31: Financial Management Information System | CF31: C | CG31: T | CH31: 3 | CI31: 2011 | CJ31: C+L | CK31: 2 | CL31: 2 | CM31: People Soft, Oracle | CN31: Web | CO31: 2 | CP31: Nov 2011 | CQ31: Public | CR31: 1 | CS31: C | CT31: B | CU31: C | CV31: B | CW31: C | CX31: C | CY31: C+ | CZ31: D+ | DA31: D+ | DB31: D | DC31: 2.05 | DD31: 2.189655172 | DE31: 15 | DF31: 15 | DH31: 2 | DI31: 139 | DJ31: 0.29986 | DK31: 0.19607 | DL31: 0.17322 | DM31: 0.20745 | DN31: 0.5189 | DO31: 155 | DP31: 0.2902 | DQ31: 0.1895 | DR31: 0.0814 | DS31: 0.5997 | DT31: EAP | DY31: Cambodia | DZ31: 3 | EC31: 3 | EE31: 0 | EK31: 9 | EL31: 34.61538462 | EM31: C | EO31: 29 | EP31: Cambodia | EQ31: KHM | ET31: http://www.information.gov.kh | EU31: 0 | EV31: - | EW31: 0.1732 | EX31: 50 | EY31: 18 | EZ31: 5 | FA31: 9 | FB31: 19 | FG31: http://www.treasury.gov.kh/ | FH31: 1990 | FI31: http://www-wds.worldbank.org/external/default/WDSContentServer/WDSP/IB/2012/06/15/000356161_20120615033527/Rendered/PDF/699640WP0P1206070023B0PFM0Web0Final.pdf | FJ31: 2011 | FK31: 2 | FL31: 4 | FM31: - | FN31: - | FO31: - | FP31: - | FQ31: http://www.tax.gov.kh | FR31: 1993 | FS31: - | FT31: Forms and information | FU31: 0 | FV31: - | FW31: - | FX31: - | FY31: 0 | FZ31: 1 | GA31: http://www.customs.gov.kh | GB31: 1993 | GC31: 2001 | GD31: 4 | GE31: ASYCUDA World | GF31: Automated SYstem for CUstoms DAta | GG31: 2 | GH31: ASYCUDA W | GI31: http://unctad.org/en/PublicationsLibrary/dtlasycuda2011d1_en.pdf | GJ31: 2007 | GK31: 3 | GL31: 2 | GM31: 1 | GN31: 0 | GO31: - | GP31: - | GQ31: 1 | GR31: 0 | GS31: - | GT31: - | GU31: 0 | GV31: - | GW31: - | GX31: 0 | GY31: 295800 | GZ31: 2 | HA31: http://unpan1.un.org/intradoc/groups/public/documents/un/unpan023231.pdf | HB31: 2004 | HC31: HRMIS | HD31: Human Resources Management Information System | HE31: 2 | HF31: COTS | HG31: http://fmis.mef.gov.kh/contents/uploads/2014/05/FMIS-Newsletter-001-English.pdf | HH31: - | HI31: 2 | HJ31: 2 | HK31: HRMIS | HL31: Human Rresource Management Information System | HM31: 2 | HN31: COTS | HO31: http://fmis.mef.gov.kh/contents/uploads/2014/05/FMIS-Newsletter-001-English.pdf | HP31: - | HQ31: 2 | HR31: 2 | HS31: C | HT31: - | HU31: http://www.mef.gov.kh/old/procurement/bid-advertisement.php | HV31: 2013 | HW31: 2 | HX31: 1 | HY31: - | IA31: 2 | IB31: DMFAS 5.3 | ID31: 2007 | IE31: 3 | IF31: MoF | IG31: 4T | IH31: 12 | II31: 54.54545455 | IJ31: B | IK31: LIC | IL31: EAP
A32: 30 | C32: Cameroon | D32: LMIC | E32: 20030.362 | F32: 24137.50519 | G32: 1210 | H32: http://www.spm.gov.cm/fr/administrations-publiques/economie-et-finances.html | I32: Cameroon Ministry of Finance and Economy | J32: 0 | K32: - | L32: 1 | M32: http://www-wds.worldbank.org/external/default/WDSContentServer/WDSP/IB/2008/09/04/000334955_20080904030253/Rendered/PDF/433690PAD0P0841LY10IDA1R20081019311.pdf | N32: 0 | O32: - | P32: 0 | Q32: - | R32: 0 | S32: 0 | T32: - | U32: 0 | V32: 0 | W32: 1 | X32: http://cameroon.openspending.org/en/index.html | Y32: 0 | Z32: - | AA32: 0 | AC32: - | AD32: 0 | AF32: - | AG32: - | AH32: 0 | AJ32: - | AK32: 0 | AN32: - | AO32: 0 | AQ32: - | AR32: 0 | AS32: 0 | AT32: 0 | AU32: 0 | AV32: 0 | AW32: 0 | AX32: 0 | AY32: 0 | AZ32: 0 | BA32: 0 | BB32: 0 | BC32: - | BD32: 0 | BE32: - | BF32: 0 | BG32: - | BH32: 0 | BI32: - | BJ32: 0 | BK32: http://www.statistics-cameroon.org | BL32: Cameron Institut National de la Statistique | BM32: http://www.beac.int | BN32: Bank of Central African States | BO32: - | BP32: 0 | BQ32: - | BR32: 0 | BS32: - | BT32: 0 | BU32: - | BV32: 0 | BW32: 0 | BX32: - | BY32: fre | BZ32: eng | CA32: - | CB32: - | CC32: 0 | CD32: SIGEFI | CE32: Système Intégré de Gestion des Finances / Integrated Public Financial Management System | CF32: C | CG32: T | CH32: 3 | CI32: 2004 | CJ32: C | CK32: 1 | CL32: 1 | CM32: LDSW > MS SQL | CN32: Web | CO32: 2 | CP32: Jan 2008 | CQ32: Final | CR32: 1 | CS32: X | CT32: X | CU32: X | CV32: X | CW32: X | CX32: X | CY32: X | CZ32: X | DA32: X | DB32: X | DC32: 1.9 | DD32: 2 | DE32: 10 | DF32: 2 | DH32: 1 | DI32: 144 | DJ32: 0.27823 | DK32: 0.15686 | DL32: 0.19685 | DM32: 0.09579 | DN32: 0.5421 | DO32: 147 | DP32: 0.307 | DQ32: 0.3007 | DR32: 0.0649 | DS32: 0.5554 | DT32: AFR | DY32: Cameroon | DZ32: 0 | EE32: 0 | EK32: 2 | EL32: 7.692307692 | EM32: D | EO32: 30 | EP32: Cameroon | EQ32: CMR | ES32: DAD | ET32: http://www.spm.gov.cm | EU32: 0 | EV32: - | EW32: 0.1969 | EX32: 47 | EY32: 25 | EZ32: 7 | FA32: 9 | FB32: 21 | FG32: http://www.dgtcfm.cm/ | FH32: 2005 | FI32: http://www.dgtcfm.cm/index.php/fr/mutuelle-des-personnels-du-tresor-cameroun/2-uncategorised/394-conference-annuelle-2012-sous-theme-le-compte-unique-du-tresor-enjeux-et-perspectives.html | FJ32: 2007 | FK32: 3 | FL32: 4 | FM32: - | FN32: https://www.cameroon-tribune.cm/index.php?option=com_content&view=article&id=81636:le-tresor-public-fait-ses-comptes&catid=4:societe&Itemid=3 | FO32: - | FP32: - | FQ32: http://www.impots.cm | FR32: 1983 | FS32: Web services | FT32: Online services and forms | FU32: 1 | FV32: LDSW | FW32: http://teledeclaration-dgi.cm/modules/Common/Account/Login.aspx?s=t | FX32: 2008 | FY32: 3 | FZ32: 2 | GA32: http://www.douanescustoms-cm.net | GB32: 1960 | GC32: 1965 | GD32: 4 | GE32: ASYCUDA++ | GF32: Automated SYstem for CUstoms DAta | GG32: 2 | GH32: ASYCUDA ++ | GI32: http://unctad.org/en/PublicationsLibrary/dtlasycuda2011d1_en.pdf | GJ32: 2007 | GK32: 3 | GL32: 2 | GM32: 1 | GN32: 1 | GO32: - | GP32: - | GQ32: 1 | GR32: 0 | GS32: - | GT32: - | GU32: 0 | GV32: http://egov.cm/index.php/nationale/8-pages-accueil/331-la-gestion-et-lexploitation-du-centre-pki-officiellement-confiees-a-lantic | GW32: 2012 | GX32: 2 | GY32: 40000 | GZ32: 1 | HA32: http://www.egov4dev.org/transparency/case/sigipes.shtml | HB32: 2003 | HC32: SIGIPES II | HD32: Personnel Management System | HE32: 2 | HF32: SAP | HG32: http://www-wds.worldbank.org/external/default/WDSContentServer/WDSP/IB/2008/09/04/000334955_20080904030253/Rendered/PDF/433690PAD0P0841LY10IDA1R20081019311.pdf | HH32: 2002 | HI32: 2 | HJ32: 2 | HK32: SIGIPES II > ANTILOPE | HL32: Payroll Management System | HM32: 2 | HN32: SAP | HO32: http://www-wds.worldbank.org/external/default/WDSContentServer/WDSP/IB/2008/09/04/000334955_20080904030253/Rendered/PDF/433690PAD0P0841LY10IDA1R20081019311.pdf | HP32: 2002 | HQ32: 2 | HR32: 2 | HS32: X | HT32: ARMP Website | HU32: http://www.armp.cm | HV32: 2014 | HW32: 3 | HX32: 1 | HY32: http://www.armp.cm/Marches_signes.php#tzM3 | HZ32: Autonomous Sinking Fund of Cameroon | IA32: 2 | IB32: CS-DRMS | ID32: 1995 | IE32: 3 | IF32: CAA | IH32: 12 | II32: 54.54545455 | IJ32: B | IK32: LMIC | IL32: AFR
A33: 31 | C33: Canada | D33: HIC | E33: 34482.779 | F33: 1570886.128 | G33: 45560 | H33: http://www.fin.gc.ca | I33: Canada Department of Finance | J33: 2 | K33: http://www.fin.gc.ca/access/budinfo-eng.asp | L33: 2 | M33: http://www.freebalance.com/customers/north_america.asp | N33: 1 | O33: - | P33: 0 | Q33: - | R33: 0 | S33: 0 | T33: - | U33: 2 | V33: 1 | W33: 0 | X33: - | Y33: 0 | Z33: - | AA33: 1 | AB33: 1 | AC33: 1990 | AD33: 1 | AE33: 1 | AF33: 5 | AG33: 1995 | AH33: 0 | AJ33: - | AK33: 1 | AL33: 4 | AM33: 1 | AN33: 1995 | AO33: 1 | AP33: 1 | AQ33: 2004 | AR33: 1 | AS33: 1 | AT33: 0 | AU33: 0 | AV33: 1 | AW33: 1 | AX33: 1 | AY33: 1 | AZ33: 1 | BA33: 0 | BB33: 0 | BD33: 1 | BE33: http://www.data.gc.ca/default.asp?lang=En | BF33: 0 | BG33: - | BH33: 0 | BI33: - | BJ33: 1 | BK33: http://www.statcan.gc.ca | BL33: Statistics Canada | BM33: http://www.bankofcanada.ca | BN33: Bank of Canada - Banque du Canada | BO33: - | BP33: 1 | BQ33: http://www.fin.gc.ca/admin/notices-avis-eng.asp | BR33: 1 | BS33: http://www.fin.gc.ca/afc/index-eng.asp | BT33: 0 | BU33: - | BV33: 0 | BW33: 3 | BX33: Availability of FAQs (Frequently Asked Questions) | BY33: eng | BZ33: fre | CA33: - | CB33: - | CC33: 1 | CD33: GFMIS | CE33: Government Financial Management Information System | CF33: D | CG33: F | CH33: 3 | CI33: 1994 | CJ33: C+L | CK33: 1 | CL33: 2 | CM33: FreeBalance | CN33: Web | CO33: 3 | CP33: - | CQ33: - | CR33: - | CS33: - | CT33: - | CU33: - | CV33: - | CW33: - | CX33: - | CY33: - | CZ33: - | DA33: - | DB33: - | DC33: - | DD33: - | DE33: - | DF33: - | DG33: 1 | DH33: 3 | DI33: 11 | DJ33: 0.84177 | DK33: 0.82352 | DL33: 0.91338 | DM33: 0.71676 | DN33: 0.8952 | DO33: 11 | DP33: 0.843 | DQ33: 0.8889 | DR33: 0.7163 | DS33: 0.9238 | DU33: AME | DV33: OECD | DW33: APEC | DY33: Canada | DZ33: 1 | EB33: 1 | EE33: 1 | EG33: 1 | EK33: 16 | EL33: 61.53846154 | EM33: B | EO33: 31 | EP33: Canada | EQ33: CAN | ET33: http://www.canada.ca | EU33: 2 | EV33: http://www.servicecanada.gc.ca/eng/online/mysca.shtml | EW33: 0.9134 | EX33: 100 | EY33: 73 | EZ33: 84 | FA33: 68 | FB33: 80 | FG33: http://www.tbs-sct.gc.ca/tbs-sct/index-eng.asp | FH33: 1869 | FI33: http://laws-lois.justice.gc.ca/eng/acts/F-11/page-13.html#h-12 | FJ33: 1985 | FK33: 2 | FL33: 4 | FM33: - | FN33: - | FO33: - | FP33: - | FQ33: http://www.cra-arc.gc.ca | FR33: 2003 | FS33: e-Tax | FT33: Gov of Canada Portal | FU33: 2 | FV33: COTS | FW33: http://www.cra-arc.gc.ca/esrvc-srvce/tx/psssrvcs/menu-eng.html | FX33: 2013 | FY33: 3 | FZ33: 3 | GA33: http://www.cbsa-asfc.gc.ca | GB33: 2003 | GC33: 1971 | GD33: 3 | GE33: ACROSS | GF33: Accelerated Commercial Release Operations Support System | GG33: 1 | GH33: LDSW | GI33: http://www.cbsa-asfc.gc.ca/eservices/ogd-amg/across-eng.html | GJ33: 1999 | GK33: 3 | GL33: 3 | GM33: 1 | GN33: 1 | GO33: http://www.cra-arc.gc.ca/esrvc-srvce/tx/prprrs/menu-eng.html | GP33: 1992 | GQ33: 3 | GR33: 1 | GS33: http://www.canada.ca/en/index.html | GT33: - | GU33: 1 | GV33: http://www.cra-arc.gc.ca/esrvc-srvce/pki-icp/menu-eng.html | GW33: 2000 | GX33: 3 | GY33: =IFERROR(VLOOKUP($C33,'PS Employment'!$B$2:$N$107,12,FALSE)*1000,"-") -> 3609274 | GZ33: 2 | HA33: http://laborsta.ilo.org/STP/guest | HB33: 2010 | HC33: GC HRMS | HD33: Government of Canada Human Resources Management System | HE33: 2 | HF33: COTS | HG33: http://www.psc-cfp.gc.ca/abt-aps/inta-veri/2010/ahrsp-vpsrh/index-eng.htm | HH33: 2006 | HI33: 3 | HJ33: 2 | HK33: Phoenix | HL33: Phoenix | HM33: 2 | HN33: COTS | HO33: http://www.tpsgc-pwgsc.gc.ca/remuneration-compensation/projets-projects/tpai-itap/index-eng.html | HP33: - | HQ33: 2 | HR33: 1 | HS33: - | HT33: Buy & Sell | HU33: https://buyandsell.gc.ca | HV33: 2013 | HW33: 3 | HX33: 2 | HY33: https://buyandsell.gc.ca/procurement-data/contract-history | HZ33: Canadian Ministry of Finance | IH33: 18 | II33: 81.81818182 | IJ33: A | IK33: HIC
A34: 32 | C34: Cape Verde | D34: LMIC | E34: 500.585 | F34: 1772.946195 | G34: 3540 | H34: http://www.minfin.gov.cv | I34: Ministério das Finanças e do Planeamento | J34: 2 | K34: http://www.minfin.gov.cv/index.php?option=com_docman&Itemid=165 | L34: 2 | M34: http://www.nosi.cv/index.php?option=com_content&view=article&id=92&Itemid=125&lang=en | N34: 1 | O34: - | P34: 0 | Q34: - | R34: 0 | S34: 0 | T34: - | U34: 2 | V34: 1 | W34: 0 | X34: - | Y34: 1 | Z34: http://www.minfin.gov.cv/ | AA34: 1 | AB34: 0 | AC34: 2006 | AD34: 1 | AE34: 1 | AF34: 3 | AG34: 2006 | AH34: 1 | AI34: 0 | AJ34: 2010 | AK34: 1 | AL34: 3 | AM34: 1 | AN34: 2006 | AO34: 0 | AQ34: - | AR34: 1 | AS34: 1 | AT34: 1 | AU34: 0 | AV34: 0 | AW34: 1 | AX34: 0 | AY34: 1 | AZ34: 0 | BA34: 0 | BB34: 0 | BC34: - | BD34: 0 | BE34: - | BF34: 2 | BG34: http://www.nosi.cv/index.php?option=com_content&view=article&id=93&Itemid=124&lang=en | BH34: 1 | BI34: http://www.oge2011.gov.cv/index.php?option=com_docman&Itemid=58 | BJ34: 2 | BK34: http://www.ine.cv | BL34: National Statistical Institute | BM34: http://www.bcv.cv | BN34: Banco de Cabo Verde | BO34: http://www.bcv.cv/vPT/Paginas/Homepage.aspx | BP34: 0 | BQ34: - | BR34: 1 | BS34: http://www.minfin.gov.cv/ | BT34: 0 | BU34: - | BV34: 0 | BW34: 3 | BX34: - | BY34: por | BZ34: - | CA34: - | CB34: - | CC34: - | CD34: SIGOF | CE34: Sistema Integrado de Gestão Orçamental e Financeira | CF34: C | CG34: T | CH34: 3 | CI34: 2002 | CJ34: C | CK34: 1 | CL34: 1 | CM34: LDSW > Oracle | CN34: CS | CO34: 2 | CP34: Dec 2008 | CQ34: Public | CR34: 1 | CS34: B | CT34: A | CU34: C | CV34: C+ | CW34: B+ | CX34: D | CY34: C+ | CZ34: C+ | DA34: D+ | DB34: D | DC34: 2.35 | DD34: 2.661290323 | DE34: - | DF34: - | DH34: 2 | DI34: 127 | DJ34: 0.35505 | DK34: 0.09803 | DL34: 0.16535 | DM34: 0.29658 | DN34: 0.6032 | DO34: 118 | DP34: 0.4297 | DQ34: 0.4379 | DR34: 0.2268 | DS34: 0.6245 | DT34: AFR | DY34: Cape Verde | DZ34: 0 | EE34: 0 | EK34: 15 | EL34: 57.69230769 | EM34: B | EO34: 32 | EP34: Cape Verde | EQ34: CPV | ES34: DAD | ET34: http://www.governo.cv | EU34: 1 | EV34: https://portoncv.gov.cv | EW34: 0.1654 | EX34: 34 | EY34: 16 | EZ34: 12 | FA34: 15 | FB34: 18 | FG34: http://www.minfin.gov.cv/index.php/dgt2/dgt-aprs | FH34: 1996 | FI34: http://www.pefa.org/en/assessment/cv-dec08-pfmpr-public-en-0 | FJ34: 1998 | FK34: 2 | FL34: 3 | FM34: - | FN34: - | FO34: - | FP34: - | FQ34: http://www.dgci.gov.cv | FR34: 1975 | FS34: SIGOF | FT34: Sistema Integrado de Gestão Orçamental e Financeira | FU34: 1 | FV34: LDSW ? | FW34: http://www.dgci.gov.cv/index.php/a-dgci/organizacao/servicos-centrais | FX34: 2002 | FY34: 3 | FZ34: 2 | GA34: http://www.alfandegas.cv | GB34: 1960 | GC34: 1992 | GD34: 4 | GE34: ASYCUDA++ | GF34: Automated SYstem for CUstoms DAta | GG34: 2 | GH34: ASYCUDA ++ | GI34: http://unctad.org/en/PublicationsLibrary/dtlasycuda2011d1_en.pdf | GJ34: 2003 | GK34: 3 | GL34: 2 | GM34: 1 | GN34: 0 | GO34: https://portoncv.gov.cv/portonprd/portoncv?p=C8A8A6B0A5C4BDB9C7AEABC4C4 | GP34: 2013 | GQ34: 2 | GR34: 0 | GS34: https://portoncv.gov.cv/portonprd/portoncv?p=AACEC7BDB7C4BCBAADABA0BCBEACBEB2C4C4 | GT34: 2013 | GU34: 2 | GV34: http://www.anac.cv/index.php?option=com_content&view=article&id=150%3Aanac-promove-formacao-em-certificacao-digital&catid=37%3Aeventos&Itemid=64&lang=pt | GW34: 2013 | GX34: 2 | GY34: 25000 | GZ34: 1 | HA34: http://unpan1.un.org/intradoc/groups/public/documents/un/unpan023255.pdf | HB34: 2004 | HC34: SIGOF | HD34: Integrated System of Budget and Financial Management | HE34: 1 | HF34: LDSW | HG34: http://www.nosi.cv/index.php/pt/solucoes-v15-121/sigof | HH34: 2002 | HI34: 3 | HJ34: 2 | HK34: SIGOF | HL34: Integrated System of Budget and Financial Management | HM34: 1 | HN34: LDSW | HO34: http://www.nosi.cv/index.php/pt/solucoes-v15-121/sigof | HP34: - | HQ34: 3 | HR34: 2 | HS34: B | HT34: National Procurement Portal | HU34: http://www.arap.cv | HV34: 2009 | HW34: 3 | HX34: 1 | HY34: http://www.arap.cv/index.php/estatisticas/compras-publicas | IA34: 2 | IB34: CS-DRMS | ID34: 1997 | IE34: 3 | IF34: MoF | IH34: 14 | II34: 63.63636364 | IJ34: B | IK34: LMIC | IL34: AFR
A35: 33 | C35: Central African Republic | D35: LIC | E35: 4486.837 | F35: 2139.381664 | G35: 480 | H35: http://www.afdevinfo.com/htmlreports/org/org_38461.html | I35: Ministry of Finance | J35: 0 | K35: - | L35: 1 | M35: http://www-wds.worldbank.org/external/default/WDSContentServer/WDSP/IB/2010/12/08/000333037_20101208231702/Rendered/PDF/ICR16820ICR0P11OFFICIAL0USE0ONLY191.pdf | N35: 0 | O35: - | P35: 0 | Q35: - | R35: 0 | S35: 0 | T35: - | U35: 0 | V35: 0 | W35: 0 | X35: - | Y35: 0 | Z35: - | AA35: 0 | AC35: - | AD35: 0 | AF35: - | AG35: - | AH35: 0 | AJ35: - | AK35: 0 | AN35: - | AO35: 0 | AQ35: - | AR35: 0 | AS35: 0 | AT35: 0 | AU35: 0 | AV35: 0 | AW35: 0 | AX35: 0 | AY35: 0 | AZ35: 0 | BA35: 0 | BB35: 0 | BC35: - | BD35: 0 | BE35: - | BF35: 0 | BG35: - | BH35: 0 | BI35: - | BJ35: 1 | BK35: http://www.stat-centrafrique.com | BL35: Institut centrafricain des statistiques, des études économiques et sociales (ICASEES) | BM35: http://www.beac.int | BN35: Bank of Central African States | BO35: - | BP35: 0 | BQ35: - | BR35: 0 | BS35: - | BT35: 0 | BU35: - | BV35: 0 | BW35: 0 | BX35: - | BY35: fre | BZ35: eng | CA35: - | CB35: - | CC35: 0 | CD35: GFMIS | CE35: Government Financial Management Information System / GES'CO | CF35: C | CG35: T | CH35: 3 | CI35: 2010 | CJ35: C | CK35: 1 | CL35: 1 | CM35: LDSW | CN35: Web | CO35: 2 | CP35: Jul 2010 | CQ35: Public | CR35: 2 | CS35: B | CT35: C | CU35: C | CV35: D+ | CW35: D | CX35: D | CY35: D+ | CZ35: D+ | DA35: D | DB35: D | DC35: 1.55 | DD35: 1.677419355 | DE35: - | DF35: - | DH35: 0 | DI35: 187 | DJ35: 0.12574 | DK35: 0.03921 | DL35: 0.03937 | DM35: 0.02799 | DN35: 0.3099 | DO35: - | DP35: - | DQ35: - | DR35: - | DS35: - | DT35: AFR | DX35: F | DY35: =C35 -> Central African Republic | DZ35: =SUM(EA35:ED35) -> 0 | EE35: =SUM(EF35:EI35) -> 0 | EK35: =J35+L35+N35+P35+R35+S35+U35+V35+W35+Y35+AA35+AB35+AD35+AE35+AH35+AI35+AK35+AM35+AO35+AP35 -> 1 | EL35: =EK35/26*100 -> 3.846153846 | EM35: =IF(EL35<25,"D",IF(EL35<50,"C",IF(EL35<75,"B","A"))) -> D | EO35: 33 | EP35: Central African Republic | EQ35: CAF | ES35: DAD | ET35: http://www.centrafricaine.info/ | EU35: 0 | EV35: - | EW35: 0.0394 | EX35: 13 | EY35: 11 | EZ35: 5 | FA35: 3 | FB35: 8 | FG35: http://www.afdevinfo.com/htmlreports/org/org_38461.html | FH35: 2004 | FI35: http://www.modernghana.com/news/376475/1/central-africa-republic-briefing-note-from-the-min.html | FJ35: 2012 | FK35: 2 | FL35: 2 | FM35: - | FN35: - | FO35: - | FP35: - | FQ35: http://www.afdevinfo.com/htmlreports/org/org_38461.html | FR35: 2004 | FS35: SYSTEMIF | FT35: Tax Management System | FU35: 2 | FV35: COTS | FW35: http://www.pefa.org/en/assessment/car-jul10-pfmpr-public-en | FX35: 2008 | FY35: 3 | FZ35: 2 | GA35: http://www.douane-rca.org | GB35: 2004 | GC35: 1986 | GD35: 0 | GE35: ASYCUDA++ | GF35: Automated SYstem for CUstoms DAta | GG35: 2 | GH35: ASYCUDA ++ | GI35: http://unctad.org/en/PublicationsLibrary/dtlasycuda2011d1_en.pdf | GJ35: 2007 | GK35: 3 | GL35: 2 | GM35: 0 | GN35: - | GO35: - | GP35: - | GQ35: 0 | GR35: 0 | GS35: - | GT35: - | GU35: 0 | GV35: - | GW35: - | GX35: 0 | GY35: 25000 | GZ35: 1 | HA35: http://www.pefa.org/en/assessment/car-jul10-pfmpr-public-en | HB35: 2010 | HC35: - | HD35: - | HE35: 0 | HF35: - | HG35: http://www.pefa.org/en/assessment/car-jul10-pfmpr-public-en | HH35: - | HI35: 1 | HJ35: 0 | HK35: - | HL35: - | HM35: 0 | HN35: - | HO35: http://www.pefa.org/en/assessment/car-jul10-pfmpr-public-en | HP35: - | HQ35: 1 | HR35: 0 | HS35: A | HT35: - | HU35: http://www.pefa.org/en/assessment/car-jul10-pfmpr-public-en | HV35: - | HW35: 0 | HX35: 0 | HY35: - | IA35: 2 | IB35: DMFAS 5.3 | ID35: 1995 | IE35: 2 | IF35: MoF | IG35: 1 | IH35: =N35+CO35+FZ35+GL35+GQ35+HJ35+HR35+HX35 -> 6 | II35: =IH35/22*100 -> 27.27272727 | IJ35: =IF(II35<25,"D",IF(II35<50,"C",IF(II35<75,"B","A"))) -> C | IK35: LIC | IL35: AFR
A36: 34 | C36: Chad | D36: LIC | E36: 11525.496 | F36: 8005.914996 | G36: 690 | H36: http://www.presidencetchad.org | I36: Ministry of Finance | J36: 0 | K36: - | L36: 1 | M36: http://www-wds.worldbank.org/external/default/WDSContentServer/WDSP/IB/2007/09/19/000020439_20070919084700/Rendered/PDF/32710.pdf | N36: 0 | O36: - | P36: 0 | Q36: - | R36: 0 | S36: 0 | T36: - | U36: 0 | V36: 0 | W36: 0 | X36: - | Y36: 0 | Z36: - | AA36: 0 | AC36: - | AD36: 0 | AF36: - | AG36: - | AH36: 0 | AJ36: - | AK36: 0 | AN36: - | AO36: 0 | AQ36: - | AR36: 0 | AS36: 0 | AT36: 0 | AU36: 0 | AV36: 0 | AW36: 0 | AX36: 0 | AY36: 0 | AZ36: 0 | BA36: 0 | BB36: 0 | BC36: - | BD36: 0 | BE36: - | BF36: 0 | BG36: - | BH36: 0 | BI36: - | BJ36: 0 | BK36: http://www.inseed-tchad.org | BL36: Institut national de la statistique, des études économiques et démographiques (INSEED) | BM36: http://www.beac.int | BN36: Bank of Central African States | BO36: - | BP36: 0 | BQ36: - | BR36: 0 | BS36: - | BT36: 0 | BU36: - | BV36: 0 | BW36: 0 | BX36: - | BY36: fre | BZ36: ara | CA36: - | CB36: - | CC36: 0 | CD36: CID | CE36: Circuit Informatisé de la Dépense / Integrated Expenditure System | CF36: C | CG36: T | CH36: 3 | CI36: 2000 | CJ36: C | CK36: 1 | CL36: 2 | CM36: Oracle | CN36: CS | CO36: 1 | CP36: Jul 2009 | CQ36: Final | CR36: 1 | CS36: X | CT36: X | CU36: X | CV36: X | CW36: X | CX36: X | CY36: X | CZ36: X | DA36: X | DB36: X | DC36: 1.95 | DD36: 1.916666667 | DE36: 3 | DF36: 0 | DH36: 2 | DI36: 189 | DJ36: 0.10761 | DK36: 0.07843 | DL36: 0.04724 | DM36: 0.04146 | DN36: 0.2341 | DO36: 189 | DP36: 0.1092 | DQ36: 0.098 | DR36: 0.0291 | DS36: 0.2003 | DT36: AFR | DX36: F | DY36: Chad | DZ36: 0 | EE36: 0 | EK36: 1 | EL36: 3.846153846 | EM36: D | EO36: 34 | EP36: Chad | EQ36: TCD | ET36: http://www.presidencetchad.org | EU36: 0 | EV36: - | EW36: 0.0472 | EX36: 19 | EY36: 11 | EZ36: 5 | FA36: 0 | FB36: 8 | FG36: http://www.presidencetchad.org | FH36: 1996 | FI36: - | FJ36: - | FK36: 0 | FL36: - | FM36: - | FN36: - | FO36: - | FP36: - | FQ36: http://dgitchad-finances-gouv.org | FR36: 1969 | FS36: TAS | FT36: Tax Automation Solutions | FU36: 1 | FV36: LDSW | FW36: http://dgitchad-finances-gouv.org/index.php/nos-missions | FX36: 1996 | FY36: 3 | FZ36: 2 | GA36: http://dgitchad-finances-gouv.org | GB36: 1969 | GC36: 2005 | GD36: 0 | GE36: ASYCUDA++ | GF36: Automated SYstem for CUstoms DAta | GG36: 2 | GH36: ASYCUDA ++ | GI36: http://unctad.org/en/PublicationsLibrary/dtlasycuda2011d1_en.pdf | GJ36: 2007 | GK36: 3 | GL36: 2 | GM36: 0 | GN36: 0 | GO36: - | GP36: - | GQ36: 0 | GR36: 0 | GS36: - | GT36: - | GU36: 0 | GV36: - | GW36: - | GX36: 0 | GY36: 58800 | GZ36: 2 | HA36: http://unpan1.un.org/intradoc/groups/public/documents/un/unpan023258.pdf | HB36: 2004 | HC36: SIGASPE | HD36: The Integrated System Administrator and Staff Employee of the State | HE36: 1 | HF36: LDSW | HG36: http://www.pamfip.org | HH36: - | HI36: 2 | HJ36: 2 | HK36: SIGASPE | HL36: The Integrated System Administrator and Staff Employee of the State | HM36: 1 | HN36: LDSW | HO36: http://www.pamfip.org | HP36: - | HQ36: 2 | HR36: 2 | HS36: X | HT36: SIGMP | HU36: http://www.imf.org/external/np/loi/2014/tcd/fra/072114f.pdf | HV36: 2014 | HW36: 2 | HX36: 1 | HY36: - | IA36: 2 | IB36: DMFAS 5.3 | ID36: 2000 | IE36: 3 | IF36: MoF | IG36: 3 | IH36: 10 | II36: 45.45454545 | IJ36: C | IK36: LIC | IL36: AFR
A37: 35 | C37: Chile | D37: UMIC | E37: 17269.525 | F37: 212003.2399 | G37: 12280 | H37: http://www.minhda.cl | I37: Chile Ministry of Finance | J37: 2 | K37: http://www.hacienda.cl/documentos.html | L37: 2 | M37: http://sigfe.sigfe.cl | N37: 2 | O37: http://sigfe.sigfe.cl/ | P37: 1 | Q37: http://www.dipres.gob.cl/574/multipropertyvalues-15459-21327.html | R37: 0 | S37: 0 | T37: - | U37: 2 | V37: 1 | W37: 0 | X37: - | Y37: 1 | Z37: http://www.dipres.gob.cl/572/propertyvalue-15494.html | AA37: 1 | AB37: 1 | AC37: 1989 | AD37: 0 | AF37: - | AG37: - | AH37: 0 | AJ37: - | AK37: 1 | AL37: 2 | AM37: 1 | AN37: 2003 | AO37: 1 | AP37: 1 | AQ37: 2003 | AR37: 1 | AS37: 1 | AT37: 0 | AU37: 0 | AV37: 0 | AW37: 1 | AX37: 1 | AY37: 1 | AZ37: 1 | BA37: 0 | BB37: 0 | BC37: - | BD37: 1 | BE37: http://datos.gob.cl | BF37: 0 | BG37: - | BH37: 1 | BI37: http://www.dipres.gob.cl/572/propertyvalue-15954.html | BJ37: 2 | BK37: http://www.ine.cl | BL37: Instituto Nacional de Estadísticas | BM37: http://www.bcentral.cl | BN37: Central Bank of Chile | BO37: http://www.dipres.gob.cl/572/channel.html | BP37: 1 | BQ37: http://creativecommons.org/licenses/by/3.0/cl/ | BR37: 1 | BS37: http://www.minhda.cl/documentos/leyes-y-normas.html | BT37: 2 | BU37: - | BV37: 0 | BW37: 3 | BX37: Availability of FAQs (Frequently Asked Questions), Twitter, Youtube | BY37: spa | BZ37: eng | CA37: - | CB37: - | CC37: 0 | CD37: SIGFE II | CE37: Sistema de Información para la Gestión Financiera del Estado | CF37: C | CG37: F | CH37: 3 | CI37: 2007 | CJ37: C | CK37: 1 | CL37: 1 | CM37: LDSW > Oracle | CN37: Web | CO37: 3 | CP37: - | CQ37: - | CR37: - | CS37: - | CT37: - | CU37: - | CV37: - | CW37: - | CX37: - | CY37: - | CZ37: - | DA37: - | DB37: - | DC37: - | DD37: - | DE37: 66 | DF37: 72 | DG37: 1 | DH37: 1 | DI37: 33 | DJ37: 0.71216 | DK37: 0.94117 | DL37: 0.81889 | DM37: 0.49396 | DN37: 0.8236 | DO37: 39 | DP37: 0.6769 | DQ37: 0.7516 | DR37: 0.4001 | DS37: 0.8788 | DT37: LCR | DV37: OECD | DW37: APEC | DY37: Chile | DZ37: 3 | EB37: 2 | ED37: 1 | EE37: 0 | EK37: 17 | EL37: 65.38461538 | EM37: B | EO37: 35 | EP37: Chile | EQ37: CHL | ET37: http://www.gobiernodechile.cl | EU37: 2 | EV37: http://www.chileatiende.cl | EW37: 0.8189 | EX37: 100 | EY37: 57 | EZ37: 70 | FA37: 71 | FB37: 73 | FG37: http://www.tesoreria.cl/web/index.jsp | FH37: 1927 | FI37: http://documents.worldbank.org/curated/en/2007/01/7299376/reforming-payments-securities-settlement-systems-latin-america-caribbean | FJ37: 1963 | FK37: 2 | FL37: 3 | FM37: - | FN37: - | FO37: - | FP37: - | FQ37: http://www.sii.cl | FR37: 1902 | FS37: SII Online | FT37: e-Tax Portal | FU37: 2 | FV37: COTS | FW37: http://www.sii.cl/botonera/interior_factura.htm | FX37: 2000 | FY37: 3 | FZ37: 3 | GA37: http://www.aduana.cl | GB37: 1844 | GC37: 1966 | GD37: 2 | GE37: CONAF Single Window | GF37: CONAF + Sistema Integrado de Comercio Exterior / Integrated System of Foreign Trade | GG37: 2 | GH37: COTS | GI37: http://www.aduana.cl/aduana/site/edic/base/port/tramites_linea.html | GJ37: 2013 | GK37: 3 | GL37: 3 | GM37: 1 | GN37: 1 | GO37: http://www.sii.cl/botonera/interior_iva.htm | GP37: 2000 | GQ37: 3 | GR37: 1 | GS37: https://www.registrocivil.cl/OficinaInternet/servlet/VentaCertificadoVehiculo | GT37: - | GU37: 1 | GV37: http://www.chileatiende.cl/fichas/ver/21201 | GW37: 2009 | GX37: 3 | GY37: =IFERROR(VLOOKUP($C37,'PS Employment'!$B$2:$N$107,12,FALSE)*1000,"-") -> 652900 | GZ37: 2 | HA37: http://laborsta.ilo.org/STP/guest | HB37: 2008 | HC37: SIAPER | HD37: Human Resources Management Information System | HE37: 1 | HF37: LDSW | HG37: http://siaper.contraloria.cl/opencms/opencms/siaper/index.html | HH37: 2011 | HI37: 3 | HJ37: 2 | HK37: SIAPER | HL37: Human Resources Management Information System | HM37: 1 | HN37: LDSW | HO37: http://siaper.contraloria.cl/opencms/opencms/siaper/index.html | HP37: 2011 | HQ37: 3 | HR37: 2 | HS37: - | HT37: Chile Compra | HU37: http://www.chilecompra.cl | HV37: 1999 | HW37: 3 | HX37: 2 | HY37: https://www.mercadopublico.cl/Portal/login.aspx | HZ37: Ministry of Finance – Public Debt Office | IA37: 2 | IB37: DMFAS 5.3 | ID37: 2003 | IE37: 3 | IF37: CB | IG37: 4 | IH37: 20 | II37: 90.90909091 | IJ37: A | IK37: UMIC | IL37: LCR
A38: 36 | C38: China | D38: UMIC | E38: 1344130 | F38: 6643241.128 | G38: 4940 | H38: http://www.mof.gov.cn | I38: Ministry of Finance of the People's Republic of China | J38: 2 | K38: http://yss.mof.gov.cn/ | L38: 2 | M38: http://www.bjcz.gov.cn/english/Golden%20Finance%20Project.htm | N38: 2 | O38: http://www.mof.gov.cn/mofhome/gp/index.html | P38: 0 | Q38: - | R38: 0 | S38: 0 | T38: - | U38: 1 | V38: 1 | W38: 0 | X38: - | Y38: 1 | Z38: http://yss.mof.gov.cn/zhengwuxinxi/caizhengshuju/ | AA38: 1 | AB38: 1 | AC38: 2010 | AD38: 0 | AF38: - | AG38: - | AH38: 0 | AJ38: - | AK38: 1 | AL38: 4 | AM38: 1 | AN38: 2003 | AO38: 0 | AQ38: - | AR38: 1 | AS38: 1 | AT38: 0 | AU38: 0 | AV38: 0 | AW38: 1 | AX38: 1 | AY38: 1 | AZ38: 1 | BA38: 0 | BB38: 0 | BC38: - | BD38: 1 | BE38: http://govinfo.nlc.gov.cn | BF38: 0 | BG38: - | BH38: 1 | BI38: http://www.casc.gov.cn/kjfg/kjf/200607/t20060703_337029.htm | BJ38: 0 | BK38: http://www.stats.gov.cn | BL38: China National Bureau of Statistics | BM38: http://www.pbc.gov.cn | BN38: The People's Bank of China | BO38: - | BP38: 1 | BQ38: http://www.mof.gov.cn/zhengwuxinxi/gongkaimulu/zhengfuxinxigongkaiguiding/ | BR38: 1 | BS38: http://yss.mof.gov.cn/zhengwuxinxi/zhengceguizhang/ | BT38: 0 | BU38: Internal budget rules | BV38: 0 | BW38: 3 | BX38: Online surveys also provided | BY38: chi | BZ38: - | CA38: - | CB38: - | CC38: - | CD38: GFMIS | CE38: Government Financial Management Information System | CF38: C | CG38: F | CH38: 3 | CI38: 2002 | CJ38: C | CK38: 1 | CL38: 1 | CM38: LDSW > Sybase | CN38: CS | CO38: 3 | CP38: - | CQ38: - | CR38: - | CS38: - | CT38: - | CU38: - | CV38: - | CW38: - | CX38: - | CY38: - | CZ38: - | DA38: - | DB38: - | DC38: - | DD38: - | DE38: 11 | DF38: 13 | DH38: 0 | DI38: 70 | DJ38: 0.54501 | DK38: 0.64705 | DL38: 0.60629 | DM38: 0.3554 | DN38: 0.6734 | DO38: 78 | DP38: 0.5359 | DQ38: 0.5294 | DR38: 0.3039 | DS38: 0.7745 | DT38: EAP | DW38: APEC | DY38: China | DZ38: 5 | EA38: 2 | EB38: 3 | EE38: 0 | EK38: 13 | EL38: 50 | EM38: B | EO38: 36 | EP38: China | EQ38: CHN | ET38: http://www.gov.cn | EU38: 2 | EV38: http://www.gov.cn/fuwu | EW38: 0.6063 | EX38: 100 | EY38: 57 | EZ38: 37 | FA38: 32 | FB38: 55 | FG38: http://gks.mof.gov.cn/ | FH38: 2000 | FI38: http://gks.mof.gov.cn/zhengfuxinxi/guojijiejian/201007/t20100721_329034.html | FJ38: 2002 | FK38: 2 | FL38: 4 | FM38: - | FN38: http://gks.mof.gov.cn/zhengfuxinxi/guojijiejian/200901/t20090105_105908.html | FO38: - | FP38: - | FQ38: http://www.chinatax.gov.cn | FR38: 1958 | FS38: Golden Tax | FT38: Integrated Tax Management System | FU38: 2 | FV38: COTS ? | FW38: http://www.chinatax.gov.cn/n2925/n2957/n2958/c674819/content.html | FX38: 1994 | FY38: 3 | FZ38: 3 | GA38: http://www.customs.gov.cn | GB38: 1958 | GC38: 1983 | GD38: 3 | GE38: H2010 / Golden Customs | GF38: Customs Management System / e-Customs + e-Port + … | GG38: 2 | GH38: COTS | GI38: http://www.customs.gov.cn/publish/portal0/tab49564/?id=NTit03_con | GJ38: 1999 | GK38: 3 | GL38: 3 | GM38: 1 | GN38: 1 | GO38: http://www.szgs.gov.cn/internet/zwgk/tszt/ybs/dzbs/t20120202_338401.htm | GP38: 2001 | GQ38: 3 | GR38: 1 | GS38: - | GT38: - | GU38: 0 | GV38: http://www.bjca.org.cn/about_bjca/gong-si-jian-jie | GW38: 2001 | GX38: 2 | GY38: 14051000 | GZ38: 2 | HA38: http://unpan1.un.org/intradoc/groups/public/documents/un/unpan023305.pdf | HB38: 2006 | HC38: HRMIS | HD38: Human Resources Management Information System | HE38: 1 | HF38: LDSW | HG38: http://www.mohrss.gov.cn | HH38: - | HI38: 3 | HJ38: 1 | HK38: HRMIS | HL38: Human Resources Management Information System | HM38: 1 | HN38: LDSW | HO38: http://www.mohrss.gov.cn | HP38: - | HQ38: 3 | HR38: 1 | HS38: - | HT38: CCGP Website | HU38: http://www.ccgp.gov.cn | HV38: 2000 | HW38: 3 | HX38: 1 | HY38: http://new.ccgp.gov.cn/login | HZ38: The People's Bank of China | IA38: 2 | IB38: CS-DRMS | ID38: 2005 | IE38: 3 | IF38: MoF | IH38: 17 | II38: 77.27272727 | IJ38: A | IK38: UMIC | IL38: EAP
A39: 37 | C39: Colombia | D39: UMIC | E39: 46927.125 | F39: 284923.5144 | G39: 6070 | H39: http://www.minhacienda.gov.co | I39: Colombia Ministry of Finance and Public Credit | J39: 2 | K39: http://www.minhacienda.gov.co/HomeMinhacienda/elministerio/Presupuestal | L39: 2 | M39: http://www.minhacienda.gov.co/HomeMinhacienda/siif | N39: 3 | O39: http://www.pte.gov.co | P39: 1 | Q39: http://www.minhacienda.gov.co/HomeMinhacienda/siif/Estadisticas/Presupuesto | R39: 1 | S39: 1 | T39: http://www.pte.gov.co/WebsitePTE/ConsultasPersonalizadasBootstrap.aspx | U39: 1 | V39: 1 | W39: 1 | X39: http://www.pte.gov.co/ | Y39: 1 | Z39: http://www.minhacienda.gov.co/HomeMinhacienda/elministerio/InformacionContable | AA39: 1 | AB39: 1 | AC39: 2000 | AD39: 1 | AE39: 1 | AF39: 4 | AG39: 2007 | AH39: 1 | AI39: 1 | AJ39: 2007 | AK39: 1 | AL39: 1 | AM39: 1 | AN39: 2000 | AO39: 1 | AP39: 1 | AQ39: 1995 | AR39: 1 | AS39: 1 | AT39: 0 | AU39: 0 | AV39: 0 | AW39: 1 | AX39: 1 | AY39: 1 | AZ39: 1 | BA39: 1 | BB39: 0 | BC39: - | BD39: 1 | BE39: http://datos.gov.co | BF39: 1 | BG39: http://www.minhacienda.gov.co/HomeMinhacienda/asistenciaentidadesterritoriales | BH39: 1 | BI39: http://www.minhacienda.gov.co/HomeMinhacienda/elministerio/InformacionContable/Info.ContableTesoroNal/2012 | BJ39: 1 | BK39: http://www.dane.gov.co | BL39: Colombia National Administrative Department of Statistics (DANE) | BM39: http://www.banrep.gov.co | BN39: Bank of the Republic | BO39: - | BP39: 1 | BQ39: http://www.pte.gov.co | BR39: 1 | BS39: http://www.minhacienda.gov.co/HomeMinhacienda/elministerio/NormativaMinhacienda/2012 | BT39: 0 | BU39: National laws and regulations | BV39: 0 | BW39: 3 | BX39: Availability of FAQs (Frequently Asked Questions), online chat also provided, twitter | BY39: spa | BZ39: - | CA39: - | CB39: - | CC39: - | CD39: SIIF | CE39: Sistema Integrado de Información Financiera | CF39: C | CG39: F | CH39: 3 | CI39: 2009 | CJ39: C | CK39: 2 | CL39: 1 | CM39: LDSW > MS SQL | CN39: Web | CO39: 3 | CP39: Jun 2009 | CQ39: Public | CR39: 1 | CS39: C | CT39: A | CU39: B | CV39: B+ | CW39: NR | CX39: B | CY39: C+ | CZ39: A | DA39: B | DB39: NU | DC39: 3.125 | DD39: 2.962962963 | DE39: 58 | DF39: 61 | DG39: 1 | DH39: 2 | DI39: 50 | DJ39: 0.6173 | DK39: 0.88235 | DL39: 0.7874 | DM39: 0.32971 | DN39: 0.7348 | DO39: 43 | DP39: 0.6572 | DQ39: 0.8431 | DR39: 0.2894 | DS39: 0.8391 | DT39: LCR | DY39: Colombia | DZ39: 1 | EB39: 1 | EE39: 0 | EJ39: 2013-04-30 | EK39: 24 | EL39: 92.30769231 | EM39: A | EO39: 37 | EP39: Colombia | EQ39: COL | ET39: https://www.gobiernoenlinea.gov.co | EU39: 2 | EV39: https://www.gobiernoenlinea.gov.co | EW39: 0.7874 | EX39: 88 | EY39: 75 | EZ39: 56 | FA39: 65 | FB39: 70 | FG39: http://www.irc.gov.co/irc/en/nationaltreasury | FH39: 1923 | FI39: http://documents.worldbank.org/curated/en/2007/01/7299376/reforming-payments-securities-settlement-systems-latin-america-caribbean | FJ39: 2000 | FK39: 3 | FL39: 4 | FM39: - | FN39: - | FO39: - | FP39: - | FQ39: http://www.dian.gov.co | FR39: 1992 | FS39: e-Tax | FT39: Tax and Customs Portal | FU39: 2 | FV39: COTS ? | FW39: http://www.dian.gov.co/contenidos/servicios/guia.html | FX39: 2008 | FY39: 3 | FZ39: 3 | GA39: http://www.dian.gov.co | GB39: 1992 | GC39: 1993 | GD39: 0 | GE39: SYGA y SALIDA DE MERCANCIAS | GF39: Tax and Customs Portal | GG39: 2 | GH39: COTS | GI39: http://www.dian.gov.co/contenidos/servicios/guia.html | GJ39: 2008 | GK39: 3 | GL39: 3 | GM39: 1 | GN39: 1 | GO39: http://www.dian.gov.co/contenidos/servicios/guia.html | GP39: 2008 | GQ39: 3 | GR39: 1 | GS39: https://www.simit.org.co/ | GT39: - | GU39: 1 | GV39: https://www.gobiernoenlinea.gov.co/web/guest/home/-/government-services/T179/maximized | GW39: 2012 | GX39: 3 | GY39: =IFERROR(VLOOKUP($C39,'PS Employment'!$B$2:$N$107,12,FALSE)*1000,"-") -> 806600 | GZ39: 2 | HA39: http://laborsta.ilo.org/STP/guest | HB39: 2010 | HC39: SIGEP | HD39: Management Information System and Public Employment | HE39: 1 | HF39: LDSW | HG39: http://www.sigep.gov.co/home | HH39: 2010 | HI39: 3 | HJ39: 2 | HK39: SIGEP | HL39: Management Information System and Public Employment | HM39: 1 | HN39: LDSW | HO39: http://www.sigep.gov.co/home | HP39: 2010 | HQ39: 3 | HR39: 2 | HS39: B | HT39: e-Procurement System | HU39: http://www.colombiacompra.gov.co | HV39: 2011 | HW39: 3 | HX39: 2 | HY39: https://www.contratos.gov.co | HZ39: Colombia General Directorate of Public Credit | IA39: 2 | IB39: DMFAS | ID39: 2001 | IE39: 0 | IF39: MoF | IG39: 0 | IH39: 21 | II39: 95.45454545 | IJ39: A | IK39: UMIC | IL39: LCR
A40: 38 | C40: Comoros | D40: LIC | E40: 753.943 | F40: 580.9927056 | G40: 770 | H40: http://www.beit-salam.km | I40: Ministry of Finance, Budget, Economy and Planning | J40: 0 | K40: - | L40: 1 | M40: http://siteresources.worldbank.org/INTDEBTDEPT/PreliminaryDocuments/22539668/ComorosPD.pdf | N40: 0 | O40: - | P40: 0 | Q40: - | R40: 0 | S40: 0 | T40: - | U40: 0 | V40: 0 | W40: 0 | X40: - | Y40: 0 | Z40: - | AA40: 0 | AC40: - | AD40: 0 | AF40: - | AG40: - | AH40: 0 | AJ40: - | AK40: 0 | AN40: - | AO40: 0 | AQ40: - | AR40: 0 | AS40: 0 | AT40: 0 | AU40: 0 | AV40: 0 | AW40: 0 | AX40: 0 | AY40: 0 | AZ40: 0 | BA40: 0 | BB40: 0 | BC40: - | BD40: 0 | BE40: - | BF40: 0 | BG40: - | BH40: 0 | BI40: - | BJ40: 0 | BK40: - | BL40: Direction de la Statistique | BM40: http://www.banque-comores.km | BN40: Central Bank of Comoros | BO40: - | BP40: 0 | BQ40: - | BR40: 0 | BS40: - | BT40: 0 | BU40: - | BV40: 0 | BW40: 0 | BX40: - | BY40: fre | BZ40: ara | CA40: - | CB40: - | CC40: 0 | CD40: SIGIFE | CE40: Système Intégré de Gestion de l’Informations Financière de l’Etat | CF40: C | CG40: F | CH40: 1 | CI40: 2016 | CJ40: C | CK40: 1 | CL40: 0 | CM40: ? | CN40: - | CO40: 2 | CP40: Jul 2013 | CQ40: Public | CR40: 2 | CS40: C | CT40: D | CU40: B | CV40: C | CW40: D | CX40: D | CY40: D+ | CZ40: D+ | DA40: NR | DB40: D | DC40: 1.56 | DD40: 1.62 | DE40: - | DF40: - | DH40: 1 | DI40: 177 | DJ40: 0.18077 | DK40: 0.03921 | DL40: 0.01574 | DM40: 0.06037 | DN40: 0.4662 | DO40: 171 | DP40: 0.2358 | DQ40: 0.0784 | DR40: 0.0436 | DS40: 0.5853 | DT40: AFR | DX40: F | DY40: Comoros | DZ40: 0 | EE40: 0 | EK40: 1 | EL40: 3.846153846 | EM40: D | EO40: 38 | EP40: Comoros | EQ40: COM | ET40: http://www.beit-salam.km | EU40: 0 | EV40: - | EW40: 0.0157 | EX40: 19 | EY40: 7 | EZ40: 0 | FA40: 0 | FB40: 6 | FG40: http://www.beit-salam.km/article.php3?id_article=24 | FH40: 1999 | FI40: - | FJ40: - | FK40: 0 | FL40: - | FM40: - | FN40: - | FO40: - | FP40: - | FQ40: http://comoros.eregulations.org/media/code%20des%20impots.pdf | FR40: 2014 | FS40: - | FT40: Forms and information | FU40: 0 | FV40: - | FW40: - | FX40: - | FY40: 0 | FZ40: 1 | GA40: http://www.douanes.km | GB40: 1892 | GC40: 1993 | GD40: 4 | GE40: ASYCUDA++ | GF40: Automated SYstem for CUstoms DAta | GG40: 2 | GH40: ASYCUDA ++ | GI40: http://www.douanes.km/v1/index.php/la-douane-et-vous/sydonia | GJ40: 2008 | GK40: 3 | GL40: 2 | GM40: 1 | GN40: 0 | GO40: - | GP40: - | GQ40: 0 | GR40: 0 | GS40: - | GT40: - | GU40: 0 | GV40: - | GW40: - | GX40: 0 | GY40: 13164 | GZ40: 1 | HA40: http://www.alwatwan.net/index.php/index.php?home=actu.php&title=Fonction-publique-La-masse-salariale-a-atteint-1-8-milliard-depuis-fA-vrier&actu_id=6566 | HB40: 2014 | HC40: HRMIS > GISE | HD40: Gestion Intégrée des Structures et des Effectifs / Human Resources Management Information System | HE40: 1 | HF40: LDSW | HG40: http://www-wds.worldbank.org/external/default/WDSContentServer/WDSP/AFR/2014/06/10/090224b0824e2cd5/1_0/Rendered/INDEX/Comoros000Econ0Report000Sequence005.txt | HH40: - | HI40: 2 | HJ40: 2 | HK40: GISE | HL40: Computerized wage payment system | HM40: 1 | HN40: LDSW | HO40: http://www.imf.org/external/pubs/ft/scr/2013/cr1327.pdf | HP40: 2011 | HQ40: 3 | HR40: 2 | HS40: D+ | HT40: CREF Website | HU40: http://www.cref.gouv.km | HV40: 2012 | HW40: 3 | HX40: 1 | HY40: http://www.abge.org/produits/index.php | IH40: 10 | II40: 45.45454545 | IJ40: C | IK40: LIC | IL40: AFR
A41: 39 | C41: Congo, Rep. | D41: LMIC | E41: 4139.748 | F41: 9315.549749 | G41: 2250 | H41: http://www.mefb-cg.org | I41: Ministry of Economy, Finance, and Budget | J41: 1 | K41: http://www.mefb-cg.org/loi_de_finances/lois_2010.html | L41: 1 | M41: http://www.worldbank.org/ifa/rosc_aa_cgo_eng_0310.pdf | N41: 1 | O41: - | P41: 0 | Q41: - | R41: 0 | S41: 0 | T41: - | U41: 1 | V41: 1 | W41: 0 | X41: - | Y41: 0 | Z41: - | AA41: 0 | AC41: - | AD41: 0 | AF41: - | AG41: - | AH41: 0 | AJ41: - | AK41: 1 | AL41: 4 | AM41: 0 | AN41: 2005 | AO41: 0 | AQ41: - | AR41: 0 | AS41: 0 | AT41: 0 | AU41: 0 | AV41: 0 | AW41: 1 | AX41: 1 | AY41: 0 | AZ41: 0 | BA41: 0 | BB41: 0 | BC41: - | BD41: 0 | BE41: - | BF41: 0 | BG41: - | BH41: 0 | BI41: - | BJ41: 1 | BK41: http://www.cnsee.org | BL41: National Institute of Statistics | BM41: http://www.beac.int | BN41: Congo: Bank of Central African States | BO41: - | BP41: 0 | BQ41: - | BR41: 0 | BS41: - | BT41: 0 | BU41: - | BV41: 0 | BW41: 0 | BX41: - | BY41: fre | BZ41: - | CA41: - | CB41: - | CC41: - | CD41: SYSCOHADA | CE41: OHADA Accounting System | CF41: C | CG41: T | CH41: 3 | CI41: 2000 | CJ41: C | CK41: 1 | CL41: 1 | CM41: LDSW + OSS | CN41: Web | CO41: 1 | CP41: Mar 2006 | CQ41: Public | CR41: 1 | CS41: C | CT41: B | CU41: D | CV41: D+ | CW41: D+ | CX41: D | CY41: C+ | CZ41: D+ | DA41: D | DB41: A | DC41: 1.9 | DD41: 2 | DE41: - | DF41: - | DH41: 1 | DI41: 160 | DJ41: 0.25696 | DK41: 0.09803 | DL41: 0.10236 | DM41: 0.14526 | DN41: 0.5233 | DO41: 157 | DP41: 0.2809 | DQ41: 0.0784 | DR41: 0.1275 | DS41: 0.6369 | DT41: AFR | DX41: prev | DY41: Congo, Rep. | DZ41: 0 | EE41: 0 | EK41: 6 | EL41: 23.07692308 | EM41: D | EO41: 39 | EP41: Congo, Rep. | EQ41: COG | ET41: http://www.congo-site.com | EU41: 0 | EV41: - | EW41: 0.1024 | EX41: 22 | EY41: 16 | EZ41: 9 | FA41: 6 | FB41: 13 | FG41: http://www.armp.cg/ | FH41: 1997 | FI41: - | FJ41: - | FK41: 0 | FL41: - | FM41: - | FN41: - | FO41: - | FP41: - | FQ41: http://www.mefb-cg.org | FR41: 2002 | FS41: - | FT41: Forms and information | FU41: 0 | FV41: - | FW41: - | FX41: - | FY41: 0 | FZ41: 1 | GA41: http://www.douanes.gouv.cg | GB41: 1954 | GC41: 1975 | GD41: 4 | GE41: ASYCUDA++ | GF41: Automated SYstem for CUstoms DAta | GG41: 2 | GH41: ASYCUDA ++ | GI41: http://douanes.gouv.cg/projets/?page=psydonia# | GJ41: 2005 | GK41: 3 | GL41: 2 | GM41: 0 | GN41: - | GO41: - | GP41: - | GQ41: 0 | GR41: 0 | GS41: - | GT41: - | GU41: 0 | GV41: - | GW41: - | GX41: 0 | GY41: 500000 | GZ41: 1 | HA41: http://www.encyclopedia.com/topic/Republic_of_the_Congo.aspx | HB41: 1998 | HC41: HR-Payroll | HD41: HRMIS and Payroll System | HE41: 1 | HF41: LDSW | HG41: http://www.pefa.org/en/assessment/cg-jun14-pfmpr-public-en | HH41: - | HI41: 3 | HJ41: 1 | HK41: SIBEC | HL41: Computer System Budge and Economy of the Congo | HM41: 1 | HN41: LDSW | HO41: http://fichiers.acteurspublics.com/redac/pdf/Septembre/rapport_final%20congo.pdf | HP41: 2002 | HQ41: 3 | HR41: 2 | HS41: D+ | HT41: ARMP Website | HU41: http://armp.cg | HV41: 2012 | HW41: 3 | HX41: 1 | HY41: http://armp.cg/en-us/statistics/procurementdelegation/approvedprocurement.aspx | IA41: 2 | IB41: DMFAS 6.0 | ID41: 2003 | IE41: 3 | IF41: SDMO | IG41: 4T | IH41: 9 | II41: 40.90909091 | IJ41: C | IK41: LMIC | IL41: AFR
A42: 40 | C42: Congo, Dem. Rep. | D42: LIC | E42: 67757.577 | F42: 13103.73345 | G42: 190 | H42: http://minfinrdc.com/minfin | I42: Ministry of Finance | J42: 2 | K42: http://www.budget.gouv.cd/ | L42: 1 | M42: http://www.pefa.org/en/assessment/drc-mar08-pfmpr-public-en | N42: 0 | O42: - | P42: 0 | Q42: - | R42: 0 | S42: 0 | T42: - | U42: 2 | V42: 1 | W42: 1 | X42: http://www.budget.gouv.cd/budget-citoyen/ | Y42: 0 | Z42: - | AA42: 1 | AB42: 1 | AC42: 2010 | AD42: 0 | AF42: - | AG42: - | AH42: 0 | AJ42: - | AK42: 1 | AL42: 4 | AM42: 1 | AN42: 2011 | AO42: 0 | AQ42: - | AR42: 1 | AS42: 1 | AT42: 1 | AU42: 0 | AV42: 0 | AW42: 1 | AX42: 1 | AY42: 1 | AZ42: 1 | BA42: 1 | BB42: 0 | BC42: - | BD42: 0 | BE42: - | BF42: 0 | BG42: - | BH42: 0 | BI42: - | BJ42: 2 | BK42: - | BM42: http://www.beac.int | BN42: Congo: Bank of Central African States | BO42: - | BP42: 0 | BQ42: - | BR42: 0 | BS42: - | BT42: 0 | BU42: - | BV42: 0 | BW42: 0 | BX42: - | BY42: fre | BZ42: - | CA42: - | CB42: - | CC42: - | CD42: FMIS | CE42: Financial Management Information System | CF42: C | CG42: T | CH42: 3 | CI42: 2003 | CJ42: C+L | CK42: 1 | CL42: 2 | CM42: MS Navision | CN42: Web | CO42: 1 | CP42: Mar 2008 | CQ42: Public | CR42: 1 | CS42: A | CT42: B | CU42: D | CV42: D | CW42: C | CX42: D | CY42: C+ | CZ42: C+ | DA42: D+ | DB42: D+ | DC42: 2 | DD42: 1.6 | DE42: 18 | DF42: 6 | DH42: 1 | DI42: 183 | DJ42: 0.15514 | DK42: 0.0196 | DL42: 0.04724 | DM42: 0.03369 | DN42: 0.3845 | DO42: 174 | DP42: 0.228 | DQ42: 0.1765 | DR42: 0.0183 | DS42: 0.4893 | DT42: AFR | DX42: F | DY42: Congo, Dem. Rep. | DZ42: 0 | EE42: 0 | EK42: 11 | EL42: 42.30769231 | EM42: C | EO42: 40 | EP42: Congo, Dem. Rep. | EQ42: COD | ER42: 2008 | ET42: http://www.presidentrdc.cd | EU42: 0 | EV42: - | EW42: 0.0472 | EX42: 25 | EY42: 5 | EZ42: 2 | FA42: 6 | FB42: 8 | FG42: http://minfinrdc.com/minfin/ | FH42: 2001 | FI42: - | FJ42: - | FK42: 0 | FL42: - | FM42: - | FN42: - | FO42: - | FP42: - | FQ42: http://dgi.gouv.cd | FR42: 1988 | FS42: TMS | FT42: Tax Management System + Other Automation Solutions | FU42: 1 | FV42: LDSW | FW42: http://dgi.gouv.cd/index.php/presentation-de-la-dgi/historique | FX42: 1999 | FY42: 3 | FZ42: 2 | GA42: http://www.douanesrdc.com | GB42: 1960 | GC42: 1972 | GD42: 4 | GE42: ASYCUDA World | GF42: Automated SYstem for CUstoms DAta | GG42: 2 | GH42: ASYCUDA W | GI42: http://www.douanes.gouv.cd/index.php/2013-12-05-18-10-38 | GJ42: 2011 | GK42: 3 | GL42: 2 | GM42: 1 | GN42: 1 | GO42: - | GP42: - | GQ42: 1 | GR42: 0 | GS42: - | GT42: - | GU42: 0 | GV42: - | GW42: - | GX42: 0 | GY42: 603936 | GZ42: 1 | HA42: http://documents.worldbank.org/curated/en/2013/04/17611399/congo-democratic-republic-governance-capacity-enhancement-project | HB42: 2007 | HC42: HRMIS | HD42: Human Resources Management Information System | HE42: 1 | HF42: LDSW | HG42: http://www.pefa.org/en/assessment/drc-mar08-pfmpr-public-en | HH42: - | HI42: 2 | HJ42: 2 | HK42: HRMIS > PTS | HL42: Human Rresource Management Information System | HM42: 1 | HN42: LDSW | HO42: http://documents.worldbank.org/curated/en/2013/04/17611399/congo-democratic-republic-governance-capacity-enhancement-project | HP42: - | HQ42: 2 | HR42: 2 | HS42: D | HT42: Public Procurement Website | HU42: http://www.budget.gouv.cd/marches-publics/avis-dappel-doffres/ | HV42: 2013 | HW42: 3 | HX42: 1 | HY42: http://www.budget.gouv.cd/marches-publics/contrats/2013-2/ | IA42: 2 | IB42: DMFAS 6.0 | ID42: 2005 | IE42: 3 | IF42: SDMO | IG42: 4FT | IH42: 11 | II42: 50 | IJ42: B | IK42: LIC | IL42: AFR
A43: 41 | C43: Costa Rica | D43: UMIC | E43: 4726.575 | F43: 36114.0303 | G43: 7640 | H43: http://www.hacienda.go.cr | I43: Costa Rica Ministry of Finance | J43: 2 | K43: http://www.hacienda.go.cr/contenido/12487-presupuesto-de-la-republica | L43: 2 | M43: http://www.hacienda.go.cr/contenido/12668-sigaf-sistema-integrado-de-gestion-de-administracion-financiera | N43: 1 | O43: - | P43: 1 | Q43: https://www.hacienda.go.cr/Msib21/Espanol/Secretaria+Tecnica+de+la+Autoridad+Presupuestaria/Ingresos+y+Gastos+Gobierno.htm | R43: 1 | S43: 0 | T43: http://www.hacienda.go.cr/contenido/139-cifras-mensuales-de-ingresos-gastos-y-financiamiento-del-gobierno-central | U43: 1 | V43: 1 | W43: 0 | X43: - | Y43: 1 | Z43: https://www.hacienda.go.cr/Msib21/Espanol/Contabilidad+Nacional/Estructuraestadosfinancieros.htm | AA43: 1 | AB43: 0 | AC43: 2003 | AD43: 1 | AE43: 0 | AF43: 5 | AG43: 2009 | AH43: 0 | AJ43: - | AK43: 1 | AL43: 4 | AM43: 1 | AN43: 2004 | AO43: 0 | AQ43: - | AR43: 1 | AS43: 1 | AT43: 0 | AU43: 0 | AV43: 0 | AW43: 1 | AX43: 1 | AY43: 0 | AZ43: 1 | BA43: 0 | BB43: 0 | BC43: - | BD43: 1 | BE43: http://www.gobiernofacil.go.cr/e-gob/weblinks/index.aspx | BF43: 0 | BG43: - | BH43: 0 | BI43: - | BJ43: 2 | BK43: http://www.inec.go.cr | BL43: Costa Rica Instituto Nacional de Estadística y Censos | BM43: http://www.bccr.fi.cr | BN43: Central Bank of Costa Rica | BO43: https://www.hacienda.go.cr/msib21/espanol/Miscelaneos/Indices/ge_informacionespecializada.htm?vnode=16 | BP43: 0 | BQ43: - | BR43: 1 | BS43: https://www.hacienda.go.cr/msib21/espanol/Acerca%20del%20Ministerio/InformaciondelMinisterio.htm | BT43: 2 | BU43: National laws and regulations | BV43: 0 | BW43: 1 | BX43: - | BY43: spa | BZ43: - | CA43: - | CB43: - | CC43: - | CD43: SFP + SIGAF | CE43: Sistema de Formulación / Sistema Integrado de Gestión para la Administración Financiera | CF43: C | CG43: F | CH43: 3 | CI43: 2007 | CJ43: C+L | CK43: 1 | CL43: 2 | CM43: MS SQL + SAP | CN43: Web | CO43: 3 | CP43: Oct 2010 | CQ43: Public | CR43: 1 | CS43: A | CT43: A | CU43: B | CV43: C+ | CW43: A | CX43: B | CY43: B+ | CZ43: C+ | DA43: B+ | DB43: C | DC43: 3.2 | DD43: 3.177419355 | DE43: 50 | DF43: 47 | DG43: 1 | DH43: 0 | DI43: 54 | DJ43: 0.60614 | DK43: 0.82352 | DL43: 0.61417 | DM43: 0.44607 | DN43: 0.7582 | DO43: 77 | DP43: 0.5397 | DQ43: 0.4967 | DR43: 0.3135 | DS43: 0.8089 | DT43: LCR | DY43: Costa Rica | DZ43: 2 | EC43: 2 | EE43: 0 | EK43: 14 | EL43: 53.84615385 | EM43: B | EO43: 41 | EP43: Costa Rica | EQ43: CRI | ET43: http://www.gobiernofacil.go.cr | EU43: 2 | EV43: http://www.gobiernofacil.go.cr | EW43: 0.6142 | EX43: 94 | EY43: 55 | EZ43: 37 | FA43: 44 | FB43: 56 | FG43: http://www.hacienda.go.cr/contenido/585-direccion-general-de-hacienda | FH43: 1962 | FI43: http://documents.worldbank.org/curated/en/2007/01/7299376/reforming-payments-securities-settlement-systems-latin-america-caribbean | FJ43: 2002 | FK43: 2 | FL43: 4 | FM43: - | FN43: - | FO43: - | FP43: - | FQ43: http://www.hacienda.go.cr | FR43: 1917 | FS43: e-Tax | FT43: e-Tax and other portals | FU43: 2 | FV43: COTS ? | FW43: http://www.hacienda.go.cr/contenido/12493-tributacion-digital | FX43: 2007 | FY43: 3 | FZ43: 2 | GA43: http://www.hacienda.go.cr | GB43: 1915 | GC43: 2001 | GD43: 3 | GE43: TICA | GF43: Tecnología de la Información para el Control Aduanero | GG43: 2 | GH43: COTS | GI43: http://www.hacienda.go.cr/tica/consultas/hCnConsVariasE.aspx | GJ43: 2006 | GK43: 3 | GL43: 2 | GM43: 1 | GN43: 1 | GO43: http://tributaciondirecta.hacienda.go.cr/tributaciondirecta/guia.jsp | GP43: 2008 | GQ43: 3 | GR43: 1 | GS43: - | GT43: - | GU43: 0 | GV43: http://controlpas.go.cr/ | GW43: 2014 | GX43: 3 | GY43: 288500 | GZ43: 2 | HA43: http://laborsta.ilo.org/STP/guest | HB43: 2010 | HC43: INTEGRA | HD43: The database of personnel and payroll | HE43: 1 | HF43: LDSW | HG43: https://www.pefa.org/en/assessment/cr-oct10-pfmpr-public-en | HH43: 2005 | HI43: 3 | HJ43: 2 | HK43: INTEGRA | HL43: The database of personnel and payroll | HM43: 1 | HN43: LDSW | HO43: https://www.pefa.org/en/assessment/cr-oct10-pfmpr-public-en | HP43: 2005 | HQ43: 3 | HR43: 2 | HS43: D+ | HT43: Mer-Link / CompraRED > KONEPS | HU43: https://www.hacienda.go.cr/scripts/criiiext.dll?UTILREQ=COMPRARED | HV43: 2010 | HW43: 3 | HX43: 2 | HY43: https://www.hacienda.go.cr/scripts/criiiext.dll?UTILREQ=MENUCRUCEVARIABLES | HZ43: Ministry of Treasury | IA43: 2 | IB43: DMFAS 5.3 | ID43: 1988 | IE43: 3 | IF43: MoF | IG43: 4T | IH43: 17 | II43: 77.27272727 | IJ43: A | IK43: UMIC | IL43: LCR
A44: 42 | C44: Côte d'Ivoire | D44: LMIC | E44: 20152.894 | F44: 22064.56605 | G44: 1090 | H44: http://www.finances.gouv.ci | I44: Côte d'Ivoire Ministry of Economy & Finance | J44: 1 | K44: http://www.finances.gouv.ci/index.php/fr/elements-de-gouvernance/execution-budgetaire.html | L44: 2 | M44: http://www.sndi.ci/index.php/component/content/article/35-infosndi/78-sigfip.html | N44: 1 | O44: - | P44: 0 | Q44: - | R44: 0 | S44: 0 | T44: - | U44: 1 | V44: 1 | W44: 0 | X44: - | Y44: 1 | Z44: http://www.tresor.gov.ci/reformes/instructions-comptables/instructions-comptables-2011.html | AA44: 0 | AC44: - | AD44: 1 | AE44: 0 | AF44: 3 | AG44: 2011 | AH44: 0 | AJ44: - | AK44: 1 | AL44: 3 | AM44: 1 | AN44: 2008 | AO44: 1 | AP44: 1 | AQ44: 1999 | AR44: 0 | AS44: 1 | AT44: 0 | AU44: 0 | AV44: 0 | AW44: 1 | AX44: 1 | AY44: 0 | AZ44: 0 | BA44: 0 | BB44: 1 | BC44: http://www.dmp.finances.gouv.ci/ | BD44: 0 | BE44: - | BF44: 0 | BG44: - | BH44: 0 | BI44: - | BJ44: 0 | BK44: http://www.ins.ci | BL44: Côte d'Ivoire Institut national de la statistique (INS) | BM44: http://www.bceao.int | BN44: Central Bank of West African States (BCEAO) | BO44: - | BP44: 0 | BQ44: - | BR44: 1 | BS44: http://www.finances.gouv.ci/index.php/fr/ministere/grandes-directions.html | BT44: 0 | BU44: - | BV44: 0 | BW44: 3 | BX44: - | BY44: fre | BZ44: - | CA44: - | CB44: - | CC44: - | CD44: ASTER/SIGFIP | CE44: Application des Services du Trésor en Réseau / Système Intégré de Gestion des Finances Publiques | CF44: C | CG44: T | CH44: 3 | CI44: 1999 | CJ44: C | CK44: 1 | CL44: 1 | CM44: LDSW | CN44: CS | CO44: 1 | CP44: Nov 2008 | CQ44: Public | CR44: 1 | CS44: B | CT44: C | CU44: C | CV44: D | CW44: C+ | CX44: D | CY44: D+ | CZ44: C+ | DA44: D | DB44: D+ | DC44: 1.8 | DD44: 1.777777778 | DE44: - | DF44: - | DH44: 0 | DI44: 171 | DJ44: 0.20385 | DK44: 0.17647 | DL44: 0.17322 | DM44: 0.13917 | DN44: 0.2992 | DO44: 166 | DP44: 0.258 | DQ44: 0.3333 | DR44: 0.1019 | DS44: 0.3388 | DT44: AFR | DX44: F | DY44: Côte d'Ivoire | DZ44: 0 | EE44: 0 | EK44: 12 | EL44: 46.15384615 | EM44: C | EO44: 42 | EP44: Côte d'Ivoire | EQ44: CIV | ER44: 2014 | ET44: http://www.gouv.ci | EU44: 0 | EV44: - | EW44: 0.1732 | EX44: 38 | EY44: 25 | EZ44: 5 | FA44: 12 | FB44: 19 | FG44: http://www.tresor.gov.ci/ | FH44: 1962 | FI44: http://www.tresor.gov.ci/documentation/actualites/revue-de-presse/item/828-tracabilite-des-operations-financieres-de-l%E2%80%99etat-la-cr%C3%A9ation-d%E2%80%99un-compte-unique-du-tr%C3%A9sor-adopt%C3%A9-en-conseil-de-ministre.html | FJ44: 2015 | FK44: 1 | FL44: - | FM44: - | FN44: - | FO44: - | FP44: - | FQ44: http://www.dgi.gouv.ci | FR44: 1959 | FS44: - | FT44: Forms and information | FU44: 0 | FV44: - | FW44: - | FX44: - | FY44: 0 | FZ44: 1 | GA44: http://www.douanes.ci | GB44: 1964 | GC44: 1963 | GD44: 4 | GE44: ASYCUDA World | GF44: Automated SYstem for CUstoms DAta | GG44: 2 | GH44: ASYCUDA W | GI44: http://www.douanes.ci/sydamworld/index.php | GJ44: 2007 | GK44: 3 | GL44: 2 | GM44: 0 | GN44: 1 | GO44: - | GP44: - | GQ44: 1 | GR44: 0 | GS44: - | GT44: - | GU44: 0 | GV44: http://lactuwebdedith.wordpress.com/2013/06/24/cote-divoire-la-loi-sur-les-transactions-electroniques-adoptee/ | GW44: 2013 | GX44: 1 | GY44: 137000 | GZ44: 1 | HA44: http://unpan1.un.org/intradoc/groups/public/documents/un/unpan028168.pdf | HB44: 2004 | HC44: SIGFAE | HD44: Systeme Integre de Gestion des Fonctionnaires et Agents de I’Etat / Integrated System for the Management o f the Civil Servants’ Records | HE44: 1 | HF44: LDSW | HG44: https://www.fonctionpublique.egouv.ci/sigfae/ | HH44: 2012 | HI44: 3 | HJ44: 2 | HK44: SIGFAE | HL44: Systeme Integre de Gestion des Fonctionnaires et Agents de I’Etat / Integrated System for the Management o f the Civil Servants’ Records | HM44: 1 | HN44: LDSW | HO44: http://www.pefa.org/en/assessment/ci-nov08-pemfar-public-en | HP44: 2012 | HQ44: 3 | HR44: 2 | HS44: C | HT44: SIGMAP | HU44: http://www.anrmp.ci | HV44: 2006 | HW44: 3 | HX44: 1 | HY44: http://www.budget.gouv.ci/assets/files/ccm/4-marches-publics-fin-mars-2014-annexe-liste-marches-par-ministere-par-mode.pdf | IA44: 2 | IB44: DMFAS 5.3 | ID44: 1998 | IE44: 3 | IF44: MoF | IG44: 4 | IH44: 11 | II44: 50 | IJ44: B | IK44: LMIC | IL44: AFR
A45: 43 | C45: Croatia | D45: HIC | E45: 4407 | F45: 59617.66721 | G45: 13530 | H45: http://www.mfin.hr | I45: Croatia Ministry of Finance | J45: 2 | K45: http://www.mfin.hr/hr/proracun | L45: 1 | M45: http://www.mfin.hr/adminmax/docs/strategija2007_eng.pdf | N45: 1 | O45: - | P45: 1 | Q45: http://www.mfin.hr/hr/drzavni-proracun-2013-godina | R45: 0 | S45: 0 | T45: - | U45: 1 | V45: 1 | W45: 0 | X45: - | Y45: 1 | Z45: http://www.mfin.hr/hr/drzavni-proracun-arhiva | AA45: 1 | AB45: 1 | AC45: 1998 | AD45: 1 | AE45: 1 | AF45: 3 | AG45: 2010 | AH45: 0 | AJ45: - | AK45: 1 | AL45: 4 | AM45: 1 | AN45: 1998 | AO45: 0 | AQ45: - | AR45: 1 | AS45: 1 | AT45: 0 | AU45: 0 | AV45: 0 | AW45: 1 | AX45: 1 | AY45: 0 | AZ45: 1 | BA45: 1 | BB45: 0 | BC45: - | BD45: 1 | BE45: http://www.mojauprava.hr | BF45: 0 | BG45: - | BH45: 1 | BI45: http://www.mfin.hr/hr/proracunsko-racunovodstvo | BJ45: 0 | BK45: http://www.dzs.hr | BL45: Croatia Central Bureau of Statistics | BM45: http://www.hnb.hr | BN45: Croatian National Bank | BO45: - | BP45: 1 | BQ45: http://www.mfin.hr/hr/odnosi-s-javnoscu | BR45: 1 | BS45: http://www.mfin.hr/hr/zakonodavstvo?id=16&type=zakon | BT45: 2 | BU45: National laws and regulations | BV45: 0 | BW45: 3 | BX45: There is a provision for newsletter subscriptions | BY45: hrv | BZ45: eng | CA45: - | CB45: - | CC45: 0 | CD45: IFMIS | CE45: Integrated Financial Management Information System | CF45: D | CG45: F | CH45: 3 | CI45: 2011 | CJ45: C+L | CK45: 1 | CL45: 2 | CM45: SAP | CN45: Web | CO45: 3 | CP45: - | CQ45: - | CR45: - | CS45: - | CT45: - | CU45: - | CV45: - | CW45: - | CX45: - | CY45: - | CZ45: - | DA45: - | DB45: - | DC45: - | DD45: - | DE45: 61 | DF45: 57 | DG45: 1 | DH45: 2 | DI45: 47 | DJ45: 0.62817 | DK45: 0.33333 | DL45: 0.46456 | DM45: 0.62711 | DN45: 0.7928 | DO45: 30 | DP45: 0.7328 | DQ45: 0.6405 | DR45: 0.6965 | DS45: 0.8615 | DT45: ECA | DY45: Croatia | DZ45: 1 | EC45: 1 | EE45: 0 | EJ45: 2013-04-19 | EK45: 14 | EL45: 53.84615385 | EM45: B | EO45: 43 | EP45: Croatia | EQ45: HRV | ET45: https://www.vlada.hr | EU45: 2 | EV45: https://www.gov.hr | EW45: 0.4646 | EX45: 59 | EY45: 68 | EZ45: 26 | FA45: 18 | FB45: 43 | FG45: http://www.mfin.hr/en/state-treasury | FH45: 1990 | FI45: http://www.mfin.hr/en/financial-management-information-systems-fmis-review-and-integration | FJ45: 2007 | FK45: 2 | FL45: 4 | FM45: - | FN45: - | FO45: - | FP45: - | FQ45: http://www.porezna-uprava.hr/Stranice/Naslovnica.aspx | FR45: 1990 | FS45: e-Porezna | FT45: Electronic Tax Services | FU45: 2 | FV45: COTS ? | FW45: http://www.porezna-uprava.hr/bi/Stranice/ElektronickeUsluge.aspx | FX45: 2005 | FY45: 3 | FZ45: 2 | GA45: http://www.carina.hr | GB45: 1990 | GC45: 1993 | GD45: 0 | GE45: e-Customs / NCTS | GF45: New Computerized Transit System | GG45: 2 | GH45: COTS | GI45: http://www.carina.hr/e_carina/G2B.aspx | GJ45: 2010 | GK45: 3 | GL45: 2 | GM45: 1 | GN45: 0 | GO45: https://e-porezna.porezna-uprava.hr/Prijava.aspx?ReturnUrl=%2f | GP45: 2013 | GQ45: 2 | GR45: 1 | GS45: - | GT45: - | GU45: 0 | GV45: http://www.fina.hr/Default.aspx?sec=1714 | GW45: 2010 | GX45: 3 | GY45: 481800 | GZ45: 2 | HA45: http://laborsta.ilo.org/STP/guest | HB45: 2008 | HC45: RegZap | HD45: Register of employment in the public sector | HE45: 1 | HF45: LDSW | HG45: http://www.fina.hr/Default.aspx?sec=1169 | HH45: 2008 | HI45: 3 | HJ45: 2 | HK45: COP | HL45: Centralized Payroll and Human Resources Management | HM45: 2 | HN45: COTS | HO45: https://uprava.gov.hr/centralni-obracun-placa/12961 | HP45: - | HQ45: 2 | HR45: 2 | HS45: - | HT45: Public Procurement Portal | HU45: http://www.javnanabava.hr | HV45: 2012 | HW45: 2 | HX45: 1 | HY45: - | HZ45: Ministry of Finance | IH45: 15 | II45: 68.18181818 | IJ45: B | IK45: HIC | IL45: ECA
A46: 44 | C46: Cuba | D46: UMIC | E46: 11253.665 | F46: 60810 | G46: 5403.572969 | H46: http://www.mfp.cu | I46: Cuba Ministry of Finance | J46: 1 | K46: http://www.mfp.cu/docs/Ley%20Presupuesto%20Anual%202011.pdf | L46: 1 | M46: http://www.cepal.org/publicaciones/xml/0/13430/SYC_29.pdf | N46: 1 | O46: - | P46: 0 | Q46: - | R46: 0 | S46: 0 | T46: - | U46: 1 | V46: 0 | W46: 0 | X46: - | Y46: 0 | Z46: - | AA46: 1 | AB46: 0 | AC46: 2014 | AD46: 0 | AF46: - | AG46: - | AH46: 0 | AJ46: - | AK46: 0 | AN46: - | AO46: 0 | AQ46: - | AR46: 0 | AS46: 0 | AT46: 0 | AU46: 0 | AV46: 0 | AW46: 0 | AX46: 0 | AY46: 0 | AZ46: 0 | BA46: 0 | BB46: 1 | BC46: http://www.ain.cu | BD46: 0 | BE46: - | BF46: 0 | BG46: - | BH46: 0 | BI46: - | BJ46: 0 | BK46: http://www.one.cu | BL46: Cuba Office of National Statistics | BM46: http://www.bc.gov.cu | BN46: Central Bank of Cuba | BO46: - | BP46: 0 | BQ46: - | BR46: 0 | BS46: - | BT46: 0 | BU46: - | BV46: 0 | BW46: 1 | BX46: - | BY46: spa | BZ46: - | CA46: - | CB46: - | CC46: - | CD46: FMIS | CE46: Financial Management Information System | CF46: C | CG46: F | CH46: 3 | CI46: 2002 | CJ46: C+L | CK46: 1 | CL46: 1 | CM46: LDSW | CN46: Web | CO46: 2 | CP46: - | CQ46: - | CR46: - | CS46: - | CT46: - | CU46: - | CV46: - | CW46: - | CX46: - | CY46: - | CZ46: - | DA46: - | DB46: - | DC46: - | DD46: - | DE46: - | DF46: - | DH46: - | DI46: 116 | DJ46: 0.39165 | DK46: 0.35294 | DL46: 0.22834 | DM46: 0.09687 | DN46: 0.8497 | DO46: 110 | DP46: 0.4488 | DQ46: 0.3072 | DR46: 0.0709 | DS46: 0.9684 | DU46: OTH | DY46: Cuba | DZ46: 2 | EA46: 1 | EC46: 1 | EE46: 0 | EK46: 5 | EL46: 19.23076923 | EM46: D | EO46: 44 | EP46: Cuba | EQ46: CUB | ET46: http://www.cubagob.cu | EU46: 0 | EV46: - | EW46: 0.2283 | EX46: 69 | EY46: 18 | EZ46: 7 | FA46: 9 | FB46: 24 | FG46: http://www.mfp.cu/html_inicio/i_mfp.php | FH46: 1983 | FI46: - | FJ46: - | FK46: 0 | FL46: - | FM46: - | FN46: - | FO46: - | FP46: - | FQ46: http://www.mfp.cu/html_semp/se_onat_mv.php | FR46: 1995 | FS46: ITS | FT46: Tax Management System > Integrated Tax System | FU46: 1 | FV46: LDSW | FW46: http://www.ecured.cu/index.php/ONAT | FX46: 1995 | FY46: 3 | FZ46: 2 | GA46: http://www.aduana.co.cu | GB46: 1996 | GC46: 1988 | GD46: 3 | GE46: Customs Portal / SADEM | GF46: CADI > Customs Portal / Automated System for Release of Goods (SADEM) | GG46: 1 | GH46: LDSW | GI46: http://www.ecured.cu/index.php/Centro_de_Automatizaci%C3%B3n_para_la_Direcci%C3%B3n_y_la_Informaci%C3%B3n | GJ46: 2001 | GK46: 3 | GL46: 2 | GM46: - | GN46: - | GO46: - | GP46: - | GQ46: 0 | GR46: 0 | GS46: - | GT46: - | GU46: 0 | GV46: - | GW46: - | GX46: 0 | GY46: 4112300 | GZ46: 2 | HA46: http://laborsta.ilo.org/STP/guest | HB46: 2008 | HC46: - | HD46: - | HE46: 0 | HF46: - | HG46: http://www.mfp.cu/html_inicio/i_mfp.php | HH46: - | HI46: 0 | HJ46: 0 | HK46: - | HL46: - | HM46: 0 | HN46: - | HO46: http://www.mfp.cu/html_inicio/i_mfp.php | HP46: - | HQ46: 0 | HR46: 0 | HS46: - | HT46: - | HU46: - | HV46: - | HW46: 0 | HX46: 0 | HY46: - | IH46: 7 | II46: 31.81818182 | IJ46: C | IK46: UMIC
A47: 45 | C47: Cyprus | D47: HIC | E47: 1116.564 | F47: 24690 | G47: 22112.48079 | H47: http://www.mof.gov.cy | I47: Cyprus Ministry of Finance | J47: 2 | K47: http://www.mof.gov.cy/mof/mof.nsf/page16_gr/page16_gr?OpenDocument | L47: 1 | M47: http://www.treasury.gov.cy/treasury/treasury.nsf/financial_en/financial_en?OpenDocument | N47: 1 | O47: - | P47: 0 | Q47: - | R47: 0 | S47: 0 | T47: - | U47: 1 | V47: 1 | W47: 0 | X47: - | Y47: 0 | Z47: - | AA47: 1 | AB47: 1 | AC47: 2010 | AD47: 0 | AF47: - | AG47: - | AH47: 0 | AJ47: - | AK47: 1 | AL47: 3 | AM47: 1 | AN47: 2004 | AO47: 1 | AP47: 1 | AQ47: 2001 | AR47: 1 | AS47: 1 | AT47: 1 | AU47: 0 | AV47: 0 | AW47: 1 | AX47: 1 | AY47: 1 | AZ47: 1 | BA47: 1 | BB47: 0 | BC47: - | BD47: 1 | BE47: http://www.cyprus.gov.cy/portal/portal.nsf/citizen_en?OpenForm&access=0&SectionId=citizen&CategoryId=none&SelectionId=home&print=0&lang=en | BF47: 0 | BG47: - | BH47: 0 | BI47: - | BJ47: 1 | BK47: http://www.cystat.gov.cy/mof/cystat/statistics.nsf/index_en/index_en?OpenDocument | BL47: Cyprus Statistical Service of the Republic of Cyprus | BM47: http://www.centralbank.gov.cy | BN47: Central Bank of Cyprus | BO47: - | BP47: 1 | BQ47: http://www.mof.gov.cy/mof/mof.nsf/disclaimer_gr/disclaimer_gr?OpenDocument | BR47: 1 | BS47: http://www.mof.gov.cy/mof/mof.nsf/page07_gr/page07_gr?OpenDocument | BT47: 0 | BU47: - | BV47: 1 | BW47: 3 | BX47: - | BY47: gre | BZ47: eng | CA47: - | CB47: - | CC47: 0 | CD47: FIMAS | CE47: Financial Information and Management Accounting System | CF47: C | CG47: F | CH47: 3 | CI47: 2003 | CJ47: C | CK47: 1 | CL47: 2 | CM47: SAP | CN47: Web | CO47: 2 | CP47: - | CQ47: - | CR47: - | CS47: - | CT47: - | CU47: - | CV47: - | CW47: - | CX47: - | CY47: - | CZ47: - | DA47: - | DB47: - | DC47: - | DD47: - | DE47: - | DF47: - | DH47: 0 | DI47: 58 | DJ47: 0.59576 | DK47: 0.31372 | DL47: 0.47244 | DM47: 0.53203 | DN47: 0.7828 | DO47: 45 | DP47: 0.6508 | DQ47: 0.5621 | DR47: 0.5153 | DS47: 0.8751 | DU47: EU | DY47: Cyprus | DZ47: 0 | EE47: 0 | EJ47: 2013-06-19 | EK47: 12 | EL47: 46.15384615 | EM47: C | EO47: 45 | EP47: Cyprus | EQ47: CYP | ET47: http://www.cyprus.gov.cy | EU47: 2 | EV47: http://www.cyprus.gov.cy | EW47: 0.4724 | EX47: 59 | EY47: 43 | EZ47: 37 | FA47: 38 | FB47: 44 | FG47: http://www.treasury.gov.cy | FH47: 2004 | FI47: - | FJ47: - | FK47: 0 | FL47: - | FM47: - | FN47: - | FO47: - | FP47: - | FQ47: http://www.mof.gov.cy/mof/ird/ird.nsf/dmlindex_gr/dmlindex_gr?OpenDocument | FR47: 1960 | FS47: TAXISNET | FT47: Tax Management System | FU47: 2 | FV47: COTS | FW47: https://taxisnet.mof.gov.cy/displayWelcome.do | FX47: 2003 | FY47: 3 | FZ47: 2 | GA47: http://www.mof.gov.cy/ce | GB47: 1960 | GC47: 1967 | GD47: 0 | GE47: e-Customs > THESEAS | GF47: Customs and Excise Electronic Systems | GG47: 2 | GH47: COTS | GI47: http://www.mof.gov.cy/mof/customs/customs.nsf/ced12_gr/ced12_gr?OpenDocument | GJ47: 2008 | GK47: 3 | GL47: 2 | GM47: 1 | GN47: 0 | GO47: https://taxisnet.mof.gov.cy/displayWelcome.do | GP47: 2004 | GQ47: 3 | GR47: 1 | GS47: https://www.jccsmart.com | GT47: 2006 | GU47: 1 | GV47: http://www.mcw.gov.cy/mcw/dec/dec.nsf/DMLresponsibilities_en/DMLresponsibilities_en?OpenDocument# | GW47: 2013 | GX47: 2 | GY47: 71200 | GZ47: 2 | HA47: http://laborsta.ilo.org/STP/guest | HB47: 2010 | HC47: HRMIS | HD47: Human Resource Management Information system | HE47: 2 | HF47: COTS | HG47: http://www.mof.gov.cy/mof/papd/papd.nsf/page41_gr/page41_gr?OpenDocument | HH47: - | HI47: 2 | HJ47: 2 | HK47: HRMIS | HL47: Human Resource Management Information system | HM47: 2 | HN47: COTS | HO47: http://www.mof.gov.cy/mof/papd/papd.nsf/page41_gr/page41_gr?OpenDocument | HP47: - | HQ47: 2 | HR47: 2 | HS47: - | HT47: e-PS | HU47: https://www.eprocurement.gov.cy/ceproc/home.do | HV47: 2009 | HW47: 3 | HX47: 2 | HY47: https://www.eprocurement.gov.cy | HZ47: Ministry of Finance of Republic of Cyprus | IA47: 2 | IB47: CS-DRMS | ID47: 1986 | IE47: 0 | IF47: MoF | IG47: 0 | IH47: 16 | II47: 72.72727273 | IJ47: B | IK47: HIC
A48: 46 | C48: Czech Republic | D48: HIC | E48: 10546 | F48: 196323.5053 | G48: 18620 | H48: http://www.mfcr.cz | I48: Ministry of Finance of the Czech Republic | J48: 2 | K48: http://www.mfcr.cz/cps/rde/xchg/mfcr/xsl/fin_stat.html | L48: 2 | M48: http://www.statnipokladna.cz/cs/KC-Zakladni-popis.html | N48: 1 | O48: - | P48: 0 | Q48: - | R48: 0 | S48: 0 | T48: - | U48: 1 | V48: 1 | W48: 0 | X48: - | Y48: 1 | Z48: http://www.mfcr.cz/cps/rde/xchg/mfcr/xsl/plneni_stat_rozp.html | AA48: 1 | AB48: 0 | AC48: 2003 | AD48: 1 | AE48: 1 | AF48: 3 | AG48: 2012 | AH48: 0 | AJ48: - | AK48: 1 | AL48: 2 | AM48: 0 | AN48: 2003 | AO48: 1 | AP48: 0 | AQ48: 2010 | AR48: 1 | AS48: 1 | AT48: 0 | AU48: 0 | AV48: 0 | AW48: 1 | AX48: 1 | AY48: 1 | AZ48: 1 | BA48: 0 | BB48: 0 | BC48: - | BD48: 1 | BE48: http://www.opendata.cz | BF48: 2 | BG48: http://www.statnipokladna.cz/cs/Podpora-Kompetencni-centrum-KC.html | BH48: 1 | BI48: http://www.statnipokladna.cz/cs/Podpora-Kompetencni-centrum-KC.html | BJ48: 2 | BK48: http://www.czso.cz | BL48: Czech Statistical Office | BM48: http://www.cnb.cz | BN48: Czech National Bank | BO48: http://www.statnipokladna.cz/cs/ | BP48: 1 | BQ48: http://www.mfcr.cz/cps/rde/xchg/mfcr/xsl/index_7661.html | BR48: 1 | BS48: http://www.mfcr.cz/cps/rde/xchg/mfcr/xsl/zakon_o_sr.html | BT48: 2 | BU48: Eurostat methodology. National laws and regulations. | BV48: 0 | BW48: 3 | BX48: There is a provision for newsletter subscriptions | BY48: cze | BZ48: eng | CA48: - | CB48: - | CC48: 0 | CD48: IISSP | CE48: Integrovaného informačního systému Státní pokladny / State Treasury Integrated Information System | CF48: D | CG48: F | CH48: 3 | CI48: 2011 | CJ48: C+L | CK48: 1 | CL48: 2 | CM48: SAP | CN48: Web | CO48: 3 | CP48: - | CQ48: - | CR48: - | CS48: - | CT48: - | CU48: - | CV48: - | CW48: - | CX48: - | CY48: - | CZ48: - | DA48: - | DB48: - | DC48: - | DD48: - | DE48: 75 | DF48: 62 | DG48: 1 | DH48: 2 | DI48: 53 | DJ48: 0.60695 | DK48: 0.2549 | DL48: 0.37007 | DM48: 0.57532 | DN48: 0.8755 | DO48: 46 | DP48: 0.6491 | DQ48: 0.5425 | DR48: 0.5151 | DS48: 0.8898 | DT48: ECA | DU48: EU | DV48: OECD | DY48: Czech Republic | DZ48: 1 | EB48: 1 | EE48: 0 | EK48: 13 | EL48: 50 | EM48: B | EO48: 46 | EP48: Czech Republic | EQ48: CZE | ET48: http://www.vlada.cz | EU48: 2 | EV48: http://portal.gov.cz | EW48: 0.3701 | EX48: 53 | EY48: 45 | EZ48: 23 | FA48: 21 | FB48: 35 | FG48: http://www.mfcr.cz/en/about-ministry/organisation-chart/section-04-financial-management-and-audi/dept-54-state-treasury-public-sector-con | FH48: 2005 | FI48: http://www.mfcr.cz/cs/verejny-sektor/regulace/statni-pokladna | FJ48: 2011 | FK48: 2 | FL48: 4 | FM48: - | FN48: - | FO48: - | FP48: - | FQ48: http://www.financnisprava.cz | FR48: 1992 | FS48: e-Tax | FT48: e-Tax Portal | FU48: 1 | FV48: LDSW ? | FW48: http://adisspr.mfcr.cz/adistc/adis/idpr_pub/dpr/uvod.faces | FX48: 2010 | FY48: 3 | FZ48: 2 | GA48: http://www.celnisprava.cz | GB48: 1992 | GC48: 1993 | GD48: 0 | GE48: e-Dovoz / AIS / ECS | GF48: e-Imports / Automated Import System / Export Control System | GG48: 2 | GH48: COTS | GI48: http://www.celnisprava.cz/en/applications/Pages/default.aspx | GJ48: 2010 | GK48: 3 | GL48: 2 | GM48: 1 | GN48: 0 | GO48: http://www.financnisprava.cz/cs/dane-elektronicky/danovy-portal/elektronicka-podani-pro-financni-spravu | GP48: 2004 | GQ48: 2 | GR48: 1 | GS48: http://www.praha.eu/jnp/cz/potrebuji_resit/zivotni_situace/poplatky/index.html | GT48: 2006 | GU48: 1 | GV48: http://www.mvcr.cz/mvcren/article/electronic-signature-773488.aspx?q=Y2hudW09Mw%3d%3d | GW48: 2010 | GX48: 3 | GY48: 1672039 | GZ48: 2 | HA48: http://laborsta.ilo.org/STP/guest | HB48: 2010 | HC48: HR Portal | HD48: Human Resource Portal | HE48: 1 | HF48: LDSW | HG48: http://www.mvcr.cz/clanek/portal-lidskych-zdroju.aspx | HH48: - | HI48: 2 | HJ48: 2 | HK48: ISP | HL48: Information System for Promoters/Salaries | HM48: 1 | HN48: LDSW | HO48: http://www.mfcr.cz/cs/o-ministerstvu/zakladni-informace/informacni-systemy/is-o-platech | HP48: 2006 | HQ48: 3 | HR48: 2 | HS48: - | HT48: ISPC | HU48: http://www.isvz.cz | HV48: 2006 | HW48: 3 | HX48: 2 | HY48: http://www.isvz.cz/ISVZ/RKS/Filter.aspx | HZ48: Czech Republic Ministry of Finance | IH48: 16 | II48: 72.72727273 | IJ48: B | IK48: HIC | IL48: ECA
A49: 47 | C49: Denmark | D49: HIC | E49: 5574 | F49: 335102.5089 | G49: 60120 | H49: http://uk.fm.dk | I49: Denmark Ministry of Finance | J49: 2 | K49: http://uk.fm.dk/publications/ | L49: 2 | M49: http://www.oes.dk/Systemer/Navision-Stat | N49: 2 | O49: http://www.oes-cs.dk/olapdatabase/regnskab/index.cgi | P49: 1 | Q49: http://www.oes-cs.dk/olapdatabase/regnskab/index.cgi | R49: 0 | S49: 0 | T49: - | U49: 2 | V49: 1 | W49: 0 | X49: - | Y49: 1 | Z49: http://fm.dk/publikationer/2010/budgetvejledning-2011/ | AA49: 1 | AB49: 1 | AC49: 1996 | AD49: 1 | AE49: 1 | AF49: 2 | AG49: 1998 | AH49: 0 | AJ49: - | AK49: 1 | AL49: 3 | AM49: 1 | AN49: 1996 | AO49: 0 | AQ49: - | AR49: 1 | AS49: 1 | AT49: 0 | AU49: 0 | AV49: 0 | AW49: 1 | AX49: 1 | AY49: 1 | AZ49: 0 | BA49: 0 | BB49: 1 | BC49: http://www.peppol.eu/ | BD49: 1 | BE49: http://digitaliser.dk/resource/432461 | BF49: 0 | BG49: - | BH49: 0 | BI49: - | BJ49: 1 | BK49: http://www.dst.dk | BL49: Statistics Denmark | BM49: http://www.nationalbanken.dk | BN49: National Bank of Denmark | BO49: http://www.digst.dk/ | BP49: 1 | BQ49: http://fm.dk/om-os/privatlivspolitik/ | BR49: 1 | BS49: http://fm.dk/om-os/lov_-og-folketingsstof/ | BT49: 0 | BU49: National laws and regulations | BV49: 1 | BW49: 3 | BX49: There is a provision for newsletter subscriptions | BY49: dan | BZ49: eng | CA49: - | CB49: - | CC49: 0 | CD49: FMIS | CE49: Financial Management Information System | CF49: D | CG49: F | CH49: 3 | CI49: 1998 | CJ49: C+L | CK49: 1 | CL49: 2 | CM49: MS Navision | CN49: Web | CO49: 3 | CP49: - | CQ49: - | CR49: - | CS49: - | CT49: - | CU49: - | CV49: - | CW49: - | CX49: - | CY49: - | CZ49: - | DA49: - | DB49: - | DC49: - | DD49: - | DE49: - | DF49: - | DG49: 1 | DH49: 3 | DI49: 16 | DJ49: 0.8162 | DK49: 0.54901 | DL49: 0.66141 | DM49: 0.87403 | DN49: 0.9132 | DO49: 4 | DP49: 0.8889 | DQ49: 0.8562 | DR49: 0.8615 | DS49: 0.9489 | DU49: EU | DV49: OECD | DY49: Denmark | DZ49: 5 | EA49: 1 | EB49: 3 | ED49: 1 | EE49: 1 | EF49: 1 | EK49: 17 | EL49: 65.38461538 | EM49: B | EO49: 47 | EP49: Denmark | EQ49: DNK | ET49: http://www.denmark.dk | EU49: 2 | EV49: https://www.borger.dk | EW49: 0.6614 | EX49: 97 | EY49: 70 | EZ49: 33 | FA49: 44 | FB49: 59 | FG49: http://www.fm.dk/om-os/historie/den-roede-bygning/ | FH49: 1721 | FI49: http://www.fm.dk/publikationer/2006/introduktion-til-et-omkostningsbaseret-bevillingssystem-april-2006/3-den-nye-bevillingsmodel/ | FJ49: 2002 | FK49: 2 | FL49: 4 | FM49: - | FN49: - | FO49: - | FP49: - | FQ49: http://www.skm.dk | FR49: 1902 | FS49: TastSelv | FT49: e-Tax Portal | FU49: 1 | FV49: LDSW ? | FW49: https://www.tastselv.skat.dk | FX49: 1995 | FY49: 3 | FZ49: 3 | GA49: https://www.skat.dk | GB49: 1902 | GC49: 1952 | GD49: 3 | GE49: ICSsystemet | GF49: e-Customs / Customs Mgmt System | GG49: 2 | GH49: COTS | GI49: https://www.skat.dk/SKAT.aspx?oId=1970723 | GJ49: 2008 | GK49: 3 | GL49: 3 | GM49: 1 | GN49: 1 | GO49: http://skat.dk/data.aspx?oId=80112&vId=0 | GP49: 1995 | GQ49: 3 | GR49: 1 | GS49: https://betalingsservice.nets.eu/Pages/default.aspx | GT49: - | GU49: 1 | GV49: http://www.digst.dk/Servicemenu/English/Digitisation/Digital-Signature | GW49: 2003 | GX49: 3 | GY49: 952800 | GZ49: 2 | HA49: http://laborsta.ilo.org/STP/guest | HB49: 2010 | HC49: Moderniseringsstyrelsen | HD49: Agency for the Modernisation of Public Administration | HE49: 1 | HF49: LDSW | HG49: http://hr.modst.dk/Toolbox.aspx | HH49: 2011 | HI49: 3 | HJ49: 2 | HK49: ISOLA | HL49: Information on pay and employment conditions | HM49: 1 | HN49: LDSW | HO49: http://hr.modst.dk/Arbejdspladsen/Saet%20tal%20paa%20HR/Lonstyring/ISOLA.aspx | HP49: 1999 | HQ49: 3 | HR49: 2 | HS49: - | HT49: UDBUD / ETHICS | HU49: http://www.innovasion.dk | HV49: 2003 | HW49: 3 | HX49: 2 | HY49: http://www.udbudsavisen.dk/ | HZ49: Denmark's National bank | IH49: 20 | II49: 90.90909091 | IJ49: A | IK49: HIC
A50: 48 | C50: Djibouti | D50: LMIC | E50: 905.564 | F50: 1049 | G50: 1158.394106 | H50: http://www.ministere-finances.dj | I50: Djibouti Ministry of Finance | J50: 2 | K50: http://www.ministere-finances.dj/TOFE.html | L50: 1 | M50: http://documents.worldbank.org/curated/en/2006/04/6756520/djibouti-public-expenditure-review-making-public-finances-work-growth-poverty-reduction | N50: 1 | O50: - | P50: 0 | Q50: - | R50: 0 | S50: 0 | T50: - | U50: 1 | V50: 1 | W50: 0 | X50: - | Y50: 1 | Z50: http://www.ministere-finances.dj/Publications/decr0224pr01.htm | AA50: 1 | AB50: 1 | AC50: 1996 | AD50: 0 | AF50: - | AG50: - | AH50: 1 | AI50: 1 | AJ50: 2004 | AK50: 1 | AL50: 4 | AM50: 1 | AN50: 2006 | AO50: 0 | AQ50: - | AR50: 0 | AS50: 1 | AT50: 0 | AU50: 0 | AV50: 0 | AW50: 1 | AX50: 1 | AY50: 0 | AZ50: 0 | BA50: 0 | BB50: 0 | BC50: - | BD50: 0 | BE50: - | BF50: 0 | BG50: - | BH50: 1 | BI50: http://www.ministere-finances.dj/Publications/decr0224pr01.htm | BJ50: 1 | BK50: http://www.ministere-finances.dj | BL50: Djibouti Direction des statistiques et des études démographiques | BM50: http://www.banque-centrale.dj | BN50: Central Bank of Djibouti | BO50: - | BP50: 0 | BQ50: - | BR50: 1 | BS50: http://www.ministere-finances.dj/ORGANISATION.html | BT50: 0 | BU50: - | BV50: 0 | BW50: 3 | BX50: - | BY50: fre | BZ50: eng | CA50: - | CB50: - | CC50: 0 | CD50: TS | CE50: Treasury System | CF50: C | CG50: T | CH50: 3 | CI50: 2001 | CJ50: C | CK50: 1 | CL50: 1 | CM50: LDSW | CN50: CS | CO50: 1 | CP50: - | CQ50: - | CR50: - | CS50: - | CT50: - | CU50: - | CV50: - | CW50: - | CX50: - | CY50: - | CZ50: - | DA50: - | DB50: - | DC50: - | DD50: - | DE50: - | DF50: - | DH50: 0 | DI50: 184 | DJ50: 0.1456 | DK50: 0.07843 | DL50: 0.06299 | DM50: 0.05557 | DN50: 0.3182 | DO50: 176 | DP50: 0.2228 | DQ50: 0.1961 | DR50: 0.0488 | DS50: 0.4236 | DT50: MNA | DY50: Djibouti | DZ50: 0 | EE50: 0 | EK50: 13 | EL50: 50 | EM50: B | EO50: 48 | EP50: Djibouti | EQ50: DJI | ET50: http://www.presidence.dj | EU50: 0 | EV50: - | EW50: 0.063 | EX50: 25 | EY50: 7 | EZ50: 0 | FA50: 12 | FB50: 10 | FG50: http://www.tresor.economie.gouv.fr/pays/djibouti | FH50: 1998 | FI50: - | FJ50: 2016 | FK50: 1 | FL50: - | FM50: - | FN50: - | FO50: - | FP50: - | FQ50: http://www.ministere-finances.dj/FISCALITEE.html | FR50: 1977 | FS50: Tax System | FT50: Tax Management System | FU50: 1 | FV50: LDSW | FW50: http://documents.worldbank.org/curated/en/2006/04/6756520/djibouti-public-expenditure-review-making-public-finances-work-growth-poverty-reduction | FX50: 2001 | FY50: 3 | FZ50: 2 | GA50: http://www.douanes.dj | GB50: 1977 | GC50: 2008 | GD50: 0 | GE50: ASYCUDA World | GF50: Automated SYstem for CUstoms DAta | GG50: 2 | GH50: ASYCUDA W | GI50: http://unctad.org/en/PublicationsLibrary/dtlasycuda2011d1_en.pdf | GJ50: 2012 | GK50: 3 | GL50: 2 | GM50: 1 | GN50: 0 | GO50: - | GP50: - | GQ50: 1 | GR50: 0 | GS50: - | GT50: - | GU50: 0 | GV50: - | GW50: - | GX50: 0 | GY50: 70700 | GZ50: 1 | HA50: http://unpan1.un.org/intradoc/groups/public/documents/un/unpan023257.pdf | HB50: 2005 | HC50: UPR | HD50: Unique Personnel Registry | HE50: 1 | HF50: LDSW | HG50: http://www.ministere-finances.dj/REFORMES%20PROJETS%20FICHIER%20UNIQUE.html | HH50: 2008 | HI50: 3 | HJ50: 2 | HK50: PS | HL50: Payroll System | HM50: 1 | HN50: LDSW | HO50: http://www-wds.worldbank.org/external/default/WDSContentServer/WDSP/IB/2006/04/28/000012009_20060428084124/Rendered/PDF/346240rev0DJI.pdf | HP50: 2006 | HQ50: 3 | HR50: 2 | HS50: - | HT50: - | HU50: - | HV50: - | HW50: 0 | HX50: 0 | HY50: - | IA50: 2 | IB50: DMFAS 5.3 | ID50: 1986 | IE50: 3 | IF50: MoF | IG50: 3 | IH50: 11 | II50: 50 | IJ50: B | IK50: LMIC | IL50: MNA
A51: 49 | C51: Dominica | D51: UMIC | E51: 67.675 | F51: 475.4586644 | G51: 7030 | H51: http://finance.gov.dm | I51: Ministry of Finance | J51: 1 | K51: http://finance.gov.dm/index.php/budget/information/17-2013-2014-budget-for-ministries | L51: 1 | M51: http://ddp-ext.worldbank.org/EdStats/DMAper05.pdf | N51: 1 | O51: - | P51: 0 | Q51: - | R51: 0 | S51: 0 | T51: - | U51: 1 | V51: 1 | W51: 0 | X51: - | Y51: 1 | Z51: http://www.dominica.gov.dm/cms/?q=node/1402 | AA51: 1 | AB51: 1 | AC51: 2011 | AD51: 1 | AE51: 0 | AF51: 2 | AG51: 2010 | AH51: 0 | AJ51: - | AK51: 1 | AL51: 4 | AM51: 0 | AN51: 2009 | AO51: 1 | AP51: 1 | AQ51: 2008 | AR51: 1 | AS51: 1 | AT51: 0 | AU51: 1 | AV51: 0 | AW51: 1 | AX51: 1 | AY51: 0 | AZ51: 0 | BA51: 0 | BB51: 0 | BC51: - | BD51: 0 | BE51: - | BF51: 0 | BG51: - | BH51: 0 | BI51: - | BJ51: 1 | BK51: http://www.dominica.gov.dm/cms/?q=node/7 | BL51: Ministry of Finance - Central Statistical Office | BM51: http://www.eccb-centralbank.org | BN51: East Caribbean Central Bank | BO51: - | BP51: 0 | BQ51: - | BR51: 1 | BS51: http://www.dominica.gov.dm/cms/index.php?q=node/411 | BT51: 0 | BU51: - | BV51: 0 | BW51: 2 | BX51: - | BY51: eng | BZ51: - | CA51: - | CB51: - | CC51: - | CD51: SIGFIS | CE51: Standardized Integrated Government Financial Information System | CF51: C | CG51: F | CH51: 3 | CI51: 2012 | CJ51: C+L | CK51: 2 | CL51: 2 | CM51: SmartStream | CN51: Web | CO51: 3 | CP51: Jun 2010 | CQ51: Final | CR51: 2 | CS51: X | CT51: X | CU51: X | CV51: X | CW51: X | CX51: X | CY51: X | CZ51: X | DA51: X | DB51: X | DC51: 2.55 | DD51: 2.516129032 | DE51: - | DF51: - | DH51: 1 | DI51: 110 | DJ51: 0.4338 | DK51: 0.11764 | DL51: 0.18897 | DM51: 0.44237 | DN51: 0.6701 | DO51: 73 | DP51: 0.5561 | DQ51: 0.2941 | DR51: 0.6221 | DS51: 0.752 | DT51: LCR | DY51: Dominica | DZ51: 0 | EE51: 0 | EK51: 12 | EL51: 46.15384615 | EM51: C | EO51: 49 | EP51: Dominica | EQ51: DMA | ET51: http://www.dominica.gov.dm | EU51: 1 | EV51: http://www.dominica.gov.dm/services | EW51: 0.189 | EX51: 38 | EY51: 30 | EZ51: 9 | FA51: 6 | FB51: 20 | FG51: http://finance.gov.dm/index.php/about-us/departments/18-treasury-division | FH51: 1978 | FI51: http://www.dominica.gov.dm/laws/1994/act4-1994.pdf | FJ51: 1994 | FK51: 2 | FL51: 4 | FM51: - | FN51: - | FO51: - | FP51: - | FQ51: http://ird.gov.dm | FR51: 1990 | FS51: SIGTAS | FT51: Standard Integrated Government Tax System | FU51: 2 | FV51: SIGTAS | FW51: http://ird.gov.dm/index.php?option=com_content&view=article&id=116:systems-section&catid=36:about-us&Itemid=59 | FX51: 1996 | FY51: 3 | FZ51: 2 | GA51: http://customs.gov.dm | GB51: 1990 | GC51: - | GD51: 0 | GE51: ASYCUDA World | GF51: Automated SYstem for CUstoms DAta | GG51: 2 | GH51: ASYCUDA W | GI51: http://customs.gov.dm/about-customs/asycuda-world | GJ51: 1991 | GK51: 3 | GL51: 2 | GM51: 1 | GN51: 0 | GO51: https://eservices.gov.dm/taxefs/auth/Public/LogOn.aspx?ReturnUrl=%2ftaxefs%2fonline%2fdefault.aspx | GP51: 2013 | GQ51: 3 | GR51: 0 | GS51: - | GT51: - | GU51: 0 | GV51: - | GW51: 2005 | GX51: 1 | GY51: 4759 | GZ51: 2 | HA51: http://laborsta.ilo.org/STP/guest | HB51: 2005 | HC51: HRIS | HD51: Human Resource Information System | HE51: 1 | HF51: LDSW | HG51: http://establishment.gov.dm/ | HH51: 2012 | HI51: 3 | HJ51: 2 | HK51: SIGFIS | HL51: Standardized Integrated Government Financial Information System | HM51: 2 | HN51: SmartStream | HO51: http://www.caricad.net/UserFiles/File/casestudydominica.pdf | HP51: 2012 | HQ51: 3 | HR51: 2 | HS51: X | HT51: e-PPS | HU51: https://procurement.oecs.org/epps/home.do | HV51: 2012 | HW51: 1 | HX51: 0 | HY51: - | IA51: 2 | IB51: CS-DRMS | ID51: 1988 | IE51: 3 | IF51: MoF | IH51: 15 | II51: 68.18181818 | IJ51: B | IK51: UMIC | IL51: LCR
A52: 50 | C52: Dominican Republic | D52: UMIC | E52: 10056.181 | F52: 52646.78869 | G52: 5240 | H52: http://www.hacienda.gov.do | I52: Dominican Republic Ministry of Finance | J52: 2 | K52: http://www.digepres.gob.do/ | L52: 2 | M52: http://www.hacienda.gov.do/sigef/sigef.htm | N52: 1 | O52: - | P52: 0 | Q52: - | R52: 1 | S52: 1 | T52: http://www.digepres.gob.do/LinkClick.aspx?fileticket=VkzSW7GtziU%3d&tabid=133&mid=576 | U52: 1 | V52: 1 | W52: 2 | X52: http://www.portaldelciudadano.gov.do/ | Y52: 1 | Z52: http://www.digepres.gob.do/Estad%c3%adsticasPresup/SeriesHist%c3%b3ricas199010/tabid/135/Default.aspx | AA52: 1 | AB52: 1 | AC52: 1990 | AD52: 0 | AF52: - | AG52: - | AH52: 1 | AI52: 0 | AJ52: 2004 | AK52: 1 | AL52: 2 | AM52: 1 | AN52: 1990 | AO52: 0 | AQ52: - | AR52: 1 | AS52: 1 | AT52: 0 | AU52: 0 | AV52: 0 | AW52: 1 | AX52: 0 | AY52: 0 | AZ52: 1 | BA52: 0 | BB52: 0 | BC52: - | BD52: 1 | BE52: http://www.one.gob.do | BF52: 0 | BG52: - | BH52: 0 | BI52: - | BJ52: 0 | BK52: http://www.one.gob.do | BL52: Dominican Republic Oficina Nacional de Estadistica | BM52: http://www.bancentral.gov.do | BN52: Central Bank of the Dominican Republic | BO52: - | BP52: 1 | BQ52: http://www.digepres.gob.do/Inicio/tabid/36/ctl/Terms/Default.aspx | BR52: 1 | BS52: http://www.hacienda.gov.do/transparencia/leyes_decretos.htm | BT52: 0 | BU52: National laws and regulations | BV52: 1 | BW52: 3 | BX52: - | BY52: spa | BZ52: - | CA52: - | CB52: - | CC52: - | CD52: SIGEF | CE52: Sistema Integrado de Gestion Financiera | CF52: C | CG52: F | CH52: 3 | CI52: 2004 | CJ52: C+L | CK52: 1 | CL52: 1 | CM52: LDSW > Oracle | CN52: Web | CO52: 3 | CP52: Nov 2012 | CQ52: Public | CR52: 4 | CS52: B | CT52: B | CU52: B | CV52: C+ | CW52: B+ | CX52: B | CY52: C+ | CZ52: C+ | DA52: C+ | DB52: C+ | DC52: 2.8 | DD52: 2.45 | DE52: 29 | DF52: 14 | DG52: 1 | DH52: 0 | DI52: 107 | DJ52: 0.44808 | DK52: 0.33333 | DL52: 0.38582 | DM52: 0.2945 | DN52: 0.6639 | DO52: 89 | DP52: 0.513 | DQ52: 0.5359 | DR52: 0.2632 | DS52: 0.7398 | DT52: LCR | DY52: Dominican Republic | DZ52: 0 | EE52: 0 | EK52: 17 | EL52: 65.38461538 | EM52: B | EO52: 50 | EP52: Dominican Republic | EQ52: DOM | ET52: http://www.dominica.gov.dm | EU52: 2 | EV52: http://www.portaldelciudadano.gov.do | EW52: 0.3858 | EX52: 53 | EY52: 50 | EZ52: 21 | FA52: 24 | FB52: 37 | FG52: http://www.tesoreria.gov.do/ | FH52: 1934 | FI52: http://www.tesoreria.gov.do/index.php/component/phocadownload/category/30 | FJ52: 2012 | FK52: 3 | FL52: 4 | FM52: - | FN52: - | FO52: - | FP52: - | FQ52: http://www.dgii.gov.do | FR52: 1935 | FS52: e-Tax | FT52: Virtual Office + Web Services | FU52: 1 | FV52: LDSW | FW52: http://www.dgii.gov.do/pst/Paginas/default.aspx | FX52: 2011 | FY52: 3 | FZ52: 2 | GA52: http://www.aduanas.gob.do | GB52: 1959 | GC52: 2004 | GD52: 3 | GE52: SIGA > Single Window | GF52: Integrated Customs Management System + Single Window | GG52: 2 | GH52: COTS | GI52: https://www.aduanas.gob.do/descargas/files/instructivos/manual-pago-electronico-SIGA.pdf | GJ52: 2010 | GK52: 3 | GL52: 2 | GM52: 1 | GN52: 1 | GO52: http://www.dgii.gov.do/pst/Paginas/default.aspx | GP52: 2006 | GQ52: 3 | GR52: 1 | GS52: - | GT52: - | GU52: 0 | GV52: http://www.indotel.gob.do/index.php/sector-de-las-telecomunicaciones/comercio-electronico/descripcion-firma-digital | GW52: 2006 | GX52: 2 | GY52: 350000 | GZ52: 1 | HA52: http://www.pefa.org/en/assessment/do-oct12-pfmpr-public-en | HB52: 2010 | HC52: SASP | HD52: Sistema de Administración de Servidores Públicos / Civil Servant Administration System | HE52: 1 | HF52: LDSW | HG52: http://map.gob.do/sasp/ | HH52: 2012 | HI52: 3 | HJ52: 2 | HK52: SASP | HL52: Sistema de Administración de Servidores Públicos / Civil Servant Administration System | HM52: 1 | HN52: LDSW | HO52: http://map.gob.do/sasp/ | HP52: 2012 | HQ52: 3 | HR52: 2 | HS52: D+ | HT52: Compras Dominicana | HU52: http://www.comprasdominicana.gov.do | HV52: 2012 | HW52: 3 | HX52: 1 | HY52: https://acceso.comprasdominicana.gov.do/compras/publicaciones/consultas/procesosdecompras/consulta.jsp?hiddenTipoConsulta=FINALIZADOS | IA52: 2 | IB52: DMFAS 6.0 | ID52: 1996 | IE52: 3 | IF52: MoF | IG52: 4F | IH52: 16 | II52: 72.72727273 | IJ52: B | IK52: UMIC | IL52: LCR
A53: 51 | C53: Ecuador | D53: UMIC | E53: 14666.055 | F53: 61651.76392 | G53: 4200 | H53: http://finanzas.gob.ec | I53: Ecuador Ministry of Economy and Finance | J53: 2 | K53: http://www.finanzas.gob.ec/estados-financieros/ | L53: 2 | M53: http://integrador.finanzas.gob.ec/sigefWebConsulta2011/Jsp/LoginPage.jsp;jsessionid=1FFD43DE0BF758EB3ADD163C29CE3C52 | N53: 2 | O53: http://gpr.informatica.gob.ec/gpr_ecuador/n1 | P53: 0 | Q53: - | R53: 1 | S53: 1 | T53: http://www.finanzas.gob.ec/wp-content/uploads/downloads/2012/09/Reporte+de+Ingresos.pdf | U53: 2 | V53: 1 | W53: 1 | X53: http://www.secretariatransparencia.gob.ec/ | Y53: 0 | Z53: - | AA53: 1 | AB53: 1 | AC53: 2004 | AD53: 1 | AE53: 0 | AF53: 4 | AG53: 2012 | AH53: 1 | AI53: 1 | AJ53: 2006 | AK53: 1 | AL53: 2 | AM53: 1 | AN53: 2004 | AO53: 1 | AP53: 1 | AQ53: 2006 | AR53: 1 | AS53: 1 | AT53: 0 | AU53: 0 | AV53: 0 | AW53: 1 | AX53: 1 | AY53: 0 | AZ53: 1 | BA53: 0 | BB53: 1 | BC53: http://www.compraspublicas.gob.ec/compraspublicas/ | BD53: 1 | BE53: http://www.gobiernoelectronico.gov.ec | BF53: 0 | BG53: - | BH53: 0 | BI53: - | BJ53: 2 | BK53: http://www.inec.gov.ec | BL53: Ecuador Instituto Nacional de Estadística y Censos | BM53: http://www.bce.fin.ec | BN53: Central Bank of Ecuador | BO53: http://www.bce.fin.ec/contenido.php?CNT=ARB0000003 | BP53: 1 | BQ53: http://www.finanzas.gob.ec/transparencia/ | BR53: 0 | BS53: - | BT53: 0 | BU53: - | BV53: 0 | BW53: 0 | BX53: - | BY53: spa | BZ53: eng | CA53: - | CB53: - | CC53: 0 | CD53: SIGEF | CE53: Sistema Integrado de Gestion Financiera | CF53: C | CG53: F | CH53: 3 | CI53: 2008 | CJ53: C+L | CK53: 2 | CL53: 1 | CM53: LDSW > Oracle | CN53: Web | CO53: 3 | CP53: Mar 2010 | CQ53: Draft | CR53: 1 | CS53: X | CT53: X | CU53: X | CV53: X | CW53: X | CX53: X | CY53: X | CZ53: X | DA53: X | DB53: X | DC53: 1.9 | DD53: 2.370967742 | DE53: 31 | DF53: 31 | DH53: 0 | DI53: 83 | DJ53: 0.50529 | DK53: 0.49019 | DL53: 0.48031 | DM53: 0.33184 | DN53: 0.7037 | DO53: 102 | DP53: 0.4869 | DQ53: 0.4575 | DR53: 0.2482 | DS53: 0.7549 | DT53: LCR | DY53: Ecuador | DZ53: 1 | ED53: 1 | EE53: 0 | EK53: 21 | EL53: 80.76923077 | EM53: A | EO53: 51 | EP53: Ecuador | EQ53: ECU | ET53: http://www.presidencia.gob.ec | EU53: 2 | EV53: http://www.administracionpublica.gob.ec/servicios-de-gobierno-electronico-3 | EW53: 0.4803 | EX53: 88 | EY53: 52 | EZ53: 19 | FA53: 26 | FB53: 44 | FG53: https://www.aduanas.gob.do/ | FH53: 1944 | FI53: http://documents.worldbank.org/curated/en/2007/01/7299376/reforming-payments-securities-settlement-systems-latin-america-caribbean | FJ53: 2008 | FK53: 2 | FL53: 4 | FM53: - | FN53: - | FO53: - | FP53: - | FQ53: http://www.sri.gob.ec/web/guest/home | FR53: 1997 | FS53: e-Tax | FT53: Web Services | FU53: 1 | FV53: LDSW ? | FW53: https://declaraciones.sri.gob.ec/tuportal-internet/ | FX53: 2013 | FY53: 3 | FZ53: 2 | GA53: http://www.aduana.gob.ec | GB53: 1975 | GC53: 1997 | GD53: 2 | GE53: ECUAPASS | GF53: Web Services | GG53: 2 | GH53: COTS | GI53: https://portal.aduana.gob.ec | GJ53: 2013 | GK53: 3 | GL53: 2 | GM53: 1 | GN53: 0 | GO53: https://declaraciones.sri.gob.ec/tuportal-internet/ | GP53: 2013 | GQ53: 3 | GR53: 1 | GS53: - | GT53: - | GU53: 0 | GV53: https://www.eci.bce.ec/paso_3 | GW53: 2008 | GX53: 2 | GY53: 492444 | GZ53: 2 | HA53: http://laborsta.ilo.org/STP/guest | HB53: 2006 | HC53: SIGEF | HD53: The Integrated Financial Management System | HE53: 1 | HF53: LDSW | HG53: http://www.finanzas.gob.ec/ | HH53: 2002 | HI53: 3 | HJ53: 2 | HK53: SIGEF | HL53: The Integrated Financial Management System | HM53: 1 | HN53: LDSW | HO53: http://www.finanzas.gob.ec/ | HP53: 2002 | HQ53: 3 | HR53: 2 | HS53: X | HT53: SERCOP | HU53: http://portal.compraspublicas.gob.ec/incop | HV53: 2013 | HW53: 3 | HX53: 2 | HY53: https://www.compraspublicas.gob.ec/ProcesoContratacion/compras/PC/buscarProceso.cpe?sg=1# | HZ53: Ministry of Economy and Finance | IA53: 2 | IB53: DMFAS 5.3 | ID53: 1995 | IE53: 2 | IF53: MoF | IG53: 4 | IH53: 18 | II53: 81.81818182 | IJ53: A | IK53: UMIC | IL53: LCR
A54: 52 | C54: Egypt | D54: LMIC | E54: 82536.77 | F54: 214683.5596 | G54: 2600 | H54: http://www.mof.gov.eg | I54: Egypt Ministry of Finance | J54: 2 | K54: http://www.mof.gov.eg/English/Papers_and_Studies/Pages/The-State-Budget.aspx | L54: 1 | M54: http://www.mof.gov.eg/MOFGallerySource/English/Reports/December2004.pdf | N54: 1 | O54: - | P54: 0 | Q54: - | R54: 0 | S54: 0 | T54: - | U54: 2 | V54: 1 | W54: 0 | X54: - | Y54: 1 | Z54: http://www.mof.gov.eg/English/Papers_and_Studies/Pages/budget11-12.aspx | AA54: 0 | AC54: - | AD54: 0 | AF54: - | AG54: - | AH54: 0 | AJ54: - | AK54: 1 | AL54: 4 | AM54: 1 | AN54: 2006 | AO54: 0 | AQ54: - | AR54: 0 | AS54: 1 | AT54: 1 | AU54: 1 | AV54: 0 | AW54: 1 | AX54: 1 | AY54: 1 | AZ54: 0 | BA54: 0 | BB54: 0 | BC54: - | BD54: 1 | BE54: http://www.egypt.gov.eg/arabic/general/Open_Gov_Data_Initiative.aspx | BF54: 0 | BG54: - | BH54: 1 | BI54: http://www.mof.gov.eg/English/Papers_and_Studies/Pages/The-State-Budget.aspx | BJ54: 0 | BK54: http://www.capmas.gov.eg | BL54: Egypt Central Agency for Public Mobilization and Statistics | BM54: http://www.cbe.org.eg | BN54: Central Bank of Egypt | BO54: - | BP54: 0 | BQ54: - | BR54: 1 | BS54: http://www.mof.gov.eg/English/About%20MOF/Pages/MinistryGoals.aspx | BT54: 0 | BU54: - | BV54: 0 | BW54: 3 | BX54: - | BY54: ara | BZ54: eng | CA54: - | CB54: - | CC54: 0 | CD54: AGES / GFMIS | CE54: Automated Government Expenditure System | CF54: C | CG54: F | CH54: 3 | CI54: 2012 | CJ54: C | CK54: 1 | CL54: 2 | CM54: Oracle | CN54: Web | CO54: 3 | CP54: Oct 2009 | CQ54: Final | CR54: 1 | CS54: X | CT54: X | CU54: X | CV54: X | CW54: X | CX54: X | CY54: X | CZ54: X | DA54: X | DB54: X | DC54: 2.5 | DD54: 2.446428571 | DE54: 13 | DF54: 49 | DH54: 0 | DI54: 80 | DJ54: 0.51293 | DK54: 0.54901 | DL54: 0.59055 | DM54: 0.35705 | DN54: 0.5912 | DO54: 107 | DP54: 0.4611 | DQ54: 0.6013 | DR54: 0.2232 | DS54: 0.5588 | DT54: MNA | DX54: prev | DY54: Egypt | DZ54: 0 | EE54: 0 | EK54: 10 | EL54: 38.46153846 | EM54: C | EO54: 52 | EP54: Egypt | EQ54: EGY | ET54: http://www.egypt.gov.eg | EU54: 2 | EV54: http://www.egypt.gov.eg | EW54: 0.5906 | EX54: 81 | EY54: 52 | EZ54: 33 | FA54: 56 | FB54: 54 | FG54: http://www.mof.gov.eg/English/Ministry%20Activities/Pages/TreasuryAuctionPage.aspx | FH54: 1958 | FI54: http://www.pefa.org/sites/pefa.org/files/attachments/Eng%20-%20Vol%202550610v20ESW0P1rview0Part0II0Final.pdf | FJ54: 2009 | FK54: 3 | FL54: 4 | FM54: - | FN54: - | FO54: - | FP54: - | FQ54: http://www.incometax.gov.eg | FR54: 1977 | FS54: e-Tax | FT54: Tax Automation Solutions | FU54: 1 | FV54: LDSW ? | FW54: http://www.incometax.gov.eg/e-signature.asp | FX54: 1998 | FY54: 3 | FZ54: 2 | GA54: http://www.customs.gov.eg | GB54: 1953 | GC54: 1956 | GD54: 0 | GE54: CIS | GF54: Customs Information System | GG54: 2 | GH54: COTS | GI54: http://www.customs.gov.eg/NewCustomSerives.aspx?Id=28 | GJ54: 2005 | GK54: 3 | GL54: 2 | GM54: 1 | GN54: 0 | GO54: http://www.egypt.gov.eg/services/LoadxtrServices.aspx?PgURL=63853&section=subjects | GP54: 2005 | GQ54: 2 | GR54: 0 | GS54: - | GT54: - | GU54: 0 | GV54: http://www.itida.gov.eg/EN/OURPROGRAMS/INDUSTRYINFRASTRUCTURE/E-SIGNATURE/Pages/default.aspx | GW54: 2009 | GX54: 2 | GY54: 6379000 | GZ54: 2 | HA54: http://laborsta.ilo.org/STP/guest | HB54: 2010 | HC54: HRMIS | HD54: Human Resource Management Information system | HE54: 1 | HF54: LDSW | HG54: http://www.caoa.gov.eg | HH54: 2005 | HI54: 3 | HJ54: 2 | HK54: HRMIS | HL54: Human Resource Management Information system | HM54: 1 | HN54: LDSW | HO54: http://www.sis.gov.eg | HP54: 2005 | HQ54: 3 | HR54: 2 | HS54: X | HT54: Government Procurement Portal | HU54: http://etenders.gov.eg | HV54: 2007 | HW54: 3 | HX54: 2 | HY54: http://etenders.gov.eg/en/index.php | HZ54: Ministry of Finance | IA54: 2 | IB54: DMFAS 6.0 | ID54: 1986 | IE54: 3 | IF54: MoF | IG54: 4T | IH54: 16 | II54: 72.72727273 | IJ54: B | IK54: LMIC | IL54: MNA
A55: 53 | C55: El Salvador | D55: LMIC | E55: 6227.491 | F55: 21670.42333 | G55: 3480 | H55: http://www.mh.gob.sv | I55: El Salvador Ministry of Finance | J55: 2 | K55: http://www.mh.gob.sv/portal/page/portal/PTF/Presupuestos_Publicos | L55: 1 | M55: http://www.mh.gob.sv/portal/page/portal/PMH/Novedades/Calendario/Capacitaciones:Capacitaciones_2012:safi2012 | N55: 2 | O55: http://www.transparenciafiscal.gob.sv/portal/page/portal/PTF/Consulte_nuestra_Base_de_Datos/ConsulteNuestraBaseDeDatosEjecucionPresupuesto | P55: 1 | Q55: http://www.transparenciafiscal.gob.sv/portal/page/portal/PTF/Consulte_nuestra_Base_de_Datos/ConsulteNuestraBaseDeDatosEjecucionPresupuesto | R55: 1 | S55: 1 | T55: http://www.transparenciafiscal.gob.sv/CT_proyectos/htdocs/tabla/ejecucion.jsp | U55: 2 | V55: 1 | W55: 2 | X55: http://www.transparenciafiscal.gob.sv/portal/page/portal/PTF/Presupuestos_Publicos | Y55: 1 | Z55: http://www.transparenciafiscal.gob.sv/portal/page/portal/PTF/Marco_Normativo/Administracion_Financiera?_piref496_2086330_496_2086268_2086268.tabstring=catalogo | AA55: 1 | AB55: 1 | AC55: 2002 | AD55: 1 | AE55: 1 | AF55: 5 | AG55: 2010 | AH55: 1 | AI55: 1 | AJ55: 2004 | AK55: 1 | AL55: 2 | AM55: 1 | AN55: 2002 | AO55: 0 | AQ55: - | AR55: 1 | AS55: 1 | AT55: 0 | AU55: 0 | AV55: 0 | AW55: 1 | AX55: 1 | AY55: 1 | AZ55: 1 | BA55: 1 | BB55: 1 | BC55: http://www.comprasal.gob.sv/moddiv/HTML/ | BD55: 1 | BE55: http://www.gobiernoabierto.gob.sv | BF55: 0 | BG55: - | BH55: 1 | BI55: http://www.transparenciafiscal.gob.sv/portal/page/portal/PTF/Marco_Normativo/Administracion_Financiera?_piref496_2086330_496_2086268_2086268.tabstring=catalogo | BJ55: 1 | BK55: http://www.minec.gob.sv | BL55: El Salvador General Directorate of Statistics and Censuses | BM55: http://www.bcr.gob.sv | BN55: Central Reserve Bank of El Salvador | BO55: - | BP55: 1 | BQ55: http://www.mh.gob.sv/portal/page/portal/PMH/LAIP | BR55: 1 | BS55: http://www.mh.gob.sv/portal/page/portal/PMH/Institucion/Estructura_Organizativa/Organigrama_del_Ministerio_de_Hacienda | BT55: 0 | BU55: - | BV55: 0 | BW55: 3 | BX55: - | BY55: spa | BZ55: eng | CA55: - | CB55: - | CC55: 0 | CD55: SAFI II | CE55: Sistema de Administración Financiera Integrado | CF55: C | CG55: F | CH55: 3 | CI55: 2001 | CJ55: C+L | CK55: 2 | CL55: 1 | CM55: LDSW > Informix | CN55: CS | CO55: 3 | CP55: Aug 2013 | CQ55: Public | CR55: 2 | CS55: C | CT55: B | CU55: B | CV55: C+ | CW55: B+ | CX55: B | CY55: B+ | CZ55: B+ | DA55: D+ | DB55: D | DC55: 2.65 | DD55: 2.73 | DE55: 43 | DF55: 37 | DG55: 1 | DH55: 0 | DI55: 88 | DJ55: 0.49885 | DK55: 0.60784 | DL55: 0.53543 | DM55: 0.31975 | DN55: 0.6414 | DO55: 74 | DP55: 0.5513 | DQ55: 0.6732 | DR55: 0.2638 | DS55: 0.7169 | DT55: LCR | DY55: El Salvador | DZ55: 0 | EE55: 0 | EJ55: 2013-05-02 | EK55: 22 | EL55: 84.61538462 | EM55: A | EO55: 53 | EP55: El Salvador | EQ55: SLV | ET55: http://www.presidencia.gob.sv | EU55: 2 | EV55: http://portaldgii.mh.gob.sv/ssc/home | EW55: 0.5354 | EX55: 94 | EY55: 55 | EZ55: 30 | FA55: 24 | FB55: 49 | FG55: http://www.mh.gob.sv/portal/page/portal/MH_Fin_OLD/MH_TESORERIA | FH55: 1948 | FI55: http://documents.worldbank.org/curated/en/2007/01/7299376/reforming-payments-securities-settlement-systems-latin-america-caribbean | FJ55: 1995 | FK55: 3 | FL55: 2 | FM55: - | FN55: - | FO55: - | FP55: - | FQ55: http://www.mh.gob.sv/portal/page/portal/PMH/Institucion/Marco_Institucional/Autoridades | FR55: 1990 | FS55: e-Tax | FT55: Web Services | FU55: 1 | FV55: LDSW ? | FW55: http://www.mh.gob.sv/portal/page/portal/PMH/Servicios/En_Linea/Ciudadano | FX55: 2013 | FY55: 3 | FZ55: 2 | GA55: http://www.mh.gob.sv/portal/page/portal/PMH/Temas/Aduana | GB55: 1936 | GC55: 2005 | GD55: 4 | GE55: ASYCUDA++ > World | GF55: Automated SYstem for CUstoms Data + Single Window (in 2015) | GG55: 2 | GH55: ASYCUDA ++ | GI55: http://www.mh.gob.sv/portal/page/portal/PMH/Temas/Operaciones_Aduaneras/Introduccion/Sistema_Informatico_Aduanero | GJ55: 2011 | GK55: 3 | GL55: 2 | GM55: 1 | GN55: 1 | GO55: http://portaldgii.mh.gob.sv/ssc/home | GP55: 2004 | GQ55: 3 | GR55: 0 | GS55: - | GT55: - | GU55: 0 | GV55: http://firmaelectronica.egob.sv/?page_id=486 | GW55: 2012 | GX55: 2 | GY55: 130800 | GZ55: 1 | HA55: http://idbdocs.iadb.org/wsdocs/getdocument.aspx?docnum=997811 | HB55: 1999 | HC55: SIRH | HD55: Sistema de Información de Recursos Humanos / Human resource management system | HE55: 1 | HF55: LDSW | HG55: https://www.pefa.org/en/assessment/sv-aug13-pfmpr-public-en | HH55: 1994 | HI55: 3 | HJ55: 2 | HK55: SIRH | HL55: Sistema de Información de Recursos Humanos / Human resource management system | HM55: 1 | HN55: LDSW | HO55: https://www.pefa.org/en/assessment/sv-aug13-pfmpr-public-en | HP55: 1994 | HQ55: 3 | HR55: 2 | HS55: B | HT55: Comprasal | HU55: http://www.comprasal.gob.sv | HV55: 2004 | HW55: 3 | HX55: 2 | HY55: https://www.comprasal.gob.sv/comprasal_web/det_procesos_01.jsf | IA55: 2 | IB55: DMFAS 6.0 | ID55: 1988 | IE55: 3 | IF55: MoF | IG55: 4 | IH55: 18 | II55: 81.81818182 | IJ55: A | IK55: LMIC | IL55: LCR
A56: 54 | C56: Equatorial Guinea | D56: HIC | E56: 720.213 | F56: 11287.65487 | G56: 15670 | H56: http://www.guineaecuatorialpress.com | I56: Equatorial Guinea Ministry of Finance & Budget | J56: 0 | K56: - | L56: 0 | M56: https://www.devex.com/projects/tenders/projet-d-appui-a-la-gestion-des-finances-publiques-pagfp-prequalification-des-firmes-pour-une-assistance-technique-en-vue-de-la-definition-d-un-schema-directeur-informatique-du-systeme-d-information-de-gestion-des-finances-publiques-et-de-l/135855 | N56: 0 | O56: - | P56: 0 | Q56: - | R56: 0 | S56: 0 | T56: - | U56: 0 | V56: 0 | W56: 0 | X56: - | Y56: 0 | Z56: - | AA56: 0 | AC56: - | AD56: 0 | AF56: - | AG56: - | AH56: 0 | AJ56: - | AK56: 0 | AN56: - | AO56: 0 | AQ56: - | AR56: 0 | AS56: 0 | AT56: 0 | AU56: 0 | AV56: 0 | AW56: 0 | AX56: 0 | AY56: 0 | AZ56: 0 | BA56: 0 | BB56: 0 | BC56: - | BD56: 0 | BE56: - | BF56: 0 | BG56: - | BH56: 0 | BI56: - | BJ56: 0 | BK56: http://www.dgecnstat-ge.org | BL56: Equatorial Guinea Direction Générale des Statistiques | BM56: http://www.beac.int | BN56: Bank of Central African States | BO56: - | BP56: 0 | BQ56: - | BR56: 0 | BS56: - | BT56: 0 | BU56: - | BV56: 0 | BW56: 1 | BX56: - | BY56: spa | BZ56: eng | CA56: - | CB56: - | CC56: 0 | CD56: - | CE56: - | CF56: C | CG56: - | CH56: 0 | CI56: - | CJ56: - | CK56: - | CL56: 0 | CM56: - | CN56: - | CO56: 0 | CP56: - | CQ56: - | CR56: - | CS56: - | CT56: - | CU56: - | CV56: - | CW56: - | CX56: - | CY56: - | CZ56: - | DA56: - | DB56: - | DC56: - | DD56: - | DE56: 0 | DF56: 0 | DH56: 1 | DI56: 168 | DJ56: 0.22675 | DK56: 0.0196 | DL56: 0.03149 | DM56: 0.11996 | DN56: 0.5288 | DO56: 151 | DP56: 0.2955 | DQ56: 0.098 | DR56: 0.0883 | DS56: 0.7001 | DT56: AFR | DY56: Equatorial Guinea | DZ56: 0 | EE56: 0 | EK56: 0 | EL56: 0 | EM56: D | EO56: 54 | EP56: Equatorial Guinea | EQ56: GNQ | ET56: http://www.guineaecuatorialpress.com/ | EU56: 0 | EV56: - | EW56: 0.0315 | EX56: 9 | EY56: 14 | EZ56: 0 | FA56: 6 | FB56: 7 | FG56: - | FH56: - | FI56: - | FJ56: - | FK56: 0 | FL56: - | FM56: - | FN56: - | FO56: - | FP56: - | FQ56: - | FR56: - | FS56: - | FT56: - | FU56: 0 | FV56: - | FW56: - | FX56: - | FY56: 0 | FZ56: 0 | GA56: - | GB56: - | GC56: - | GD56: 0 | GE56: - | GF56: - | GG56: 0 | GH56: - | GI56: - | GJ56: - | GK56: 0 | GL56: 0 | GM56: 0 | GN56: 0 | GO56: - | GP56: - | GQ56: 0 | GR56: 0 | GS56: - | GT56: - | GU56: 0 | GV56: - | GW56: - | GX56: 0 | GY56: - | GZ56: 0 | HA56: - | HB56: - | HC56: - | HD56: - | HE56: 0 | HF56: - | HG56: http://documents.worldbank.org/curated/en/2010/01/15553341/equatorial-guinea-public-expenditure-review | HH56: - | HI56: 0 | HJ56: 0 | HK56: - | HL56: - | HM56: 0 | HN56: - | HO56: http://documents.worldbank.org/curated/en/2010/01/15553341/equatorial-guinea-public-expenditure-review | HP56: - | HQ56: 0 | HR56: 0 | HS56: - | HT56: - | HU56: - | HV56: - | HW56: 0 | HX56: 0 | HY56: - | IH56: 0 | II56: 0 | IJ56: D | IK56: HIC | IL56: AFR
A57: 55 | C57: Eritrea | D57: LIC | E57: 5415.28 | F57: 2313.060452 | G57: 430 | H57: http://www.shabait.com | I57: Ministry of Finance | J57: 0 | K57: - | L57: 0 | M57: http://www.er.undp.org/content/dam/eritrea/docs/MDGs/AfricanEconomicOutlookEritrea2014.pdf | N57: 0 | O57: - | P57: 0 | Q57: - | R57: 0 | S57: 0 | T57: - | U57: 0 | V57: 0 | W57: 0 | X57: - | Y57: 0 | Z57: - | AA57: 0 | AC57: - | AD57: 0 | AF57: - | AG57: - | AH57: 0 | AJ57: - | AK57: 0 | AN57: - | AO57: 0 | AQ57: - | AR57: 0 | AS57: 0 | AT57: 0 | AU57: 0 | AV57: 0 | AW57: 0 | AX57: 0 | AY57: 0 | AZ57: 0 | BA57: 0 | BB57: 0 | BC57: - | BD57: 0 | BE57: - | BF57: 0 | BG57: - | BH57: 0 | BI57: - | BJ57: 0 | BK57: - | BL57: Ministry of Natl Dev - Statistics Dept | BM57: http://www.boe.gov.er | BN57: Bank of Eritrea | BO57: - | BP57: 0 | BQ57: - | BR57: 0 | BS57: - | BT57: 0 | BU57: - | BV57: 0 | BW57: 1 | BX57: - | BY57: ara | BZ57: - | CA57: - | CB57: - | CC57: - | CD57: - | CE57: - | CF57: C | CG57: - | CH57: 0 | CI57: - | CJ57: - | CK57: - | CL57: 0 | CM57: - | CN57: - | CO57: 0 | CP57: - | CQ57: - | CR57: - | CS57: - | CT57: - | CU57: - | CV57: - | CW57: - | CX57: - | CY57: - | CZ57: - | DA57: - | DB57: - | DC57: - | DD57: - | DE57: - | DF57: - | DH57: 0 | DI57: 192 | DJ57: 0.09075 | DK57: 0 | DL57: 0 | DM57: 0 | DN57: 0.2723 | DO57: 180 | DP57: 0.2043 | DQ57: 0.2092 | DR57: 0.0132 | DS57: 0.3907 | DT57: AFR | DX57: F | DY57: Eritrea | DZ57: 0 | EE57: 0 | EK57: 0 | EL57: 0 | EM57: D | EO57: 55 | EP57: Eritrea | EQ57: ERI | ET57: http://www.shabait.com | EU57: 0 | EV57: - | EW57: 0 | EX57: 9 | EY57: 9 | EZ57: 0 | FA57: 0 | FB57: 5 | FG57: - | FH57: - | FI57: http://www.eastafritac.org/images/uploads/documents_storage/2013-10_Cash_Management_Workshop_-_Day_1_Presentations.pdf | FJ57: - | FK57: 0 | FL57: - | FM57: - | FN57: - | FO57: - | FP57: - | FQ57: http://www.shabait.com/news/local-news/6953-meeting-of-ministerial-cabinet-concluded- | FR57: 1993 | FS57: - | FT57: - | FU57: 0 | FV57: - | FW57: - | FX57: - | FY57: 0 | FZ57: 0 | GA57: - | GB57: - | GC57: 1995 | GD57: 0 | GE57: ASYCUDA++ | GF57: Automated SYstem for CUstoms DAta | GG57: 2 | GH57: ASYCUDA ++ | GI57: http://unctad.org/en/PublicationsLibrary/dtlasycuda2011d1_en.pdf | GJ57: 2007 | GK57: 3 | GL57: 2 | GM57: 1 | GN57: 0 | GO57: - | GP57: - | GQ57: 0 | GR57: 0 | GS57: - | GT57: - | GU57: 0 | GV57: - | GW57: - | GX57: 0 | GY57: - | GZ57: 0 | HA57: - | HB57: - | HC57: - | HD57: - | HE57: 0 | HF57: - | HG57: http://documents.worldbank.org/curated/en/2008/03/16215845/eritrea-health-education-sectors-public-expenditure-review | HH57: - | HI57: 0 | HJ57: 0 | HK57: - | HL57: - | HM57: 0 | HN57: - | HO57: http://documents.worldbank.org/curated/en/2008/03/16215845/eritrea-health-education-sectors-public-expenditure-review | HP57: - | HQ57: 0 | HR57: 0 | HS57: - | HT57: - | HU57: - | HV57: - | HW57: 0 | HX57: 0 | HY57: - | IH57: 2 | II57: 9.090909091 | IJ57: D | IK57: LIC | IL57: AFR
A58: 56 | C58: Estonia | D58: HIC | E58: 1340 | F58: 20447.94786 | G58: 15260 | H58: http://www.fin.ee | I58: Eesti Vabarigiigi Rahandusministeerium - Ministry of Finance, Estonia | J58: 2 | K58: http://www.fin.ee/riigieelarve | L58: 1 | M58: http://www.mindware.ee/en/Portfolio/Finance-and-Insurance | N58: 3 | O58: http://pub.stat.ee/px-web.2001/Database/Majandus/14Rahandus/08Valitsemissektori_rahandus/08Valitsemissektori_tulud_kulud/08Valitsemissektori_tulud_kulud.asp | P58: 1 | Q58: http://www.fin.ee/riigieelarve-2011 | R58: 0 | S58: 0 | T58: - | U58: 2 | V58: 1 | W58: 0 | X58: - | Y58: 1 | Z58: http://www.fin.ee/index.php?id=7544 | AA58: 1 | AB58: 1 | AC58: 2008 | AD58: 1 | AE58: 1 | AF58: 4 | AG58: 2003 | AH58: 0 | AJ58: - | AK58: 1 | AL58: 2 | AM58: 1 | AN58: 1995 | AO58: 1 | AP58: 0 | AQ58: 2005 | AR58: 1 | AS58: 1 | AT58: 1 | AU58: 0 | AV58: 0 | AW58: 1 | AX58: 1 | AY58: 1 | AZ58: 1 | BA58: 1 | BB58: 1 | BC58: https://riigihanked.riik.ee/lr1/web/guest/index | BD58: 1 | BE58: http://pub.stat.ee/px-web.2001/Dialog/statfile1.asp | BF58: 0 | BG58: - | BH58: 1 | BI58: http://www.fin.ee/index.php?id=79938 | BJ58: 0 | BK58: http://www.stat.ee | BL58: Statistical Office of Estonia | BM58: http://www.bankofestonia.info | BN58: Bank of Estonia | BO58: - | BP58: 0 | BQ58: - | BR58: 1 | BS58: http://www.fin.ee/index.php?id=243 | BT58: 2 | BU58: - | BV58: 0 | BW58: 3 | BX58: - | BY58: est | BZ58: eng | CA58: rus | CB58: - | CC58: 0 | CD58: FMIS | CE58: Financial Management Information System | CF58: C | CG58: F | CH58: 3 | CI58: 2001 | CJ58: C+L | CK58: 1 | CL58: 2 | CM58: SAP | CN58: Web | CO58: 3 | CP58: - | CQ58: - | CR58: - | CS58: - | CT58: - | CU58: - | CV58: - | CW58: - | CX58: - | CY58: - | CZ58: - | DA58: - | DB58: - | DC58: - | DD58: - | DE58: - | DF58: - | DG58: 1 | DH58: 2 | DI58: 15 | DJ58: 0.81796 | DK58: 0.7647 | DL58: 0.77165 | DM58: 0.79337 | DN58: 0.8889 | DO58: 20 | DP58: 0.7987 | DQ58: 0.8235 | DR58: 0.6642 | DS58: 0.9085 | DT58: ECA | DU58: EU | DV58: OECD | DY58: Estonia | DZ58: 0 | EE58: 0 | EK58: 18 | EL58: 69.23076923 | EM58: B | EO58: 56 | EP58: Estonia | EQ58: EST | ET58: http://www.riik.ee | EU58: 2 | EV58: https://www.eesti.ee/eng | EW58: 0.7717 | EX58: 100 | EY58: 66 | EZ58: 56 | FA58: 59 | FB58: 69 | FG58: http://www.fin.ee/state-treasury | FH58: 1918 | FI58: https://www.imf.org/external/pubs/ft/fandd/2000/09/pdf/potter.pdf | FJ58: 1997 | FK58: 3 | FL58: 4 | FM58: - | FN58: - | FO58: - | FP58: - | FQ58: http://www.emta.ee | FR58: 1995 | FS58: e-Tax | FT58: Tax and Customs Portal | FU58: 2 | FV58: COTS | FW58: http://www.emta.ee/index.php?id=29761 | FX58: 2000 | FY58: 3 | FZ58: 3 | GA58: http://www.emta.ee | GB58: 1995 | GC58: 1992 | GD58: 3 | GE58: e-Customs > COMPLEX | GF58: Web Services / Customs Declarations … | GG58: 2 | GH58: COTS | GI58: http://www.emta.ee/index.php?id=21472 | GJ58: 2006 | GK58: 3 | GL58: 3 | GM58: 1 | GN58: 0 | GO58: http://www.emta.ee/index.php?id=29761 | GP58: 2000 | GQ58: 3 | GR58: 1 | GS58: https://www.eesti.ee/portaal/portaal.sisene?level=30&loc=%2Feng%2Fmydata | GT58: 2000 | GU58: 2 | GV58: http://www.id.ee/?lang=en&id= | GW58: 2003 | GX58: 3 | GY58: 159700 | GZ58: 2 | HA58: http://laborsta.ilo.org/STP/guest | HB58: 2010 | HC58: HRMS | HD58: Human Resource Management System | HE58: 2 | HF58: SAP | HG58: http://www.rtk.ee/ | HH58: 2014 | HI58: 3 | HJ58: 1 | HK58: PS | HL58: Payroll System | HM58: 2 | HN58: SAP | HO58: http://www.rtk.ee/ | HP58: 2014 | HQ58: 3 | HR58: 1 | HS58: - | HT58: E-Procurement Estonia | HU58: https://riigihanked.riik.ee | HV58: 2011 | HW58: 3 | HX58: 2 | HY58: https://riigihanked.riik.ee/register/RegisterHanked.html | HZ58: Ministry of Finance | IH58: 19 | II58: 86.36363636 | IJ58: A | IK58: HIC | IL58: ECA
A59: 57 | C59: Ethiopia | D59: LIC | E59: 84734.262 | F59: 30963.63453 | G59: 370 | H59: http://www.mofed.gov.et | I59: Ethiopia Ministry of Finance and Economic Development | J59: 2 | K59: http://www.mofed.gov.et/English/Resources/Pages/ResourcesByTopic.aspx | L59: 1 | M59: http://www.hks.harvard.edu/m-rcbg/ethiopia/Publications/ARD%20Final%20Draft.pdf | N59: 1 | O59: - | P59: 0 | Q59: - | R59: 0 | S59: 0 | T59: - | U59: 1 | V59: 1 | W59: 0 | X59: - | Y59: 0 | Z59: - | AA59: 0 | AC59: - | AD59: 1 | AE59: 0 | AF59: 5 | AG59: 2010 | AH59: 0 | AJ59: - | AK59: 1 | AL59: 4 | AM59: 0 | AN59: 2001 | AO59: 0 | AQ59: - | AR59: 0 | AS59: 1 | AT59: 1 | AU59: 1 | AV59: 1 | AW59: 1 | AX59: 1 | AY59: 1 | AZ59: 0 | BA59: 0 | BB59: 1 | BC59: http://www.ppa.gov.et/ | BD59: 0 | BE59: - | BF59: 0 | BG59: - | BH59: 0 | BI59: - | BJ59: 1 | BK59: http://www.csa.gov.et | BL59: Central Statistics Agency of Ethiopia | BM59: http://www.nbe.gov.et | BN59: National Bank of Ethiopia | BO59: - | BP59: 1 | BQ59: http://www.mofed.gov.et/English/Pages/Accessibility.aspx | BR59: 1 | BS59: http://www.mofed.gov.et/English/Information/Pages/OrganizationalStructure.aspx | BT59: 0 | BU59: - | BV59: 0 | BW59: 3 | BX59: - | BY59: eng | BZ59: amh | CA59: tig | CB59: afo | CC59: 0 | CD59: IBEX | CE59: Integrated Budget and Expenditure System | CF59: C | CG59: F | CH59: 3 | CI59: 2007 | CJ59: C | CK59: 1 | CL59: 1 | CM59: LDSW > MS Access | CN59: CS | CO59: 2 | CP59: May 2014 | CQ59: Public | CR59: 3 | CS59: B | CT59: B | CU59: C | CV59: C+ | CW59: A | CX59: NA | CY59: C+ | CZ59: C+ | DA59: B+ | DB59: D | DC59: 2.67 | DD59: 2.8 | DE59: - | DF59: - | DH59: 1 | DI59: 157 | DJ59: 0.25888 | DK59: 0.2549 | DL59: 0.45669 | DM59: 0.02659 | DN59: 0.2934 | DO59: 172 | DP59: 0.2306 | DQ59: 0.4706 | DR59: 0.0093 | DS59: 0.2119 | DT59: AFR | DY59: Ethiopia | DZ59: 0 | EE59: 0 | EK59: 8 | EL59: 30.76923077 | EM59: C | EO59: 57 | EP59: Ethiopia | EQ59: ETH | ER59: 2006 | ET59: http://www.ethiopia.gov.et | EU59: 2 | EV59: http://www.eservices.gov.et/eserviceportaleth/Services.aspx | EW59: 0.4567 | EX59: 53 | EY59: 48 | EZ59: 28 | FA59: 44 | FB59: 42 | FG59: http://www.mofed.gov.et/ | FH59: 1905 | FI59: http://www-wds.worldbank.org/external/default/WDSContentServer/WDSP/IB/2014/01/13/000461832_20140113152214/Rendered/PDF/839410WP0P14490Box0382124B00PUBLIC0.pdf | FJ59: 2015 | FK59: 1 | FL59: - | FM59: - | FN59: - | FO59: - | FP59: - | FQ59: http://www.erca.gov.et | FR59: 2008 | FS59: SIGTAS | FT59: Standard Integrated Government Tax System | FU59: 2 | FV59: SIGTAS | FW59: http://crcsogema.com/fiches/69/475/Ethiopia-The-SIGTAS-Regional-Deployment-and-E-Tax-platform.html | FX59: 2013 | FY59: 3 | FZ59: 2 | GA59: http://www.erca.gov.et | GB59: 2008 | GC59: 1973 | GD59: 4 | GE59: ASYCUDA++ | GF59: Automated SYstem for CUstoms DAta | GG59: 2 | GH59: ASYCUDA ++ | GI59: http://unctad.org/en/PublicationsLibrary/dtlasycuda2011d1_en.pdf | GJ59: 2005 | GK59: 3 | GL59: 2 | GM59: 1 | GN59: 0 | GO59: https://www.etax.gov.et | GP59: 2013 | GQ59: 2 | GR59: 0 | GS59: - | GT59: - | GU59: 0 | GV59: - | GW59: - | GX59: 0 | GY59: 611723 | GZ59: 2 | HA59: http://laborsta.ilo.org/STP/guest | HB59: 2004 | HC59: HRIS | HD59: Human Resource Management Information system | HE59: 1 | HF59: LDSW | HG59: http://www.mocis.gov.et/human-resource-management-information-system-directorate | HH59: - | HI59: 3 | HJ59: 1 | HK59: IBEX | HL59: Integrated Budget and Expenditure System | HM59: 1 | HN59: LDSW | HO59: http://www.hks.harvard.edu/m-rcbg/ethiopia/Publications/ARD%20Final%20Draft.pdf | HP59: 2007 | HQ59: 3 | HR59: 2 | HS59: C+ | HT59: FPPA Website | HU59: http://www.ppa.gov.et | HV59: 2010 | HW59: 3 | HX59: 1 | HY59: http://www.ppa.gov.et | HZ59: Ministry of Finance of Republic of Ethiopia | IA59: 2 | IB59: DMFAS 5.3 | ID59: 1988 | IE59: 3 | IF59: MoF | IG59: 4 | IH59: 13 | II59: 59.09090909 | IJ59: B | IK59: LIC | IL59: AFR
A60: 58 | C60: Fiji | D60: LMIC | E60: 868.406 | F60: 3231.419955 | G60: 3720 | H60: http://www.finance.gov.fj | I60: Fiji Ministry of Finance | J60: 2 | K60: http://www.finance.gov.fj/s.html | L60: 2 | M60: http://www.finance.gov.fj/sections/financial-and-asset-management/fmis.html | N60: 1 | O60: - | P60: 0 | Q60: - | R60: 0 | S60: 0 | T60: - | U60: 2 | V60: 1 | W60: 0 | X60: - | Y60: 0 | Z60: - | AA60: 0 | AC60: - | AD60: 1 | AE60: 1 | AF60: 3 | AG60: 2004 | AH60: 0 | AJ60: - | AK60: 1 | AL60: 4 | AM60: 1 | AN60: 2009 | AO60: 0 | AQ60: - | AR60: 0 | AS60: 1 | AT60: 0 | AU60: 0 | AV60: 0 | AW60: 1 | AX60: 1 | AY60: 0 | AZ60: 1 | BA60: 0 | BB60: 0 | BC60: - | BD60: 0 | BE60: - | BF60: 0 | BG60: - | BH60: 0 | BI60: - | BJ60: 1 | BK60: http://www.statsfiji.gov.fj | BL60: Fiji Statistics Bureau | BM60: http://www.reservebank.gov.fj | BN60: Reserve Bank of Fiji | BO60: - | BP60: 1 | BQ60: http://www.fiji.gov.fj/index.php?option=com_content&view=article&id=583:accessiblity&catid=80 | BR60: 0 | BS60: - | BT60: 0 | BU60: - | BV60: 0 | BW60: 3 | BX60: - | BY60: eng | BZ60: - | CA60: - | CB60: - | CC60: - | CD60: FMIS | CE60: Financial Management Information System | CF60: C | CG60: F | CH60: 3 | CI60: 2008 | CJ60: C+L | CK60: 1 | CL60: 2 | CM60: Infor FMS | CN60: Web | CO60: 3 | CP60: Jun 2005 | CQ60: Final | CR60: 1 | CS60: X | CT60: X | CU60: X | CV60: X | CW60: X | CX60: X | CY60: X | CZ60: X | DA60: X | DB60: X | DC60: 1.85 | DD60: 1.919354839 | DE60: 6 | DF60: 0 | DH60: 1 | DI60: 85 | DJ60: 0.50437 | DK60: 0.39215 | DL60: 0.3937 | DM60: 0.28719 | DN60: 0.8322 | DO60: 105 | DP60: 0.4672 | DQ60: 0.3595 | DR60: 0.2434 | DS60: 0.7986 | DT60: EAP | DY60: Fiji | DZ60: 0 | EE60: 0 | EK60: 12 | EL60: 46.15384615 | EM60: C | EO60: 58 | EP60: Fiji | EQ60: FJI | ET60: http://www.fiji.gov.fj | EU60: 2 | EV60: https://www.egov.gov.fj/default.aspx | EW60: 0.3937 | EX60: 75 | EY60: 36 | EZ60: 21 | FA60: 24 | FB60: 37 | FG60: http://www.finance.gov.fj/sections/financial-and-asset-management/treasury.html | FH60: 1982 | FI60: http://www.finance.gov.fj/legislation.html | FJ60: 2008 | FK60: 2 | FL60: 2 | FM60: - | FN60: - | FO60: - | FP60: - | FQ60: http://www.frca.org.fj | FR60: 1999 | FS60: Tax Portal | FT60: Tax Automation Solutions | FU60: 1 | FV60: LDSW ? | FW60: http://taxportal.frca.org.fj | FX60: 2009 | FY60: 3 | FZ60: 2 | GA60: http://www.frca.org.fj | GB60: 1999 | GC60: 1997 | GD60: 4 | GE60: ASYCUDA++ | GF60: Automated SYstem for CUstoms DAta | GG60: 2 | GH60: ASYCUDA ++ | GI60: http://unctad.org/en/PublicationsLibrary/dtlasycuda2011d1_en.pdf | GJ60: 1999 | GK60: 3 | GL60: 2 | GM60: 1 | GN60: 1 | GO60: - | GP60: - | GQ60: 0 | GR60: 0 | GS60: - | GT60: - | GU60: 0 | GV60: https://www.egov.gov.fj/_layouts/images/egovFiji/eGOVdocs/Promulgation_26_Electronic_Transactions.pdf | GW60: 2008 | GX60: 1 | GY60: 38397 | GZ60: 2 | HA60: http://laborsta.ilo.org/STP/guest | HB60: 2008 | HC60: CHRIS | HD60: Computerized Human Resources Information System | HE60: 1 | HF60: LDSW | HG60: http://www.planning.gov.fj/index.php/chris | HH60: 1997 | HI60: 3 | HJ60: 2 | HK60: FMIS | HL60: Financial Management Information System | HM60: 2 | HN60: Infor FMS | HO60: http://www.finance.gov.fj/sections/financial-and-asset-management/fmis.html | HP60: 2008 | HQ60: 3 | HR60: 2 | HS60: X | HT60: FPO Website | HU60: http://www.fpo.gov.fj | HV60: 2012 | HW60: 2 | HX60: 1 | HY60: - | HZ60: Ministry of Finance of The Republic of The Fiji Islands | IA60: 2 | IB60: CS-DRMS | ID60: 1987 | IE60: 3 | IF60: MoF | IH60: 13 | II60: 59.09090909 | IJ60: B | IK60: LMIC | IL60: EAP
A61: 59 | C61: Finland | D61: HIC | E61: 5387 | F61: 257342.8031 | G61: 47770 | H61: http://www.vm.fi/vm/fi/01_etusivu | I61: Valtioneuvosto - Ministry of Finance, Finland | J61: 2 | K61: http://www.vm.fi/vm/fi/04_julkaisut_ja_asiakirjat/01_julkaisut/01_budjetit/index.jsp | L61: 2 | M61: http://www.valtiokonttori.fi/fi-FI/Virastoille_ja_laitoksille/Kiekun_kayttoonotto_valtionhallinnossa | N61: 3 | O61: http://www.netra.fi | P61: 1 | Q61: http://www.netra.fi | R61: 0 | S61: 0 | T61: - | U61: 1 | V61: 1 | W61: 0 | X61: - | Y61: 1 | Z61: http://www.vm.fi/vm/fi/04_julkaisut_ja_asiakirjat/03_muut_asiakirjat/24229/24230_fi.pdf | AA61: 1 | AB61: 1 | AC61: 2002 | AD61: 1 | AE61: 1 | AF61: 4 | AG61: 2004 | AH61: 0 | AJ61: - | AK61: 1 | AL61: 4 | AM61: 1 | AN61: 2001 | AO61: 1 | AP61: 1 | AQ61: 2001 | AR61: 1 | AS61: 1 | AT61: 0 | AU61: 1 | AV61: 0 | AW61: 1 | AX61: 1 | AY61: 1 | AZ61: 1 | BA61: 0 | BB61: 1 | BC61: http://www.peppol.eu/ | BD61: 1 | BE61: http://www.suomi.fi/suomifi/tyohuone/yhteiset_palvelut/avoin_data | BF61: 0 | BG61: - | BH61: 0 | BI61: http://www.vm.fi/vm/en/15_municipal_affairs/01_legislation/07_act/index.jsp | BJ61: 2 | BK61: http://www.stat.fi | BL61: Statistics Finland | BM61: http://www.bof.fi | BN61: Bank of Finland | BO61: http://www.valtiokonttori.fi | BP61: 0 | BQ61: - | BR61: 1 | BS61: http://www.vm.fi/vm/en/02_ministry/index.jsp | BT61: 2 | BU61: GFS 2001 + National laws and regulations | BV61: 0 | BW61: 1 | BX61: - | BY61: fin | BZ61: swe | CA61: eng | CB61: - | CC61: 0 | CD61: KIEKU | CE61: Government Financial and HR Administration System | CF61: D | CG61: F | CH61: 3 | CI61: 2011 | CJ61: C | CK61: 1 | CL61: 2 | CM61: SAP + Logica | CN61: Web | CO61: 2 | CP61: - | CQ61: - | CR61: - | CS61: - | CT61: - | CU61: - | CV61: - | CW61: - | CX61: - | CY61: - | CZ61: - | DA61: - | DB61: - | DC61: - | DD61: - | DE61: - | DF61: - | DG61: 1 | DH61: 3 | DI61: 10 | DJ61: 0.84491 | DK61: 0.70588 | DL61: 0.77165 | DM61: 0.8594 | DN61: 0.9037 | DO61: 9 | DP61: 0.8505 | DQ61: 0.8824 | DR61: 0.7225 | DS61: 0.9467 | DU61: EU | DV61: OECD | DY61: Finland | DZ61: 4 | EA61: 1 | EB61: 2 | EC61: 1 | EE61: 1 | EF61: 1 | EJ61: 2013-04-04 | EK61: 19 | EL61: 73.07692308 | EM61: B | EO61: 59 | EP61: Finland | EQ61: FIN | ET61: http://valtioneuvosto.fi | EU61: 2 | EV61: http://www.suomi.fi | EW61: 0.7717 | EX61: 100 | EY61: 70 | EZ61: 47 | FA61: 65 | FB61: 69 | FG61: http://www.treasuryfinland.fi/ | FH61: 1876 | FI61: http://www.finlex.fi/fi/laki/ajantasa/1988/19880423 | FJ61: - | FK61: 0 | FL61: - | FM61: - | FN61: - | FO61: - | FP61: - | FQ61: http://www.vero.fi | FR61: 1809 | FS61: e-Tax | FT61: e-Tax and other portals | FU61: 2 | FV61: GenTax | FW61: http://www.vero.fi/fi-FI/Asioi_verkossa | FX61: 1993 | FY61: 3 | FZ61: 2 | GA61: http://www.tulli.fi | GB61: 1812 | GC61: 1961 | GD61: 0 | GE61: ITU | GF61: Integrated Clearance System | GG61: 2 | GH61: COTS | GI61: http://www.tulli.fi/fi/yrityksille/sahkoinenasiointi/internet/index.jsp | GJ61: 1994 | GK61: 3 | GL61: 2 | GM61: 1 | GN61: 0 | GO61: http://www.vero.fi/fi-FI/Asioi_verkossa | GP61: 2006 | GQ61: 3 | GR61: 1 | GS61: http://www.suomi.fi/suomifi/english/eservices/frequently_asked_questions/index.html#howdoIpay | GT61: 2006 | GU61: 2 | GV61: http://www.fineid.fi/?site=10 | GW61: 2006 | GX61: 3 | GY61: 611700 | GZ61: 2 | HA61: http://laborsta.ilo.org/STP/guest | HB61: 2010 | HC61: KIEKU | HD61: Human Resources Management | HE61: 2 | HF61: SAP | HG61: http://www.valtiokonttori.fi/fi-FI/Virastoille_ja_laitoksille/Kiekun_kayttoonotto_valtionhallinnossa/Kiekuhanke/Teknista_tietoa | HH61: 2014 | HI61: 3 | HJ61: 2 | HK61: KIEKU | HL61: Salaries | HM61: 2 | HN61: CGI | HO61: http://www.valtiokonttori.fi/fi-FI/Virastoille_ja_laitoksille/Kiekun_kayttoonotto_valtionhallinnossa/Kiekuhanke/Teknista_tietoa | HP61: 2014 | HQ61: 3 | HR61: 2 | HS61: - | HT61: HILMA | HU61: http://www.hankintailmoitukset.fi/fi/ | HV61: 2006 | HW61: 3 | HX61: 2 | HY61: http://www.hankintailmoitukset.fi/fi/docs/hakuohje/ | HZ61: Finnish State Treasury | IH61: 18 | II61: 81.81818182 | IJ61: A | IK61: HIC
A62: 60 | C62: France | D62: HIC | E62: 65436.552 | F62: 2775664.208 | G62: 42420 | H62: http://www.economie.gouv.fr | I62: France Ministre du Budget, des Comptes publics, de la Fonction publique et de la Réforme de l'État | J62: 2 | K62: http://www.performance-publique.budget.gouv.fr/ | L62: 2 | M62: http://www.economie.gouv.fr/aife/agence-pour-linformatique-financiere-letat-0 | N62: 1 | O62: - | P62: 0 | Q62: - | R62: 0 | S62: 0 | T62: - | U62: 2 | V62: 1 | W62: 1 | X62: http://www.cyber-budget.fr | Y62: 1 | Z62: http://www.performance-publique.budget.gouv.fr/la-gestion-publique/la-gestion-budgetaire/lessentiel/les-nomenclatures-du-budget-de-letat-une-meilleure-identification-des-engagements-et-des-depenses.html | AA62: 1 | AB62: 1 | AC62: 2004 | AD62: 1 | AE62: 1 | AF62: 3 | AG62: 2008 | AH62: 0 | AJ62: - | AK62: 1 | AL62: 4 | AM62: 1 | AN62: 2006 | AO62: 1 | AP62: 1 | AQ62: 2004 | AR62: 1 | AS62: 1 | AT62: 0 | AU62: 0 | AV62: 0 | AW62: 1 | AX62: 1 | AY62: 0 | AZ62: 1 | BA62: 0 | BB62: 1 | BC62: http://www.peppol.eu/ | BD62: 1 | BE62: http://data.gouv.fr | BF62: 0 | BG62: - | BH62: 0 | BI62: - | BJ62: 3 | BK62: http://www.insee.fr | BL62: National Institute of Statistics and Economic Studies (INSEE) | BM62: http://www.banque-france.fr | BN62: Bank of France | BO62: http://www.aft.gouv.fr/articles/2005-draft-budget-bill_872.html | BP62: 1 | BQ62: http://www.budget.gouv.fr/budget/accessibilite | BR62: 1 | BS62: http://www.economie.gouv.fr/le-ministere/services-ministere-leconomie-et-des-finances | BT62: 0 | BU62: - | BV62: 0 | BW62: 1 | BX62: - | BY62: fre | BZ62: - | CA62: - | CB62: - | CC62: - | CD62: CHORUS | CE62: Government Financial Information System | CF62: C | CG62: F | CH62: 3 | CI62: 2011 | CJ62: C+L | CK62: 1 | CL62: 2 | CM62: SAP | CN62: Web | CO62: 3 | CP62: - | CQ62: - | CR62: - | CS62: - | CT62: - | CU62: - | CV62: - | CW62: - | CX62: - | CY62: - | CZ62: - | DA62: - | DB62: - | DC62: - | DD62: - | DE62: 83 | DF62: 87 | DH62: 3 | DI62: 4 | DJ62: 0.89384 | DK62: 0.96078 | DL62: 1 | DM62: 0.80029 | DN62: 0.8812 | DO62: 6 | DP62: 0.8635 | DQ62: 0.8758 | DR62: 0.7902 | DS62: 0.9244 | DU62: EU | DV62: OECD | DY62: France | DZ62: 12 | EA62: 6 | EB62: 2 | EC62: 3 | ED62: 1 | EE62: 5 | EF62: 1 | EG62: 1 | EH62: 2 | EI62: 1 | EK62: 18 | EL62: 69.23076923 | EM62: B | EO62: 60 | EP62: France | EQ62: FRA | ET62: http://www.premier-ministre.gouv.fr | EU62: 2 | EV62: http://service-public.fr | EW62: 1 | EX62: 100 | EY62: 73 | EZ62: 91 | FA62: 91 | FB62: 88 | FG62: http://www.aft.gouv.fr | FH62: 2001 | FI62: http://www.aft.gouv.fr/documents/%7BC3BAF1F0-F068-4305-821D-B8B2BF4F9AF6%7D/publication/attachments/317.pdf | FJ62: 1959 | FK62: 3 | FL62: 4 | FM62: - | FN62: http://www.aft.gouv.fr/rubriques/objectifs_188.html | FO62: - | FP62: - | FQ62: http://www.impots.gouv.fr | FR62: 2008 | FS62: My Space | FT62: e-Tax and other portals | FU62: 2 | FV62: COTS | FW62: https://cfspart.impots.gouv.fr | FX62: 2001 | FY62: 3 | FZ62: 3 | GA62: http://www.douane.gouv.fr | GB62: 1791 | GC62: 1952 | GD62: 3 | GE62: Pro Douane | GF62: Web Services + DELTA (Dédouanement En Ligne par Traitement Automatisé) | GG62: 2 | GH62: COTS | GI62: https://pro.douane.gouv.fr | GJ62: 2005 | GK62: 3 | GL62: 3 | GM62: 1 | GN62: 1 | GO62: http://www.impots.gouv.fr/pro/pro.html | GP62: 2002 | GQ62: 3 | GR62: 1 | GS62: http://vosdroits.service-public.fr/particuliers/R11026.xhtml | GT62: 2009 | GU62: 2 | GV62: http://www.chambersign.fr/cadre-juridique-autorite-certification/ | GW62: 2004 | GX62: 3 | GY62: 6718000 | GZ62: 2 | HA62: http://laborsta.ilo.org/STP/guest | HB62: 2006 | HC62: CHORUS | HD62: Human Resource Management System integrated with CHORUS | HE62: 2 | HF62: SAP | HG62: http://www.economie.gouv.fr/aife/agence-pour-linformatique-financiere-letat-0 | HH62: 2012 | HI62: 3 | HJ62: 2 | HK62: CHORUS | HL62: Payroll System | HM62: 2 | HN62: SAP | HO62: http://www.economie.gouv.fr/aife/agence-pour-linformatique-financiere-letat-0 | HP62: 2012 | HQ62: 3 | HR62: 2 | HS62: - | HT62: E-Procurement | HU62: https://www.marches-publics.gouv.fr | HV62: 2010 | HW62: 3 | HX62: 2 | HY62: https://www.marches-publics.gouv.fr/?page=entreprise.EntrepriseAdvancedSearch&AvisAttribution | HZ62: Agence France Trésor | IH62: 19 | II62: 86.36363636 | IJ62: A | IK62: HIC
A63: 61 | C63: Gabon | D63: UMIC | E63: 1534.262 | F63: 12397.29963 | G63: 8080 | H63: http://www.budget.gouv.ga | I63: Gabon Ministère du Budget, des Comptes Publics, de la Fonction Publique, Charge de la Réforme de l'État | J63: 2 | K63: http://bop.dgb.ga/ | L63: 1 | M63: http://ddp-ext.worldbank.org/EdStats/GABpemfar06.pdf | N63: 1 | O63: - | P63: 0 | Q63: - | R63: 0 | S63: 0 | T63: - | U63: 2 | V63: 1 | W63: 0 | X63: - | Y63: 1 | Z63: http://www.budget.gouv.ga/47-textes-juridiques/344-decrets-et-arretes-/ | AA63: 1 | AB63: 0 | AC63: 2001 | AD63: 0 | AF63: - | AG63: - | AH63: 1 | AI63: 1 | AJ63: 2000 | AK63: 1 | AL63: 4 | AM63: 1 | AN63: 2000 | AO63: 0 | AQ63: - | AR63: 0 | AS63: 1 | AT63: 1 | AU63: 1 | AV63: 1 | AW63: 1 | AX63: 0 | AY63: 1 | AZ63: 0 | BA63: 0 | BB63: 0 | BC63: - | BD63: 0 | BE63: - | BF63: 0 | BG63: - | BH63: 1 | BI63: http://www.finances.gouv.ga/budget/IMG/pdf/DGB_Nom_Guide_2007.pdf | BJ63: 1 | BK63: http://www.stat-gabon.org | BL63: Gabon Direction générale de la statistique et des études économiques (DGSEE) | BM63: http://www.beac.int | BN63: Bank of Central African States | BO63: - | BP63: 0 | BQ63: - | BR63: 1 | BS63: http://www.budget.gouv.ga/47-textes-juridiques/344-decrets-et-arretes-/ | BT63: 2 | BU63: - | BV63: 0 | BW63: 0 | BX63: - | BY63: fre | BZ63: - | CA63: - | CB63: - | CC63: - | CD63: ASTER/SIGFIP | CE63: Application des Services du Trésor en Réseau / Système Intégré de Gestion des Finances Publiques | CF63: C | CG63: T | CH63: 3 | CI63: 1999 | CJ63: C | CK63: 1 | CL63: 1 | CM63: LDSW > Oracle | CN63: CS | CO63: 1 | CP63: Sep 2006 | CQ63: Public | CR63: 1 | CS63: C | CT63: C | CU63: C | CV63: D | CW63: D | CX63: NU | CY63: C | CZ63: C | DA63: B | DB63: NU | DC63: 1.875 | DD63: 1.956521739 | DE63: - | DF63: - | DH63: 0 | DI63: 131 | DJ63: 0.3294 | DK63: 0.21568 | DL63: 0.09448 | DM63: 0.22601 | DN63: 0.6677 | DO63: 129 | DP63: 0.3687 | DQ63: 0.1895 | DR63: 0.1595 | DS63: 0.7572 | DT63: AFR | DY63: Gabon | DZ63: 0 | EE63: 0 | EK63: 13 | EL63: 50 | EM63: B | EO63: 61 | EP63: Gabon | EQ63: GAB | ET63: http://www.gouvernement.ga/ | EU63: 0 | EV63: - | EW63: 0.0945 | EX63: 31 | EY63: 16 | EZ63: 2 | FA63: 3 | FB63: 12 | FG63: http://www.tresor.ga/ | FH63: 1912 | FI63: http://www.tresor.ga/r/attributions/loi585.htm#T2C4S1 | FJ63: - | FK63: 0 | FL63: - | FM63: - | FN63: - | FO63: - | FP63: - | FQ63: http://www.dgi.ga | FR63: 2002 | FS63: - | FT63: Forms and information | FU63: 0 | FV63: - | FW63: - | FX63: - | FY63: 0 | FZ63: 1 | GA63: http://www.douanes.ga | GB63: 1960 | GC63: 1965 | GD63: 4 | GE63: ASYCUDA++ | GF63: Automated SYstem for CUstoms DAta | GG63: 2 | GH63: ASYCUDA ++ | GI63: http://unctad.org/en/PublicationsLibrary/dtlasycuda2011d1_en.pdf | GJ63: 2003 | GK63: 3 | GL63: 2 | GM63: 1 | GN63: 0 | GO63: - | GP63: - | GQ63: 1 | GR63: 0 | GS63: - | GT63: - | GU63: 0 | GV63: http://aninf.ga/acn.php#close | GW63: 2013 | GX63: 2 | GY63: 50000 | GZ63: 1 | HA63: http://www.nouvellesdugabon.com/?link=details_art&id=364&type=Soci%E9t%E9 | HB63: 2012 | HC63: - | HD63: - | HE63: 0 | HF63: - | HG63: http://www.budget.gouv.ga/9-actualites/258-les-decisions-presidentielles-et-gouvernementales-/ | HH63: - | HI63: 1 | HJ63: 0 | HK63: - | HL63: - | HM63: 0 | HN63: - | HO63: http://www.budget.gouv.ga/9-actualites/258-les-decisions-presidentielles-et-gouvernementales-/ | HP63: - | HQ63: 1 | HR63: 0 | HS63: C | HT63: DGMP Website | HU63: http://www.dgmp.ga | HV63: 2014 | HW63: 3 | HX63: 1 | HY63: http://www.dgmp.ga/all-offres.twg?dir=resultatsOffres | IA63: 2 | IB63: DMFAS 6.0 | ID63: 2001 | IE63: 3 | IF63: MoE | IG63: 4 | IH63: 7 | II63: 31.81818182 | IJ63: C | IK63: UMIC | IL63: AFR
A64: 62 | C64: Gambia | D64: LIC | E64: 1776.103 | F64: 889.2791725 | G64: 500 | H64: http://www.mofea.gov.gm | I64: The Gambia Ministry of Finance and Economic Affairs | J64: 2 | K64: http://www.mofea.gov.gm/index.php?option=com_content&view=article&id=16&Itemid=24 | L64: 2 | M64: http://www.mofea.gov.gm/index.php?option=com_content&view=article&id=10&Itemid=13 | N64: 1 | O64: - | P64: 0 | Q64: - | R64: 1 | S64: 1 | T64: http://www.mofea.gov.gm/index.php?option=com_content&view=article&id=16&Itemid=24 | U64: 1 | V64: 1 | W64: 1 | X64: http://www.mofea.gov.gm/images/stories/pdf/final.pdf | Y64: 0 | Z64: - | AA64: 0 | AC64: - | AD64: 0 | AF64: - | AG64: - | AH64: 0 | AJ64: - | AK64: 1 | AL64: 2 | AM64: 1 | AN64: 2011 | AO64: 0 | AQ64: - | AR64: 0 | AS64: 1 | AT64: 0 | AU64: 0 | AV64: 0 | AW64: 1 | AX64: 1 | AY64: 0 | AZ64: 0 | BA64: 0 | BB64: 0 | BC64: - | BD64: 0 | BE64: - | BF64: 0 | BG64: - | BH64: 0 | BI64: - | BJ64: 0 | BK64: http://www.gbos.gm | BL64: The Gambia Central Statistics Department | BM64: http://www.cbg.gm | BN64: Central Bank of The Gambia | BO64: - | BP64: 0 | BQ64: - | BR64: 1 | BS64: http://www.mofea.gov.gm/index.php?option=com_content&view=article&id=17&Itemid=20 | BT64: 0 | BU64: - | BV64: 0 | BW64: 3 | BX64: - | BY64: eng | BZ64: - | CA64: - | CB64: - | CC64: - | CD64: IFMIS | CE64: Integrated Financial Management Information System | CF64: C | CG64: F | CH64: 3 | CI64: 2007 | CJ64: C | CK64: 1 | CL64: 2 | CM64: Epicor | CN64: CS | CO64: 2 | CP64: Apr 2010 | CQ64: Final | CR64: 1 | CS64: X | CT64: X | CU64: X | CV64: X | CW64: X | CX64: X | CY64: X | CZ64: X | DA64: X | DB64: X | DC64: 1.888888889 | DD64: 2.06 | DE64: - | DF64: - | DH64: 0 | DI64: 167 | DJ64: 0.22851 | DK64: 0.21568 | DL64: 0.20472 | DM64: 0.14816 | DN64: 0.3326 | DO64: 161 | DP64: 0.2688 | DQ64: 0.3203 | DR64: 0.1344 | DS64: 0.3519 | DT64: AFR | DY64: Gambia | DZ64: 0 | EE64: 0 | EK64: 12 | EL64: 46.15384615 | EM64: C | EO64: 62 | EP64: Gambia | EQ64: GMB | ET64: http://www.statehouse.gm | EU64: 0 | EV64: http://www.gambia.gov.gm | EW64: 0.2047 | EX64: 56 | EY64: 23 | EZ64: 2 | FA64: 12 | FB64: 22 | FG64: http://www.mofea.gov.gm/index.php?option=com_content&view=article&id=4&Itemid=7 | FH64: 1996 | FI64: - | FJ64: - | FK64: 0 | FL64: - | FM64: - | FN64: - | FO64: - | FP64: - | FQ64: http://www.gra.gm | FR64: 1996 | FS64: GAMTAX Net | FT64: Tax Management System | FU64: 1 | FV64: LDSW | FW64: http://eeas.europa.eu/delegations/gambia/documents/about_us/page_2012_2015_en.pdf | FX64: 2008 | FY64: 3 | FZ64: 2 | GA64: http://www.gra.gm | GB64: 1996 | GC64: 1987 | GD64: 4 | GE64: ASYCUDA++ | GF64: Automated SYstem for CUstoms DAta | GG64: 2 | GH64: ASYCUDA ++ | GI64: http://unctad.org/en/PublicationsLibrary/dtlasycuda2011d1_en.pdf | GJ64: 2011 | GK64: 3 | GL64: 2 | GM64: 1 | GN64: 1 | GO64: - | GP64: - | GQ64: 0 | GR64: 0 | GS64: - | GT64: - | GU64: 0 | GV64: http://www.wipo.int/wipolex/en/text.jsp?file_id=238414 | GW64: 2009 | GX64: 1 | GY64: 13500 | GZ64: 1 | HA64: http://unpan1.un.org/intradoc/groups/public/documents/un/unpan023265.pdf | HB64: 2004 | HC64: HRIS | HD64: Human Resource Information System | HE64: 2 | HF64: NAS.DNA | HG64: http://www.pmo.gov.gm/index.php?option=com_content&view=article&id=59&Itemid=81 | HH64: 2011 | HI64: 3 | HJ64: 2 | HK64: IFMIS Payroll | HL64: Integrated Financial Management Information System | HM64: 2 | HN64: NAS.DNA | HO64: http://www.newgambia.gm/nrs.htm | HP64: 2011 | HQ64: 3 | HR64: 2 | HS64: X | HT64: GPPA Website | HU64: http://www.gppa.gm | HV64: - | HW64: 1 | HX64: 0 | HY64: - | IA64: 2 | IB64: CS-DRMS | ID64: 1994 | IE64: 3 | IF64: MoF | IH64: 11 | II64: 50 | IJ64: B | IK64: LIC | IL64: AFR
A65: 63 | C65: Georgia | D65: LMIC | E65: 4486 | F65: 12848.99721 | G65: 2860 | H65: http://www.mof.ge | I65: Ministry of Finance of Georgia | J65: 2 | K65: http://www.mof.ge/4905 | L65: 2 | M65: http://fas.ge/en/Completed | N65: 2 | O65: http://treasury.gov.ge/4960 | P65: 0 | Q65: - | R65: 0 | S65: 0 | T65: - | U65: 2 | V65: 1 | W65: 1 | X65: http://www.mof.ge/common/get_doc.aspx?doc_id=8983 | Y65: 1 | Z65: http://www.mof.ge/show_law.aspx?id=647 | AA65: 1 | AB65: 1 | AC65: 2004 | AD65: 1 | AE65: 1 | AF65: 4 | AG65: 2006 | AH65: 1 | AI65: 1 | AJ65: 2012 | AK65: 1 | AL65: 2 | AM65: 1 | AN65: 2004 | AO65: 0 | AQ65: - | AR65: 1 | AS65: 1 | AT65: 1 | AU65: 0 | AV65: 0 | AW65: 1 | AX65: 1 | AY65: 1 | AZ65: 0 | BA65: 1 | BB65: 0 | BC65: - | BD65: 0 | BE65: - | BF65: 0 | BG65: - | BH65: 0 | BI65: - | BJ65: 3 | BK65: http://www.geostat.ge/index.php?action=0&lang=geo | BL65: Georgia State Department for Statistics | BM65: http://www.nbg.gov.ge | BN65: National Bank of Georgia | BO65: http://treasury.gov.ge/en/40 | BP65: 0 | BQ65: - | BR65: 0 | BS65: - | BT65: 2 | BU65: GFS 2001 | BV65: 0 | BW65: 0 | BX65: - | BY65: geo | BZ65: eng | CA65: - | CB65: - | CC65: 0 | CD65: PFMIS | CE65: Public Financial Management Information System | CF65: C | CG65: F | CH65: 3 | CI65: 2013 | CJ65: C+L | CK65: 1 | CL65: 1 | CM65: LDSW > Oracle | CN65: Web | CO65: 3 | CP65: Sep 2013 | CQ65: Public | CR65: 2 | CS65: A | CT65: A | CU65: A | CV65: B+ | CW65: B+ | CX65: B | CY65: A | CZ65: C+ | DA65: B+ | DB65: C | DC65: 3.4 | DD65: 3.27 | DE65: 55 | DF65: 55 | DG65: 1 | DH65: 2 | DI65: 56 | DJ65: 0.60468 | DK65: 0.58823 | DL65: 0.59842 | DM65: 0.42613 | DN65: 0.7895 | DO65: 72 | DP65: 0.5563 | DQ65: 0.6013 | DR65: 0.2328 | DS65: 0.8348 | DT65: ECA | DX65: prev | DY65: Georgia | DZ65: 0 | EE65: 0 | EK65: 19 | EL65: 73.07692308 | EM65: B | EO65: 63 | EP65: Georgia | EQ65: GEO | ES65: DAD | ET65: http://www.government.gov.ge | EU65: 2 | EV65: https://www.my.gov.ge | EW65: 0.5984 | EX65: 91 | EY65: 57 | EZ65: 44 | FA65: 29 | FB65: 54 | FG65: http://treasury.gov.ge/ | FH65: 1998 | FI65: http://www.treasury.gov.ge/4974 | FJ65: 2011 | FK65: 3 | FL65: 4 | FM65: - | FN65: - | FO65: - | FP65: - | FQ65: http://www.rs.ge | FR65: 2011 | FS65: e-Tax | FT65: e-Tax and other portals | FU65: 1 | FV65: LDSW | FW65: https://eservices.rs.ge | FX65: 2011 | FY65: 3 | FZ65: 2 | GA65: http://www.rs.ge | GB65: 2011 | GC65: 1993 | GD65: 4 | GE65: ASYCUDA World | GF65: Automated SYstem for CUstoms Data World 4.2.1 RC | GG65: 2 | GH65: ASYCUDA W | GI65: http://asycuda.rs.ge | GJ65: 1998 | GK65: 3 | GL65: 2 | GM65: 0 | GN65: 1 | GO65: http://www.rs.ge/4297 | GP65: 2011 | GQ65: 3 | GR65: 1 | GS65: http://www.e-government.ge/index.php?lang=4 | GT65: 2011 | GU65: 2 | GV65: https://www.my.gov.ge/public/ | GW65: 2008 | GX65: 3 | GY65: 360300 | GZ65: 2 | HA65: http://laborsta.ilo.org/STP/guest | HB65: 2006 | HC65: HRMIS | HD65: Human Resources Management Information System | HE65: 1 | HF65: LDSW | HG65: http://www.fas.ge/4133#auc | HH65: 2012 | HI65: 3 | HJ65: 2 | HK65: HRMIS | HL65: Human Rresource Management Information System | HM65: 1 | HN65: LDSW | HO65: http://www.mof.ge/en/3645 | HP65: 2012 | HQ65: 3 | HR65: 2 | HS65: A | HT65: Ge-GP | HU65: https://tenders.procurement.gov.ge | HV65: 2011 | HW65: 3 | HX65: 2 | HY65: http://tenders.gov.ge/app/login.php?lang=en | HZ65: Ministry of Finance | IA65: 2 | IB65: DMFAS 6.0 | ID65: 1998 | IE65: 3 | IF65: MoF | IG65: 4 | IH65: 18 | II65: 81.81818182 | IJ65: A | IK65: LMIC | IL65: ECA
A66: 64 | C66: Germany | D66: HIC | E66: 81726 | F66: 3617712.863 | G66: 44270 | H66: http://www.bundesfinanzministerium.de | I66: Bundesministerium der Finanzen | J66: 2 | K66: http://www.bundesfinanzministerium.de | L66: 2 | M66: http://www.zivit.de/DE/ITLoesungen/Haushaltsverfahren/Haushaltsverfahren_node.html | N66: 3 | O66: www.bundeshaushalt-info.de | P66: 1 | Q66: http://www.bundeshaushalt-info.de/download.html | R66: 0 | S66: 0 | T66: - | U66: 2 | V66: 1 | W66: 1 | X66: http://www.finanzforscher.de/ | Y66: 1 | Z66: http://www.bundesfinanzministerium.de/Content/DE/Standardartikel/Themen/Oeffentliche_Finanzen/Bundeshaushalt/Haushaltsrecht_und_Haushaltssystematik/das-system-der-oeffentlichen-haushalte-anl.pdf?__blob=publicationFile&v=2 | AA66: 1 | AB66: 1 | AC66: 2006 | AD66: 1 | AE66: 1 | AF66: 5 | AG66: 2006 | AH66: 0 | AJ66: - | AK66: 1 | AL66: 2 | AM66: 1 | AN66: 2004 | AO66: 1 | AP66: 1 | AQ66: 2000 | AR66: 1 | AS66: 1 | AT66: 1 | AU66: 1 | AV66: 1 | AW66: 1 | AX66: 1 | AY66: 0 | AZ66: 1 | BA66: 0 | BB66: 1 | BC66: http://www.peppol.eu/ | BD66: 1 | BE66: https://www.govdata.de | BF66: 0 | BG66: - | BH66: 0 | BI66: - | BJ66: 1 | BK66: http://www.destatis.de | BL66: Germany Federal Statistical Office | BM66: http://www.bundesbank.de | BN66: Deutsche Bundesbank | BO66: - | BP66: 1 | BQ66: http://www.bfdi.bund.de/cae/servlet/contentblob/412040/publicationFile/24681/TextIFG_EN.pdf | BR66: 1 | BS66: http://www.bundesfinanzministerium.de/Web/DE/Service/Gesetze/gesetze.html | BT66: 0 | BU66: European System of National Accounts - ESA 95 | BV66: 0 | BW66: 2 | BX66: BMF Application, Twitter, Facebook | BY66: ger | BZ66: fre | CA66: eng | CB66: - | CC66: 0 | CD66: HKR | CE66: Haushalts, Kassen und Rechnungswesen | CF66: D | CG66: F | CH66: 3 | CI66: 1999 | CJ66: C+L | CK66: 1 | CL66: 2 | CM66: SAP | CN66: Web | CO66: 2 | CP66: - | CQ66: - | CR66: - | CS66: - | CT66: - | CU66: - | CV66: - | CW66: - | CX66: - | CY66: - | CZ66: - | DA66: - | DB66: - | DC66: - | DD66: - | DE66: 71 | DF66: 68 | DH66: 1 | DI66: 21 | DJ66: 0.7864 | DK66: 0.70588 | DL66: 0.66929 | DM66: 0.80377 | DN66: 0.8862 | DO66: 17 | DP66: 0.8079 | DQ66: 0.7516 | DR66: 0.775 | DS66: 0.8971 | DU66: EU | DV66: OECD | DY66: Germany | DZ66: 7 | EA66: 1 | EB66: 3 | EC66: 3 | EE66: 6 | EH66: 5 | EI66: 1 | EK66: 21 | EL66: 80.76923077 | EM66: A | EO66: 64 | EP66: Germany | EQ66: DEU | ET66: http://www.bundesregierung.de | EU66: 2 | EV66: http://www.bund.de | EW66: 0.6693 | EX66: 97 | EY66: 68 | EZ66: 47 | FA66: 32 | FB66: 60 | FG66: http://www.bundesfinanzministerium.de | FH66: 1949 | FI66: - | FJ66: - | FK66: 0 | FL66: - | FM66: - | FN66: - | FO66: - | FP66: - | FQ66: http://www.steuerliches-info-center.de | FR66: 1990 | FS66: e-Tax | FT66: e-Tax and other portals | FU66: 2 | FV66: COTS | FW66: https://www.elsteronline.de/bportal/Oeffentlich.tax | FX66: 2006 | FY66: 3 | FZ66: 3 | GA66: http://www.zoll.de | GB66: 1992 | GC66: 1952 | GD66: 3 | GE66: ATLAS | GF66: Automatisiertes Tarif- und Lokales Zoll- Abwicklungs-System | GG66: 2 | GH66: COTS | GI66: http://www.zoll.de/DE/Fachthemen/Zoelle/ATLAS/atlas_node.html | GJ66: 2004 | GK66: 3 | GL66: 3 | GM66: 1 | GN66: 1 | GO66: https://www.elster.de/ | GP66: 1999 | GQ66: 3 | GR66: 1 | GS66: http://www.bund.de/DE/Leistungen/XYZ/Zahlungsverkehrsplattform-des-Bundes-ePayment-BMF-ZIVIT.html?nn=42 | GT66: 2005 | GU66: 2 | GV66: https://www.bsi.bund.de/DE/Service/FAQ/ElektrSIgnatur/faq_node.html | GW66: 2002 | GX66: 3 | GY66: 5981000 | GZ66: 2 | HA66: http://laborsta.ilo.org/STP/guest | HB66: 2010 | HC66: HRMS | HD66: Human Resource Management System | HE66: 2 | HF66: COTS | HG66: http://www.bva.bund.de/DE/Home/_module/themennavigation/Produkte/_function/formular.html?nn=4509208&cl2Categories_Themen=BVA&cl2Categories_Themen=BIT&cl2Categories_Themen=DLZ&cl2Categories_Themen=ZFA&cl2Categories_Themen=Beratungsportal&documentType_.HASH=c940125f5b71707b0d81&cl2Categories_Themen.GROUP=1&resultsPerPage=12&documentType_=Task&templateQueryString=SUCHE+IN+PRODUKTEN&resultsPerPage.GROUP=1 | HH66: 2006 | HI66: 3 | HJ66: 2 | HK66: Payroll KIDICAP | HL66: Payroll system | HM66: 2 | HN66: COTS | HO66: http://www.zivit.de/DE/ITLoesungen/Personalwesen/kidicap/kidicap_node.html | HP66: 2006 | HQ66: 3 | HR66: 2 | HS66: - | HT66: e-Vergabe | HU66: http://www.evergabe-online.de | HV66: 2006 | HW66: 3 | HX66: 2 | HY66: http://www.bund.de/DE/Ausschreibungen/Ausschreibungen-VergebeneAuftraege/ausschreibungen_node.html | HZ66: German Federal Republic Finance Agency GmbH | IH66: 20 | II66: 90.90909091 | IJ66: A | IK66: HIC
A67: 65 | C67: Ghana | D67: LMIC | E67: 24965.816 | F67: 35109.95 | G67: 1410 | H67: http://www.mofep.gov.gh | I67: Ghana Ministry of Finance and Economic Planning | J67: 2 | K67: http://www.mofep.gov.gh/?q=budget-statements | L67: 2 | M67: http://www.cagd.gov.gh/gifmis/index.php?option=com_content&view=article&id=28&Itemid=2&showall=1 | N67: 1 | O67: - | P67: 0 | Q67: - | R67: 0 | S67: 0 | T67: - | U67: 2 | V67: 1 | W67: 1 | X67: http://www.mofep.gov.gh/?q=publications/150708 | Y67: 1 | Z67: http://cagd.gov.gh/portal/index.php?option=com_content&view=article&id=47&Itemid=48 | AA67: 1 | AB67: 1 | AC67: 1998 | AD67: 1 | AE67: 1 | AF67: 3 | AG67: 1999 | AH67: 0 | AJ67: - | AK67: 1 | AL67: 2 | AM67: 0 | AN67: 2008 | AO67: 1 | AP67: 0 | AQ67: 2009 | AR67: 1 | AS67: 1 | AT67: 0 | AU67: 0 | AV67: 0 | AW67: 1 | AX67: 1 | AY67: 1 | AZ67: 1 | BA67: 0 | BB67: 0 | BC67: - | BD67: 1 | BE67: http://data.gov.gh | BF67: 0 | BG67: - | BH67: 1 | BI67: http://cagd.gov.gh/portal/index.php?option=com_content&view=article&id=47&Itemid=48&limitstart=1 | BJ67: 0 | BK67: http://www.statsghana.gov.gh | BL67: Ghana Statistical Service | BM67: http://www.bog.gov.gh | BN67: Bank of Ghana | BO67: - | BP67: 0 | BQ67: - | BR67: 0 | BS67: - | BT67: 2 | BU67: - | BV67: 0 | BW67: 1 | BX67: - | BY67: eng | BZ67: - | CA67: - | CB67: - | CC67: - | CD67: GIFMIS | CE67: Government Integrated Financial Management Information System | CF67: C | CG67: F | CH67: 3 | CI67: 2013 | CJ67: C | CK67: 1 | CL67: 2 | CM67: Oracle | CN67: CS | CO67: 3 | CP67: Jun 2013 | CQ67: Public | CR67: 4 | CS67: C | CT67: C | CU67: B | CV67: C+ | CW67: D+ | CX67: D | CY67: C | CZ67: C+ | DA67: C+ | DB67: C+ | DC67: 2.15 | DD67: 2.02 | DE67: 50 | DF67: 54 | DG67: 1 | DH67: 2 | DI67: 123 | DJ67: 0.37354 | DK67: 0.39215 | DL67: 0.31496 | DM67: 0.24438 | DN67: 0.5613 | DO67: 145 | DP67: 0.3159 | DQ67: 0.3007 | DR67: 0.1111 | DS67: 0.536 | DT67: AFR | DY67: =C67 -> Ghana | DZ67: =SUM(EA67:ED67) -> 1 | EB67: 1 | EE67: =SUM(EF67:EI67) -> 0 | EJ67: 2013-05-03 | EK67: =J67+L67+N67+P67+R67+S67+U67+V67+W67+Y67+AA67+AB67+AD67+AE67+AH67+AI67+AK67+AM67+AO67+AP67 -> 16 | EL67: =EK67/26*100 -> 61.53846154 | EM67: =IF(EL67<25,"D",IF(EL67<50,"C",IF(EL67<75,"B","A"))) -> B | EO67: 65 | EP67: Ghana | EQ67: GHA | ET67: http://www.ghana.gov.gh | EU67: 2 | EV67: http://www.eservices.gov.gh/ | EW67: 0.315 | EX67: 78 | EY67: 18 | EZ67: 19 | FA67: 18 | FB67: 31 | FG67: http://cagd.gov.gh/portal/ | FH67: 2003 | FI67: http://cagd.gov.gh/gifmis/index.php/milestones/treasury-single-account-tsa | FJ67: 2014 | FK67: 2 | FL67: 4 | FM67: - | FN67: Measurement started in 2014 | FO67: - | FP67: - | FQ67: http://www.gra.gov.gh | FR67: 2009 | FS67: TRIPS | FT67: Total Revenue Integrated Processing System | FU67: 2 | FV67: COTS | FW67: http://gegov.com.gh/CMSPages/GetFile.aspx?guid=c390530f-085f-4377-a3f2-d863ead54282 | FX67: 2011 | FY67: 3 | FZ67: 2 | GA67: http://www.gra.gov.gh | GB67: 2009 | GC67: 1968 | GD67: 3 | GE67: GCMS | GF67: Ghana Customs Management System | GG67: 1 | GH67: LDSW | GI67: http://www.gra.gov.gh/index.php?option=com_content&view=article&id=30&Itemid=92 | GJ67: 2003 | GK67: 3 | GL67: 2 | GM67: 1 | GN67: 1 | GO67: - | GP67: - | GQ67: 1 | GR67: 0 | GS67: http://www.epay.gov.gh/epay/the-portal.html | GT67: 2013 | GU67: 2 | GV67: http://nca.org.gh/downloads/regdocs/NCA_Electronic_Transactions_Act_772.pdf | GW67: 2008 | GX67: 1 | GY67: 539000 | GZ67: 1 | HA67: http://unpan1.un.org/intradoc/groups/public/documents/un/unpan023266.pdf | HB67: 2004 | HC67: HRMIS | HD67: Human Resources Management Information System | HE67: 2 | HF67: Oracle | HG67: http://cagd.gov.gh/gifmis/index.php/implementation/key-achievements?showall=1&limitstart= | HH67: - | HI67: 2 | HJ67: 2 | HK67: IPPD 2 | HL67: Integrated Personnel Payroll Database | HM67: 1 | HN67: LDSW | HO67: http://www.cagd.gov.gh/portal/index.php/organisation/financial-management-services-division | HP67: 1995 | HQ67: 3 | HR67: 2 | HS67: C | HT67: PPA Website | HU67: http://www.ppbghana.org | HV67: 2012 | HW67: 3 | HX67: 1 | HY67: http://www.ppbghana.org/contracts_main.asp | HZ67: Ministry of Finance | IA67: 2 | IB67: CS-DRMS | ID67: 1989 | IE67: 3 | IF67: MoF | IH67: =N67+CO67+FZ67+GL67+GQ67+HJ67+HR67+HX67 -> 14 | II67: =IH67/22*100 -> 63.63636364 | IJ67: =IF(II67<25,"D",IF(II67<50,"C",IF(II67<75,"B","A"))) -> B | IK67: LMIC | IL67: AFR
A68: 66 | C68: Greece | D68: HIC | E68: 11304 | F68: 276747.9951 | G68: 24480 | H68: http://www.minfin.gr | I68: Ministry of Finance | J68: 2 | K68: http://www.minfin.gr/portal/el/resource/contentObject/contentTypes/genericContentResourceObject,fileResourceObject,arrayOfFileResourceTypeObject/topicNames/budget/resourceRepresentationTemplate/contentObjectListAlternativeTemplate | L68: 0 | M68: - | N68: 1 | O68: - | P68: 0 | Q68: - | R68: 0 | S68: 0 | T68: - | U68: 2 | V68: 1 | W68: 0 | X68: - | Y68: 1 | Z68: http://www.minfin.gr/portal/el/resource/contentObject/contentTypes/genericContentResourceObject,fileResourceObject,arrayOfFileResourceTypeObject/topicNames/budget/pageNumber/2/resourceRepresentationTemplate/contentObjectListAlternativeTemplate | AA68: 1 | AB68: 1 | AC68: 2000 | AD68: 1 | AE68: 0 | AF68: 4 | AG68: 2012 | AH68: 0 | AJ68: - | AK68: 1 | AL68: 2 | AM68: 0 | AN68: 2010 | AO68: 0 | AQ68: - | AR68: 1 | AS68: 1 | AT68: 0 | AU68: 0 | AV68: 0 | AW68: 1 | AX68: 0 | AY68: 1 | AZ68: 1 | BA68: 1 | BB68: 1 | BC68: http://www.peppol.eu/ | BD68: 1 | BE68: http://geodata.gov.gr/geodata | BF68: 0 | BG68: - | BH68: 0 | BI68: - | BJ68: 0 | BK68: http://www.statistics.gr | BL68: Greece National Statistical Service | BM68: http://www.bankofgreece.gr | BN68: Bank of Greece | BO68: - | BP68: 0 | BQ68: - | BR68: 1 | BS68: http://www.minfin.gr/portal/en/resource/contentObject/contentTypes/genericContentResourceObject,fileResourceObject,arrayOfFileResourceTypeObject/topicNames/actOfLaw/resourceRepresentationTemplate/contentObjectListAlternativeTemplate#fragment-2 | BT68: 2 | BU68: National laws and regulations | BV68: 0 | BW68: 3 | BX68: - | BY68: gre | BZ68: eng | CA68: - | CB68: - | CC68: 0 | CD68: MIS | CE68: Managament Information System | CF68: C | CG68: F | CH68: 3 | CI68: 2013 | CJ68: C | CK68: 1 | CL68: 2 | CM68: SAP | CN68: Web | CO68: =IF(CH68=0,0,IF(CG68="T",1,2)+IF(FK68>1,1,0)) -> 3 | CP68: - | CQ68: - | CR68: - | CS68: - | CT68: - | CU68: - | CV68: - | CW68: - | CX68: - | CY68: - | CZ68: - | DA68: - | DB68: - | DC68: - | DD68: - | DE68: - | DF68: - | DG68: 1 | DH68: 1 | DI68: 34 | DJ68: 0.71176 | DK68: 0.80392 | DL68: 0.60629 | DM68: 0.65487 | DN68: 0.8741 | DO68: 37 | DP68: 0.6872 | DQ68: 0.5752 | DR68: 0.5531 | DS68: 0.9332 | DU68: EU | DV68: OECD | DY68: Greece | DZ68: 0 | EE68: 0 | EK68: 11 | EL68: 42.30769231 | EM68: C | EO68: 66 | EP68: Greece | EQ68: GRC | ET68: http://www.government.gr | EU68: 2 | EV68: http://www.ermis.gov.gr | EW68: 0.6063 | EX68: 81 | EY68: 59 | EZ68: 42 | FA68: 41 | FB68: 55 | FG68: http://www.minfin.gr/ | FH68: 1967 | FI68: http://eprints.lse.ac.uk/29097/1/GreeSE_No37.pdf | FJ68: 2006 | FK68: 2 | FL68: 2 | FM68: - | FN68: - | FO68: - | FP68: - | FQ68: http://www.gsis.gr | FR68: 1974 | FS68: myTAXISnet | FT68: e-Tax and other portals | FU68: 2 | FV68: COTS | FW68: http://www.gsis.gr/gsis/info/gsis_site/PublicIssue/wnsp.html | FX68: 2010 | FY68: 3 | FZ68: 2 | GA68: http://www.gsis.gov.gr | GB68: 1974 | GC68: 1952 | GD68: 0 | GE68: ICIS-net | GF68: Customs Portal | GG68: 2 | GH68: COTS | GI68: https://portal.gsis.gr/portal/page/portal/ICISnet | GJ68: 2013 | GK68: 3 | GL68: 2 | GM68: 1 | GN68: 0 | GO68: https://login.gsis.gr/sso/pages/login.jsp | GP68: 2000 | GQ68: 2 | GR68: 1 | GS68: http://www.gsis.gr/gsis/info/gsis_site/index.html | GT68: 2013 | GU68: 2 | GV68: http://www.eett.gr/opencms/opencms/EETT_EN/Electronic_Communications/DigitalSignatures/ | GW68: 2007 | GX68: 3 | GY68: 1022121 | GZ68: 2 | HA68: http://laborsta.ilo.org/STP/guest | HB68: 2008 | HC68: HRMIS | HD68: Human Resources Management Information System | HE68: 2 | HF68: COTS | HG68: http://www.opengovpartnership.org/country/commitment/enhance-public-resources-management | HH68: - | HI68: 3 | HJ68: 1 | HK68: HRMIS | HL68: Human Resources Management Information System | HM68: 2 | HN68: COTS | HO68: http://www.opengovpartnership.org/country/commitment/enhance-public-resources-management | HP68: - | HQ68: 3 | HR68: 1 | HS68: - | HT68: Procurement Portal | HU68: http://www.eprocurement.gov.gr/ | HV68: 2012 | HW68: 3 | HX68: 2 | HY68: http://www.eprocurement.gov.gr/webcenter/faces/oracle/webcenter/page/scopedMD/sd0cb90ef_26cf_4703_99d5_1561ceff660f/Page119.jspx?_afrLoop=2967417921458341#%2Foracle%2Fwebcenter%2Fwebcenterapp%2Fview%2Fpages%2Fnavigation%2Fnavigation-renderer.jspx%40%3Fwc.contextURL%3D%2Fspaces%2Fprod_ministry%26_adf.ctrl-state%3Dq6yeobp47_4 | HZ68: Hellenic Republic Ministry of Economy and Finance | IH68: 14 | II68: 63.63636364 | IJ68: B | IK68: HIC
A69: 67 | C69: Grenada | D69: UMIC | E69: 104.89 | F69: 770.8963634 | G69: 7350 | H69: http://www.gov.gd/ministries/finance.html | I69: Ministry of Finance, Planning, Economy, Energy & Cooperatives | J69: 2 | K69: http://www.gov.gd/documents.html | L69: 1 | M69: http://ec.europa.eu/europeaid/what/economic-support/public-finance/documents/grenada_pefa_report_en.pdf | N69: 1 | O69: - | P69: 0 | Q69: - | R69: 0 | S69: 0 | T69: - | U69: 1 | V69: 1 | W69: 0 | X69: - | Y69: 0 | Z69: - | AA69: 1 | AB69: 1 | AC69: 2003 | AD69: 0 | AF69: - | AG69: - | AH69: 0 | AJ69: - | AK69: 0 | AN69: - | AO69: 1 | AP69: 0 | AQ69: 2006 | AR69: 1 | AS69: 1 | AT69: 0 | AU69: 0 | AV69: 0 | AW69: 1 | AX69: 1 | AY69: 0 | AZ69: 0 | BA69: 0 | BB69: 0 | BC69: - | BD69: 0 | BE69: - | BF69: 0 | BG69: - | BH69: 0 | BI69: - | BJ69: 0 | BK69: - | BL69: MoF, Central Statistics Office | BM69: http://www.eccb-centralbank.org | BN69: East Caribbean Central Bank | BO69: - | BP69: 0 | BQ69: - | BR69: 1 | BS69: http://www.gov.gd/ministries/finance.html | BT69: 0 | BU69: - | BV69: 0 | BW69: 3 | BX69: Facebook, Twitter, Youtube, VIMEO | BY69: eng | BZ69: - | CA69: - | CB69: - | CC69: - | CD69: SIGFIS | CE69: Standard Integrated Government Financial Information System | CF69: C | CG69: F | CH69: 3 | CI69: 2012 | CJ69: C+L | CK69: 2 | CL69: 2 | CM69: SmartStream | CN69: Web | CO69: 3 | CP69: Mar 2010 | CQ69: Public | CR69: 2 | CS69: C | CT69: A | CU69: B | CV69: C | CW69: B | CX69: D | CY69: C+ | CZ69: C+ | DA69: B+ | DB69: D | DC69: 2.45 | DD69: 2.216666667 | DE69: - | DF69: - | DH69: 0 | DI69: 78 | DJ69: 0.52197 | DK69: 0.39215 | DL69: 0.34645 | DM69: 0.40289 | DN69: 0.8166 | DO69: 75 | DP69: 0.5479 | DQ69: 0.3529 | DR69: 0.4014 | DS69: 0.8895 | DT69: LCR | DY69: Grenada | DZ69: 0 | EE69: 0 | EK69: 9 | EL69: 34.61538462 | EM69: C | EO69: 67 | EP69: Grenada | EQ69: GRD | ET69: http://www.gov.gd | EU69: 2 | EV69: http://www.gov.gd | EW69: 0.3465 | EX69: 75 | EY69: 41 | EZ69: 7 | FA69: 18 | FB69: 33 | FG69: http://www.gov.gd/ministries/finance.html | FH69: 1998 | FI69: http://laws.gov.gd | FJ69: 2007 | FK69: 2 | FL69: 4 | FM69: - | FN69: - | FO69: - | FP69: - | FQ69: http://www.ird.gov.gd | FR69: 1998 | FS69: SIGTAS | FT69: Standard Integrated Government Tax System | FU69: 2 | FV69: SIGTAS | FW69: http://www.ird.gov.gd/index.php?option=com_content&view=category&layout=blog&id=56&Itemid=142 | FX69: 2012 | FY69: 3 | FZ69: 2 | GA69: http://www.customs.gov.gd | GB69: 1998 | GC69: - | GD69: 0 | GE69: ASYCUDA World | GF69: Automated SYstem for CUstoms DAta | GG69: 2 | GH69: ASYCUDA W | GI69: http://asycuda.customs.gov.gd/awclient/index.php | GJ69: 2012 | GK69: 3 | GL69: 2 | GM69: 1 | GN69: 1 | GO69: https://eservices.gov.gd/taxefs/auth/Public/LogOn.aspx?ReturnUrl=%2ftaxefs%2fonline%2fdefault.aspx | GP69: 2014 | GQ69: 3 | GR69: 0 | GS69: - | GT69: - | GU69: 0 | GV69: http://www.gov.gd/egov/docs/other/eTransactionsAct.pdf | GW69: 2008 | GX69: 1 | GY69: 5250 | GZ69: 2 | HA69: http://www.gov.gd/egov/pdf/vacancies/DPA_staffing_%20expenditure_reviews_human_resource_audit_TOR.pdf | HB69: 2008 | HC69: SIGFIS | HD69: Standard Integrated Government Financial Information System | HE69: 2 | HF69: SmartStream | HG69: https://www.pefa.org/en/assessment/gd-mar10-pfmpr-public-en | HH69: 2012 | HI69: 3 | HJ69: 2 | HK69: SIGFIS | HL69: Standard Integrated Government Financial Information System | HM69: 2 | HN69: SmartStream | HO69: https://www.pefa.org/en/assessment/gd-mar10-pfmpr-public-en | HP69: 2012 | HQ69: 3 | HR69: 2 | HS69: C+ | HT69: e-PPS | HU69: https://procurement.oecs.org/epps/home.do | HV69: 2012 | HW69: 1 | HX69: 0 | HY69: - | IA69: 2 | IB69: CS-DRMS | ID69: 1985 | IE69: 3 | IF69: MoF | IH69: 15 | II69: 68.18181818 | IJ69: B | IK69: UMIC | IL69: LCR
A70: 68 | C70: Guatemala | D70: LMIC | E70: 14757.316 | F70: 42358.50799 | G70: 2870 | H70: http://www.minfin.gob.gt | I70: Guatemala Ministry of Public Finance | J70: 2 | K70: http://www.minfin.gob.gt/ | L70: 2 | M70: http://www.minfin.gob.gt/frame.php?url=https://sicoin.minfin.gob.gt/sicoinweb/login/frmlogin.htm | N70: 1 | O70: - | P70: 1 | Q70: http://www.minfin.gob.gt/ | R70: 0 | S70: 0 | U70: 2 | V70: 1 | W70: 2 | X70: http://www.minfin.gob.gt/index.php/?option=com_content&view=article&id=38&Itemid=327 | Y70: 1 | Z70: http://www.minfin.gob.gt/manuales/files.html?folder=manuales_presupuestarios | AA70: 1 | AB70: 1 | AC70: 2003 | AD70: 1 | AE70: 1 | AF70: 3 | AG70: 2012 | AH70: 1 | AI70: 1 | AJ70: 2007 | AK70: 1 | AL70: 2 | AM70: 1 | AN70: 2003 | AO70: 0 | AQ70: - | AR70: 1 | AS70: 1 | AT70: 0 | AU70: 0 | AV70: 0 | AW70: 1 | AX70: 1 | AY70: 1 | AZ70: 0 | BA70: 1 | BB70: 0 | BC70: - | BD70: 0 | BE70: - | BF70: 2 | BG70: http://www.minfin.gob.gt/archivos/prensa/notas_informativas/notinfo30_070809.pdf | BH70: 1 | BI70: http://www.minfin.gob.gt/presupaprobado/presupaprobados/files.html?folder=2012\Segunda%20Parte%20Detalle%20Cuantitativo\presupuesto_de_egresos_por_institucion&start=15 | BJ70: 0 | BK70: http://www.ine.gob.gt | BL70: Guatemala Instituto Nacional de Estadistica | BM70: http://www.banguat.gob.gt | BN70: Bank of Guatemala | BO70: - | BP70: 1 | BQ70: http://www.minfin.gob.gt/laip_mfp/4.html | BR70: 1 | BS70: http://www.minfin.gob.gt/leyespresupuesto.html | BT70: 2 | BU70: National laws and regulations | BV70: 1 | BW70: 3 | BX70: Facebook, Twitter, Youtube | BY70: spa | BZ70: - | CA70: - | CB70: - | CC70: - | CD70: SIAF | CE70: Sistema Integrado de Administración Financiera | CF70: C | CG70: F | CH70: 3 | CI70: 2011 | CJ70: C+L | CK70: 2 | CL70: 1 | CM70: LDSW > Oracle | CN70: Web | CO70: 3 | CP70: Feb 2013 | CQ70: Public | CR70: 2 | CS70: A | CT70: B | CU70: A | CV70: C+ | CW70: B+ | CX70: C | CY70: C+ | CZ70: D+ | DA70: NR | DB70: D+ | DC70: 2.72 | DD70: 2.5 | DE70: 51 | DF70: 50 | DG70: 1 | DH70: 0 | DI70: 133 | DJ70: 0.31603 | DK70: 0.19607 | DL70: 0.1496 | DM70: 0.27125 | DN70: 0.5272 | DO70: 112 | DP70: 0.439 | DQ70: 0.4641 | DR70: 0.2247 | DS70: 0.6284 | DT70: LCR | DY70: Guatemala | DZ70: 0 | EE70: 0 | EK70: 20 | EL70: 76.92307692 | EM70: A | EO70: 68 | EP70: Guatemala | EQ70: GTM | ES70: DAD | ET70: http://www.guatemala.gob.gt/ | EU70: 0 | EV70: - | EW70: 0.1496 | EX70: 25 | EY70: 27 | EZ70: 9 | FA70: 6 | FB70: 17 | FG70: http://www.minfin.gob.gt/index.php/acerca-del-ministerio/estructura-organica | FH70: 1945 | FI70: http://www.minfin.gob.gt/downloads/leyes_acuerdos/acuerdogub540_030114.pdf | FJ70: 1998 | FK70: 2 | FL70: 2 | FM70: - | FN70: - | FO70: - | FP70: - | FQ70: http://portal.sat.gob.gt/sitio | FR70: 1997 | FS70: SAT Online | FT70: e-Tax and other portals | FU70: 1 | FV70: LDSW | FW70: http://portal.sat.gob.gt/sitio/index.php/esat/servicios-electronicos/sat-en-linea-ingreso.html | FX70: 2013 | FY70: 3 | FZ70: 2 | GA70: http://www.sat.gob.gt | GB70: 1997 | GC70: 1985 | GD70: 0 | GE70: Paperless Customs | GF70: Customs Portal | GG70: 2 | GH70: COTS | GI70: http://portal.sat.gob.gt/sitio/index.php/tramites-o-gestiones/aduanas/28-documentaci-asistencia-aduanera/8451-aduanas-sin-papeles.html | GJ70: 2014 | GK70: 3 | GL70: 2 | GM70: 1 | GN70: 1 | GO70: http://portal.sat.gob.gt/sitio/ | GP70: 2001 | GQ70: 3 | GR70: 1 | GS70: http://portal.sat.gob.gt/sitio/ | GT70: 2001 | GU70: 2 | GV70: http://www.firma-e.com.gt/ | GW70: 2012 | GX70: 2 | GY70: 191394 | GZ70: 2 | HA70: http://laborsta.ilo.org/STP/guest | HB70: 2004 | HC70: GUATENOMINA | HD70: Sistema de Nómina y Registro de Personal | HE70: 1 | HF70: LDSW | HG70: https://nomina.minfin.gob.gt/RHWeb/login/frmlogin.aspx | HH70: 2011 | HI70: 3 | HJ70: 2 | HK70: GUATENOMINA | HL70: Sistema de Nómina y Registro de Personal | HM70: 1 | HN70: LDSW | HO70: https://nomina.minfin.gob.gt/RHWeb/login/frmlogin.aspx | HP70: 2011 | HQ70: 3 | HR70: 2 | HS70: D+ | HT70: GUATECOMPRAS | HU70: http://www.guatecompras.gt | HV70: 2004 | HW70: 3 | HX70: 2 | HY70: http://www.guatecompras.gt/concursos/consultaConAvanz.aspx | HZ70: Ministry of Finance | IA70: 2 | IB70: DMFAS 6.0 | ID70: 1988 | IE70: 3 | IF70: MoF | IG70: 4FT | IH70: 17 | II70: 77.27272727 | IJ70: A | IK70: LMIC | IL70: LCR
A71: 69 | C71: Guinea | D71: LIC | E71: 10221.808 | F71: 4417.781925 | G71: 430 | H71: http://www.finances.gov.gn | I71: Ministry of Economy and Finance | J71: 0 | K71: - | L71: 1 | M71: http://www.imf.org/external/np/otm/2009/110109a.pdf | N71: 0 | O71: - | P71: 0 | Q71: - | R71: 0 | S71: 0 | T71: - | U71: 0 | V71: 0 | W71: 0 | X71: - | Y71: 0 | Z71: - | AA71: 0 | AC71: - | AD71: 0 | AF71: - | AG71: - | AH71: 0 | AJ71: - | AK71: 0 | AN71: - | AO71: 0 | AQ71: - | AR71: 0 | AS71: 0 | AT71: 0 | AU71: 0 | AV71: 0 | AW71: 0 | AX71: 0 | AY71: 0 | AZ71: 0 | BA71: 0 | BB71: 0 | BC71: - | BD71: 0 | BE71: - | BF71: 0 | BG71: - | BH71: 0 | BI71: - | BJ71: 0 | BK71: http://www.stat-guinee.org | BL71: Guinea National Statistics Directorate | BM71: http://www.bcrg.gov.gn | BN71: Central Bank of the Republic of Guinea | BO71: - | BP71: 0 | BQ71: - | BR71: 0 | BS71: - | BT71: 0 | BU71: - | BV71: 0 | BW71: 0 | BX71: - | BY71: fre | BZ71: - | CA71: - | CB71: - | CC71: - | CD71: CBMS | CE71: Computerized Budget Management System | CF71: C | CG71: F | CH71: 3 | CI71: 2012 | CJ71: C | CK71: 1 | CL71: 2 | CM71: Oracle | CN71: Web | CO71: 3 | CP71: Jul 2007 | CQ71: Final | CR71: 1 | CS71: X | CT71: X | CU71: X | CV71: X | CW71: X | CX71: X | CY71: X | CZ71: X | DA71: X | DB71: X | DC71: 1.85 | DD71: 1.612903226 | DE71: - | DF71: - | DH71: 2 | DI71: 190 | DJ71: 0.09543 | DK71: 0.0196 | DL71: 0 | DM71: 0.05044 | DN71: 0.2359 | DO71: - | DP71: - | DQ71: - | DR71: - | DS71: - | DT71: AFR | DX71: prev | DY71: Guinea | DZ71: 0 | EE71: 0 | EK71: 1 | EL71: 3.846153846 | EM71: D | EO71: 69 | EP71: Guinea | EQ71: GIN | ET71: http://www.guinee.gov.gn | EU71: 0 | EV71: - | EW71: 0 | EX71: 9 | EY71: 7 | EZ71: 0 | FA71: 3 | FB71: 5 | FG71: http://www.finances.gov.gn/index.php/ministeres/ministere-de-leconomie-et-des-finances/directions-technique/direction-nationale-du-tresor-et-de-la-comptabilite | FH71: 1958 | FI71: http://www.finances.gov.gn/index.php/lois-et-textes-reglementaires/les-textes-organiques/func-startdown/212/ | FJ71: 2013 | FK71: 2 | FL71: 2 | FM71: - | FN71: - | FO71: - | FP71: - | FQ71: http://www.finances.gov.gn/index.php/direction-nationale-des-impots | FR71: 1990 | FS71: - | FT71: Forms and information | FU71: 0 | FV71: - | FW71: - | FX71: - | FY71: 0 | FZ71: 1 | GA71: http://www.douanesguinee.gov.gn | GB71: 1990 | GC71: 1991 | GD71: 4 | GE71: ASYCUDA++ | GF71: Automated SYstem for CUstoms DAta | GG71: 2 | GH71: ASYCUDA ++ | GI71: http://www.douanesguinee.gov.gn/sysinfo.htm | GJ71: 2007 | GK71: 3 | GL71: 2 | GM71: 1 | GN71: - | GO71: - | GP71: - | GQ71: 0 | GR71: 0 | GS71: - | GT71: - | GU71: 0 | GV71: - | GW71: - | GX71: 0 | GY71: 105756 | GZ71: 2 | HA71: http://www-wds.worldbank.org/external/default/WDSContentServer/WDSP/AFR/2014/11/07/090224b0828432ef/1_0/Rendered/PDF/Guinea000Econo0Report000Sequence005.pdf | HB71: 2014 | HC71: HRMIS | HD71: Government Human Resource Management System | HE71: 1 | HF71: LDSW | HG71: http://documents.worldbank.org/curated/en/2012/02/15883613/guinea-economic-governance-technical-assistance-capacity-building-project | HH71: - | HI71: 2 | HJ71: 2 | HK71: HRMIS | HL71: Government Human Resource Management System | HM71: 1 | HN71: LDSW | HO71: http://documents.worldbank.org/curated/en/2012/02/15883613/guinea-economic-governance-technical-assistance-capacity-building-project | HP71: - | HQ71: 2 | HR71: 2 | HS71: X | HT71: MoEF Website | HU71: http://www.finances.gov.gn/ | HV71: - | HW71: 1 | HX71: 0 | HY71: - | IA71: 2 | IB71: CS-DRMS | ID71: 2003 | IE71: 3 | IF71: MoF | IH71: 10 | II71: 45.45454545 | IJ71: C | IK71: LIC | IL71: AFR
A72: 70 | C72: Guinea-Bissau | D72: LIC | E72: 1547.061 | F72: 930.9829659 | G72: 600 | H72: http://minfin-gov.bissau.net | I72: Ministerio das Financas da Guine Bissau | J72: 2 | K72: http://minfin-gov.bissau.net/index.php?option=com_content&view=article&id=78&Itemid=93 | L72: 2 | M72: http://www.sndi.ci/index.php/component/content/article/35-infosndi/78-sigfip.html | N72: 1 | O72: - | P72: 0 | Q72: - | R72: 0 | S72: 0 | T72: - | U72: 1 | V72: 1 | W72: 0 | X72: - | Y72: 0 | Z72: - | AA72: 1 | AB72: 1 | AC72: 2007 | AD72: 0 | AF72: - | AG72: - | AH72: 0 | AJ72: - | AK72: 1 | AL72: 4 | AM72: 1 | AN72: 2007 | AO72: 0 | AQ72: - | AR72: 0 | AS72: 1 | AT72: 1 | AU72: 1 | AV72: 1 | AW72: 1 | AX72: 1 | AY72: 0 | AZ72: 0 | BA72: 0 | BB72: 0 | BC72: - | BD72: 0 | BE72: - | BF72: 0 | BG72: - | BH72: 0 | BI72: - | BJ72: 0 | BK72: http://www.stat-guinebissau.com | BL72: Guinea-Bissau National Institute of Statistics and Censuses | BM72: http://www.bceao.int | BN72: Central Bank of West African States (BCEAO) | BO72: - | BP72: 0 | BQ72: - | BR72: 1 | BS72: http://minfin-gov.bissau.net/index.php?option=com_content&view=article&id=62&Itemid=69 | BT72: 0 | BU72: - | BV72: 1 | BW72: 1 | BX72: - | BY72: por | BZ72: - | CA72: - | CB72: - | CC72: - | CD72: SIGFIP | CE72: Système Intégré de Gestion des Finances Publiques | CF72: C | CG72: F | CH72: 3 | CI72: 2010 | CJ72: C+L | CK72: 2 | CL72: 1 | CM72: LDSW > Oracle | CN72: Web | CO72: 3 | CP72: May 2009 | CQ72: Public | CR72: 2 | CS72: D | CT72: B | CU72: D | CV72: D+ | CW72: NA | CX72: D | CY72: D | CZ72: D+ | DA72: D | DB72: D | DC72: 1.333333333 | DD72: 1.277777778 | DE72: - | DF72: - | DH72: 0 | DI72: 182 | DJ72: 0.16085 | DK72: 0.0196 | DL72: 0.00787 | DM72: 0.08776 | DN72: 0.3869 | DO72: 182 | DP72: 0.1945 | DQ72: 0.1046 | DR72: 0.0511 | DS72: 0.4278 | DT72: AFR | DX72: F | DY72: Guinea-Bissau | DZ72: 0 | EE72: 0 | EK72: 11 | EL72: 42.30769231 | EM72: C | EO72: 70 | EP72: Guinea-Bissau | EQ72: GNB | ER72: 2010 | ET72: http://www.governo.bissau.net/ | EU72: 0 | EV72: - | EW72: 0.0079 | EX72: 9 | EY72: 7 | EZ72: 2 | FA72: 3 | FB72: 5 | FG72: http://minfin-gov.bissau.net | FH72: 1973 | FI72: http://www.afdb.org/fileadmin/uploads/afdb/Documents/Project-and-Operations/Guinea%20Bissau_PAURB_EN.pdf | FJ72: 2007 | FK72: 2 | FL72: 2 | FM72: - | FN72: - | FO72: - | FP72: - | FQ72: http://minfin-gov.bissau.net | FR72: 1973 | FS72: - | FT72: Forms and information | FU72: 0 | FV72: - | FW72: - | FX72: - | FY72: 0 | FZ72: 1 | GA72: http://www.minfin-gov.bissau.net/dga | GB72: 1973 | GC72: 2010 | GD72: 4 | GE72: ASYCUDA++ | GF72: Automated SYstem for CUstoms DAta | GG72: 2 | GH72: ASYCUDA ++ | GI72: http://unctad.org/en/PublicationsLibrary/dtlasycuda2011d1_en.pdf | GJ72: 1999 | GK72: 3 | GL72: 2 | GM72: 1 | GN72: 0 | GO72: - | GP72: - | GQ72: 0 | GR72: 0 | GS72: - | GT72: - | GU72: 0 | GV72: - | GW72: - | GX72: 0 | GY72: 12000 | GZ72: 1 | HA72: http://www.pefa.org/en/assessment/gw-may09-pfmpr-public-en | HB72: 2008 | HC72: SIGRHAP | HD72: Integrated System for Human Resource Management in Public Administration | HE72: 1 | HF72: LDSW | HG72: http://www.imf.org/external/pubs/ft/scr/2014/cr14318.pdf | HH72: 2011 | HI72: 3 | HJ72: 2 | HK72: SIGRHAP | HL72: Integrated System for Human Resource Management in Public Administration | HM72: 1 | HN72: LDSW | HO72: http://www.imf.org/external/pubs/ft/scr/2014/cr14318.pdf | HP72: 2011 | HQ72: 3 | HR72: 2 | HS72: D | HT72: - | HU72: http://www.pefa.org/en/assessment/gw-may09-pfmpr-public-en | HV72: - | HW72: 0 | HX72: 0 | HY72: - | IA72: 2 | IB72: DMFAS 5.3 | ID72: 1997 | IE72: 3 | IF72: MoF | IG72: 4 | IH72: 11 | II72: 50 | IJ72: B | IK72: LIC | IL72: AFR
A73: 71 | C73: Guyana | D73: LMIC | E73: 756.04 | F73: 2577 | G73: 3408.549812 | H73: http://www.finance.gov.gy | I73: Guyana Ministry of Finance | J73: 2 | K73: http://www.finance.gov.gy/publications/budget-speeches | L73: 2 | M73: http://www.finance.gov.gy/about-us/organisation/ag | N73: 1 | O73: - | P73: 0 | Q73: - | R73: 0 | S73: 0 | T73: - | U73: 1 | V73: 1 | W73: 0 | X73: - | Y73: 0 | Z73: - | AA73: 1 | AB73: 0 | AC73: 2008 | AD73: 0 | AF73: - | AG73: - | AH73: 0 | AJ73: - | AK73: 1 | AL73: 4 | AM73: 0 | AN73: 2008 | AO73: 0 | AQ73: - | AR73: 1 | AS73: 1 | AT73: 1 | AU73: 0 | AV73: 0 | AW73: 1 | AX73: 1 | AY73: 0 | AZ73: 1 | BA73: 1 | BB73: 1 | BC73: http://eprocure.gov.gy/index.php?option=com_content&view=category&layout=blog&id=81&Itemid=111 | BD73: 0 | BE73: - | BF73: 0 | BG73: - | BH73: 0 | BI73: - | BJ73: 0 | BK73: http://www.statisticsguyana.gov.gy | BL73: Guyana Bureau of Statistics | BM73: http://www.bankofguyana.org.gy | BN73: Bank of Guyana | BO73: - | BP73: 0 | BQ73: - | BR73: 1 | BS73: http://www.finance.gov.gy/about-us/organisation/ob | BT73: 0 | BU73: National laws and regulations | BV73: 0 | BW73: 2 | BX73: - | BY73: eng | BZ73: - | CA73: - | CB73: - | CC73: - | CD73: IFMAS | CE73: Integrated Financial Management and Accounting System | CF73: C | CG73: T | CH73: 3 | CI73: 2004 | CJ73: C | CK73: 1 | CL73: 2 | CM73: FreeBalance | CN73: CS | CO73: 2 | CP73: Dec 2007 | CQ73: Draft | CR73: 1 | CS73: X | CT73: X | CU73: X | CV73: X | CW73: X | CX73: X | CY73: X | CZ73: X | DA73: X | DB73: X | DC73: 2.4 | DD73: 2.25 | DE73: - | DF73: - | DH73: 0 | DI73: 124 | DJ73: 0.36952 | DK73: 0.33333 | DL73: 0.24409 | DM73: 0.23437 | DN73: 0.6301 | DO73: 109 | DP73: 0.4549 | DQ73: 0.2549 | DR73: 0.2536 | DS73: 0.8562 | DT73: LCR | DY73: Guyana | DZ73: 0 | EE73: 0 | EK73: 9 | EL73: 34.61538462 | EM73: C | EO73: 71 | EP73: Guyana | EQ73: GUY | ET73: http://www.op.gov.gy | EU73: 0 | EV73: - | EW73: 0.2441 | EX73: 63 | EY73: 30 | EZ73: 5 | FA73: 9 | FB73: 25 | FG73: http://www.finance.gov.gy/about-us/organisation/ag | FH73: 1970 | FI73: http://www.finance.gov.gy/images/Docs/Legislation/Fiscal%20Management%20and%20Accountability%20Act%202003.pdf | FJ73: 2004 | FK73: 3 | FL73: 4 | FM73: - | FN73: - | FO73: - | FP73: - | FQ73: http://www.gra.gov.gy | FR73: 2000 | FS73: TRIPS | FT73: Total Revenue Integrated Processing System | FU73: 2 | FV73: TRIPS | FW73: http://www.gina.gov.gy/archive/daily/b061228.html | FX73: 2006 | FY73: 3 | FZ73: 2 | GA73: http://www.gra.gov.gy | GB73: 2000 | GC73: 1976 | GD73: 0 | GE73: SWAPS + TRIPS | GF73: Total Revenue Integrated Processing System + Single Window Automated Processing System | GG73: 2 | GH73: TRIPS | GI73: http://www.crownagents.com/our-work/projects/detail/guyana-swaps | GJ73: 2014 | GK73: 3 | GL73: 2 | GM73: 0 | GN73: 0 | GO73: - | GP73: - | GQ73: 1 | GR73: 0 | GS73: - | GT73: - | GU73: 0 | GV73: http://unpan1.un.org/intradoc/groups/public/documents/tasf/unpan024395.pdf | GW73: 2005 | GX73: 1 | GY73: 40000 | GZ73: 2 | HA73: http://www.ilo.org/wcmsp5/groups/public/---americas/---ro-lima/---sro-port_of_spain/documents/meetingdocument/wcms_306325.pdf | HB73: 2002 | HC73: HRMIS | HD73: Human Resources Management Information System | HE73: 2 | HF73: SmartStream | HG73: http://www.freebalance.com/customers/latin_america.asp | HH73: 2008 | HI73: 3 | HJ73: 2 | HK73: HRMIS | HL73: Human Resources Management Information System | HM73: 2 | HN73: SmartStream | HO73: http://www.finance.gov.gy/about-us/organisation/ag | HP73: 2008 | HQ73: 3 | HR73: 2 | HS73: X | HT73: e-Procure | HU73: http://eprocure.gov.gy/ | HV73: - | HW73: 1 | HX73: 0 | HY73: - | IA73: 2 | IB73: CS-DRMS | ID73: 1988 | IE73: 3 | IF73: MoF | IH73: 12 | II73: 54.54545455 | IJ73: B | IK73: LMIC | IL73: LCR
A74: 72 | C74: Haiti | D74: LIC | E74: 10123.787 | F74: 7050.223311 | G74: 700 | H74: http://www.mefhaiti.gouv.ht | I74: Ministère de l'Economie et des Finances | J74: 1 | K74: http://mefhaiti.gouv.ht/?page_id=918 | L74: 1 | M74: http://www-wds.worldbank.org/external/default/WDSContentServer/WDSP/IB/2008/07/10/000333037_20080710023439/Rendered/PDF/446510PUB0HT0P101Official0Use0Only1.pdf | N74: 1 | O74: - | P74: 1 | Q74: http://mefhaiti.gouv.ht/?page_id=918 | R74: 0 | S74: 0 | T74: - | U74: 1 | V74: 1 | W74: 0 | X74: - | Y74: 1 | Z74: http://www.mefhaiti.gouv.ht/ | AA74: 1 | AB74: 1 | AC74: 2001 | AD74: 0 | AF74: - | AG74: - | AH74: 1 | AI74: 0 | AJ74: 2009 | AK74: 1 | AL74: 4 | AM74: 1 | AN74: 2001 | AO74: 0 | AQ74: - | AR74: 1 | AS74: 1 | AT74: 0 | AU74: 0 | AV74: 0 | AW74: 1 | AX74: 1 | AY74: 0 | AZ74: 1 | BA74: 1 | BB74: 1 | BC74: http://www.mefhaiti.gouv.ht/marche_public.htm | BD74: 0 | BE74: - | BF74: 0 | BG74: - | BH74: 0 | BI74: - | BJ74: 0 | BK74: http://www.ihsi.ht | BL74: Institut Haïtien de Statistique et d’Informatique | BM74: http://www.brh.net | BN74: Central Bank of Haiti | BO74: - | BP74: 0 | BQ74: - | BR74: 0 | BS74: - | BT74: 0 | BU74: National laws and regulations | BV74: 1 | BW74: 1 | BX74: - | BY74: fre | BZ74: - | CA74: - | CB74: - | CC74: - | CD74: SYSDEP | CE74: Système d’Informatisation des Dépenses / Expenditure Management System | CF74: C | CG74: F | CH74: 3 | CI74: 2005 | CJ74: C | CK74: 1 | CL74: 1 | CM74: LDSW > Oracle | CN74: CS | CO74: 2 | CP74: Jan 2012 | CQ74: Public | CR74: 2 | CS74: C | CT74: C | CU74: D | CV74: D+ | CW74: D | CX74: D | CY74: D | CZ74: D+ | DA74: NR | DB74: D | DC74: 1.333333333 | DD74: 1.48 | DE74: - | DF74: - | DH74: 0 | DI74: 176 | DJ74: 0.18086 | DK74: 0.17647 | DL74: 0.11023 | DM74: 0.09521 | DN74: 0.3372 | DO74: 187 | DP74: 0.1512 | DQ74: 0.0915 | DR74: 0.0698 | DS74: 0.2922 | DT74: LCR | DX74: F | DY74: Haiti | DZ74: 0 | EE74: 0 | EK74: 12 | EL74: 46.15384615 | EM74: C | EO74: 72 | EP74: Haiti | EQ74: HTI | ER74: 2009 | ES74: DAD | ET74: http://primature.gouv.ht/ | EU74: 0 | EV74: - | EW74: 0.1102 | EX74: 28 | EY74: 16 | EZ74: 2 | FA74: 12 | FB74: 14 | FG74: http://www.mefhaiti.gouv.ht | FH74: 1987 | FI74: http://issuu.com/mefhaiti/docs/pre__sentation_du_compte_unique_du_ | FJ74: 2016 | FK74: 1 | FL74: - | FM74: - | FN74: - | FO74: - | FP74: - | FQ74: http://www.dgi.gouv.ht | FR74: 1915 | FS74: - | FT74: Forms and information | FU74: 0 | FV74: - | FW74: - | FX74: - | FY74: 0 | FZ74: 1 | GA74: http://www.douane.gouv.ht | GB74: 1961 | GC74: 1958 | GD74: 4 | GE74: ASYCUDA World | GF74: Automated SYstem for CUstoms DAta | GG74: 2 | GH74: ASYCUDA W | GI74: http://www.douane.gouv.ht/index.php?option=com_wrapper&view=wrapper&Itemid=233 | GJ74: 2008 | GK74: 3 | GL74: 2 | GM74: 1 | GN74: 0 | GO74: https://edeclaration.dgi.gouv.ht/edeclaration/ | GP74: 2013 | GQ74: 2 | GR74: 0 | GS74: - | GT74: - | GU74: 0 | GV74: - | GW74: - | GX74: 0 | GY74: 80100 | GZ74: 1 | HA74: http://www.pefa.org/en/assessment/ht-jan12-pfmpr-public-en | HB74: 2011 | HC74: - | HD74: - | HE74: 0 | HF74: - | HG74: http://www.haitilibre.com/article-12102-haiti-politique-la-republique-dominicaine-collabore-a-la-modernisation-de-la-fonction-publique-d-haiti.html | HH74: - | HI74: 1 | HJ74: 0 | HK74: SYSPAY | HL74: Payroll of civil servants | HM74: 1 | HN74: LDSW | HO74: http://www.pefa.org/en/assessment/ht-jan12-pfmpr-public-en | HP74: - | HQ74: 3 | HR74: 1 | HS74: D+ | HT74: CNMP Website | HU74: http://www.cnmp.gouv.ht | HV74: 2014 | HW74: 3 | HX74: 1 | HY74: http://www.cnmp.gouv.ht/marchespublicssanspassation/ | HZ74: Ministry of Economy and Finance | IA74: 2 | IB74: DMFAS 5.3 | IC74: http://mefhaiti.gouv.ht/?page_id=182 | ID74: 1985 | IE74: 3 | IF74: MoF | IG74: 3 | IH74: 10 | II74: 45.45454545 | IJ74: C | IK74: LIC | IL74: LCR
A75: 73 | C75: Honduras | D75: LMIC | E75: 7754.687 | F75: 15381.73202 | G75: 1980 | H75: http://www.sefin.gob.hn | I75: Honduras Secretaría de Finanzas | J75: 2 | K75: http://www.sefin.gob.hn/?page_id=196 | L75: 2 | M75: http://www.sefin.gob.hn/?page_id=17 | N75: 1 | O75: - | P75: 0 | Q75: - | R75: 0 | S75: 0 | T75: - | U75: 1 | V75: 1 | W75: 1 | X75: http://www.sefin.gob.hn | Y75: 1 | Z75: http://www.sefin.gob.hn/bisefin | AA75: 1 | AB75: 1 | AC75: 2007 | AD75: 1 | AE75: 0 | AF75: 3 | AG75: 2012 | AH75: 1 | AI75: 1 | AJ75: 2008 | AK75: 1 | AL75: 3 | AM75: 1 | AN75: 2007 | AO75: 1 | AP75: 1 | AQ75: 2007 | AR75: 1 | AS75: 1 | AT75: 1 | AU75: 1 | AV75: 0 | AW75: 1 | AX75: 1 | AY75: 1 | AZ75: 1 | BA75: 0 | BB75: 1 | BC75: http://www.sefin.gob.hn/?page_id=8248 | BD75: 0 | BE75: - | BF75: 2 | BG75: http://www.sefin.gob.hn/wp-content/uploads/SAMI/index.html | BH75: 1 | BI75: http://www.sefin.gob.hn/?page_id=2398 | BJ75: 0 | BK75: http://www.ine-hn.org | BL75: Honduras Instituto Nacional de Estadistica | BM75: http://www.bch.hn | BN75: Central Bank of Honduras | BO75: - | BP75: 0 | BQ75: - | BR75: 1 | BS75: http://www.sefin.gob.hn/?page_id=5395 | BT75: 0 | BU75: National laws and regulations | BV75: 0 | BW75: 2 | BX75: - | BY75: spa | BZ75: - | CA75: - | CB75: - | CC75: - | CD75: SIAFI | CE75: Sistema de Administración Financiera Integrada | CF75: C | CG75: F | CH75: 3 | CI75: 2006 | CJ75: C+L | CK75: 2 | CL75: 1 | CM75: LDSW > Oracle | CN75: Web | CO75: 3 | CP75: Mar 2013 | CQ75: Public | CR75: 4 | CS75: A | CT75: A | CU75: B | CV75: C+ | CW75: A | CX75: B | CY75: C+ | CZ75: D+ | DA75: D+ | DB75: D+ | DC75: 2.75 | DD75: 2.71 | DE75: 53 | DF75: 11 | DG75: 1 | DH75: 1 | DI75: 114 | DJ75: 0.40826 | DK75: 0.33333 | DL75: 0.40157 | DM75: 0.19514 | DN75: 0.6281 | DO75: 117 | DP75: 0.4341 | DQ75: 0.3791 | DR75: 0.2173 | DS75: 0.706 | DT75: LCR | DY75: Honduras | DZ75: 0 | EE75: 0 | EK75: 18 | EL75: 69.23076923 | EM75: B | EO75: 73 | EP75: Honduras | EQ75: HND | ER75: 2011 | ES75: DAD | ET75: http://www.presidencia.gob.hn | EU75: 2 | EV75: http://sinaip.iaip.gob.hn | EW75: 0.4016 | EX75: 59 | EY75: 48 | EZ75: 26 | FA75: 21 | FB75: 38 | FG75: http://www.sefin.gob.hn/?page_id=2257 | FH75: 1995 | FI75: http://www.sefin.gob.hn/?page_id=2257 | FJ75: 2006 | FK75: 3 | FL75: 4 | FM75: - | FN75: - | FO75: - | FP75: - | FQ75: http://www.dei.gob.hn | FR75: 1994 | FS75: DEI Online | FT75: Web Services | FU75: 2 | FV75: COTS | FW75: http://deienlinea.dei.gob.hn | FX75: 2010 | FY75: 3 | FZ75: 2 | GA75: http://www.dei.gob.hn | GB75: 1994 | GC75: 2005 | GD75: 0 | GE75: SARAH + VUCEH | GF75: Sistema Aduanero Automatizado de Rentas Aduaneras de Honduras + Ventanilla Única de Comercio Exterior de Honduras | GG75: 2 | GH75: COTS | GI75: http://sarahweb.dei.gob.hn | GJ75: 2010 | GK75: 3 | GL75: 2 | GM75: 1 | GN75: 0 | GO75: http://deienlinea.dei.gob.hn/ | GP75: 2010 | GQ75: 3 | GR75: 0 | GS75: - | GT75: - | GU75: 0 | GV75: http://www.latribuna.hn/movil/2014/01/23/en-vigencia-ley-sobre-firmas-electronicas/ | GW75: 2013 | GX75: 1 | GY75: 145891 | GZ75: 2 | HA75: http://laborsta.ilo.org/STP/guest | HB75: 2004 | HC75: SIAFI | HD75: Sistema de Administración Financiera Integrada | HE75: 1 | HF75: LDSW | HG75: http://www.sefin.gob.hn/?p=3505 | HH75: 2006 | HI75: 3 | HJ75: 2 | HK75: SIAFI | HL75: Sistema de Administración Financiera Integrada | HM75: 1 | HN75: LDSW | HO75: http://www.sefin.gob.hn/?p=3505 | HP75: 2006 | HQ75: 3 | HR75: 2 | HS75: C | HT75: Hondu Compras | HU75: http://www.honducompras.gob.hn | HV75: 2005 | HW75: 3 | HX75: 2 | HY75: http://www.honducompras.gob.hn/Procesos/BusquedaHistorico.aspx | IA75: 2 | IB75: DMFAS 6.0 | ID75: 1988 | IE75: 3 | IF75: MoF | IG75: 4FT | IH75: 17 | II75: 77.27272727 | IJ75: A | IK75: LMIC | IL75: LCR
A76: 74 | C76: Hong Kong SAR, China | D76: HIC | E76: 7071.6 | F76: 254625.2823 | G76: 36010 | H76: http://www.fstb.gov.hk | I76: Hong Kong Financial Services and the Treasury Bureau | J76: 2 | K76: http://www.budget.gov.hk/2013/index.html | L76: 2 | M76: http://www.try.gov.hk/internet/ehabou_serv_pledge3.html | N76: 1 | O76: - | P76: 0 | Q76: - | R76: 0 | S76: 0 | T76: - | U76: 2 | V76: 1 | W76: 0 | X76: - | Y76: 1 | Z76: http://www.budget.gov.hk/2013/eng/estimates.html | AA76: 1 | AB76: 1 | AC76: 1997 | AD76: 1 | AE76: 1 | AF76: 5 | AG76: 1997 | AH76: 1 | AI76: 1 | AJ76: 2000 | AK76: 1 | AL76: 2 | AM76: 1 | AN76: 2002 | AO76: 0 | AQ76: - | AR76: 1 | AS76: 1 | AT76: n/a | AU76: 0 | AV76: 0 | AW76: 1 | AX76: 1 | AY76: n/a | AZ76: 1 | BA76: 1 | BB76: 1 | BC76: http://www.fstb.gov.hk/tb/eng/procurement/tender02.html | BD76: 1 | BE76: http://www.gov.hk/en/theme/psi/datasets | BF76: n/a | BG76: - | BH76: n/a | BI76: - | BJ76: 1 | BK76: http://www.info.gov.hk/censtatd | BL76: Hong Kong Special Administrative Region Census and Statistics Department | BM76: http://www.hkma.gov.hk | BN76: Hong Kong Monetary Authority | BO76: - | BP76: 1 | BQ76: http://www.fstb.gov.hk/tb/eng/access/content.html | BR76: 0 | BS76: - | BT76: 1 | BU76: - | BV76: 0 | BW76: 3 | BX76: - | BY76: chi | BZ76: eng | CA76: - | CB76: - | CC76: 1 | CD76: GFMIS | CE76: Government Financial Management Information System | CF76: D | CG76: F | CH76: 3 | CI76: 2009 | CJ76: C | CK76: 1 | CL76: 2 | CM76: Oracle | CN76: Web | CO76: 2 | CP76: - | CQ76: - | CR76: - | CS76: - | CT76: - | CU76: - | CV76: - | CW76: - | CX76: - | CY76: - | CZ76: - | DA76: - | DB76: - | DC76: - | DD76: - | DE76: - | DF76: - | DH76: 1 | DI76: - | DJ76: - | DK76: - | DL76: - | DM76: - | DN76: - | DO76: - | DP76: - | DQ76: - | DR76: - | DS76: - | DT76: EAP | DW76: APEC | DY76: Hong Kong SAR, China | DZ76: 3 | EA76: 1 | EB76: 2 | EE76: 0 | EJ76: 2013-05-06 | EK76: 17 | EL76: 65.38461538 | EM76: B | EO76: 74 | EP76: Hong Kong SAR, China | EQ76: HKG | ET76: http://www.gov.hk | EU76: 2 | EV76: http://www.gov.hk/ | EW76: - | EX76: - | EY76: - | EZ76: - | FA76: - | FB76: - | FG76: http://www.try.gov.hk | FH76: 2002 | FI76: - | FJ76: - | FK76: 0 | FL76: - | FM76: - | FN76: - | FO76: - | FP76: - | FQ76: http://www.ird.gov.hk | FR76: 1948 | FS76: e-Tax | FT76: e-Tax and other portals | FU76: 2 | FV76: COTS | FW76: http://www.gov.hk/en/residents/taxes/etax/index.htm | FX76: 2001 | FY76: 3 | FZ76: 3 | GA76: http://www.customs.gov.hk | GB76: 1909 | GC76: 1987 | GD76: 3 | GE76: e-Customs > ACCS / ROCARS | GF76: Air Cargo Clearance System; Road Cargo System; Electronic Submission of Cargo Manifests | GG76: 2 | GH76: COTS ? | GI76: http://www.customs.gov.hk/en/electronic_services/index.html | GJ76: 1997 | GK76: 3 | GL76: 3 | GM76: 1 | GN76: 1 | GO76: http://www.gov.hk/en/residents/taxes/etax/ | GP76: 2001 | GQ76: 3 | GR76: 1 | GS76: http://www.gov.hk/en/residents/onlineservices/ or http://www.try.gov.hk/internet/ehcoll_paym_pps.html | GT76: 2006 | GU76: 2 | GV76: http://www.ogcio.gov.hk/en/regulation/eto/digital_cert/cert_user_journey/ | GW76: 2000 | GX76: 3 | GY76: 245800 | GZ76: 2 | HA76: http://laborsta.ilo.org/STP/guest | HB76: 2010 | HC76: GovHRMS | HD76: Government Human Resources Management Services | HE76: 1 | HF76: LDSW | HG76: http://www.ogcio.gov.hk/en/strategies/initiatives/shrms | HH76: - | HI76: 2 | HJ76: 2 | HK76: e-Payroll | HL76: ePayroll & Benefits system | HM76: 1 | HN76: LDSW | HO76: http://www.ogcio.gov.hk/en/infrastructure/e_government/ccgo | HP76: 2003 | HQ76: 3 | HR76: 2 | HS76: - | HT76: Gov Procurement | HU76: http://www.gov.hk/en/theme/eprocurement | HV76: 2009 | HW76: 3 | HX76: 3 | HY76: https://www.gldpcms.gov.hk/etb_prod/jsp_public/cn/scn00101.jsp | HZ76: Monetary Authority HKMA | IH76: 19 | II76: 86.36363636 | IJ76: A | IK76: HIC | IL76: EAP
